Workbook

Sheet 872_110
C4: 872_110
F5: CabPK
F6: LG start | G6: LG stop | H6: Prot | I6: Retr | J6: LG DC | K6: Int1 DC | L6: LG freq | M6: GMR freq | N6: Period | O6: s/b | P6: SpikeFreq
F7: 3.30479 | G7: 7.86804 | H7: =G7-F7 -> 4.56325 | I7: =F8-G7 -> 6.10272 | J7: =H7/N7 -> 0.4278326303 | K7: =I7/N7 -> 0.5721673697 | L7: =1/H7 -> 0.2191420588 | M7: =1/N7 -> 0.09375612345 | N7: =H7+I7 -> 10.66597 | O7: 18 | P7: =O7/H7 -> 3.944557059
F8: 13.97076 | G8: 18.92998 | H8: =G8-F8 -> 4.95922 | I8: =F9-G8 -> 8.18225 | J8: =H8/N8 -> 0.3773717857 | K8: =I8/N8 -> 0.6226282143 | L8: =1/H8 -> 0.2016446135 | M8: =1/N8 -> 0.07609498785 | N8: =H8+I8 -> 13.14147 | O8: 24 | P8: =O8/H8 -> 4.839470723
F9: 27.11223 | G9: 31.75319 | H9: 4.64096 | I9: 7.27339 | J9: 0.389526915 | K9: 0.610473085 | L9: 0.2154726608 | M9: 0.08393240084 | N9: 11.91435 | O9: 20 | P9: 4.309453217
F10: 39.02658 | G10: 43.89802 | H10: 4.87144 | I10: 7.02011 | J10: 0.4096555958 | K10: 0.5903444042 | L10: 0.2052781108 | M10: 0.08409332677 | N10: 11.89155 | O10: 22 | P10: 4.516118437
F11: 50.91813 | G11: 55.55492 | H11: 4.63679 | I11: 7.2761 | J11: 0.389224613 | K11: 0.610775387 | L11: 0.2156664417 | M11: 0.08394268729 | N11: 11.91289 | O11: 19 | P11: 4.097662391
F12: 62.83102 | G12: 68.02899 | H12: 5.19797 | I12: 8.11428 | J12: 0.3904651731 | K12: 0.6095348269 | L12: 0.1923827956 | M12: 0.07511878157 | N12: 13.31225 | O12: 23 | P12: 4.424804299
F13: 76.14327 | G13: 81.31303 | H13: 5.16976 | I13: 8.25176 | J13: 0.3851843904 | K13: 0.6148156096 | L13: 0.1934325771 | M13: 0.07450720932 | N13: 13.42152 | O13: 24 | P13: 4.642381851
F14: 89.56479 | G14: 94.45059 | H14: 4.8858 | I14: 7.43286 | J14: 0.396617814 | K14: 0.603382186 | L14: 0.2046747718 | M14: 0.08117766056 | N14: 12.31866 | O14: 21 | P14: 4.298170208
F15: 101.88345 | G15: 106.64988 | H15: 4.76643 | I15: 7.58964 | J15: 0.3857561506 | K15: 0.6142438494 | L15: 0.2098006265 | M15: 0.08093188206 | N15: 12.35607 | O15: 21 | P15: 4.405813156
F16: 114.23952 | G16: 119.38856 | H16: 5.14904 | I16: 7.07355 | J16: 0.4212724144 | K16: 0.5787275856 | L16: 0.1942109597 | M16: 0.08181571991 | N16: 12.22259 | O16: 22 | P16: 4.272641114
F17: 126.46211 | G17: 131.29585 | H17: 4.83374 | I17: 7.5643 | J17: 0.389879368 | K17: 0.610120632 | L17: 0.2068791453 | M17: 0.08065791044 | N17: 12.39804 | O17: 20 | P17: 4.137582907
F18: 138.86015 | G18: 143.8444 | H18: 4.98425 | I18: 6.26917 | J18: 0.4429097999 | K18: 0.5570902001 | L18: 0.2006319908 | M18: 0.08886187488 | N18: 11.25342 | O18: 22 | P18: 4.413903797
F19: 150.11357 | G19: 155.26399 | H19: 5.15042 | I19: 8.44748 | J19: 0.3787658388 | K19: 0.6212341612 | L19: 0.194158923 | M19: 0.07354076732 | N19: 13.5979 | O19: 23 | P19: 4.465655228
F20: 163.71147 | G20: 168.67974 | H20: 4.96827 | I20: 7.46927 | J20: 0.3994576098 | K20: 0.6005423902 | L20: 0.2012773058 | M20: 0.08040175147 | N20: 12.43754 | O20: 21 | P20: 4.226823421
F21: 176.14901 | G21: 181.04454 | H21: 4.89553 | I21: 7.40369 | J21: 0.3980358104 | K21: 0.6019641896 | L21: 0.2042679751 | M21: 0.081305969 | N21: 12.29922 | O21: 21 | P21: 4.289627476
F22: 188.44823 | G22: 193.37665 | H22: 4.92842 | I22: 7.51177 | J22: 0.3961691903 | K22: 0.6038308097 | L22: 0.2029047849 | M22: 0.08038462435 | N22: 12.44019 | O22: 21 | P22: 4.261000483
F23: 200.88842 | G23: 205.79015 | H23: 4.90173 | I23: 7.49822 | J23: 0.3953024004 | K23: 0.6046975996 | L23: 0.2040096048 | M23: 0.08064548647 | N23: 12.39995 | O23: 21 | P23: 4.2842017
F24: 213.28837 | G24: 218.12965 | H24: 4.84128 | I24: 7.41282 | J24: 0.3950743017 | K24: 0.6049256983 | L24: 0.2065569436 | M24: 0.08160534025 | N24: 12.2541 | O24: 21 | P24: 4.337695816
F25: 225.54247 | G25: 230.41436 | H25: =G25-F25 -> 4.87189 | I25: =F26-G25 -> 7.4404 | J25: =H25/N25 -> 0.3956932463 | K25: =I25/N25 -> 0.6043067537 | L25: =1/H25 -> 0.2052591499 | M25: =1/N25 -> 0.08121965938 | N25: =H25+I25 -> 12.31229 | O25: 21 | P25: =O25/H25 -> 4.310442149
F26: 237.85476 | G26: 239.81354
H28: Prot | I28: Retr | J28: LG DC | K28: Int1 DC | L28: LG freq | M28: GMR freq | N28: Period | O28: s/b | P28: SpikeFreq
G29: Mean | H29: =AVERAGE(H7:H25) -> 4.906115263 | I29: =AVERAGE(I7:I25) -> 7.43862 | J29: 0.3981155288 | K29: 0.6018844712 | L29: 0.2040869179 | M29: 0.08126285069 | N29: 12.34473526 | O29: 21.31578947 | P29: 4.340947654
G30: SD | H30: =_xlfn.STDEV.S(H7:H25) -> 0.1793417475 | I30: =_xlfn.STDEV.S(I7:I25) -> 0.5894086873 | J30: 0.01665628572 | K30: 0.01665628572 | L30: 0.00750515759 | M30: 0.004764892757 | N30: 0.704657524 | O30: 1.529438226 | P30: 0.1962928125
G31: SEM | H31: =H30/(SQRT(COUNT(H7:H25))) -> 0.04114381861 | I31: =I30/(SQRT(COUNT(I7:I25))) -> 0.1352196265 | J31: 0.003821214013 | K31: 0.003821214013 | L31: 0.001721801236 | M31: 0.001093141369 | N31: 0.161659523 | O31: 0.350877193 | P31: 0.04503265963
F37: CabPK + CCAP
F38: LG start | G38: LG stop | H38: Prot | I38: Retr | J38: LG DC | K38: Int1 DC | L38: LG freq | M38: GMR freq | N38: Period | O38: s/b | P38: SpikeFreq
F39: 0.1506 | G39: 4.03004 | H39: =G39-F39 -> 3.87944 | I39: =F40-G39 -> 3.95418 | J39: =H39/N39 -> 0.4952295363 | K39: =I39/N39 -> 0.5047704637 | L39: =1/H39 -> 0.2577691626 | M39: =1/N39 -> 0.1276549028 | N39: =H39+I39 -> 7.83362 | O39: 18 | P39: =O39/H39 -> 4.639844926
F40: 7.98422 | G40: 13.33215 | H40: =G40-F40 -> 5.34793 | I40: =F41-G40 -> 4.08674 | J40: =H40/N40 -> 0.5668380558 | K40: =I40/N40 -> 0.4331619442 | L40: =1/H40 -> 0.1869882366 | M40: =1/N40 -> 0.1059920485 | N40: =H40+I40 -> 9.43467 | O40: 27 | P40: =O40/H40 -> 5.048682387
F41: 17.41889 | G41: 22.76592 | H41: 5.34703 | I41: 3.09974 | J41: 0.6330265889 | K41: 0.3669734111 | L41: 0.18701971 | M41: 0.1183884491 | N41: 8.44677 | O41: 27 | P41: 5.04953217
F42: 25.86566 | G42: 32.1817 | H42: 6.31604 | I42: 4.27562 | J42: 0.5963220118 | K42: 0.4036779882 | L42: 0.158327053 | M42: 0.09441390679 | N42: 10.59166 | O42: 30 | P42: 4.749811591
F43: 36.45732 | G43: 41.66073 | H43: 5.20341 | I43: 4.3846 | J43: 0.5426996843 | K43: 0.4573003157 | L43: 0.1921816655 | M43: 0.1042969292 | N43: 9.58801 | O43: 29 | P43: 5.573268299
F44: 46.04533 | G44: 50.5276 | H44: 4.48227 | I44: 4.10799 | J44: 0.5217851381 | K44: 0.4782148619 | L44: 0.2231012411 | M44: 0.1164109119 | N44: 8.59026 | O44: 24 | P44: 5.354429787
F45: 54.63559 | G45: 59.03249 | H45: 4.3969 | I45: 5.17724 | J45: 0.4592475147 | K45: 0.5407524853 | L45: 0.2274329641 | M45: 0.1044480235 | N45: 9.57414 | O45: 23 | P45: 5.230958175
F46: 64.20973 | G46: 68.51028 | H46: 4.30055 | I46: 4.25557 | J46: 0.5026285279 | K46: 0.4973714721 | L46: 0.2325283975 | M46: 0.1168754061 | N46: 8.55612 | O46: 22 | P46: 5.115624746
F47: 72.76585 | G47: 79.15838 | H47: 6.39253 | I47: 4.15297 | J47: 0.6061855768 | K47: 0.3938144232 | L47: 0.1564325862 | M47: 0.09482717747 | N47: 10.5455 | O47: 27 | P47: 4.223679826
F48: 83.31135 | G48: 87.74335 | H48: 4.432 | I48: 5.08322 | J48: 0.4657800871 | K48: 0.5342199129 | L48: 0.225631769 | M48: 0.105094785 | N48: 9.51522 | O48: 23 | P48: 5.189530686
F49: 92.82657 | G49: 97.27234 | H49: 4.44577 | I49: 4.11923 | J49: 0.5190624635 | K49: 0.4809375365 | L49: 0.2249329138 | M49: 0.1167542323 | N49: 8.565 | O49: 23 | P49: 5.173457016
F50: 101.39157 | G50: 106.84106 | H50: 5.44949 | I50: 5.08443 | J50: 0.5173278324 | K50: 0.4826721676 | L50: 0.1835034104 | M50: 0.09493142154 | N50: 10.53392 | O50: 24 | P50: 4.40408185
F51: 111.92549 | G51: 116.32228 | H51: 4.39679 | I51: 4.05488 | J51: 0.5202273633 | K51: 0.4797726367 | L51: 0.2274386541 | M51: 0.1183198114 | N51: 8.45167 | O51: 22 | P51: 5.00365039
F52: 120.37716 | G52: 124.88935 | H52: 4.51219 | I52: 5.14369 | J52: 0.4672997179 | K52: 0.5327002821 | L52: 0.2216218732 | M52: 0.1035638388 | N52: 9.65588 | O52: 24 | P52: 5.318924957
F53: 130.03304 | G53: 134.54412 | H53: 4.51108 | I53: 5.1141 | J53: 0.4686748715 | K53: 0.5313251285 | L53: 0.2216764057 | M53: 0.1038941609 | N53: 9.62518 | O53: 23 | P53: 5.09855733
F54: 139.65822 | G54: 144.17242 | H54: 4.5142 | I54: 5.15714 | J54: 0.4667605523 | K54: 0.5332394477 | L54: 0.2215231935 | M54: 0.1033982881 | N54: 9.67134 | O54: 23 | P54: 5.09503345
F55: 149.32956 | G55: 153.85351 | H55: 4.52395 | I55: 4.03887 | J55: 0.5283247809 | K55: 0.4716752191 | L55: 0.2210457675 | M55: 0.1167839567 | N55: 8.56282 | O55: 22 | P55: 4.863006886
F56: 157.89238 | G56: 162.25976 | H56: 4.36738 | I56: 4.25436 | J56: 0.5065543614 | K56: 0.4934456386 | L56: 0.2289702293 | M56: 0.1159858683 | N56: 8.62174 | O56: 21 | P56: 4.808374815
F57: 166.51412 | G57: 171.00401 | H57: 4.48989 | I57: 5.16022 | J57: 0.4652682716 | K57: 0.5347317284 | L57: 0.2227226057 | M57: 0.1036257618 | N57: 9.65011 | O57: 23 | P57: 5.122619931
F58: 176.16423 | G58: 180.66236 | H58: 4.49813 | I58: 5.05663 | J58: 0.4707737295 | K58: 0.5292262705 | L58: 0.2223146063 | M58: 0.1046598763 | N58: 9.55476 | O58: 22 | P58: 4.890921338
F59: 185.71899 | G59: 189.98345 | H59: 4.26446 | I59: 4.25228 | J59: 0.5007150623 | K59: 0.4992849377 | L59: 0.2344962785 | M59: 0.1174158187 | N59: 8.51674 | O59: 22 | P59: 5.158918128
F60: 194.23573 | G60: 198.4434 | H60: 4.20767 | I60: 5.33164 | J60: 0.4410874581 | K60: 0.5589125419 | L60: 0.2376612234 | M60: 0.1048293849 | N60: 9.53931 | O60: 22 | P60: 5.228546916
F61: 203.77504 | G61: 208.10064 | H61: 4.3256 | I61: 4.28781 | J61: 0.5021936724 | K61: 0.4978063276 | L61: 0.2311818014 | M61: 0.1160980378 | N61: 8.61341 | O61: 22 | P61: 5.08599963
F62: 212.38845 | G62: 217.84683 | H62: 5.45838 | I62: 5.20108 | J62: 0.5120690917 | K62: 0.4879309083 | L62: 0.1832045405 | M62: 0.09381338267 | N62: 10.65946 | O62: 25 | P62: 4.580113514
F63: 223.04791 | G63: 227.32799 | H63: 4.28008 | I63: 4.2914 | J63: 0.4993396706 | K63: 0.5006603294 | L63: 0.2336404927 | M63: 0.1166659667 | N63: 8.57148 | O63: 21 | P63: 4.906450347
F64: 231.61939 | G64: 235.96691
H66: Prot | I66: Retr | J66: LG DC | K66: Int1 DC | L66: LG freq | M66: GMR freq | N66: Period | O66: s/b | P66: SpikeFreq
G67: Mean | H67: =AVERAGE(H39:H63) -> 4.7337264 | I67: =AVERAGE(I39:I63) -> 4.5250252 | J67: 0.5110168648 | K67: 0.4889831352 | L67: 0.2145338713 | M67: 0.1087656939 | N67: 9.2587516 | O67: 23.56 | P67: 4.996560764
G68: SD | H68: =_xlfn.STDEV.S(H39:H63) -> 0.644131107 | I68: =_xlfn.STDEV.S(I39:I63) -> 0.5726327942 | J68: 0.04813079124 | K68: 0.04813079124 | L68: 0.02535548456 | M68: 0.009241002196 | N68: 0.7958163126 | O68: 2.678307924 | P68: 0.3037567112
G69: SEM | H69: =H68/(SQRT(COUNT(H39:H63))) -> 0.1288262214 | I69: =I68/(SQRT(COUNT(I39:I63))) -> 0.1145265588 | J69: 0.009626158248 | K69: 0.009626158248 | L69: 0.005071096912 | M69: 0.001848200439 | N69: 0.1591632625 | O69: 0.5356615847 | P69: 0.06075134225

Sheet 07252016
C4: 872_116
F5: CabPK
F6: LG start | G6: LG stop | H6: Prot | I6: Retr | J6: LG DC | K6: Int1 DC | L6: LG freq | M6: GMR freq | N6: Period | O6: s/b | P6: SpikeFreq
F7: 5.78012 | G7: 13.28624 | H7: =G7-F7 -> 7.50612 | I7: =F8-G7 -> 12.78795 | J7: =H7/N7 -> 0.369867651 | K7: =I7/N7 -> 0.630132349 | L7: =1/H7 -> 0.133224622 | M7: =1/N7 -> 0.04927547801 | N7: =H7+I7 -> 20.29407 | O7: 37 | P7: =O7/H7 -> 4.929311016
F8: 26.07419 | G8: 34.01004 | H8: =G8-F8 -> 7.93585 | I8: =F9-G8 -> 12.64703 | J8: =H8/N8 -> 0.38555586 | K8: =I8/N8 -> 0.61444414 | L8: =1/H8 -> 0.1260104463 | M8: =1/N8 -> 0.04858406598 | N8: =H8+I8 -> 20.58288 | O8: 41 | P8: =O8/H8 -> 5.166428297
F9: 46.65707 | G9: 56.09687 | H9: 9.4398 | I9: 11.96041 | J9: 0.4411078209 | K9: 0.5588921791 | L9: 0.1059344478 | M9: 0.04672851341 | N9: 21.40021 | O9: 45 | P9: 4.767050149
F10: 68.05728 | G10: 77.98126 | H10: 9.92398 | I10: 13.20196 | J10: 0.4291276376 | K10: 0.5708723624 | L10: 0.1007660233 | M10: 0.04324148554 | N10: 23.12594 | O10: 63 | P10: 6.348259468
F11: 91.18322 | G11: 99.81425 | H11: 8.63103 | I11: 11.16973 | J11: 0.4358938748 | K11: 0.5641061252 | L11: 0.115861027 | M11: 0.050503112 | N11: 19.80076 | O11: 41 | P11: 4.750302108
F12: 110.98398 | G12: 121.81635 | H12: 10.83237 | I12: 13.31869 | J12: 0.4485256548 | K12: 0.5514743452 | L12: 0.09231590132 | M12: 0.04140605009 | N12: 24.15106 | O12: 56 | P12: 5.169690474
F13: 135.13504 | G13: 143.71661 | H13: 8.58157 | I13: 11.39304 | J13: 0.4296239076 | K13: 0.5703760924 | L13: 0.1165287937 | M13: 0.05006355568 | N13: 19.97461 | O13: 46 | P13: 5.360324509
F14: 155.10965 | G14: 164.57233 | H14: 9.46268 | I14: 13.44669 | J14: 0.4130484601 | K14: 0.5869515399 | L14: 0.1056783068 | M14: 0.04365026188 | N14: 22.90937 | O14: 61 | P14: 6.446376714
F15: 178.01902 | G15: 186.25159 | H15: 8.23257 | I15: 15.39917 | J15: 0.3483691848 | K15: 0.6516308152 | L15: 0.1214687516 | M15: 0.04231596996 | N15: 23.63174 | O15: 47 | P15: 5.709031323
F16: 201.65076 | G16: 211.77629 | H16: 10.12553 | I16: 15.0356 | J16: 0.4024274744 | K16: 0.5975725256 | L16: 0.09876026243 | M16: 0.03974384298 | N16: 25.16113 | O16: 66 | P16: 6.51817732
F17: 226.81189 | G17: 237.70157 | H17: 10.88968 | I17: 9.59633 | J17: 0.5315666643 | K17: 0.4684333357 | L17: 0.09183006296 | M17: 0.04881380025 | N17: 20.48601 | O17: 64 | P17: 5.877124029
F18: 247.2979 | G18: 257.55866 | H18: 10.26076 | I18: 11.54289 | J18: 0.4705982714 | K18: 0.5294017286 | L18: 0.09745866778 | M18: 0.04586388059 | N18: 21.80365 | O18: 51 | P18: 4.970392057
F19: 269.10155 | G19: 278.22587 | H19: 9.12432 | I19: 11.68375 | J19: 0.4384991016 | K19: 0.5615008984 | L19: 0.1095972083 | M19: 0.04805827739 | N19: 20.80807 | O19: 57 | P19: 6.247040875
F20: 289.90962 | G20: 300.42537 | H20: 10.51575 | I20: 11.45132 | J20: 0.478705171 | K20: 0.521294829 | L20: 0.09509545206 | M20: 0.04552268464 | N20: 21.96707 | O20: 64 | P20: 6.086108932
F21: 311.87669 | G21: 320.38215 | H21: 8.50546 | I21: 14.4981 | J21: 0.3697453785 | K21: 0.6302546215 | L21: 0.1175715364 | M21: 0.04347153223 | N21: 23.00356 | O21: 55 | P21: 6.466434502
F22: 334.88025 | G22: 343.38682 | H22: 8.50657 | I22: 17.9477 | J22: 0.3215575406 | K22: 0.6784424594 | L22: 0.1175561948 | M22: 0.03780108088 | N22: 26.45427 | O22: 50 | P22: 5.87780974
F23: 361.33452 | G23: 370.09956 | H23: 8.76504 | I23: 11.55585 | J23: 0.4313315017 | K23: 0.5686684983 | L23: 0.1140896105 | M23: 0.04921044305 | N23: 20.32089 | O23: 60 | P23: 6.845376633
F24: 381.65541 | G24: 391.71735 | H24: 10.06194 | I24: 13.05118 | J24: 0.4353345632 | K24: 0.5646654368 | L24: 0.09938441295 | M24: 0.04326547 | N24: 23.11312 | O24: 61 | P24: 6.06244919
F25: 404.76853 | G25: 411.50396 | H25: 6.73543
H28: Prot | I28: Retr | J28: LG DC | K28: Int1 DC | L28: LG freq | M28: GMR freq | N28: Period | O28: s/b | P28: SpikeFreq
G29: Mean | H29: =AVERAGE(H7:H24) -> 9.294501111 | I29: =AVERAGE(I7:I25) -> 12.87152167 | J29: 0.4211603177 | K29: 0.5788396823 | L29: 0.1088406516 | M29: 0.04541775025 | N29: 22.16602278 | O29: 53.61111111 | P29: 5.755427074
G30: SD | H30: =_xlfn.STDEV.S(H7:H24) -> 1.021333233 | I30: =_xlfn.STDEV.S(I7:I25) -> 1.936920636 | J30: 0.04983922748 | K30: 0.04983922748 | L30: 0.01211013987 | M30: 0.003752427493 | N30: 1.905974577 | O30: 9.127456246 | P30: 0.6735959013
G31: SEM | H31: =H30/(SQRT(COUNT(H7:H24))) -> 0.2407305516 | I31: =I30/(SQRT(COUNT(I7:I25))) -> 0.456536572 | J31: 0.01174721857 | K31: 0.01174721857 | L31: 0.00285438734 | M31: 0.0008844556421 | N31: 0.4492425161 | O31: 2.151362069 | P31: 0.1587680765
F37: CabPK + CCAP
F38: LG start | G38: LG stop | H38: Prot | I38: Retr | J38: LG DC | K38: Int1 DC | L38: LG freq | M38: GMR freq | N38: Period | O38: s/b | P38: SpikeFreq
F39: 1.75854 | G39: 13.82384 | H39: =G39-F39 -> 12.0653 | I39: =F40-G39 -> 10.54396 | J39: =H39/N39 -> 0.5336441794 | K39: =I39/N39 -> 0.4663558206 | L39: =1/H39 -> 0.0828823154 | M39: =1/N39 -> 0.04422966519 | N39: =H39+I39 -> 22.60926 | O39: 65 | P39: =O39/H39 -> 5.387350501
F40: 24.3678 | G40: 34.43967 | H40: =G40-F40 -> 10.07187 | I40: =F41-G40 -> 14.70843 | J40: =H40/N40 -> 0.4064466532 | K40: =I40/N40 -> 0.5935533468 | L40: =1/H40 -> 0.09928642844 | M40: =1/N40 -> 0.04035463655 | N40: =H40+I40 -> 24.7803 | O40: 60 | P40: =O40/H40 -> 5.957185706
F41: 49.1481 | G41: 65.60622 | H41: 16.45812 | I41: 13.39475 | J41: 0.5513077972 | K41: 0.4486922028 | L41: 0.06076028125 | M41: 0.03349761681 | N41: 29.85287 | O41: 93 | P41: 5.650706156
F42: 79.00097 | G42: 90.85037 | H42: 11.8494 | I42: 13.41225 | J42: 0.4690667474 | K42: 0.5309332526 | L42: 0.08439245869 | M42: 0.0395856961 | N42: 25.26165 | O42: 69 | P42: 5.82307965
F43: 104.26262 | G43: 115.95918 | H43: 11.69656 | I43: 12.56343 | J43: 0.4821337519 | K43: 0.5178662481 | L43: 0.08549522253 | M43: 0.04122013241 | N43: 24.25999 | O43: 61 | P43: 5.215208574
F44: 128.52261 | G44: 140.60946 | H44: 12.08685 | I44: 13.03886 | J44: 0.4810550627 | K44: 0.5189449373 | L44: 0.08273454208 | M44: 0.03979987033 | N44: 25.12571 | O44: 73 | P44: 6.039621572
F45: 153.64832 | G45: 163.78226 | H45: 10.13394 | I45: 13.72323 | J45: 0.4247754449 | K45: 0.5752245551 | L45: 0.09867830281 | M45: 0.04191611998 | N45: 23.85717 | O45: 65 | P45: 6.414089683
F46: 177.50549 | G46: 192.48781 | H46: 14.98232 | I46: 14.09656 | J46: 0.5152302977 | K46: 0.4847697023 | L46: 0.06674533717 | M46: 0.03438921994 | N46: 29.07888 | O46: 84 | P46: 5.606608322
F47: 206.58437 | G47: 217.23886 | H47: 10.65449 | I47: 13.71314 | J47: 0.4372394853 | K47: 0.5627605147 | L47: 0.0938571438 | M47: 0.04103804925 | N47: 24.36763 | O47: 64 | P47: 6.006857203
F48: 230.952 | G48: 241.66186 | H48: 10.70986
H51: Prot | I51: Retr | J51: LG DC | K51: Int1 DC | L51: LG freq | M51: GMR freq | N51: Period | O51: s/b | P51: SpikeFreq
G52: Mean | H52: =AVERAGE(H39:H47) -> 12.22209444 | I52: 13.24384556 | J52: 0.4778777133 | K52: 0.5221222867 | L52: 0.0838702258 | M52: 0.03955900073 | N52: 25.46594 | O52: 70.44444444 | P52: 5.788967485
G53: SD | H53: =_xlfn.STDEV.S(H39:H47) -> 2.163965071 | I53: 1.18150724 | J53: 0.04946797815 | K53: 0.04946797815 | L53: 0.01317757287 | M53: 0.00347269413 | N53: 2.406643023 | O53: 11.18158208 | P53: 0.3663005462
G54: SEM | H54: =H53/(SQRT(COUNT(H39:H47))) -> 0.7213216903 | I54: 0.3938357467 | J54: 0.01648932605 | K54: 0.01648932605 | L54: 0.004392524289 | M54: 0.00115756471 | N54: 0.8022143411 | O54: 3.727194026 | P54: 0.1221001821

Sheet 07262016
C4: 872_121
F5: CabPK
F6: LG start | G6: LG stop | H6: Prot | I6: Retr | J6: LG DC | K6: Int1 DC | L6: LG freq | M6: GMR freq | N6: Period | O6: s/b | P6: SpikeFreq
F7: 3.96532 | G7: 7.5744 | H7: =G7-F7 -> 3.60908 | I7: =F8-G7 -> 9.38596 | J7: =H7/N7 -> 0.2777275022 | K7: =I7/N7 -> 0.7222724978 | L7: =1/H7 -> 0.2770789232 | M7: =1/N7 -> 0.07695243724 | N7: =H7+I7 -> 12.99504 | O7: 16 | P7: =O7/H7 -> 4.433262771
F8: 16.96036 | G8: 20.85934 | H8: =G8-F8 -> 3.89898 | I8: =F9-G8 -> 3.61441 | J8: =H8/N8 -> 0.5189375235 | K8: =I8/N8 -> 0.4810624765 | L8: =1/H8 -> 0.2564773351 | M8: =1/N8 -> 0.1330957131 | N8: =H8+I8 -> 7.51339 | O8: 18 | P8: =O8/H8 -> 4.616592032
F9: 24.47375 | G9: 27.97847 | H9: 3.50472 | I9: 8.61353 | J9: 0.2892100757 | K9: 0.7107899243 | L9: 0.2853294985 | M9: 0.08252016587 | N9: 12.11825 | O9: 14 | P9: 3.994612979
F10: 36.592 | G10: 40.23038 | H10: 3.63838 | I10: 3.76831 | J10: 0.4912288755 | K10: 0.5087711245 | L10: 0.274847597 | M10: 0.135013076 | N10: 7.40669 | O10: 18 | P10: 4.947256746
F11: 43.99869 | G11: 46.12558 | H11: 2.12689 | I11: 7.62997 | J11: 0.2179891891 | K11: 0.7820108109 | L11: 0.4701700605 | M11: 0.1024919903 | N11: 9.75686 | O11: 11 | P11: 5.171870666
F12: 53.75555 | G12: 58.87886 | H12: 5.12331 | I12: 3.85504 | J12: 0.5706293473 | K12: 0.4293706527 | L12: 0.1951863151 | M12: 0.1113790396 | N12: 8.97835 | O12: 20 | P12: 3.903726302
F13: 62.7339 | G13: 66.33408 | H13: 3.60018 | I13: 7.93515 | J13: 0.312100304 | K13: 0.687899696 | L13: 0.2777638896 | M13: 0.08669019439 | N13: 11.53533 | O13: 16 | P13: 4.444222233
F14: 74.26923 | G14: 78.05261 | H14: 3.78338 | I14: 3.34048 | J14: 0.5310856755 | K14: 0.4689143245 | L14: 0.2643139204 | M14: 0.1403733369 | N14: 7.12386 | O14: 19 | P14: 5.021964487
F15: 81.39309 | G15: 83.87377 | H15: 2.48068 | I15: 8.83942 | J15: 0.2191394069 | K15: 0.7808605931 | L15: 0.4031152748 | M15: 0.08833844224 | N15: 11.3201 | O15: 12 | P15: 4.837383298
F16: 92.71319 | G16: 96.5249 | H16: 3.81171 | I16: 5.09056 | J16: 0.4281728143 | K16: 0.5718271857 | L16: 0.2623494442 | M16: 0.1123308999 | N16: 8.90227 | O16: 19 | P16: 4.98463944
F17: 101.61546 | G17: 105.37968 | H17: 3.76422 | I17: 7.60596 | J17: 0.331060722 | K17: 0.668939278 | L17: 0.2656592867 | M17: 0.08794935524 | N17: 11.37018 | O17: 18 | P17: 4.78186716
F18: 112.98564 | G18: 116.85926 | H18: 3.87362 | I18: 4.75039 | J18: 0.4491669189 | K18: 0.5508330811 | L18: 0.2581564531 | M18: 0.1159553386 | N18: 8.62401 | O18: 19 | P18: 4.90497261
F19: 121.60965 | G19: 125.07034 | H19: 3.46069 | I19: 7.60841 | J19: 0.3126442077 | K19: 0.6873557923 | L19: 0.2889597161 | M19: 0.09034158152 | N19: 11.0691 | O19: 17 | P19: 4.912315174
F20: 132.67875 | G20: 137.7576 | H20: 5.07885 | I20: 3.61723 | J20: 0.5840390153 | K20: 0.4159609847 | L20: 0.1968949664 | M20: 0.1149943423 | N20: 8.69608 | O20: 26 | P20: 5.119269126
F21: 141.37483 | G21: 146.33218 | H21: 4.95735 | I21: 7.87785 | J21: 0.386230834 | K21: 0.613769166 | L21: 0.2017206774 | M21: 0.07791074545 | N21: 12.8352 | O21: 25 | P21: 5.043016934
F22: 154.21003 | G22: 159.4346 | H22: 5.22457 | I22: 4.72526 | J22: 0.5250913835 | K22: 0.4749086165 | L22: 0.1914033117 | M22: 0.1005042297 | N22: 9.94983 | O22: 32 | P22: 6.124905973
F23: 164.15986 | G23: 168.76106 | H23: 4.6012 | I23: 7.40504 | J23: 0.3832340516 | K23: 0.6167659484 | L23: 0.2173346084 | M23: 0.08329002252 | N23: 12.00624 | O23: 26 | P23: 5.650699817
F24: 176.1661 | G24: 181.03955 | H24: 4.87345 | I24: 4.85712 | J24: 0.5008391081 | K24: 0.4991608919 | L24: 0.2051934461 | M24: 0.1027689025 | N24: 9.73057 | O24: 27 | P24: 5.540223045
F25: 185.89667 | G25: 190.12683 | H25: 4.23016 | I25: 7.41274 | J25: 0.3633252884 | K25: 0.6366747116 | L25: 0.2363976776 | M25: 0.0858892544 | N25: 11.6429 | O25: 22 | P25: 5.200748908
F26: 197.53957 | G26: 202.00886 | H26: 4.46929 | I26: 4.66736 | J26: 0.489160688 | K26: 0.510839312 | L26: 0.2237491861 | M26: 0.1094493058 | N26: 9.13665 | O26: 24 | P26: 5.369980467
F27: 206.67622 | G27: 210.8367 | H27: 4.16048 | I27: 8.99354 | J27: 0.316289621 | K27: 0.683710379 | L27: 0.2403568819 | M27: 0.07602238707 | N27: 13.15402 | O27: 22 | P27: 5.287851402
F28: 219.83024 | G28: 224.21693 | H28: 4.38669 | I28: 4.95143 | J28: 0.4697615794 | K28: 0.5302384206 | L28: 0.2279623133 | M28: 0.1070879363 | N28: 9.33812 | O28: 25 | P28: 5.699057832
F29: 229.16836 | G29: 233.7627 | H29: 4.59434
H33: Prot | I33: Retr | J33: LG DC | K33: Int1 DC | L33: LG freq | M33: GMR freq | N33: Period | O33: s/b | P33: SpikeFreq
G34: Mean | H34: =AVERAGE(H7:H28) -> 4.029903636 | I34: =AVERAGE(I7:I28) -> 6.206598182 | J34: 0.4075938242 | K34: 0.5924061758 | L34: 0.2600191265 | M34: 0.1009703953 | N34: 10.23650182 | O34: 20.27272727 | P34: 4.999565427
G35: SD | H35: =_xlfn.STDEV.S(H7:H28) -> 0.7974849852 | I35: =_xlfn.STDEV.S(I7:I28) -> 2.066305244 | J35: 0.1123787766 | K35: 0.1123787766 | L35: 0.06598193592 | M35: 0.01924120791 | N35: 1.85675085 | O35: 5.229784828 | P35: 0.5282021396
G36: SEM | H36: =H35/(SQRT(COUNT(H7:H28))) -> 0.1700243701 | I36: =I35/(SQRT(COUNT(I7:I28))) -> 0.4405377583 | J36: 0.02395923568 | K36: 0.02395923568 | L36: 0.014067396 | M36: 0.00410223931 | N36: 0.3958606113 | O36: 1.114993872 | P36: 0.1126130746
F42: CabPK + CCAP
F43: LG start | G43: LG stop | H43: Prot | I43: Retr | J43: LG DC | K43: Int1 DC | L43: LG freq | M43: GMR freq | N43: Period | O43: s/b | P43: SpikeFreq
F44: 1.04788 | G44: 5.5549 | H44: =G44-F44 -> 4.50702 | I44: =F45-G44 -> 5.17816 | J44: =H44/N44 -> 0.4653522185 | K44: =I44/N44 -> 0.5346477815 | L44: =1/H44 -> 0.2218760955 | M44: =1/N44 -> 0.1032505333 | N44: =H44+I44 -> 9.68518 | O44: 26 | P44: =O44/H44 -> 5.768778483
F45: 10.73306 | G45: 14.66439 | H45: =G45-F45 -> 3.93133 | I45: =F46-G45 -> 7.21989 | J45: =H45/N45 -> 0.3525470756 | K45: =I45/N45 -> 0.6474529244 | L45: =1/H45 -> 0.2543668428 | M45: =1/N45 -> 0.08967628654 | N45: =H45+I45 -> 11.15122 | O45: 23 | P45: =O45/H45 -> 5.850437384
F46: 21.88428 | G46: 27.81188 | H46: 5.9276 | I46: 4.00984 | J46: 0.5964916518 | K46: 0.4035083482 | L46: 0.1687023416 | M46: 0.1006295384 | N46: 9.93744 | O46: 30 | P46: 5.061070248
F47: 31.82172 | G47: 35.62669 | H47: 3.80497 | I47: 7.1777 | J47: 0.3464521833 | K47: 0.6535478167 | L47: 0.2628141615 | M47: 0.09105254005 | N47: 10.98267 | O47: 21 | P47: 5.519097391
F48: 42.80439 | G48: 47.16785 | H48: 4.36346 | I48: 5.36747 | J48: 0.4484114057 | K48: 0.5515885943 | L48: 0.2291759292 | M48: 0.1027651006 | N48: 9.73093 | O48: 25 | P48: 5.72939823
F49: 52.53532 | G49: 56.33684 | H49: 3.80152 | I49: 7.38351 | J49: 0.3398757089 | K49: 0.6601242911 | L49: 0.2630526737 | M49: 0.08940521393 | N49: 11.18503 | O49: 23 | P49: 6.050211494
F50: 63.72035 | G50: 69.72711 | H50: 6.00676 | I50: 5.33152 | J50: 0.5297770032 | K50: 0.4702229968 | L50: 0.1664791002 | M50: 0.08819679881 | N50: 11.33828 | O50: 30 | P50: 4.994373006
F51: 75.05863 | G51: 79.26018 | H51: 4.20155 | I51: 8.62556 | J51: 0.3275523481 | K51: 0.6724476519 | L51: 0.238007402 | M51: 0.0779598834 | N51: 12.82711 | O51: 25 | P51: 5.950185051
F52: 87.88574 | G52: 92.28836 | H52: 4.40262 | I52: 5.49048 | J52: 0.4450192558 | K52: 0.5549807442 | L52: 0.2271374772 | M52: 0.1010805511 | N52: 9.8931 | O52: 26 | P52: 5.905574408
F53: 97.77884 | G53: 102.00608 | H53: 4.22724 | I53: 8.65312 | J53: 0.3281926903 | K53: 0.6718073097 | L53: 0.2365609712 | M53: 0.07763758156 | N53: 12.88036 | O53: 25 | P53: 5.914024281
F54: 110.6592 | G54: 115.27715 | H54: 4.61795 | I54: 5.36765 | J54: 0.4624609438 | K54: 0.5375390562 | L54: 0.216546303 | M54: 0.1001442077 | N54: 9.9856 | O54: 28 | P54: 6.063296484
F55: 120.6448 | G55: 124.70965 | H55: 4.06485 | I55: 9.03259 | J55: 0.3103545426 | K55: 0.6896454574 | L55: 0.2460115379 | M55: 0.07635079832 | N55: 13.09744 | O55: 25 | P55: 6.150288449
F56: 133.74224 | G56: 138.33832 | H56: 4.59608 | I56: 5.6429 | J56: 0.4488806502 | K56: 0.5511193498 | L56: 0.2175767176 | M56: 0.09766597845 | N56: 10.23898 | O56: 28 | P56: 6.092148091
F57: 143.98122 | G57: 148.06696 | H57: 4.08574 | I57: 9.08328 | J57: 0.3102539141 | K57: 0.6897460859 | L57: 0.2447537043 | M57: 0.07593579477 | N57: 13.16902 | O57: 25 | P57: 6.118842609
F58: 157.15024 | G58: 161.8368 | H58: 4.68656 | I58: 5.59626 | J58: 0.4557660253 | K58: 0.5442339747 | L58: 0.2133761224 | M58: 0.09724958718 | N58: 10.28282 | O58: 28 | P58: 5.974531426
F59: 167.43306 | G59: 171.50593 | H59: 4.07287 | I59: 9.366 | J59: 0.3030664036 | K59: 0.6969335964 | L59: 0.2455271099 | M59: 0.07441101819 | N59: 13.43887 | O59: 25 | P59: 6.138177747
F60: 180.87193 | G60: 185.34208 | H60: 4.47015 | I60: 5.94309 | J60: 0.4292756145 | K60: 0.5707243855 | L60: 0.2237061396 | M60: 0.09603159055 | N60: 10.41324 | O60: 28 | P60: 6.263771909
F61: 191.28517 | G61: 192.02577 | H61: 0.7406 | I61: 5.90189 | J61: 0.1114943342 | K61: 0.8885056658 | L61: 1.350256549 | M61: 0.1505459549 | N61: 6.64249 | O61: 8 | P61: 10.80205239
F62: 197.92766 | G62: 204.11374 | H62: 6.18608 | I62: 5.83811 | J62: 0.5144695817 | K62: 0.4855304183 | L62: 0.1616532602 | M62: 0.08316568517 | N62: 12.02419 | O62: 33 | P62: 5.334557587
F63: 209.95185 | G63: 214.15303 | H63: 4.20118 | I63: 7.75121 | J63: 0.3514928813 | K63: 0.6485071187 | L63: 0.2380283635 | M63: 0.08366527531 | N63: 11.95239 | O63: 26 | P63: 6.18873745
F64: 221.90424 | G64: 228.15777 | H64: 6.25353 | I64: 5.67522 | J64: 0.524240176 | K64: 0.475759824 | L64: 0.159909683 | M64: 0.08383108037 | N64: 11.92875 | O64: 33 | P64: 5.277019539
F65: 233.83299 | G65: 238.47279 | H65: 4.6398 | O65: 29
H70: Prot | I70: Retr | J70: LG DC | K70: Int1 DC | L70: LG freq | M70: GMR freq | N70: Period | O70: s/b | P70: SpikeFreq
G71: Mean | H71: =AVERAGE(H44:H64) -> 4.435698095 | I71: =AVERAGE(I44:I64) -> 6.649307143 | J71: 0.4000679337 | K71: 0.5999320663 | L71: 0.2755008802 | M71: 0.09241195231 | N71: 11.08500524 | O71: 25.76190476 | P71: 6.054598746
G72: SD | H72: =_xlfn.STDEV.S(H44:H64) -> 1.149997205 | I72: =_xlfn.STDEV.S(I44:I64) -> 1.573941084 | J72: 0.107959029 | K72: 0.107959029 | L72: 0.2483193468 | M72: 0.01646688584 | N72: 1.611102017 | O72: 5.088268486 | P72: 1.149592919
G73: SEM | H73: =H72/(SQRT(COUNT(H44:H64))) -> 0.250949964 | I73: =I72/(SQRT(COUNT(I44:I64))) -> 0.3434621028 | J73: 0.02355859155 | K73: 0.02355859155 | L73: 0.05418772396 | M73: 0.003593369087 | N73: 0.3515712831 | O73: 1.110351214 | P73: 0.2508617414

Sheet 07292016
C4: 872_130
F5: CabPK
F6: LG start | G6: LG stop | H6: Prot | I6: Retr | J6: LG DC | K6: Int1 DC | L6: LG freq | M6: GMR freq | N6: Period | O6: s/b | P6: SpikeFreq
F7: 194.27687 | G7: 197.61754 | H7: =G7-F7 -> 3.34067 | I7: =F8-G7 -> 4.63428 | J7: =H7/N7 -> 0.4188954163 | K7: =I7/N7 -> 0.5811045837 | L7: =1/H7 -> 0.2993411501 | M7: =1/N7 -> 0.1253926357 | N7: =H7+I7 -> 7.97495 | O7: 16 | P7: =O7/H7 -> 4.789458402
F8: 202.25182 | G8: 204.31491 | H8: =G8-F8 -> 2.06309 | I8: =F9-G8 -> 5.92472 | J8: =H8/N8 -> 0.2582798039 | K8: =I8/N8 -> 0.7417201961 | L8: =1/H8 -> 0.4847098285 | M8: =1/N8 -> 0.1251907594 | N8: =H8+I8 -> 7.98781 | O8: 12 | P8: =O8/H8 -> 5.816517942
F9: 210.23963 | G9: 212.24163 | H9: 2.002 | I9: 5.80272 | J9: 0.2565114444 | K9: 0.7434885556 | L9: 0.4995004995 | M9: 0.1281275946 | N9: 7.80472 | O9: 13 | P9: 6.493506494
F10: 218.04435 | G10: 221.4769 | H10: 3.43255 | I10: 6.09872 | J10: 0.3601356377 | K10: 0.6398643623 | L10: 0.2913286041 | M10: 0.1049178126 | N10: 9.53127 | O10: 18 | P10: 5.243914874
F11: 227.57562 | G11: 229.47495 | H11: 1.89933 | I11: 5.8621 | J11: 0.2447139251 | K11: 0.7552860749 | L11: 0.5265014505 | M11: 0.1288422365 | N11: 7.76143 | O11: 12 | P11: 6.318017406
F12: 235.33705 | G12: 238.51589 | H12: 3.17884 | I12: 6.18115 | J12: 0.339620021 | K12: 0.660379979 | L12: 0.3145801613 | M12: 0.106837721 | N12: 9.35999 | O12: 15 | P12: 4.71870242
F13: 244.69704 | G13: 246.8395 | H13: 2.14246 | I13: 7.43775 | J13: 0.2236339287 | K13: 0.7763660713 | L13: 0.4667531716 | M13: 0.1043818455 | N13: 9.58021 | O13: 13 | P13: 6.067791231
F14: 254.27725 | G14: 257.47843 | H14: 3.20118 | I14: 4.79186 | J14: 0.4004959315 | K14: 0.5995040685 | L14: 0.3123848081 | M14: 0.1251088447 | N14: 7.99304 | O14: 16 | P14: 4.99815693
F15: 262.27029 | G15: 264.27459 | H15: 2.0043 | I15: 5.8099 | J15: 0.2564945868 | K15: 0.7435054132 | L15: 0.4989273063 | M15: 0.1279721533 | N15: 7.8142 | O15: 12 | P15: 5.987127675
F16: 270.08449 | G16: 273.44475 | H16: 3.36026 | I16: 6.08057 | J16: 0.3559284512 | K16: 0.6440715488 | L16: 0.2975960194 | M16: 0.1059228903 | N16: 9.44083 | O16: 17 | P16: 5.059132329
F17: 279.52532 | G17: 283.01719 | H17: 3.49187 | I17: 5.69736 | J17: 0.37999593 | K17: 0.62000407 | L17: 0.2863795044 | M17: 0.1088230461 | N17: 9.18923 | O17: 19 | P17: 5.441210583
F18: 288.71455 | G18: 292.20189 | H18: 3.48734 | I18: 5.6927 | J18: 0.3798828763 | K18: 0.6201171237 | L18: 0.2867515069 | M18: 0.1089319872 | N18: 9.18004 | O18: 19 | P18: 5.448278631
F19: 297.89459 | G19: 301.31012 | H19: 3.41553 | I19: 5.67055 | J19: 0.3759079823 | K19: 0.6240920177 | L19: 0.2927803298 | M19: 0.1100584631 | N19: 9.08608 | O19: 18 | P19: 5.270045937
F20: 306.98067 | G20: 310.17552 | H20: 3.19485 | I20: 5.84884 | J20: 0.3532684115 | K20: 0.6467315885 | L20: 0.3130037404 | M20: 0.1105743341 | N20: 9.04369 | O20: 17 | P20: 5.321063587
F21: 316.02436 | G21: 319.15642 | H21: 3.13206 | I21: 5.66452 | J21: 0.3560542847 | K21: 0.6439457153 | L21: 0.3192786856 | M21: 0.113680544 | N21: 8.79658 | O21: 17 | P21: 5.427737655
F22: 324.82094 | G22: 328.19445 | H22: 3.37351 | I22: 5.52282 | J22: 0.3792024352 | K22: 0.6207975648 | L22: 0.2964271634 | M22: 0.1124059022 | N22: 8.89633 | O22: 19 | P22: 5.632116105
F23: 333.71727 | G23: 336.82589 | H23: 3.10862 | I23: 5.62772 | J23: 0.3558263529 | K23: 0.6441736471 | L23: 0.3216861501 | M23: 0.1144644096 | N23: 8.73634 | O23: 18 | P23: 5.790350702
F24: 342.45361 | G24: 345.58678 | H24: 3.13317 | I24: 5.51739 | J24: 0.3621927367 | K24: 0.6378072633 | L24: 0.3191655735 | M24: 0.1155994525 | N24: 8.65056 | O24: 18 | P24: 5.744980323
F25: 351.10417 | G25: 355.3691 | H25: 4.26493 | I25: 5.80118 | J25: 0.4236919724 | K25: 0.5763080276 | L25: 0.2344704368 | M25: 0.09934324183 | N25: 10.06611 | O25: 20 | P25: 4.689408736
F26: 361.17028 | G26: 364.37739 | H26: 3.20711 | I26: 5.4513 | J26: 0.3704040349 | K26: 0.6295959651 | L26: 0.3118072034 | M26: 0.1154946462 | N26: 8.65841 | O26: 20 | P26: 6.236144067
F27: 369.82869 | G27: 373.00383 | H27: 3.17514 | I27: 5.41825 | J27: 0.3694863145 | K27: 0.6305136855 | L27: 0.3149467425 | M27: 0.1163685111 | N27: 8.59339 | O27: 17 | P27: 5.354094623
F28: 378.42208 | G28: 382.84077 | H28: 4.41869 | I28: 6.9333 | J28: 0.389243648 | K28: 0.610756352 | L28: 0.2263114181 | M28: 0.08809028197 | N28: 11.35199 | O28: 21 | P28: 4.75253978
F29: 389.77407 | G29: 392.91821 | H29: 3.14414 | I29: 6.7193 | J29: 0.3187670833 | K29: 0.6812329167 | L29: 0.3180519951 | M29: 0.1013845068 | N29: 9.86344 | O29: 18 | P29: 5.724935913
F30: 399.63751 | G30: 402.89956 | H30: 3.26205 | I30: 6.67956 | J30: 0.3281208979 | K30: 0.6718791021 | L30: 0.3065556935 | M30: 0.1005873294 | N30: 9.94161 | O30: 20 | P30: 6.13111387
F31: 409.57912 | G31: 412.76041 | H31: 3.18129 | I31: 6.67467 | J31: 0.3227782986 | K31: 0.6772217014 | L31: 0.3143378944 | M31: 0.1014614507 | N31: 9.85596 | O31: 20 | P31: 6.286757888
F32: 419.43508 | G32: 422.74863 | H32: 3.31355 | I32: 6.59759 | J32: 0.3343258192 | K32: 0.6656741808 | L32: 0.3017911304 | M32: 0.1008965669 | N32: 9.91114 | O32: 20 | P32: 6.035822607
F33: 429.34622 | G33: 432.47265 | H33: 3.12643 | I33: 6.71307 | J33: 0.3177427715 | K33: 0.6822572285 | L33: 0.319853635 | M33: 0.1016311804 | N33: 9.8395 | O33: 16 | P33: 5.11765816
F34: 439.18572 | G34: 442.50145 | H34: 3.31573 | I34: 6.45222 | J34: 0.3394499358 | K34: 0.6605500642 | L34: 0.3015927111 | M34: 0.1023756264 | N34: 9.76795 | O34: 21 | P34: 6.333446933
F35: 448.95367 | G35: 453.34061 | H35: 4.38694 | I35: 6.49843 | J35: 0.4030124837 | K35: 0.5969875163 | L35: 0.2279493223 | M35: 0.09186642255 | N35: 10.88537 | O35: 23 | P35: 5.242834413
F36: 459.83904 | G36: 463.96275 | H36: 4.12371 | I36: 5.63216 | J36: 0.4226901342 | K36: 0.5773098658 | L36: 0.2425000788 | M36: 0.1025023909 | N36: 9.75587 | O36: 21 | P36: 5.092501655
F37: 469.59491 | G37: 472.58953 | H37: 2.99462
H40: Prot | I40: Retr | J40: LG DC | K40: Int1 DC | L40: LG freq | M40: GMR freq | N40: Period | O40: s/b | P40: SpikeFreq
G41: Mean | H41: =AVERAGE(H7:H36) -> 3.196044667 | I41: =AVERAGE(I7:I36) -> 5.981223333 | J41: 0.3465584517 | K41: 0.6534415483 | L41: 0.3282421305 | M41: 0.1099744929 | N41: 9.177268 | O41: =AVERAGE(O7:O36) -> 17.53333333 | P41: 5.552178929
G42: SD | H42: =_xlfn.STDEV.S(H7:H36) -> 0.6499320297 | I42: =_xlfn.STDEV.S(I7:I36) -> 0.6158139959 | J42: 0.053542258 | K42: 0.053542258 | L42: 0.08104526864 | M42: 0.01075791048 | N42: 0.8972259488 | O42: 2.944701066 | P42: 0.5358350233
G43: SEM | H43: =H42/(SQRT(COUNT(H7:H36))) -> 0.1186608112 | I43: =I42/(SQRT(COUNT(I7:I36))) -> 0.1124317389 | J43: 0.009775434163 | K43: 0.009775434163 | L43: 0.01479677394 | M43: 0.001964116747 | N43: 0.1638102971 | O43: 0.5376263996 | P43: 0.09782964312
B48: = Stim duration shorter than burst duration
B49: = Stimulation during that burst
F51: CabPK + GPR during Retraction (6Hz)
B52: Stim start | C52: Stim stop | D52: Stim | F52: LG start | G52: LG stop | H52: Prot | I52: Retr | J52: LG DC | K52: Int1 DC | L52: LG freq | M52: GMR freq | N52: Period | O52: s/b | P52: SpikeFreq
B53: 499.91 | C53: 508.23 | D53: =C53-B53 -> 8.32 | F53: 496.82459 | G53: 500.9 | H53: =G53-F53 -> 4.07541 | I53: =F54-G53 -> 8.13 | J53: =H53/N53 -> 0.3339019337 | K53: =I53/N53 -> 0.6660980663 | L53: =1/H53 -> 0.2453740851 | M53: =1/N53 -> 0.08193088147 | N53: =H53+I53 -> 12.20541 | O53: 22 | P53: =O53/H53 -> 5.398229871
F54: 509.03 | G54: 513.13 | H54: =G54-F54 -> 4.1 | I54: =F55-G54 -> 5.08162 | J54: =H54/N54 -> 0.4465442917 | K54: =I54/N54 -> 0.5534557083 | L54: =1/H54 -> 0.243902439 | M54: =1/N54 -> 0.1089132419 | N54: =H54+I54 -> 9.18162 | O54: 21 | P54: =O54/H54 -> 5.12195122
F55: 518.21162 | G55: 522.63709 | H55: 4.42547 | I55: 7.80956 | J55: 0.3617048753 | K55: 0.6382951247 | L55: 0.2259646998 | M55: 0.08173253355 | N55: 12.23503 | O55: 30 | P55: 6.778940994
F56: 530.44665 | G56: 534.70406 | H56: 4.25741 | I56: 6.09357 | J56: 0.4113050165 | K56: 0.5886949835 | L56: 0.2348845895 | M56: 0.09660920995 | N56: 10.35098 | O56: 23 | P56: 5.402345558
F57: 540.79763 | G57: 544.93411 | H57: 4.13648 | I57: 6.33986 | J57: 0.3948401827 | K57: 0.6051598173 | L57: 0.2417514408 | M57: 0.09545318308 | N57: 10.47634 | O57: 24 | P57: 5.80203458
B58: 556.4 | C58: 564.77 | D58: =C58-B58 -> 8.37 | F58: 551.27397 | G58: 554.23255 | H58: 2.95858 | I58: 9.00745 | J58: 0.2472482519 | K58: 0.7527517481 | L58: 0.3379999865 | M58: 0.08356990581 | N58: 11.96603 | O58: 19 | P58: 6.421999743
F59: 563.24 | G59: 567.01344 | H59: 3.77344 | I59: 5.20043 | J59: 0.4204919394 | K59: 0.5795080606 | L59: 0.2650101764 | M59: 0.111434643 | N59: 8.97387 | O59: 16 | P59: 4.240162822
F60: 572.21387 | G60: 576.47608 | H60: 4.26221 | I60: 6.09441 | J60: 0.4115445 | K60: 0.5884555 | L60: 0.234620068 | M60: 0.09655659858 | N60: 10.35662 | O60: 26 | P60: 6.100121768
F61: 582.57049 | G61: 586.62622 | H61: 4.05573 | I61: 6.2866 | J61: 0.3921485777 | K61: 0.6078514223 | L61: 0.2465647368 | M61: 0.09669001086 | N61: 10.34233 | O61: 23 | P61: 5.670988947
F62: 592.91282 | G62: 597.09114 | H62: 4.17832 | I62: 5.36268 | J62: 0.4379331307 | K62: 0.5620668693 | L62: 0.2393306401 | M62: 0.1048108165 | N62: 9.541 | O62: 24 | P62: 5.743935362
B63: 607.67 | C63: 617.22 | D63: =C63-B63 -> 9.55 | F63: 602.45382 | G63: 606.61818 | H63: 4.16436 | I63: 9.76512 | J63: 0.2989601909 | K63: 0.7010398091 | L63: 0.2401329376 | M63: 0.07179018887 | N63: 13.92948 | O63: 27 | P63: 6.483589315
F64: 616.3833 | G64: 619.2941 | H64: 2.9108 | I64: 6.01674 | J64: 0.326047265 | K64: 0.673952735 | L64: 0.3435481655 | M64: 0.1120129397 | N64: 8.92754 | O64: 19 | P64: 6.527415144
F65: 625.31084 | G65: 629.52342 | H65: 4.21258 | I65: 5.91914 | J65: 0.4157813283 | K65: 0.5842186717 | L65: 0.2373842158 | M65: 0.09869992459 | N65: 10.13172 | O65: 25 | P65: 5.934605396
F66: 635.44256 | G66: 639.66124 | H66: 4.21868 | I66: 7.22275 | J66: 0.3687196443 | K66: 0.6312803557 | L66: 0.2370409702 | M66: 0.0874016622 | N66: 11.44143 | O66: 23 | P66: 5.451942314
F67: 646.88399 | G67: 650.74574 | H67: 3.86175 | I67: 6.41303 | J67: 0.3758474634 | K67: 0.6241525366 | L67: 0.2589499579 | M67: 0.09732568483 | N67: 10.27478 | O67: 21 | P67: 5.437949116
B68: 661 | C68: 670.38 | D68: =C68-B68 -> 9.38 | F68: 657.15877 | G68: 661.42189 | H68: 4.26312 | I68: 8.58192 | J68: 0.3318884176 | K68: 0.6681115824 | L68: 0.2345699863 | M68: 0.07785106158 | N68: 12.84504 | O68: 27 | P68: 6.33338963
F69: 670.00381 | G69: 673.94439 | H69: 3.94058 | I69: 7.41834 | J69: 0.3469150236 | K69: 0.6530849764 | L69: 0.2537697496 | M69: 0.08803653869 | N69: 11.35892 | O69: 22 | P69: 5.582934492
B70: 686.24 | C70: 693.15 | D70: =C70-B70 -> 6.91 | F70: 681.36273 | G70: 685.37351 | H70: 4.01078 | I70: 7.34202 | J70: 0.3532855331 | K70: 0.6467144669 | L70: 0.2493280609 | M70: 0.0880839969 | N70: 11.3528 | O70: 24 | P70: 5.983873461
B71: 696.16 | C71: 702.77 | D71: =C71-B71 -> 6.61 | F71: 692.71553 | G71: 696.95863 | H71: 4.2431 | I71: 8.09414 | J71: 0.3439261942 | K71: 0.6560738058 | L71: 0.2356767458 | M71: 0.08105540623 | N71: 12.33724 | O71: 24 | P71: 5.656241899
B72: 709.93 | C72: 719.43 | D72: =C72-B72 -> 9.5 | F72: 705.05277 | G72: 709.08144 | H72: 4.02867 | I72: 9.5859 | J72: 0.2959087213 | K72: 0.7040912787 | L72: 0.2482208769 | M72: 0.07345072228 | N72: 13.61457 | O72: 23 | P72: 5.709080168
F73: 718.66734 | G73: 722.47838 | H73: 3.81104 | I73: 6.16874 | J73: 0.3818761536 | K73: 0.6181238464 | L73: 0.2623955666 | M73: 0.1002026097 | N73: 9.97978 | O73: 18 | P73: 4.723120198
B74: 732.45 | C74: 744.55 | D74: =C74-B74 -> 12.1 | F74: 728.64712 | G74: 732.88524 | H74: 4.23812 | I74: 11.79157 | J74: 0.2643918878 | K74: 0.7356081122 | L74: 0.2359536776 | M74: 0.06238423825 | N74: 16.02969 | O74: 26 | P74: 6.134795617
B75: 749.57 | C75: 758.82 | D75: =C75-B75 -> 9.25 | F75: 744.67681 | G75: 751.23881 | H75: 6.562 | I75: 5.43989 | J75: 0.5467472206 | K75: 0.4532527794 | L75: 0.1523925632 | M75: 0.0833202104 | N75: 12.00189 | O75: 33 | P75: 5.028954587
F76: 756.6787 | G76: 758.05786 | H76: 1.37916 | I76: 8.58297 | J76: 0.1384402733 | K76: 0.8615597267 | L76: 0.7250790336 | M76: 0.1003801396 | N76: 9.96213 | O76: 12 | P76: 8.700948403
F77: 766.64083 | G77: 770.60145 | H77: 3.96062 | I77: 6.9976 | J77: 0.3614291372 | K77: 0.6385708628 | L77: 0.2524857219 | M77: 0.09125569664 | N77: 10.95822 | O77: 21 | P77: 5.302200161
F78: 777.59905 | G78: 781.48219 | H78: 3.88314 | I78: 7.19716 | J78: 0.3504544101 | K78: 0.6495455899 | L78: 0.2575235505 | M78: 0.09025026398 | N78: 11.0803 | O78: 20 | P78: 5.150471011
F79: 788.67935 | G79: 792.70164 | H79: 4.02229 | I79: 7.13104 | J79: 0.3606357922 | K79: 0.6393642078 | L79: 0.2486145952 | M79: 0.08965932148 | N79: 11.15333 | O79: 22 | P79: 5.469521094
B80: 803.35 | C80: 813.44 | D80: =C80-B80 -> 10.09 | F80: 799.83268 | G80: 803.61172 | H80: 3.77904 | I80: 10.893 | J80: 0.2575674548 | K80: 0.7424325452 | L80: 0.264617469 | M80: 0.06815684799 | N80: 14.67204 | O80: 20 | P80: 5.29234938
B81: 819.8 | C81: 830.77 | D81: =C81-B81 -> 10.97 | F81: 814.50472 | G81: 818.4527 | H81: 3.94798 | I81: 11.70327 | J81: 0.2522469451 | K81: 0.7477530549 | L81: 0.2532940896 | M81: 0.06389266033 | N81: 15.65125 | O81: 22 | P81: 5.572469972
F82: 830.15597 | G82: 832.87433 | H82: 2.71836 | I82: 7.06313 | J82: 0.2779085804 | K82: 0.7220914196 | L82: 0.3678688621 | M82: 0.1022339132 | N82: 9.78149 | O82: 15 | P82: 5.518032932
B83: 834.58 | C83: 862.02 | D83: =C83-B83 -> 27.44 | F83: 839.93746 | G83: 844.17446 | H83: 4.237 | I83: 20.74345 | J83: 0.1696126371 | K83: 0.8303873629 | L83: 0.2360160491 | M83: 0.04003130448 | N83: 24.98045 | O83: 24 | P83: 5.664385178
B84: 869.15 | C84: 883.13 | D84: =C84-B84 -> 13.98 | F84: 864.91791 | G84: 868.89727 | H84: 3.97936 | I84: 15.62664 | J84: 0.2029664388 | K84: 0.7970335612 | L84: 0.2512966909 | M84: 0.05100479445 | N84: 19.606 | O84: 18 | P84: 4.523340437
B85: 890.37 | C85: 903.06 | D85: =C85-B85 -> 12.69 | F85: 884.52391 | G85: 888.944 | H85: 4.42009 | I85: 10.20212 | J85: 0.3022860429 | K85: 0.6977139571 | L85: 0.2262397372 | M85: 0.06838911491 | N85: 14.62221 | O85: 18 | P85: 4.07231527
F86: 899.14612 | G86: 903.15953 | H86: 4.01341 | I86: 6.39956 | J86: 0.3854241393 | K86: 0.6145758607 | L86: 0.2491646754 | M86: 0.09603408057 | N86: 10.41297 | O86: 22 | P86: 5.481622859
F87: 909.55909 | G87: 914.94095 | H87: 5.38186 | I87: 6.31804 | J87: 0.4599919657 | K87: 0.5400080343 | L87: 0.185809367 | M87: 0.08547081599 | N87: 11.6999 | O87: 34 | P87: 6.317518479
F88: 921.25899 | G88: 925.32675 | H88: 4.06776 | I88: 10.96543 | J88: 0.270585285 | K88: 0.729414715 | L88: 0.2458355459 | M88: 0.06651948123 | N88: 15.03319 | O88: 27 | P88: 6.637559738
F89: 936.29218 | G89: 940.2815 | H89: 3.98932 | I89: 8.09486 | J89: 0.330127489 | K89: 0.669872511 | L89: 0.250669287 | M89: 0.08275282229 | N89: 12.08418 | O89: 27 | P89: 6.768070749
B90: 952.66 | C90: 964.08 | D90: =C90-B90 -> 11.42 | F90: 948.37636 | G90: 951.96314 | H90: 3.58678 | I90: 9.73007 | J90: 0.2693414734 | K90: 0.7306585266 | L90: 0.2788015992 | M90: 0.07509283352 | N90: 13.31685 | O90: 16 | P90: 4.460825587
F91: 961.69321 | G91: 964.47485 | H91: 2.78164 | I91: 6.66509 | J91: 0.29445533 | K91: 0.70554467 | L91: 0.359500151 | M91: 0.1058567356 | N91: 9.44673 | O91: 19 | P91: 6.830502869
B92: 975.47 | C92: 991.16 | D92: =C92-B92 -> 15.69 | F92: 971.13994 | G92: 973.78966 | H92: 2.64972 | I92: 11.35581 | J92: 0.1891909838 | K92: 0.8108090162 | L92: 0.3773983666 | M92: 0.07140036828 | N92: 14.00553 | O92: 18 | P92: 6.793170599
F93: 985.14547 | G93: 987.45196 | H93: 2.30649 | I93: 7.88169 | J93: 0.2263888153 | K93: 0.7736111847 | L93: 0.4335592177 | M93: 0.09815295764 | N93: 10.18818 | O93: 15 | P93: 6.503388265
B94: 999.33 | C94: 1011.26 | D94: =C94-B94 -> 11.93 | F94: 995.33365 | G94: 997.81731 | H94: 2.48366 | I94: 12.09887 | J94: 0.1703174963 | K94: 0.8296825037 | L94: 0.4026316001 | M94: 0.06857520609 | N94: 14.58253 | O94: 15 | P94: 6.039474002
F95: 1009.91618 | G95: 1012.08847 | H95: 2.17229 | I95: 3.32319 | J95: 0.395286672 | K95: 0.604713328 | L95: 0.4603436926 | M95: 0.1819677262 | N95: 5.49548 | O95: 10 | P95: 4.603436926
F96: 1015.41166 | G96: 1017.83572 | H96: 2.42406 | I96: 11.05623 | J96: 0.1798225409 | K96: 0.8201774591 | L96: 0.412531043 | M96: 0.07418238035 | N96: 13.48029 | O96: 16 | P96: 6.600496687
F97: 1028.89195 | G97: 1031.30965 | H97: 2.4177 | I97: 5.27828 | J97: 0.3141510243 | K97: 0.6858489757 | L97: 0.4136162468 | M97: 0.1299379676 | N97: 7.69598 | O97: 16 | P97: 6.61785995
F98: 1036.58793 | G98: 1038.66748 | H98: =G98-F98 -> 2.07955
E103: Ret stim | H103: Prot | I103: Retr | J103: LG DC | K103: Int1 DC | L103: LG freq | M103: GMR freq | N103: Period | O103: s/b | P103: SpikeFreq
G104: Mean | H104: =AVERAGE(H53,H58,H63,H68,H70:H72,H74:H75,H80:H81,H83:H85,H90,H92,H94) -> 3.978104118 | I104: =AVERAGE(I53,I58,I63,I68,I70:I72,I74:I75,I80:I81,I83:I85,I90,I92,I94) -> 10.59360235 | J104: 0.2841051661 | K104: 0.7158948339 | L104: 0.262937913 | M104: 0.07117527893 | N104: 14.57170647 | O104: 22.11764706 | P104: 5.621675572
G105: SD | H105: =_xlfn.STDEV.S(H53,H58,H63,H68,H70:H72,H74:H75,H80:H81,H83:H85,H90,H92,H94) -> 0.8816466522 | I105: =_xlfn.STDEV.S(I53,I58,I63,I68,I70:I72,I74:I75,I80:I81,I83:I85,I90,I92,I94) -> 3.469217494 | J105: 0.08948861695 | K105: 0.08948861695 | L105: 0.05944066697 | M105: 0.01223876792 | N105: 3.331123548 | O105: 4.648687354 | P105: 0.7627498888
G106: SEM | H106: =H105/(SQRT(COUNT(H53,H58,H63,H68,H70:H72,H74:H75,H80:H81,H83:H85,H90,H92,H94))) -> 0.2138307218 | I106: =I105/(SQRT(COUNT(I53,I58,I63,I68,I70:I72,I74:I75,I80:I81,I83:I85,I90,I92,I94))) -> 0.8414088333 | J106: 0.02170417765 | K106: 0.02170417765 | L106: 0.01441647932 | M106: 0.002968337227 | N106: 0.8079161319 | O106: 1.127472293 | P106: 0.184994021
E108: Burst after Stim | H108: Prot | I108: Retr | J108: LG DC | K108: Int1 DC | L108: LG freq | M108: GMR freq | N108: Period | O108: s/b | P108: SpikeFreq
G109: Mean | H109: =AVERAGE(H54,H59,H64,H69,H73,H76,H82,H86,H91,H93,H95) -> 3.082473636 | I109: =AVERAGE(I54,I59,I64,I69,I73,I76,I82,I86,I91,I93,I95) -> 6.345590909 | J109: 0.3308889531 | K109: 0.6691110469 | L109: 0.3603765209 | M109: 0.1095659569 | N109: 9.428064545 | O109: 17.18181818 | P109: 5.803046921
G110: SD | H110: =_xlfn.STDEV.S(H54,H59,H64,H69,H73,H76,H82,H86,H91,H93,H95) -> 0.9072489218 | I110: =_xlfn.STDEV.S(I54,I59,I64,I69,I73,I76,I82,I86,I91,I93,I95) -> 1.460118259 | J110: 0.09137673592 | K110: 0.09137673592 | L110: 0.1430704229 | M110: 0.02503672248 | N110: 1.482351661 | O110: 3.970344615 | P110: 1.27332187
G111: SEM | H111: =H110/(SQRT(COUNT(H54,H59,H64,H69,H73,H76,H82,H86,H91,H93,H95))) -> 0.2735458423 | I111: =I110/(SQRT(COUNT(I54,I59,I64,I69,I73,I76,I82,I86,I91,I93,I95))) -> 0.4402422194 | J111: 0.02755112251 | K111: 0.02755112251 | L111: 0.04313735558 | M111: 0.007548855858 | N111: 0.4469458425 | O111: 1.197103943 | P111: 0.3839209892
E113: Non-stim | H113: Prot | I113: Retr | J113: LG DC | K113: Int1 DC | L113: LG freq | M113: GMR freq | N113: Period | O113: s/b | P113: SpikeFreq
G114: Mean | H114: =AVERAGE(H55:H57,H60:H62,H65:H67,H77:H79,H87:H89,H96:H97) -> 3.985610588 | I114: =AVERAGE(I55:I57,I60:I62,I65:I67,I77:I79,I87:I89,I96:I97) -> 7.092955294 | J114: 0.3645307273 | K114: 0.6354692727 | L114: 0.2602103927 | M114: 0.09207696316 | N114: 11.07856588 | O114: 23.64705882 | P114: 5.9521507
G115: SD | H115: =_xlfn.STDEV.S(H55:H57,H60:H62,H65:H67,H77:H79,H87:H89,H96:H97) -> 0.6798612121 | I115: =_xlfn.STDEV.S(I55:I57,I60:I62,I65:I67,I77:I79,I87:I89,I96:I97) -> 1.662076055 | J115: 0.06626085491 | K115: 0.06626085491 | L115: 0.05982309593 | M115: 0.01365423598 | N115: 1.612406843 | O115: 4.513052964 | P115: 0.5644802169
G116: SEM | H116: =H115/(SQRT(COUNT(H55:H57,H60:H62,H65:H67,H77:H79,H87:H89,H96:H97))) -> 0.164890564 | I116: =I115/(SQRT(COUNT(I55:I57,I60:I62,I65:I67,I77:I79,I87:I89,I96:I97))) -> 0.4031126548 | J116: 0.01607061786 | K116: 0.01607061786 | L116: 0.01450923196 | M116: 0.003311638658 | N116: 0.3910661015 | O116: 1.094576122 | P116: 0.1369065622

Sheet 872_145
C4: 872_145
F5: CabPK | Y5: MCN1
F6: LG start | G6: LG stop | H6: Prot | I6: Retr | J6: LG DC | K6: Int1 DC | L6: LG freq | M6: GMR freq | N6: Period | O6: s/b | P6: SpikeFreq | R6: File # : (Notebook#_Page#_ABFfile#) | Y6: LG start | Z6: LG stop | AA6: Prot | AB6: Retr | AC6: LG DC | AD6: Int1 DC | AE6: LG freq | AF6: GMR freq | AG6: Period | AH6: s/b | AI6: SpikeFreq | AK6: File # : (Notebook#_Page#_ABFfile#)
F7: 13.23851 | G7: 16.15901 | H7: =G7-F7 -> 2.9205 | I7: =F8-G7 -> 8.83849 | J7: =H7/N7 -> 0.2483631672 | K7: =I7/N7 -> 0.7516368328 | L7: =1/H7 -> 0.3424071221 | M7: =1/N7 -> 0.08504131732 | N7: =H7+I7 -> 11.75899 | O7: 10 | P7: =O7/H7 -> 3.424071221 | R7: 872_145_0048 | Y7: 5.24226 | Z7: 10.98562 | AA7: =Z7-Y7 -> 5.74336 | AB7: =Y8-Z7 -> 8.91539 | AC7: =AA7/AG7 -> 0.3918042125 | AD7: =AB7/AG7 -> 0.6081957875 | AE7: =1/AA7 -> 0.1741141074 | AF7: =1/AG7 -> 0.06821864074 | AG7: =AA7+AB7 -> 14.65875 | AH7: 41 | AI7: =AH7/AA7 -> 7.138678404 | AK7: 872_145_0049
F8: 24.9975 | G8: 29.38176 | H8: =G8-F8 -> 4.38426 | I8: =F9-G8 -> 12.00921 | J8: =H8/N8 -> 0.2674394134 | K8: =I8/N8 -> 0.7325605866 | L8: =1/H8 -> 0.2280886626 | M8: =1/N8 -> 0.06099989813 | N8: =H8+I8 -> 16.39347 | O8: 13 | P8: =O8/H8 -> 2.965152614 | Y8: 19.90101 | Z8: 22.71506 | AA8: =Z8-Y8 -> 2.81405 | AB8: =Y9-Z8 -> 5.38358 | AC8: =AA8/AG8 -> 0.3432760444 | AD8: =AB8/AG8 -> 0.6567239556 | AE8: =1/AA8 -> 0.3553597129 | AF8: =1/AG8 -> 0.1219864766 | AG8: =AA8+AB8 -> 8.19763 | AH8: 22 | AI8: =AH8/AA8 -> 7.817913683
F9: 41.39097 | G9: 44.8221 | H9: =G9-F9 -> 3.43113 | I9: =F10-G9 -> 7.33275 | J9: =H9/N9 -> 0.3187633084 | K9: =I9/N9 -> 0.6812366916 | L9: =1/H9 -> 0.2914491727 | M9: =1/N9 -> 0.09290330253 | N9: =H9+I9 -> 10.76388 | O9: 12 | P9: 3.497390073 | Y9: 28.09864 | Z9: 32.01167 | AA9: 3.91303 | AB9: 8.142 | AC9: 0.3245972843 | AD9: 0.6754027157 | AE9: 0.2555564358 | AF9: 0.08295292504 | AG9: 12.05503 | AH9: 28 | AI9: 7.155580203
F10: 52.15485 | G10: 55.3389 | H10: 3.18405 | I10: 12.21505 | J10: 0.2067685774 | K10: 0.7932314226 | L10: 0.3140654198 | M10: 0.06493886006 | N10: 15.3991 | O10: 10 | P10: 3.140654198 | Y10: 40.15367 | Z10: 44.94317 | AA10: 4.7895 | AB10: 9.04753 | AC10: 0.346136418 | AD10: 0.653863582 | AE10: 0.2087900616 | AF10: 0.07226984403 | AG10: 13.83703 | AH10: 27 | AI10: 5.637331663
F11: 67.55395 | G11: 70.97873 | H11: 3.42478 | I11: 7.44866 | J11: 0.3149674804 | K11: 0.6850325196 | L11: 0.2919895585 | M11: 0.09196721553 | N11: 10.87344 | O11: 11 | P11: 3.211885143 | Y11: 53.9907 | Z11: 56.92491 | AA11: 2.93421 | AB11: 10.83087 | AC11: 0.2131633089 | AD11: 0.7868366911 | AE11: 0.340807236 | AF11: 0.07264759813 | AG11: 13.76508 | AH11: 18 | AI11: 6.134530248
F12: 78.42739 | G12: 82.2721 | H12: 3.84471 | I12: 12.82128 | J12: 0.2306919661 | K12: 0.7693080339 | L12: 0.2600976407 | M12: 0.0600024361 | N12: 16.66599 | O12: 11 | P12: 2.861074047 | Y12: 67.75578 | Z12: 70.61314 | AA12: 2.85736 | AB12: 15.68571 | AC12: 0.1540931464 | AD12: 0.8459068536 | AE12: 0.349973402 | AF12: 0.05392850267 | AG12: 18.54307 | AH12: 19 | AI12: 6.649494638
F13: 95.09338 | G13: 98.78647 | H13: 3.69309 | I13: 6.74144 | J13: 0.353929693 | K13: 0.646070307 | L13: 0.2707759627 | M13: 0.09583565335 | N13: 10.43453 | O13: 12 | P13: 3.249311552 | Y13: 86.29885 | Z13: 89.0576 | AA13: 2.75875 | AB13: 8.92071 | AC13: 0.2362052698 | AD13: 0.7637947302 | AE13: 0.3624830086 | AF13: 0.08562039683 | AG13: 11.67946 | AH13: 12 | AI13: 4.349796103
F14: 105.52791 | G14: 107.67754 | H14: 2.14963 | I14: 8.2714 | J14: 0.2062780742 | K14: 0.7937219258 | L14: 0.4651963361 | M14: 0.09595980436 | N14: 10.42103 | O14: 6 | P14: 2.791178017 | Y14: 97.97831 | Z14: 100.78858 | AA14: 2.81027
F15: 115.94894 | G15: 119.51307 | H15: 3.56413 | I15: 12.18733 | J15: 0.2262729931 | K15: 0.7737270069 | L15: 0.2805733798 | M15: 0.06348617842 | N15: 15.75146 | O15: 9 | P15: 2.525160418
F16: 131.7004 | G16: 135.86118 | H16: 4.16078 | I16: 8.86675 | J16: 0.3193836437 | K16: 0.6806163563 | L16: 0.2403395517 | M16: 0.07676052176 | N16: 13.02753 | O16: 12 | P16: 2.884074621 | R16: 872_145_0049
F17: 144.72793 | G17: 146.91403 | H17: 2.1861 | I17: 8.55442 | J17: 0.2035376313 | K17: 0.7964623687 | L17: 0.4574356159 | M17: 0.09310536175 | N17: 10.74052 | O17: 8 | P17: 3.659484927
F18: 155.46845 | G18: 157.98906 | H18: 2.52061 | I18: 8.7662 | J18: 0.2233235077 | K18: 0.7766764923 | L18: 0.3967293631 | M18: 0.08859899298 | N18: 11.28681 | O18: 8 | P18: 3.173834905
F19: 166.75526 | G19: 169.23055 | H19: 2.47529 | I19: 10.25489 | J19: 0.1944426552 | K19: 0.8055573448 | L19: 0.4039930675 | M19: 0.07855348471 | N19: 12.73018 | O19: 9 | P19: 3.635937607
F20: 179.48544 | G20: 181.90186 | H20: 2.41642 | I20: 14.19327 | J20: 0.1454825466 | K20: 0.8545174534 | L20: 0.4138353432 | M20: 0.06020581961 | N20: 16.60969 | O20: 9 | P20: 3.724518089
F21: 196.09513 | G21: 198.79053 | H21: 2.6954 | I21: 11.42259 | J21: 0.1909195289 | K21: 0.8090804711 | L21: 0.3710024486 | M21: 0.07083161272 | N21: 14.11799 | O21: 10 | P21: 3.710024486
F22: 210.21312 | G22: 213.35154 | H22: 3.13842 | I22: 14.21582 | J22: 0.1808445659 | K22: 0.8191554341 | L22: 0.3186316682 | M22: 0.05762280572 | N22: 17.35424 | O22: 11 | P22: 3.50494835
F23: 227.56736 | G23: 232.19722 | H23: 4.62986
H25: Prot | I25: Retr | J25: LG DC | K25: Int1 DC | L25: LG freq | M25: GMR freq | N25: Period | O25: s/b | P25: SpikeFreq | AA25: Prot | AB25: Retr | AC25: LG DC | AD25: Int1 DC | AE25: LG freq | AF25: GMR freq | AG25: Period | AH25: s/b | AI25: SpikeFreq
G26: Mean | H26: =AVERAGE(H7:H15) -> 3.399586667 | I26: 9.762845556 | J26: 0.2637194081 | K26: 0.7362805919 | L26: 0.3049603617 | M26: 0.07901496287 | N26: 13.16243222 | O26: 10.44444444 | P26: 3.073986365 | Z26: Mean | AA26: =AVERAGE(AA7:AA13) -> 3.68718 | AB26: =AVERAGE(AB7:AB13) -> 9.560827143 | AC26: 0.2870393835 | AD26: 0.7129606165 | AE26: 0.2924405663 | AF26: 0.07966062629 | AG26: 13.24800714 | AH26: 23.85714286 | AI26: 6.411903563
G27: SD | H27: =_xlfn.STDEV.S(H7:H15) -> 0.6245935192 | I27: =_xlfn.STDEV.S(I7:I14) -> 2.482719398 | J27: 0.05542328106 | K27: 0.05542328106 | L27: 0.07223738426 | M27: 0.01612911992 | N27: 2.797913681 | O27: =_xlfn.STDEV.S(O7:O15) -> 2.068278941 | P27: =_xlfn.STDEV.S(P7:P15) -> 0.3151183553 | Z27: SD | AA27: =_xlfn.STDEV.S(AA7:AA13) -> 1.181376112 | AB27: =_xlfn.STDEV.S(AB7:AB13) -> 3.153819802 | AC27: 0.08636914023 | AD27: 0.08636914023 | AE27: 0.07839336871 | AF27: 0.021349095 | AG27: 3.163121934 | AH27: 9.335033859 | AI27: 1.157854003
G28: SEM | H28: =H27/(SQRT(COUNT(H7:H15))) -> 0.2081978397 | I28: =I27/(SQRT(COUNT(I7:I14))) -> 0.8777738611 | J28: 0.01959508894 | K28: 0.01959508894 | L28: 0.02553977213 | M28: 0.005702505035 | N28: 0.9892118686 | O28: =O27/(SQRT(COUNT(O7:O15))) -> 0.6894263137 | P28: =P27/(SQRT(COUNT(P7:P15))) -> 0.1050394518 | Z28: SEM | AA28: =AA27/(SQRT(COUNT(AA7:AA13))) -> 0.4465181997 | AB28: =AB27/(SQRT(COUNT(AB7:AB13))) -> 1.192031839 | AC28: 0.03264446657 | AD28: 0.03264446657 | AE28: 0.02962990829 | AF28: 0.008069199442 | AG28: 1.195547715 | AH28: 3.528311153 | AI28: 0.437627678
B33: = Stim duration shorter than burst duration
B34: = Stimulation during that burst
F36: CabPK + GPR during Retraction (6Hz)
B37: Stim start | C37: Stim stop | D37: Stim | F37: LG start | G37: LG stop | H37: Prot | I37: Retr | J37: LG DC | K37: Int1 DC | L37: LG freq | M37: GMR freq | N37: Period | O37: s/b | P37: SpikeFreq | R37: File #
B38: 5.47047 | C38: 15.43218 | D38: =C38-B38 -> 9.96171 | F38: 1.52679 | G38: 4.424 | H38: =G38-F38 -> 2.89721 | I38: =F39-G38 -> 19.25281 | J38: =H38/N38 -> 0.1307994304 | K38: =I38/N38 -> 0.8692005696 | L38: =1/H38 -> 0.3451596536 | M38: =1/N38 -> 0.0451466861 | N38: =H38+I38 -> 22.15002 | O38: 10 | P38: =O38/H38 -> 3.451596536 | R38: 872_145_0050
F39: 23.67681 | G39: 29.61596 | H39: =G39-F39 -> 5.93915 | I39: =F40-G39 -> 5.62648 | J39: =H39/N39 -> 0.5135172057 | K39: =I39/N39 -> 0.4864827943 | L39: =1/H39 -> 0.1683742623 | M39: =1/N39 -> 0.0864630807 | N39: =H39+I39 -> 11.56563 | O39: 19 | P39: =O39/H39 -> 3.199110984
F40: 35.24244 | G40: 40.37382 | H40: 5.13138 | I40: 9.36926 | J40: 0.3538726567 | K40: 0.6461273433 | L40: 0.1948793502 | M40: 0.06896247338 | N40: 14.50064 | O40: 22 | P40: 4.287345704
F41: 49.74308 | G41: 54.5518 | H41: 4.80872 | I41: 8.31806 | J41: 0.3663289855 | K41: 0.6336710145 | L41: 0.2079555474 | M41: 0.07618014471 | N41: 13.12678 | O41: 19 | P41: 3.951155401 | U41: 9.85416 | V41: 23.80018 | W41: =240+U41 -> 249.85416 | X41: 263.80018
F42: 62.86986 | G42: 66.43007 | H42: 3.56021 | I42: 8.22456 | J42: 0.3021026291 | K42: 0.6978973709 | L42: 0.2808823075 | M42: 0.08485528356 | N42: 11.78477 | O42: 14 | P42: 3.932352305 | U42: 37.46904 | V42: 51.41506 | W42: 277.46904 | X42: 291.41506
F43: 74.65463 | G43: 78.00289 | H43: 3.34826 | I43: 12.85828 | J43: 0.2065993111 | K43: 0.7934006889 | L43: 0.2986625889 | M43: 0.06170348514 | N43: 16.20654 | O43: 13 | P43: 3.882613656 | U43: 92.14091 | V43: 102.10263 | W43: 332.14091 | X43: 342.10263
B44: 95.68626 | C44: 105.64826 | D44: =C44-B44 -> 9.962 | F44: 90.86117 | G44: 94.45137 | H44: 3.5902 | I44: 19.03569 | J44: 0.1586766311 | K44: 0.8413233689 | L44: 0.2785360147 | M44: 0.04419715644 | N44: 22.62589 | O44: 14 | P44: 3.899504206 | U44: 118.01121 | V44: 119.85979 | W44: 358.01121 | X44: 359.85979
F45: 113.48706 | G45: 119.15549 | H45: 5.66843 | I45: 6.23518 | J45: 0.4761941966 | K45: 0.5238058034 | L45: 0.1764156918 | M45: 0.08400812863 | N45: 11.90361 | O45: 23 | P45: 4.057560912
F46: 125.39067 | G46: 130.09636 | H46: 4.70569 | I46: 9.07829 | J46: 0.3413883363 | K46: 0.6586116637 | L46: 0.2125086863 | M46: 0.07254798687 | N46: 13.78398 | O46: 23 | P46: 4.887699785 | R46: 872_145_0051
F47: 139.17465 | G47: 143.8412 | H47: 4.66655 | I47: 6.63202 | J47: 0.4130212938 | K47: 0.5869787062 | L47: 0.2142910716 | M47: 0.08850677564 | N47: 11.29857 | O47: 46 | P47: 9.857389292
F48: 150.47322 | G48: 155.03568 | H48: 4.56246 | I48: 9.55068 | J48: 0.3232774563 | K48: 0.6767225437 | L48: 0.2191800038 | M48: 0.0708559541 | N48: 14.11314 | O48: 38 | P48: 8.328840143
F49: 164.58636 | G49: 167.89893 | H49: 3.31257 | I49: 13.68423 | J49: 0.1948937447 | K49: 0.8051062553 | L49: 0.3018804131 | M49: 0.05883460416 | N49: 16.9968 | O49: 5 | P49: 1.509402065
B50: 186.3726 | C50: 200.31637 | D50: =C50-B50 -> 13.94377 | F50: 181.58316 | G50: 187.00326 | H50: 5.4201 | I50: 19.58481 | J50: 0.2167614281 | K50: 0.7832385719 | L50: 0.184498441 | M50: 0.03999214554 | N50: 25.00491 | O50: 29 | P50: 5.350454789
F51: 206.58807 | G51: 212.23651 | H51: 5.64844 | I51: 7.25779 | J51: 0.4376522036 | K51: 0.5623477964 | L51: 0.1770400323 | M51: 0.07748196026 | N51: 12.90623 | O51: 35 | P51: 6.19640113
B52: 224.96023 | C52: 238.9043 | D52: =C52-B52 -> 13.94407 | F52: 219.4943 | G52: 223.98576 | H52: 4.49146 | I52: 20.4022 | J52: 0.1804258594 | K52: 0.8195741406 | L52: 0.2226447525 | M52: 0.04017087082 | N52: 24.89366 | O52: 35 | P52: 7.792566337
B53: 249.85416 | C53: 263.80018 | D53: =C53-B53 -> 13.94602 | F53: 244.38796 | G53: 249.65579 | H53: 5.26783 | I53: 19.88701 | J53: 0.2094161601 | K53: 0.7905838399 | L53: 0.1898314866 | M53: 0.03975378098 | N53: 25.15484 | O53: 38 | P53: 7.21359649 | R53: 872_145_0052
B54: 277.46904 | C54: 291.41506 | D54: =C54-B54 -> 13.94602 | F54: 269.5428 | G54: 278.41504 | H54: 8.87224 | I54: 17.77873 | J54: 0.3329049562 | K54: 0.6670950438 | L54: 0.1127111079 | M54: 0.03752208644 | N54: 26.65097 | O54: 34 | P54: 3.832177669
F55: 296.19377 | G55: 304.2393 | H55: 8.04553 | I55: 7.44811 | J55: 0.5192795237 | K55: 0.4807204763 | L55: 0.1242926196 | M55: 0.06454261232 | N55: 15.49364 | O55: 33 | P55: 4.101656448
F56: 311.68741 | G56: 316.87004 | H56: 5.18263 | I56: 9.05614 | J56: 0.3639801753 | K56: 0.6360198247 | L56: 0.192952227 | M56: 0.07023078538 | N56: 14.23877 | O56: 24 | P56: 4.630853447
B57: 332.14091 | C57: 342.10263 | D57: =C57-B57 -> 9.96172 | F57: 325.92618 | G57: 333.40081 | H57: 7.47463 | I57: 15.75683 | J57: 0.3217460289 | K57: 0.6782539711 | L57: 0.1337858864 | M57: 0.04304507767 | N57: 23.23146 | O57: 30 | P57: 4.013576592
B58: 358.01121 | C58: 359.85979 | D58: =C58-B58 -> 1.84858 | F58: 349.15764 | G58: 357.63707 | H58: 8.47943 | I58: 20.06483 | J58: 0.2970625268 | K58: 0.7029374732 | L58: 0.1179324554 | M58: 0.03503331318 | N58: 28.54426 | O58: 27 | P58: 3.184176295
F59: 377.7019 | G59: 383.82342 | H59: 6.12152 | I59: 20.00222 | J59: 0.2343278566 | K59: 0.7656721434 | L59: 0.1633581202 | M59: 0.03827935816 | N59: 26.12374 | O59: 27 | P59: 4.410669246
F60: 403.82564 | G60: 410.24837 | H60: 6.42273
E64: Ret stim | H64: Prot | I64: Retr | J64: LG DC | K64: Int1 DC | L64: LG freq | M64: GMR freq | N64: Period | O64: s/b | P64: SpikeFreq
G65: Mean | H65: =AVERAGE(H38,H44,H50,H52:H54,H57,H58) -> 5.8116375 | I65: =AVERAGE(I38,I44,I50,I52:I54,I57,I58) -> 18.97036375 | J65: 0.2309741276 | K65: 0.7690258724 | L65: 0.1981374748 | M65: 0.04060763965 | N65: 24.78200125 | O65: 27.125 | P65: 4.842206114
G66: SD | H66: =_xlfn.STDEV.S(H38,H44,H50,H52:H54,H57,H58) -> 2.231927982 | I66: =_xlfn.STDEV.S(I38,I44,I50,I52:I54,I57,I58) -> 1.52580796 | J66: 0.07697947829 | K66: 0.07697947829 | L66: 0.0817720716 | M66: 0.003408416189 | N66: 2.13237356 | O66: 10.03476101 | P66: 1.767353291
G67: SEM | H67: =H66/(SQRT(8)) -> 0.7891057054 | I67: =I66/(SQRT(8)) -> 0.5394545777 | J67: 0.02721635556 | K67: 0.02721635556 | L67: 0.02891079317 | M67: 0.0012050571 | N67: 0.7539079022 | O67: 3.54782378 | P67: 0.6248537485
E69: Burst after Stim | H69: Prot | I69: Retr | J69: LG DC | K69: Int1 DC | L69: LG freq | M69: GMR freq | N69: Period | O69: s/b | P69: SpikeFreq
G70: Mean | H70: =AVERAGE(H39,H45,H51,H55) -> 6.3253875 | I70: =AVERAGE(I39,I45,I51,I55) -> 6.64189 | J70: 0.4866607824 | K70: 0.5133392176 | L70: 0.1615306515 | M70: 0.07812394548 | N70: 12.9672775 | O70: 27.5 | P70: 4.388682368
G71: SD | H71: =_xlfn.STDEV.S(H39,H45,H51,H55) -> 1.154400378 | I71: =_xlfn.STDEV.S(I39,I45,I51,I55) -> 0.8613543581 | J71: 0.03784459438 | K71: 0.03784459438 | L71: 0.0251370334 | M71: 0.009815456226 | N71: 1.777848751 | O71: 7.724420151 | P71: 1.274748668
G72: SEM | H72: =H71/(SQRT(4)) -> 0.5772001892 | I72: =I71/(SQRT(4)) -> 0.430677179 | J72: 0.01892229719 | K72: 0.01892229719 | L72: 0.0125685167 | M72: 0.004907728113 | N72: 0.8889243755 | O72: 3.862210075 | P72: 0.6373743339
E74: Non-stim | H74: Prot | I74: Retr | J74: LG DC | K74: Int1 DC | L74: LG freq | M74: GMR freq | N74: Period | O74: s/b | P74: SpikeFreq
G75: Mean | H75: =AVERAGE(H39:H43,H45:H49,H51,H55:H56) -> 4.967693846 | I75: =AVERAGE(I39:I43,I45:I49,I51,I55:I56) -> 8.718390769 | J75: 0.3701621322 | K75: 0.6298378678 | L75: 0.2130242155 | M75: 0.07424409806 | N75: 13.68608462 | O75: 24.15384615 | P75: 4.832490867
G76: SD | H76: =_xlfn.STDEV.S(H39:H43,H45:H49,H51,H55:H56) -> 1.262803499 | I76: =_xlfn.STDEV.S(I39:I43,I45:I49,I51,I55:I56) -> 2.369748097 | J76: 0.1024164499 | K76: 0.1024164499 | L76: 0.05254649692 | M76: 0.009669927344 | N76: 1.817770413 | O76: 11.25348949 | P76: 2.179639789
G77: SEM | H77: =H76/(SQRT(13)) -> 0.3502386744 | I77: =I76/(SQRT(13)) -> 0.6572498673 | J77: 0.02840521243 | K77: 0.02840521243 | L77: 0.01457377608 | M77: 0.002681955297 | N77: 0.5041588024 | O77: 3.121156413 | P77: 0.6045233094

Sheet 890_100
C4: 890_100
F5: CabPK | Y5: MCN1
F6: LG start | G6: LG stop | H6: Prot | I6: Retr | J6: LG DC | K6: Int1 DC | L6: LG freq | M6: GMR freq | N6: Period | O6: s/b | P6: SpikeFreq | R6: File # : (Notebook#_Page#_ABFfile#) | Y6: LG start | Z6: LG stop | AA6: Prot | AB6: Retr | AC6: LG DC | AD6: Int1 DC | AE6: LG freq | AF6: GMR freq | AG6: Period | AH6: s/b | AI6: SpikeFreq | AK6: File # : (Notebook#_Page#_ABFfile#)
F7: 6.96247 | G7: 13.55745 | H7: =G7-F7 -> 6.59498 | I7: =F8-G7 -> 10.73884 | J7: =H7/N7 -> 0.380468933 | K7: =I7/N7 -> 0.619531067 | L7: =1/H7 -> 0.1516304826 | M7: =1/N7 -> 0.05769068792 | N7: =H7+I7 -> 17.33382 | O7: 31 | P7: =O7/H7 -> 4.70054496 | R7: 890_100_128 | AA7: =Z7-Y7 -> 0 | AB7: =Y8-Z7 -> 0 | AC7: =AA7/AG7 ->  | AD7: =AB7/AG7 ->  | AE7: =1/AA7 ->  | AF7: =1/AG7 ->  | AG7: =AA7+AB7 -> 0 | AK7: 872_145_0049
F8: 24.29629 | G8: 33.64695 | H8: =G8-F8 -> 9.35066 | I8: 10.77254 | J8: 0.4646706289 | K8: 0.5353293711 | L8: 0.1069443226 | M8: 0.04969388566 | N8: 20.1232 | O8: 47 | P8: 5.026383164 | AA8: =Z8-Y8 -> 0 | AB8: 0 | AC8: =AA8/AG8 ->  | AD8: =AB8/AG8 ->  | AE8: =1/AA8 ->  | AF8: =1/AG8 ->  | AG8: =AA8+AB8 -> 0
F9: 44.41949 | G9: 51.18733 | H9: 6.76784 | I9: 9.41336 | J9: 0.4182532816 | K9: 0.5817467184 | L9: 0.1477576302 | M9: 0.06180011371 | N9: 16.1812 | O9: 36 | P9: 5.319274687 | AA9: 0 | AB9: 0 | AG9: 0
F10: 60.60069 | G10: 67.04603 | H10: 6.44534 | I10: 11.55316 | J10: 0.3581042865 | K10: 0.6418957135 | L10: 0.1551508532 | M10: 0.05556018557 | N10: 17.9985 | O10: 35 | P10: 5.430279861 | AA10: 0 | AB10: 0 | AG10: 0
F11: 78.59919 | G11: 85.25861 | H11: 6.65942 | I11: 12.16622 | J11: 0.3537420242 | K11: 0.6462579758 | L11: 0.1501632274 | M11: 0.05311904403 | N11: 18.82564 | O11: 37 | P11: 5.556039415 | AA11: 0 | AB11: 0 | AG11: 0
F12: 97.42483 | G12: 99.66529 | H12: 2.24046 | I12: 10.82145 | J12: 0.1715262163 | K12: 0.8284737837 | L12: 0.446336913 | M12: 0.07655848188 | N12: 13.06191 | O12: 15 | P12: 6.695053694 | AA12: 0 | AB12: 0 | AG12: 0
F13: 110.48674 | G13: 118.75006 | H13: 8.26332 | AA13: 0 | AB13: =#REF!-Z13 -> 
H15: Prot | I15: Retr | J15: LG DC | K15: Int1 DC | L15: LG freq | M15: GMR freq | N15: Period | O15: s/b | P15: SpikeFreq | AA15: Prot | AB15: Retr | AC15: LG DC | AD15: Int1 DC | AE15: LG freq | AF15: GMR freq | AG15: Period | AH15: s/b | AI15: SpikeFreq
G16: Mean | H16: =AVERAGE(H7:H12) -> 6.343116667 | I16: =AVERAGE(I7:I12) -> 10.91092833 | J16: 0.3577942284 | K16: 0.6422057716 | L16: 0.1929972382 | M16: 0.05907039979 | N16: 17.254045 | O16: =AVERAGE(O7:O13) -> 33.5 | P16: =AVERAGE(P7:P13) -> 5.454595964 | Z16: Mean | AA16: =AVERAGE(AA7:AA13) -> 0
G17: SD | H17: =_xlfn.STDEV.S(H7:H12) -> 2.29047729 | I17: =_xlfn.STDEV.S(I7:I12) -> 0.9260347394 | J17: 0.1003038316 | K17: 0.1003038316 | L17: 0.1253882188 | M17: 0.009495759205 | N17: 2.448980637 | O17: =_xlfn.STDEV.S(O7:O13) -> 10.50238068 | P17: =_xlfn.STDEV.S(P7:P13) -> 0.6811590701 | Z17: SD | AA17: =_xlfn.STDEV.S(AA7:AA13) -> 0
G18: SEM | H18: =H17/(SQRT(COUNT(H7:H12))) -> 0.9350834381 | I18: =I17/(SQRT(COUNT(I7:I12))) -> 0.3780520993 | J18: 0.04094886777 | K18: 0.04094886777 | L18: 0.05118952595 | M18: 0.003876627462 | N18: 0.9997921585 | O18: 4.287578959 | P18: 0.2780820259 | Z18: SEM | AA18: =AA17/(SQRT(COUNT(AA7:AA13))) -> 0
B23: = Stim duration shorter than burst duration
B24: = Stimulation during that burst
F26: CabPK + GPR during Retraction (6Hz)
B27: Stim start | C27: Stim stop | D27: Stim | F27: LG start | G27: LG stop | H27: Prot | I27: Retr | J27: LG DC | K27: Int1 DC | L27: LG freq | M27: GMR freq | N27: Period | O27: s/b | P27: SpikeFreq | R27: File #
B28: 29.04923 | C28: 33.94926 | D28: =C28-B28 -> 4.90003 | F28: 21.9374 | G28: 28.27155 | H28: =G28-F28 -> 6.33415 | I28: =F29-G28 -> 11.55417 | J28: =H28/N28 -> 0.3540941799 | K28: =I28/N28 -> 0.6459058201 | L28: =1/H28 -> 0.1578743794 | M28: =1/N28 -> 0.05590239888 | N28: =H28+I28 -> 17.88832 | O28: 35 | P28: =O28/H28 -> 5.525603277 | R28: 890_100_129
B29: 48.21729 | C29: 53.11717 | D29: =C29-B29 -> 4.89988 | F29: 39.82572 | G29: 46.86231 | H29: =G29-F29 -> 7.03659 | I29: =F30-G29 -> 10.60296 | J29: =H29/N29 -> 0.3989098361 | K29: =I29/N29 -> 0.6010901639 | L29: =1/H29 -> 0.1421142912 | M29: =1/N29 -> 0.0566907886 | N29: =H29+I29 -> 17.63955 | O29: 35 | P29: =O29/H29 -> 4.97400019
B30: 66.39315 | C30: 71.2932 | D30: =C30-B30 -> 4.90005 | F30: 57.46527 | G30: 65.56247 | H30: =G30-F30 -> 8.0972 | I30: =F31-G30 -> 18.12907 | J30: =H30/N30 -> 0.3087438664 | K30: =I30/N30 -> 0.6912561336 | L30: =1/H30 -> 0.1234994813 | M30: =1/N30 -> 0.03812970735 | N30: =H30+I30 -> 26.22627 | O30: 44 | P30: =O30/H30 -> 5.433977177
F31: 83.69154 | G31: 90.90724 | H31: =G31-F31 -> 7.2157 | I31: =F32-G31 -> 12.83352 | J31: =H31/N31 -> 0.3598992879 | K31: =I31/N31 -> 0.6401007121 | L31: =1/H31 -> 0.1385866929 | M31: =1/N31 -> 0.04987725208 | N31: =H31+I31 -> 20.04922 | O31: 38 | P31: =O31/H31 -> 5.26629433
F32: 103.74076 | G32: 111.06926 | H32: =G32-F32 -> 7.3285
E35: Ret stim | H35: Prot | I35: Retr | J35: LG DC | K35: Int1 DC | L35: LG freq | M35: GMR freq | N35: Period | O35: s/b | P35: SpikeFreq
G36: Mean | H36: =AVERAGE(H28:H30) -> 7.15598 | I36: =AVERAGE(I28:I30) -> 13.42873333 | J36: 0.3539159608 | K36: 0.6460840392 | L36: 0.1411627173 | M36: 0.05024096494 | N36: 20.58471333 | O36: 38 | P36: 5.311193548
G37: SD | H37: =_xlfn.STDEV.S(H28:H30) -> 0.8875679155 | I37: =_xlfn.STDEV.S(I28:I30) -> 4.098301319 | J37: 0.04508324908 | K37: 0.04508324908 | L37: 0.01720719395 | M37: 0.01049606164 | N37: 4.887314482 | O37: 5.196152423 | P37: 0.2955898443
G38: SEM | H38: =H37/(SQRT(3)) -> 0.512437575 | I38: =I37/(SQRT(3)) -> 2.36615537 | J38: 0.02602882599 | K38: 0.02602882599 | L38: 0.00993457806 | M38: 0.006059904013 | N38: 2.821692332 | O38: 3 | P38: 0.1706588762
E40: Burst after Stim | H40: Prot | I40: Retr | J40: LG DC | K40: Int1 DC | L40: LG freq | M40: GMR freq | N40: Period | O40: s/b | P40: SpikeFreq
G41: Mean | H41: =AVERAGE(H31) -> 7.2157 | I41: =AVERAGE(I31) -> 12.83352 | J41: 0.3598992879 | K41: 0.6401007121 | L41: 0.1385866929 | M41: 0.04987725208 | N41: 20.04922 | O41: =AVERAGE(O31) -> 38 | P41: 5.26629433
G42: SD | H42: =_xlfn.STDEV.S(H29,#REF!,#REF!,#REF!) ->  | I42: =_xlfn.STDEV.S(I29,#REF!,#REF!,#REF!) ->  | J42: =_xlfn.STDEV.S(J29,#REF!,#REF!,#REF!) ->  | K42: =_xlfn.STDEV.S(K29,#REF!,#REF!,#REF!) ->  | L42: =_xlfn.STDEV.S(L29,#REF!,#REF!,#REF!) ->  | M42: =_xlfn.STDEV.S(M29,#REF!,#REF!,#REF!) ->  | N42: =_xlfn.STDEV.S(N29,#REF!,#REF!,#REF!) ->  | O42: =_xlfn.STDEV.S(O29,#REF!,#REF!,#REF!) ->  | P42: =_xlfn.STDEV.S(P29,#REF!,#REF!,#REF!) -> 
G43: SEM | H43: =H42/(SQRT(4)) ->  | I43: =I42/(SQRT(4)) -> 

Sheet 890_106
C4: 890_106
F5: CabPK | Y5: MCN1
F6: LG start | G6: LG stop | H6: Prot | I6: Retr | J6: LG DC | K6: Int1 DC | L6: LG freq | M6: GMR freq | N6: Period | O6: s/b | P6: SpikeFreq | R6: File # : (Notebook#_Page#_ABFfile#) | Y6: LG start | Z6: LG stop | AA6: Prot | AB6: Retr | AC6: LG DC | AD6: Int1 DC | AE6: LG freq | AF6: GMR freq | AG6: Period | AH6: s/b | AI6: SpikeFreq | AK6: File # : (Notebook#_Page#_ABFfile#)
F7: 7.22803 | G7: 9.51359 | H7: =G7-F7 -> 2.28556 | I7: =F8-G7 -> 9.35043 | J7: =H7/N7 -> 0.1964216195 | K7: =I7/N7 -> 0.8035783805 | L7: =1/H7 -> 0.4375295332 | M7: =1/N7 -> 0.08594025949 | N7: =H7+I7 -> 11.63599 | O7: 13 | P7: =O7/H7 -> 5.687883932 | R7: 890_106_0037 | AA7: =Z7-Y7 -> 0 | AB7: =Y8-Z7 -> 0 | AC7: =AA7/AG7 ->  | AD7: =AB7/AG7 ->  | AE7: =1/AA7 ->  | AF7: =1/AG7 ->  | AG7: =AA7+AB7 -> 0 | AK7: 872_145_0049
F8: 18.86402 | G8: 21.34 | H8: =G8-F8 -> 2.47598 | I8: =F9-G8 -> 10.24248 | J8: =H8/N8 -> 0.194676085 | K8: =I8/N8 -> 0.805323915 | L8: =1/H8 -> 0.4038804837 | M8: =1/N8 -> 0.07862587137 | N8: =H8+I8 -> 12.71846 | O8: 14 | P8: =O8/H8 -> 5.654326772 | AA8: 0 | AB8: =Y9-Z8 -> 0 | AG8: 0
F9: 31.58248 | G9: 33.85252 | H9: 2.27004 | I9: 10.32773 | J9: 0.1801937962 | K9: 0.8198062038 | L9: 0.4405208719 | M9: 0.07937912821 | N9: 12.59777 | O9: 13 | P9: 5.726771334 | AA9: 0 | AB9: =Y10-Z9 -> 0 | AG9: 0
F10: 44.18025 | G10: 46.51759 | H10: 2.33734 | I10: 10.23531 | J10: 0.1859067102 | K10: 0.8140932898 | L10: 0.4278367717 | M10: 0.07953772673 | N10: 12.57265 | O10: 13 | P10: 5.561878032 | AA10: 0 | AB10: =Y11-Z10 -> 0 | AG10: 0
F11: 56.7529 | G11: 59.06349 | H11: 2.31059 | I11: 12.04547 | J11: 0.1609487561 | K11: 0.8390512439 | L11: 0.4327898935 | M11: 0.06965699503 | N11: 14.35606 | O11: 13 | P11: 5.626268615 | AA11: 0 | AB11: =Y12-Z11 -> 0 | AG11: 0
F12: 71.10896 | G12: 73.47073 | H12: 2.36177 | I12: 9.94887 | J12: 0.1918478649 | K12: 0.8081521351 | L12: 0.4234112551 | M12: 0.08123054528 | N12: 12.31064 | O12: 14 | P12: 5.927757572 | AA12: 0 | AB12: =Y22-Z12 -> 0 | AG12: 0
F13: 83.4196 | G13: 85.8031 | H13: 2.3835 | I13: 9.80052 | J13: 0.1956250893 | K13: 0.8043749107 | L13: 0.4195510803 | M13: 0.08207471754 | N13: 12.18402 | O13: 15 | P13: 6.293266205
F14: 95.60362 | G14: 97.77369 | H14: 2.17007 | I14: 10.93469 | J14: 0.1655940284 | K14: 0.8344059716 | L14: 0.4608146281 | M14: 0.07630815063 | N14: 13.10476 | O14: 13 | P14: 5.990590165
F15: 108.70838 | G15: 111.1828 | H15: 2.47442 | I15: 11.47397 | J15: 0.1773982517 | K15: 0.8226017483 | L15: 0.4041351105 | M15: 0.07169286204 | N15: 13.94839 | O15: 14 | P15: 5.657891546
F16: 122.65677 | G16: 124.9753 | H16: 2.31853 | I16: 9.90728 | J16: 0.1896422405 | K16: 0.8103577595 | L16: 0.4313077683 | M16: 0.08179417151 | N16: 12.22581 | O16: 13 | P16: 5.607000988 | R16: 890_106_0038
F17: 134.88258 | G17: 136.99678 | H17: 2.1142 | I17: 10.98754 | J17: 0.1613678794 | K17: 0.8386321206 | L17: 0.4729921483 | M17: 0.07632573994 | N17: 13.10174 | O17: 12 | P17: 5.67590578
F18: 147.98432 | G18: 150.23417 | H18: 2.24985 | I18: 10.94978 | J18: 0.1704479595 | K18: 0.8295520405 | L18: 0.444474076 | M18: 0.07575969932 | N18: 13.19963 | O18: 13 | P18: 5.778162989
F19: 161.18395 | G19: 163.34365 | H19: 2.1597 | I19: 9.83787 | J19: 0.1800114523 | K19: 0.8199885477 | L19: 0.4630272723 | M19: 0.08335021175 | N19: 11.99757 | O19: 13 | P19: 6.01935454
F20: 173.18152 | G20: 175.65413 | H20: 2.47261 | I20: 10.64565 | J20: 0.1884861254 | K20: 0.8115138746 | L20: 0.4044309454 | M20: 0.07622962192 | N20: 13.11826 | O20: 13 | P20: 5.257602291
F21: 186.29978 | G21: 189.50473 | H21: 3.20495 | I21: 11.67856 | J21: 0.2153356298 | K21: 0.7846643702 | L21: 0.3120173482 | M21: 0.06718845219 | N21: 14.88351 | O21: 15 | P21: 4.680260222
F22: 201.18329 | G22: 203.68226 | H22: 2.49897 | I22: 13.2809 | J22: 0.1583644225 | K22: 0.8416355775 | L22: 0.4001648679 | M22: 0.06337187822 | N22: 15.77987 | O22: 14 | P22: 5.602308151 | AA22: =Z22-Y22 -> 0 | AB22: =#REF!-Z22 ->  | AC22: =AA22/AG22 ->  | AD22: =AB22/AG22 ->  | AE22: =1/AA22 ->  | AF22: =1/AG22 ->  | AG22: =AA22+AB22 -> 
F23: 216.96316 | G23: 219.46258 | H23: 2.49942 | I23: 13.42014 | J23: 0.157003083 | K23: 0.842996917 | L23: 0.4000928215 | M23: 0.06281580647 | N23: 15.91956 | O23: 14 | P23: 5.601299501
F24: 232.88272 | G24: 235.0817
H25: Prot | I25: Retr | J25: LG DC | K25: Int1 DC | L25: LG freq | M25: GMR freq | N25: Period | O25: s/b | P25: SpikeFreq | AA25: Prot | AB25: Retr | AC25: LG DC | AD25: Int1 DC | AE25: LG freq | AF25: GMR freq | AG25: Period | AH25: s/b | AI25: SpikeFreq
G26: Mean | H26: =AVERAGE(H7:H23) -> 2.3875 | I26: =AVERAGE(I7:I23) -> 10.88630529 | J26: 0.1805453526 | K26: 0.8194546474 | L26: 0.4222927574 | M26: 0.07595775516 | N26: 13.27380529 | O26: 13.47058824 | P26: 5.667560508 | Z26: Mean | AA26: =AVERAGE(AA7:AA22) -> 0
G27: SD | H27: =_xlfn.STDEV.S(H7:H23) -> 0.243242086 | I27: =_xlfn.STDEV.S(I7:I23) -> 1.177132711 | J27: 0.01644240325 | K27: 0.01644240325 | L27: 0.03634209413 | M27: 0.006853370288 | N27: 1.283735424 | O27: 0.7998161553 | P27: =_xlfn.STDEV.S(P7:P22) -> 0.3528134338 | Z27: SD | AA27: =_xlfn.STDEV.S(AA7:AA22) -> 0
G28: SEM | H28: =H27/(SQRT(COUNT(H7:H23))) -> 0.05899487137 | I28: =I27/(SQRT(COUNT(I7:I23))) -> 0.2854966178 | J28: 0.00398786855 | K28: 0.00398786855 | L28: 0.008814252515 | M28: 0.001662186446 | N28: 0.3113515734 | O28: 0.1939839112 | P28: 0.08556982669 | Z28: SEM | AA28: =AA27/(SQRT(COUNT(AA7:AA22))) -> 0
B33: = Stim duration shorter than burst duration
B34: = Stimulation during that burst
F36: CabPK + GPR during Retraction (6Hz)
B37: Stim start | C37: Stim stop | D37: Stim | F37: LG start | G37: LG stop | H37: Prot | I37: Retr | J37: LG DC | K37: Int1 DC | L37: LG freq | M37: GMR freq | N37: Period | O37: s/b | P37: SpikeFreq | R37: File #
D38: =C38-B38 -> 0 | F38: 6.29161 | G38: 8.39405 | H38: =G38-F38 -> 2.10244 | I38: =F39-G38 -> 11.78519 | J38: =H38/N38 -> 0.1513894019 | K38: =I38/N38 -> 0.8486105981 | L38: =1/H38 -> 0.4756378303 | M38: =1/N38 -> 0.07200652667 | N38: =H38+I38 -> 13.88763 | O38: 13 | P38: =O38/H38 -> 6.183291794 | R38: 890_106_0039 | U38: 23.30934 | V38: 26.14269
B39: 23.30934 | C39: 26.14269 | D39: =C39-B39 -> 2.83335 | F39: 20.17924 | G39: 22.70667 | H39: =G39-F39 -> 2.52743 | I39: =F40-G39 -> 12.78212 | J39: =H39/N39 -> 0.1650884579 | K39: =I39/N39 -> 0.8349115421 | L39: =1/H39 -> 0.3956588313 | M39: =1/N39 -> 0.0653187063 | N39: =H39+I39 -> 15.30955 | O39: 14 | P39: =O39/H39 -> 5.539223638 | U39: 39.11742 | V39: 41.95078
B40: 39.11742 | C40: 41.95078 | D40: 2.83336 | F40: 35.48879 | G40: 38.44861 | H40: 2.95982 | I40: 13.49009 | J40: 0.1799292519 | K40: 0.8200707481 | L40: 0.3378583833 | M40: 0.06079060615 | N40: 16.44991 | O40: 15 | P40: 5.067875749 | U40: 56.55744 | V40: 59.39079
B41: 56.55744 | C41: 59.39079 | D41: 2.83335 | F41: 51.9387 | G41: 55.28298 | H41: 3.34428 | I41: 11.54693 | J41: 0.2245808098 | K41: 0.7754191902 | L41: 0.2990180248 | M41: 0.06715371014 | N41: 14.89121 | O41: 15 | P41: 4.485270372 | U41: 70.66941 | V41: 73.50275
B42: 70.66941 | C42: 73.50275 | D42: 2.83334 | F42: 66.82991 | G42: 70.00257 | H42: 3.17266 | I42: 11.25279 | J42: 0.2199349067 | K42: 0.7800650933 | L42: 0.3151929296 | M42: 0.06932192757 | N42: 14.42545 | O42: 17 | P42: 5.358279803 | U42: 83.69336 | V42: 86.52671
B43: 83.69336 | C43: 86.52671 | D43: 2.83335 | F43: 81.25536 | G43: 85.46813 | H43: 4.21277 | I43: 10.94741 | J43: 0.2778839038 | K43: 0.7221160962 | L43: 0.2373735096 | M43: 0.06596227749 | N43: 15.16018 | O43: 21 | P43: 4.984843701 | U43: 99.46948 | V43: 102.30283
B44: 99.46948 | C44: 102.30283 | D44: 2.83335 | F44: 96.41554 | G44: 100.50458 | H44: 4.08904 | I44: 9.08683 | J44: 0.3103430741 | K44: 0.6896569259 | L44: 0.2445561794 | M44: 0.07589631652 | N44: 13.17587 | O44: 20 | P44: 4.891123589 | U44: 113.26138 | V44: 116.09474
B45: 113.26138 | C45: 116.09474 | D45: 2.83336 | F45: 109.59141 | G45: 111.92584 | H45: 2.33443 | I45: 10.50923 | J45: 0.1817573807 | K45: 0.8182426193 | L45: 0.4283700946 | M45: 0.07785942636 | N45: 12.84366 | O45: 13 | P45: 5.56881123 | U45: 126.49336 | V45: 129.32672
B46: 126.49336 | C46: 129.32672 | D46: 2.83336 | F46: 122.43507 | G46: 125.51006 | H46: 3.07499 | I46: 11.85504 | J46: 0.2059600684 | K46: 0.7940399316 | L46: 0.3252043096 | M46: 0.06697910185 | N46: 14.93003 | O46: 16 | P46: 5.203268954 | R46: 890_106_0040 | U46: 140.63742 | V46: 143.47076
B47: 140.63742 | C47: 143.47076 | D47: 2.83334 | F47: 137.3651 | G47: 139.91879 | H47: 2.55369 | I47: 10.42184 | J47: 0.1968081458 | K47: 0.8031918542 | L47: 0.3915902087 | M47: 0.07706814288 | N47: 12.97553 | O47: 16 | P47: 6.265443339 | U47: 153.34144 | V47: 156.17478
B48: 153.34144 | C48: 156.17478 | D48: 2.83334 | F48: 150.34063 | G48: 152.45018 | H48: 2.10955 | I48: 10.02462 | J48: 0.1738520228 | K48: 0.8261479772 | L48: 0.4740347467 | M48: 0.08241189962 | N48: 12.13417 | O48: 15 | P48: 7.110521201 | U48: 166.55744 | V48: 169.39079
B49: 166.55744 | C49: 169.39079 | D49: 2.83335 | F49: 162.4748 | G49: 165.64537 | H49: 3.17057 | I49: 11.4668 | J49: 0.2166079016 | K49: 0.7833920984 | L49: 0.3154007008 | M49: 0.06831828395 | N49: 14.63737 | O49: 17 | P49: 5.361811914 | U49: 180.15743 | V49: 182.99078
B50: 180.15743 | C50: 182.99078 | D50: 2.83335 | F50: 177.11217 | G50: 179.2856 | H50: 2.17343 | I50: 11.39923 | J50: 0.1601329437 | K50: 0.8398670563 | L50: 0.4601022347 | M50: 0.07367752526 | N50: 13.57266 | O50: 15 | P50: 6.901533521 | U50: 230.90944 | V50: 233.74279
F51: 190.68483 | G51: 192.79687 | H51: 2.11204 | I51: 10.83817 | J51: 0.1630892472 | K51: 0.8369107528 | L51: 0.4734758811 | M51: 0.07721882502 | N51: 12.95021 | O51: 15 | P51: 7.102138217
F52: 203.63504 | G52: 205.77936 | H52: 2.14432 | I52: 9.60378 | J52: 0.1825248338 | K52: 0.8174751662 | L52: 0.4663483062 | M52: 0.08512014709 | N52: 11.7481 | O52: 15 | P52: 6.995224593
F53: 215.38314 | G53: 217.20761 | H53: 1.82447 | I53: 9.99777 | J53: 0.1543252379 | K53: 0.8456747621 | L53: 0.548104381 | M53: 0.08458633897 | N53: 11.82224 | O53: 13 | P53: 7.125356953
F54: 227.20538 | G54: 230.09395
E58: Ret stim | H58: Prot | I58: Retr | J58: LG DC | K58: Int1 DC | L58: LG freq | M58: GMR freq | N58: Period | O58: s/b | P58: SpikeFreq
G59: Mean | H59: =AVERAGE(H39:H53) -> 2.786899333 | I59: 11.01484333 | J59: 0.2008545457 | K59: 0.7991454543 | L59: 0.3808192481 | M59: 0.07317888235 | N59: 13.80174267 | O59: 15.8 | P59: 5.864048452
G60: SD | H60: =_xlfn.STDEV.S(H39:H53) -> 0.7272483685 | I60: 1.165399078 | J60: 0.0443486221 | K60: 0.0443486221 | L60: 0.09289695493 | M60: 0.007557083638 | N60: 1.423411675 | O60: 2.242447642 | P60: 0.9481698627
G61: SEM | H61: =H60/(SQRT(15)) -> 0.1877747213 | I61: =I60/(SQRT(15)) -> 0.3009047482 | J61: 0.01145076499 | K61: 0.01145076499 | L61: 0.02398589063 | M61: 0.001951230605 | N61: 0.3675233141 | O61: 0.5789974916 | P61: 0.2448164058
E63: Burst after Stim | H63: Prot | I63: Retr | J63: LG DC | K63: Int1 DC | L63: LG freq | M63: GMR freq | N63: Period | O63: s/b | P63: SpikeFreq
G64: Mean | H64: =AVERAGE(H51) -> 2.11204 | I64: =AVERAGE(I51) -> 10.83817 | J64: 0.1630892472 | K64: 0.8369107528 | L64: 0.4734758811 | M64: 0.07721882502 | N64: 12.95021 | O64: 15 | P64: 7.102138217
G65: SD | H65: =_xlfn.STDEV.S(H51) ->  | I65: =_xlfn.STDEV.S(I51,#REF!) ->  | J65: =_xlfn.STDEV.S(J51,#REF!) ->  | K65: =_xlfn.STDEV.S(K51,#REF!) ->  | L65: =_xlfn.STDEV.S(L51,#REF!) ->  | M65: =_xlfn.STDEV.S(M51,#REF!) ->  | N65: =_xlfn.STDEV.S(N51,#REF!) ->  | O65: =_xlfn.STDEV.S(O51,#REF!) ->  | P65: =_xlfn.STDEV.S(P51,#REF!) -> 
G66: SEM | H66: =H65/(SQRT(2)) ->  | I66: =I65/(SQRT(2)) -> 

Sheet 08022017
C1: *** Data file from Mikey's lab are labeled by the date of the exp (as per protocol in Mikey's lab) thus I'll label on each page at the top, the lab book number and page that each exp can be found in
C3: 901_018
F4: CabPK
F5: LG start | G5: LG stop | H5: Prot | I5: Retr | J5: LG DC | K5: Int1 DC | L5: LG freq | M5: GMR freq | N5: Period | O5: s/b | P5: Spike Freq | R5: DG start | S5: DG stop | T5: Burst Lth | U5: IBI
F6: 201.34 | G6: 208.12 | H6: =G6-F6 -> 6.78 | I6: =F7-G6 -> 6.45 | J6: =H6/N6 -> 0.5124716553 | K6: =I6/N6 -> 0.4875283447 | L6: =1/H6 -> 0.1474926254 | M6: =1/N6 -> 0.07558578987 | N6: =F7-F6 -> 13.23 | O6: 44 | P6: =O6/H6 -> 6.489675516
F7: 214.57 | G7: 221.22 | H7: =G7-F7 -> 6.65 | I7: =F8-G7 -> 7.68 | J7: =H7/N7 -> 0.4640614096 | K7: =I7/N7 -> 0.5359385904 | L7: =1/H7 -> 0.1503759398 | M7: =1/N7 -> 0.06978367062 | N7: =F8-F7 -> 14.33 | O7: 47 | P7: =O7/H7 -> 7.067669173 | R7: 153.94 | S7: 222.15 | T7: =S7-R7 -> 68.21 | U7: =R8-S7 -> 14.9
F8: 228.9 | G8: 236.03 | H8: 7.13 | I8: 6.45 | J8: 0.5250368189 | K8: 0.4749631811 | L8: 0.1402524544 | M8: 0.0736377025 | N8: 13.58 | O8: 47 | P8: 6.591865358 | R8: 237.05 | S8: 250.22 | T8: =S8-R8 -> 13.17 | U8: =R9-S8 -> 13.25
F9: 242.48 | G9: 249.5 | H9: 7.02 | I9: 5.93 | J9: 0.5420849421 | K9: 0.4579150579 | L9: 0.1424501425 | M9: 0.07722007722 | N9: 12.95 | O9: 48 | P9: 6.837606838 | R9: 263.47 | S9: 275.31 | T9: =S9-R9 -> 11.84 | U9: =R10-S9 -> 9.69
F10: 255.43 | G10: 262.39 | H10: 6.96 | I10: 6.3 | J10: 0.5248868778 | K10: 0.4751131222 | L10: 0.1436781609 | M10: 0.0754147813 | N10: 13.26 | O10: 47 | P10: 6.752873563 | R10: 285 | S10: 296.27 | T10: =S10-R10 -> 11.27 | U10: =R11-S10 -> 13.83
F11: 268.69 | G11: 275.58 | H11: 6.89 | I11: 13.23 | J11: 0.342445328 | K11: 0.657554672 | L11: 0.145137881 | M11: 0.04970178926 | N11: 20.12 | O11: 43 | P11: 6.240928882 | R11: 310.1 | S11: 339.6 | T11: =S11-R11 -> 29.5
F12: 288.81 | G12: 295.79 | H12: 6.98 | I12: 6.3 | J12: 0.5256024096 | K12: 0.4743975904 | L12: 0.1432664756 | M12: 0.07530120482 | N12: 13.28 | O12: 43 | P12: 6.160458453
F13: 302.09 | G13: 308.48 | H13: 6.39 | I13: 6.77 | J13: 0.48556231 | K13: 0.51443769 | L13: 0.1564945227 | M13: 0.07598784195 | N13: 13.16 | O13: 53 | P13: 8.294209703
F14: 315.25 | G14: 323.11 | H14: 7.86 | I14: 7.85 | J14: 0.5003182686 | K14: 0.4996817314 | L14: 0.1272264631 | M14: 0.06365372374 | N14: 15.71 | O14: 57 | P14: 7.251908397
F15: 330.96 | G15: 339.39 | H15: 8.43
H16: =AVERAGE(H6:H15) -> 7.109 | I16: 7.44 | J16: 0.4913855578 | K16: 0.5086144422 | L16: 0.1440416295 | M16: 0.07069850903 | N16: 14.40222222 | O16: 47.66666667 | P16: 6.854132876
C17: = Stim duration shorter than burst duration
C18: = Stimulation during that burst
F20: CabPK + GPR during Retraction
B21: Stim start | C21: Stim stop | D21: Stim | F21: LG start | G21: LG stop | H21: Prot | I21: Retr | J21: LG DC | K21: Int1 DC | L21: LG freq | M21: GMR freq | N21: Period | O21: s/b | P21: Spike Freq | R21: DG start | S21: DG stop | T21: Burst Lth | U21: IBI
B22: 353.72 | C22: 360.86 | D22: =C22-B22 -> 7.14 | F22: 346.8 | G22: 353.03 | H22: =G22-F22 -> 6.23 | I22: =F23-G22 -> 11.16 | J22: =H22/N22 -> 0.3582518689 | K22: =I22/N22 -> 0.6417481311 | L22: =1/H22 -> 0.1605136437 | M22: =1/N22 -> 0.05750431282 | N22: =F23-F22 -> 17.39 | O22: 44 | P22: =O22/H22 -> 7.062600321 | R22: *DG burst almost continuously
B23: 372.13 | C23: 379.81 | D23: =C23-B23 -> 7.68 | F23: 364.19 | G23: 371.53 | H23: =G23-F23 -> 7.34 | I23: =F24-G23 -> 11.31 | J23: =H23/N23 -> 0.3935656836 | K23: =I23/N23 -> 0.6064343164 | L23: =1/H23 -> 0.136239782 | M23: 0.05361930295 | N23: =F24-F23 -> 18.65 | O23: 53 | P23: =O23/H23 -> 7.220708447
B24: 389.4 | C24: 396.75 | D24: =C24-B24 -> 7.35 | F24: 382.84 | G24: 389.31 | H24: 6.47 | I24: 11.79 | J24: 0.3543263965 | K24: 0.6456736035 | L24: 0.1545595054 | M24: 0.0547645126 | N24: 18.26 | O24: 47 | P24: 7.264296754
B25: NO STIM | F25: 401.1 | G25: 408.68 | H25: 7.58 | I25: 6.93 | J25: 0.522398346 | K25: 0.477601654 | L25: 0.1319261214 | M25: 0.06891798759 | N25: 14.51 | O25: 56 | P25: 7.387862797
B26: 428.33 | C26: 430.3 | D26: =C26-B26 -> 1.97 | F26: 415.61 | G26: 423.35 | H26: 7.74 | I26: 9.5 | J26: 0.4489559165 | K26: 0.5510440835 | L26: 0.1291989664 | M26: 0.05800464037 | N26: 17.24 | O26: 62 | P26: 8.010335917
B27: 441.46 | C27: 450 | D27: =C27-B27 -> 8.54 | F27: 432.85 | G27: 440.65 | H27: 7.8 | I27: 11 | J27: 0.414893617 | K27: 0.585106383 | L27: 0.1282051282 | M27: 0.05319148936 | N27: 18.8 | O27: 56 | P27: 7.179487179
B28: 460.05 | C28: 472.28 | D28: =C28-B28 -> 12.23 | F28: 451.65 | G28: 459 | H28: 7.35 | I28: 12.2 | J28: 0.3759590793 | K28: 0.6240409207 | L28: 0.1360544218 | M28: 0.05115089514 | N28: 19.55 | O28: 54 | P28: 7.346938776
B29: NO STIM | F29: 471.2 | G29: 478.19 | H29: 6.99 | I29: 5.96 | J29: 0.5397683398 | K29: 0.4602316602 | L29: 0.1430615165 | M29: 0.07722007722 | N29: 12.95 | O29: 51 | P29: 7.296137339
B30: 495.28 | C30: 505.26 | D30: =C30-B30 -> 9.98 | F30: 484.15 | G30: 494.29 | H30: 10.14 | I30: 12.47 | J30: 0.4484741265 | K30: 0.5515258735 | L30: 0.09861932939 | M30: 0.0442282176 | N30: 22.61 | O30: 89 | P30: 8.777120316
B31: NO STIM | F31: 506.76 | G31: 514.98 | H31: 8.22 | I31: 6.47 | J31: 0.5595643295 | K31: 0.4404356705 | L31: 0.1216545012 | M31: 0.0680735194 | N31: 14.69 | O31: 59 | P31: 7.177615572
D32: =AVERAGE(D22:D30) -> 7.841428571 | F32: 521.45 | G32: 530.39 | H32: 8.94
G33: Stim | H33: =AVERAGE(H22:H24,H26:H28,H30) -> 7.581428571 | I33: =AVERAGE(I22:I24,I26:I28,I30) -> 11.34714286 | J33: 0.3992038126 | K33: 0.6007961874 | L33: 0.134770111 | M33: 0.05320905298 | N33: 18.92857143 | O33: =AVERAGE(O22:O24,O26:O28,O30) -> 57.85714286 | P33: =AVERAGE(P22:P24,P26:P28,P30) -> 7.551641101
G34: No Stim | H34: =AVERAGE(H25,H29,H31) -> 7.596666667 | I34: =AVERAGE(I25,I29,I31) -> 6.453333333 | J34: 0.5405770051 | K34: 0.4594229949 | L34: 0.1322140463 | M34: 0.07140386141 | N34: 14.05 | O34: =AVERAGE(O25,O29,O31) -> 55.33333333 | P34: =AVERAGE(P25,P29,P31) -> 7.287205236
G35: SD | H35: =_xlfn.STDEV.S(H22:H24,H26:H28,H30) -> 1.277542283
F37: CabPK + GPR during Protraction
B38: Stim start | C38: Stim stop | D38: Stim | F38: LG start | G38: LG stop | H38: Prot | I38: Retr | J38: LG DC | K38: Int1 DC | L38: LG freq | M38: GMR freq | N38: Period | O38: s/b | P38: Spike Freq | R38: DG start | S38: DG stop | T38: Burst Lth | U38: IBI
B39: 538.78 | C39: 543.91 | D39: =C39-B39 -> 5.13 | F39: 538.09 | G39: 542.05 | H39: =G39-F39 -> 3.96 | I39: =F40-G39 -> 8.46 | J39: =H39/N39 -> 0.3188405797 | K39: =I39/N39 -> 0.6811594203 | L39: =1/H39 -> 0.2525252525 | M39: =1/N39 -> 0.08051529791 | N39: =F40-F39 -> 12.42 | O39: 30 | P39: =O39/H39 -> 7.575757576 | R39: *DG burst almost continuously
B40: 551.05 | C40: 555.85 | D40: =C40-B40 -> 4.8 | F40: 550.51 | G40: 555.46 | H40: =G40-F40 -> 4.95 | I40: =F41-G40 -> 7.52 | J40: =H40/N40 -> 0.3969526864 | K40: =I40/N40 -> 0.6030473136 | L40: =1/H40 -> 0.202020202 | M40: 0.08019246191 | N40: =F41-F40 -> 12.47 | O40: 40 | P40: =O40/H40 -> 8.080808081
B41: 563.64 | C41: 567.45 | D41: 3.81 | F41: 562.98 | G41: 568.38 | H41: 5.4 | I41: 8.48 | J41: 0.3890489914 | K41: 0.6109510086 | L41: 0.1851851852 | M41: 0.07204610951 | N41: 13.88 | O41: 40 | P41: 7.407407407
B42: 577.34 | C42: 583.73 | D42: 6.39 | F42: 576.86 | G42: 582.2 | H42: 5.34 | I42: 7.74 | J42: 0.4082568807 | K42: 0.5917431193 | L42: 0.1872659176 | M42: 0.07645259939 | N42: 13.08 | O42: 41 | P42: 7.677902622
B43: 591.08 | C43: 594.82 | D43: 3.74 | F43: 589.94 | G43: 595.24 | H43: 5.3 | I43: 7.65 | J43: 0.4092664093 | K43: 0.5907335907 | L43: 0.1886792453 | M43: 0.07722007722 | N43: 12.95 | O43: 40 | P43: 7.547169811
B44: 603.49 | C44: 607 | D44: 3.51 | F44: 602.89 | G44: 608.35 | H44: 5.46 | I44: 7.55 | J44: 0.4196771714 | K44: 0.5803228286 | L44: 0.1831501832 | M44: 0.07686395081 | N44: 13.01 | O44: 40 | P44: 7.326007326
B45: 616.39 | C45: 621.01 | D45: 4.62 | F45: 615.9 | G45: 620.49 | H45: 4.59 | I45: 8.22 | J45: 0.3583138173 | K45: 0.6416861827 | L45: 0.2178649237 | M45: 0.07806401249 | N45: 12.81 | O45: 37 | P45: 8.061002179
B46: NO STIM | F46: 628.71 | G46: 637.5 | H46: 8.79 | I46: 7.58 | J46: 0.5369578497 | K46: 0.4630421503 | L46: 0.1137656428 | M46: 0.06108735492 | N46: 16.37 | O46: 66 | P46: 7.508532423
B47: NO STIM | F47: 645.08 | G47: 653.4 | H47: 8.32 | I47: 6.88 | J47: 0.5473684211 | K47: 0.4526315789 | L47: 0.1201923077 | M47: 0.06578947368 | N47: 15.2 | O47: 69 | P47: 8.293269231
B48: NO STIM | F48: 660.28 | G48: 668.24 | H48: 7.96 | I48: 8.78 | J48: 0.4755077658 | K48: 0.5244922342 | L48: 0.1256281407 | M48: 0.05973715651 | N48: 16.74 | O48: 64 | P48: 8.040201005
B49: NO STIM | F49: 677.02 | G49: 686.46 | H49: 9.44 | I49: 8.3 | J49: 0.5321307779 | K49: 0.4678692221 | L49: 0.1059322034 | M49: 0.05636978579 | N49: 17.74 | O49: 75 | P49: 7.944915254
B50: 695.74 | C50: 701.14 | D50: =C50-B50 -> 5.4 | F50: 694.76 | G50: 699.05 | H50: 4.29 | I50: 10.19 | J50: 0.2962707182 | K50: 0.7037292818 | L50: 0.2331002331 | M50: 0.06906077348 | N50: 14.48 | O50: 35 | P50: 8.158508159
B51: 709.71 | C51: 712.21 | D51: =C51-B51 -> 2.5 | F51: 709.24 | G51: 715.65 | H51: 6.41 | I51: 8.04 | J51: 0.4435986159 | K51: 0.5564013841 | L51: 0.1560062402 | M51: 0.06920415225 | N51: 14.45 | O51: 47 | P51: 7.332293292
B52: 724.31 | C52: 729.27 | D52: =C52-B52 -> 4.96 | F52: 723.69 | G52: 728.14 | H52: 4.45 | I52: 8.12 | J52: 0.354017502 | K52: 0.645982498 | L52: 0.2247191011 | M52: 0.07955449483 | N52: 12.57 | O52: 37 | P52: 8.314606742
B53: 736.95 | C53: 741.14 | D53: =C53-B53 -> 4.19 | F53: 736.26 | G53: 740.32 | H53: 4.06 | I53: 8.39 | J53: 0.3261044177 | K53: 0.6738955823 | L53: 0.2463054187 | M53: 0.08032128514 | N53: 12.45 | O53: 33 | P53: 8.128078818
B54: NO STIM | F54: 748.71 | G54: 758.17 | H54: 9.46 | I54: 8.39 | J54: 0.5299719888 | K54: 0.4700280112 | L54: 0.1057082452 | M54: 0.05602240896 | N54: 17.85 | O54: 74 | P54: 7.822410148
B55: NO STIM | F55: 766.56 | G55: 774.57 | H55: 8.01 | I55: 8.74 | J55: 0.4782089552 | K55: 0.5217910448 | L55: 0.1248439451 | M55: 0.05970149254 | N55: 16.75 | O55: 64 | P55: 7.990012484
B56: NO STIM | F56: 783.31 | G56: 790.72 | H56: 7.41 | I56: 9.23 | J56: 0.4453125 | K56: 0.5546875 | L56: 0.1349527665 | M56: 0.06009615385 | N56: 16.64 | O56: 55 | P56: 7.422402159
B57: NO STIM | F57: 799.95 | G57: 808.13 | H57: 8.18
G58: Stim | H58: =AVERAGE(H39,H40,H42,H45,H50,H52,H53) -> 4.52 | I58: =AVERAGE(I39,I40,I42,I45,I50,I52,I53) -> 8.377142857 | J58: 0.3512509432 | K58: 0.6487490568 | L58: 0.2234001498 | M58: 0.07773727502 | N58: 12.89714286 | O58: =AVERAGE(O39,O40,O42,O45,O50,O52,O53) -> 36.14285714 | P58: =AVERAGE(P39,P40,P42,P45,P50,P52,P53) -> 7.999523454
G59: No Stim | H59: =AVERAGE(H46:H49,H54:H57) -> 8.44625 | I59: =AVERAGE(I46:I49,I54:I57) -> 8.271428571 | J59: 0.5064940369 | K59: 0.4935059631 | L59: 0.1187176073 | M59: 0.05982911804 | N59: 16.75571429 | O59: =AVERAGE(O46:O49,O54:O57) -> 66.71428571 | P59: =AVERAGE(P46:P49,P54:P57) -> 7.860248958
G60: Stim | H60: =AVERAGE(H41,H43,H44,H51) -> 5.6425 | I60: =AVERAGE(I41,I43,I44,I51) -> 7.93 | J60: 0.415397797 | K60: 0.584602203 | L60: 0.1782552135 | M60: 0.07383357245 | N60: 13.5725 | O60: =AVERAGE(O41,O43,O44,O51) -> 41.75 | P60: =AVERAGE(P41,P43,P44,P51) -> 7.403219459
H61: =_xlfn.STDEV.S(H39,H40,H42,H45,H50,H52,H53) -> 0.4907816894
F71: CabPK + CCAP + GPR during Protraction
F72: LG start | G72: LG stop | H72: Prot | I72: Retr | J72: LG DC | K72: Int1 DC | L72: LG freq | M72: GMR freq | N72: Period | O72: s/b | P72: Spike Freq | R72: DG start | S72: DG stop | T72: Burst Lth | U72: IBI
F73: 194.69 | G73: 203.31 | H73: =G73-F73 -> 8.62 | I73: =F74-G73 -> 5.83 | J73: =H73/N73 -> 0.5965397924 | K73: =I73/N73 -> 0.4034602076 | L73: =1/H73 -> 0.1160092807 | M73: =1/N73 -> 0.06920415225 | N73: =F74-F73 -> 14.45 | O73: 51 | P73: =O73/H73 -> 5.916473318 | R73: *DG burst almost continuously
F74: 209.14 | G74: 217.44 | H74: =G74-F74 -> 8.3 | I74: =F75-G74 -> 6.24 | J74: =H74/N74 -> 0.5708390646 | K74: =I74/N74 -> 0.4291609354 | L74: =1/H74 -> 0.1204819277 | M74: 0.06877579092 | N74: =F75-F74 -> 14.54 | O74: 49 | P74: =O74/H74 -> 5.903614458
F75: 223.68 | G75: 230.9 | H75: 7.22 | I75: 6.56 | J75: 0.5239477504 | K75: 0.4760522496 | L75: 0.1385041551 | M75: 0.07256894049 | N75: 13.78 | O75: 44 | P75: 6.094182825
F76: 237.46 | G76: 245.04 | H76: 7.58 | I76: 6.04 | J76: 0.5565345081 | K76: 0.4434654919 | L76: 0.1319261214 | M76: 0.07342143906 | N76: 13.62 | O76: 47 | P76: 6.200527704
B77: Stim start | C77: Stim stop | D77: Stim | F77: 251.08 | G77: 258.78 | H77: 7.7 | I77: 5.88 | J77: 0.5670103093 | K77: 0.4329896907 | L77: 0.1298701299 | M77: 0.0736377025 | N77: 13.58 | O77: 48 | P77: 6.233766234
B78: 265.16 | C78: 269.96 | D78: =C78-B78 -> 4.8 | F78: 264.66 | G78: 268.15 | H78: 3.49 | I78: 6.64 | J78: 0.3445212241 | K78: 0.6554787759 | L78: 0.2865329513 | M78: 0.09871668312 | N78: 10.13 | O78: 21 | P78: 6.017191977
B79: 275.46 | C79: 278.11 | D79: 2.65 | F79: 274.79 | G79: 280.48 | H79: 5.69 | I79: 5.75 | J79: 0.4973776224 | K79: 0.5026223776 | L79: 0.1757469244 | M79: 0.08741258741 | N79: 11.44 | O79: 34 | P79: 5.975395431
B80: 286.67 | C80: 291.62 | D80: 4.95 | F80: 286.23 | G80: 290.63 | H80: 4.4 | I80: 6.37 | J80: 0.408542247 | K80: 0.591457753 | L80: 0.2272727273 | M80: 0.09285051068 | N80: 10.77 | O80: 29 | P80: 6.590909091
B81: 297.66 | C81: 302.59 | D81: 4.93 | F81: 297 | G81: 301.55 | H81: 4.55 | I81: 5.92 | J81: 0.4345749761 | K81: 0.5654250239 | L81: 0.2197802198 | M81: 0.09551098376 | N81: 10.47 | O81: 31 | P81: 6.813186813
B82: 308.01 | C82: 312.94 | D82: 4.93 | F82: 307.47 | G82: 311.87 | H82: 4.4 | I82: 5.72 | J82: 0.4347826087 | K82: 0.5652173913 | L82: 0.2272727273 | M82: 0.09881422925 | N82: 10.12 | O82: 32 | P82: 7.272727273
B83: 318.17 | C83: 322.98 | D83: 4.81 | F83: 317.59 | G83: 322.22 | H83: 4.63 | I83: 6.46 | J83: 0.4174932372 | K83: 0.5825067628 | L83: 0.2159827214 | M83: 0.09017132552 | N83: 11.09 | O83: 39 | P83: 8.423326134
B84: 328.13 | C84: 333.03 | D84: 4.9 | F84: 328.68 | G84: 333.11 | H84: 4.43 | I84: 5.51 | J84: 0.4456740443 | K84: 0.5543259557 | L84: 0.2257336343 | M84: 0.1006036217 | N84: 9.94 | O84: 38 | P84: 8.577878104
B85: 339.2 | C85: 344 | D85: 4.8 | F85: 338.62 | G85: 345.55 | H85: 6.93 | I85: 5.38 | J85: 0.5629569456 | K85: 0.4370430544 | L85: 0.1443001443 | M85: 0.08123476848 | N85: 12.31 | O85: 56 | P85: 8.080808081
B86: 351.33 | C86: 358.16 | D86: 6.83 | F86: 350.93 | G86: 356.44 | H86: 5.51 | I86: 6.53 | J86: 0.457641196 | K86: 0.542358804 | L86: 0.1814882033 | M86: 0.08305647841 | N86: 12.04 | O86: 50 | P86: 9.074410163 | R86: ** I think GPR threshold increases here (though I did not increase the stim Voltage or freq
B87: 363.44 | C87: 370.39 | D87: 6.95 | F87: 362.97 | G87: 369.02 | H87: 6.05 | I87: 6.18 | J87: 0.4946852003 | K87: 0.5053147997 | L87: 0.1652892562 | M87: 0.08176614881 | N87: 12.23 | O87: 53 | P87: 8.760330579 | R87: |
B88: NO STIM | F88: 375.2 | G88: 386.03 | H88: 10.83 | I88: 5.27 | J88: 0.6726708075 | K88: 0.3273291925 | L88: 0.09233610342 | M88: 0.06211180124 | N88: 16.1 | O88: 100 | P88: 9.233610342 | R88: |
B89: NO STIM | F89: 391.3 | G89: 400.29 | H89: 8.99 | I89: 5.8 | J89: 0.6078431373 | K89: 0.3921568627 | L89: 0.1112347052 | M89: 0.0676132522 | N89: 14.79 | O89: 82 | P89: 9.121245829 | R89: |
B90: NO STIM | F90: 406.09 | G90: 414.06 | H90: 7.97 | I90: 5.7 | J90: 0.5830285296 | K90: 0.4169714704 | L90: 0.1254705144 | M90: 0.07315288954 | N90: 13.67 | O90: 78 | P90: 9.786700125 | R90: |
F91: 419.76 | R91: |
F92: [Two Cycles of Stim during Retraction - Data Below] | R92: |
R93: |
B94: 480.93 | C94: 488.01 | D94: =C94-B94 -> 7.08 | F94: 480.32 | G94: 486.33 | H94: =G94-F94 -> 6.01 | I94: =F95-G94 -> 9.04 | J94: =H94/N94 -> 0.3993355482 | K94: =I94/N94 -> 0.6006644518 | L94: =1/H94 -> 0.1663893511 | M94: =1/N94 -> 0.06644518272 | N94: =F95-F94 -> 15.05 | R94: |
B95: 495.93 | C95: 502.6 | D95: 6.67 | F95: 495.37 | G95: 501.52 | H95: 6.15 | I95: 8.83 | J95: =H95/N95 -> 0.4105473965 | K95: =I95/N95 -> 0.5894526035 | L95: =1/H95 -> 0.162601626 | M95: 0.06675567423 | N95: =F96-F95 -> 14.98 | R95: |
B96: 509.68 | C96: 513.02 | D96: 3.34 | F96: 510.35 | G96: 519.37 | H96: 9.02 | I96: 7.56 | J96: 0.5440289505 | K96: 0.4559710495 | L96: 0.110864745 | M96: 0.06031363088 | N96: 16.58 | R96: |
B97: 527.39 | C97: 534.06 | D97: 6.67 | F97: 526.93 | G97: 532.98 | H97: 6.05 | I97: 9.17 | J97: 0.3975032852 | K97: 0.6024967148 | L97: 0.1652892562 | M97: 0.06570302234 | N97: 15.22 | R97: |
B98: 542.93 | C98: 549.15 | D98: 6.22 | F98: 542.15 | G98: 548.22 | H98: 6.07 | I98: 9.04 | J98: 0.4017207148 | K98: 0.5982792852 | L98: 0.1647446458 | M98: 0.06618133686 | N98: 15.11 | R98: |
B99: 557.66 | C99: 563.64 | D99: 5.98 | F99: 557.26 | G99: 563.39 | H99: 6.13 | I99: 7.86 | J99: 0.4381701215 | K99: 0.5618298785 | L99: 0.163132137 | M99: 0.07147962831 | N99: 13.99 | R99: |
B100: 571.74 | C100: 579.85 | D100: 8.11 | F100: 571.25 | G100: 577.43 | H100: 6.18 | I100: 9.96 | J100: 0.3828996283 | K100: 0.6171003717 | L100: 0.1618122977 | M100: 0.06195786865 | N100: 16.14 | R100: |
B101: 587.65 | C101: 594.48 | D101: 6.83 | F101: 587.39 | G101: 593.36 | H101: 5.97 | I101: 11.77 | J101: 0.3365276212 | K101: 0.6634723788 | L101: 0.1675041876 | M101: 0.05636978579 | N101: 17.74 | R101: |
B102: 604.48 | C102: 605.65 | D102: 1.17 | F102: 605.13 | G102: 615.7 | H102: 10.57 | I102: 7.71 | J102: 0.5782275711 | K102: 0.4217724289 | L102: 0.09460737938 | M102: 0.05470459519 | N102: 18.28 | R102: |
B103: NO STIM | F103: 623.41 | G103: 633.86 | H103: 10.45 | I103: 7.96 | J103: 0.5676262901 | K103: 0.4323737099 | L103: 0.0956937799 | M103: 0.05431830527 | N103: 18.41 | R103: |
A104: DG off | B104: NO STIM | F104: 641.82 | G104: 652.29 | H104: 10.47 | I104: 7.77 | J104: 0.5740131579 | K104: 0.4259868421 | L104: 0.09551098376 | M104: 0.0548245614 | N104: 18.24 | R104: |
A105: DG on | B105: NO STIM | F105: 660.06 | G105: 664.79 | H105: 4.73 | I105: =F106-G105 -> 15.13 | J105: 0.2381671702 | K105: 0.7618328298 | L105: 0.2114164905 | M105: 0.05035246727 | N105: 19.86 | R105: |
B106: NO STIM | F106: 679.92 | G106: 684.84 | H106: 4.92 | I106: 7.48 | J106: 0.3967741935 | K106: 0.6032258065 | L106: 0.2032520325 | M106: 0.08064516129 | N106: 12.4 | R106: |
B107: NO STIM | F107: 692.32 | G107: 703.56 | H107: 11.24 | I107: 7.49 | J107: 0.6001067806 | K107: 0.3998932194 | L107: 0.08896797153 | M107: 0.05339028297 | N107: 18.73 | R107: |
B108: 711.65 | C108: 717.16 | D108: =C108-B108 -> 5.51 | F108: 711.05 | G108: 716.22 | H108: 5.17 | I108: 10.71 | J108: 0.3255667506 | K108: 0.6744332494 | L108: 0.1934235977 | M108: 0.06297229219 | N108: 15.88 | R108: |
B109: 727.35 | C109: 732.31 | D109: =C109-B109 -> 4.96 | F109: 726.93 | G109: 731.62 | H109: 4.69 | I109: 10.02 | J109: 0.3188307274 | K109: 0.6811692726 | L109: 0.2132196162 | M109: 0.06798096533 | N109: 14.71 | R109: |
B110: 742.42 | C110: 749.21 | D110: =C110-B110 -> 6.79 | F110: 741.64 | G110: 747.86 | H110: 6.22 | I110: 9.97 | J110: 0.3841877702 | K110: 0.6158122298 | L110: 0.1607717042 | M110: 0.06176652254 | N110: 16.19 | R110: |
B111: 758.94 | C111: 765.01 | D111: =C111-B111 -> 6.07 | F111: 757.83 | G111: 762.91 | H111: 5.08 | I111: 12.42 | J111: 0.2902857143 | K111: 0.7097142857 | L111: 0.1968503937 | M111: 0.05714285714 | N111: 17.5 | R111: |
B112: NO STIM | F112: 775.33 | G112: 784.83 | H112: 9.5 | I112: 8.19 | J112: 0.5370265687 | K112: 0.4629734313 | L112: 0.1052631579 | M112: 0.05652911249 | N112: 17.69 | R112: |
B113: NO STIM | F113: 793.02 | G113: 803.26 | H113: 10.24 | I113: 9.04 | J113: 0.531120332 | K113: 0.468879668 | L113: 0.09765625 | M113: 0.05186721992 | N113: 19.28 | R113: |
B114: NO STIM | F114: 812.3 | G114: 822 | H114: 9.7 | I114: 8.94 | J114: 0.5203862661 | K114: 0.4796137339 | L114: 0.1030927835 | M114: 0.05364806867 | N114: 18.64 | R114: |
B115: NO STIM | F115: 830.94 | G115: 840.9 | H115: 9.96 | I115: 8.7 | J115: 0.5337620579 | K115: 0.4662379421 | L115: 0.1004016064 | M115: 0.05359056806 | N115: 18.66 | R115: |
B116: NO STIM | F116: 849.6 | G116: 858.38 | H116: 8.78 | I116: 10.07 | J116: 0.4657824934 | K116: 0.5342175066 | L116: 0.1138952164 | M116: 0.05305039788 | N116: 18.85 | R116: |
B117: NO STIM | F117: 868.45 | G117: 877.48 | H117: 9.03 | I117: 9.99 | J117: 0.4747634069 | K117: 0.5252365931 | L117: 0.1107419712 | M117: 0.05257623554 | N117: 19.02 | R117: |
B118: NO STIM | F118: 887.47 | G118: 896.19 | H118: 8.72 | I118: 8.78 | J118: 0.4982857143 | K118: 0.5017142857 | L118: 0.1146788991 | M118: 0.05714285714 | N118: 17.5 | R118: |
F119: 904.97 | R119: |
G120: Pre-Stim | H120: =AVERAGE(H73:H77) -> 7.884 | I120: =AVERAGE(I73:I77) -> 6.11 | J120: 0.562974285 | K120: 0.437025715 | L120: 0.127358323 | M120: 0.07152160505 | N120: 13.994 | O120: 47.8 | P120: 6.069712908 | R120: |
G121: Stim | H121: =AVERAGE(H78,H80:H84,H86:H87,H94:H95,H97:H101,H108:H111) -> 5.325263158 | I121: =AVERAGE(I78,I80:I84,I86:I87,I94:I95,I97:I101,I108:I111) -> 8.322105263 | J121: 0.3959731585 | K121: 0.6040268415 | L121: 0.1928995397 | M121: 0.07611816407 | N121: 13.64736842 | R121: |
G122: No-Stim | H122: =AVERAGE(H88:H90,H103:H107,H112:H118) -> 9.035333333 | I122: =AVERAGE(I88:I90,I103:I107,I112:I118) -> 8.420666667 | J122: 0.5200904604 | K122: 0.4799095396 | L122: 0.1179741644 | M122: 0.05832087873 | N122: 17.456 | R122: |
G123: Burst after stim | H123: =AVERAGE(H79,H85,H88,H96,H102,H112) -> 8.756666667 | I123: =AVERAGE(I79,I85,I88,I96,I102,I112) -> 6.643333333 | J123: 0.565381411 | K123: 0.434618589 | L123: 0.1205197424 | M123: 0.06705108262 | N123: 15.4 | R123: |
R124: |
R125: |
F126: CabPK + CCAP + GPR during Retraction | R126: |
B127: Stim start | C127: Stim stop | D127: Stim | F127: LG start | G127: LG stop | H127: Prot | I127: Retr | J127: LG DC | K127: Int1 DC | L127: LG freq | M127: GMR freq | N127: Period | O127: s/b | P127: Spike Freq | R127: |
B128: 427.83 | C128: 437.39 | D128: =C128-B128 -> 9.56 | F128: 419.76 | G128: 428.43 | H128: =G128-F128 -> 8.67 | I128: =F129-G128 -> 11.21 | J128: =H128/N128 -> 0.4361167002 | K128: =I128/N128 -> 0.5638832998 | L128: =1/H128 -> 0.1153402537 | M128: =1/N128 -> 0.05030181087 | N128: =F129-F128 -> 19.88 | R128: |
B129: 449.55 | C129: 459.54 | D129: =C129-B129 -> 9.99 | F129: 439.64 | G129: 448.5 | H129: =G129-F129 -> 8.86 | I129: =F130-G129 -> 13.94 | J129: =H129/N129 -> 0.3885964912 | K129: =I129/N129 -> 0.6114035088 | L129: =1/H129 -> 0.1128668172 | M129: =1/N129 -> 0.04385964912 | N129: =F130-F129 -> 22.8 | R129: ↓
B130: NO STIM | F130: 462.44 | G130: 473.85 | H130: =G130-F130 -> 11.41 | I130: =F131-G130 -> 6.47 | J130: =H130/N130 -> 0.6381431767 | K130: =I130/N130 -> 0.3618568233 | L130: =1/H130 -> 0.08764241893 | M130: =1/N130 -> 0.05592841163 | N130: =F131-F130 -> 17.88
F131: 480.32
G132: Stim | H132: =AVERAGE(H128:H129) -> 8.765 | I132: =AVERAGE(I128:I129) -> 12.575 | J132: 0.4123565957 | K132: 0.5876434043 | L132: 0.1141035355 | M132: 0.04708072999 | N132: 21.34
F140: MCN1 GMR + GPR
F141: LG start | G141: LG stop | H141: Prot | I141: Retr | J141: LG DC | K141: Int1 DC | L141: LG freq | M141: GMR freq | N141: Period | O141: s/b | P141: Spike Freq
F142: 229.68 | G142: 238.21 | H142: =G142-F142 -> 8.53 | I142: =F143-G142 -> 4.18 | J142: =H142/N142 -> 0.6711250983 | K142: =I142/N142 -> 0.3288749017 | L142: =1/H142 -> 0.1172332943 | M142: =1/N142 -> 0.07867820614 | N142: =F143-F142 -> 12.71 | R142: *No DG activity during MCN1 stim - I think I did something to it during the 60Hz GPR stim
F143: 242.39 | G143: 250.83 | H143: =G143-F143 -> 8.44 | I143: =F144-G143 -> 4.12 | J143: =H143/N143 -> 0.6719745223 | K143: =I143/N143 -> 0.3280254777 | L143: =1/H143 -> 0.1184834123 | M143: =1/N143 -> 0.07961783439 | N143: =F144-F143 -> 12.56
F144: 254.95 | G144: 263.67 | H144: =G144-F144 -> 8.72 | I144: =F145-G144 -> 3.89 | J144: =H144/N144 -> 0.6915146709 | K144: =I144/N144 -> 0.3084853291 | L144: =1/H144 -> 0.1146788991 | M144: =1/N144 -> 0.07930214116 | N144: =F145-F144 -> 12.61
F145: 267.56 | G145: 276.22 | H145: =G145-F145 -> 8.66 | I145: =F146-G145 -> 4.03 | J145: =H145/N145 -> 0.682427108 | K145: =I145/N145 -> 0.317572892 | L145: =1/H145 -> 0.1154734411 | M145: =1/N145 -> 0.07880220646 | N145: =F146-F145 -> 12.69
F146: 280.25 | G146: 287.15 | H146: =G146-F146 -> 6.9 | I146: =F147-G146 -> 4.25 | J146: =H146/N146 -> 0.6188340807 | K146: =I146/N146 -> 0.3811659193 | L146: =1/H146 -> 0.1449275362 | M146: =1/N146 -> 0.08968609865 | N146: =F147-F146 -> 11.15
F147: 291.4
F148: Fucked up and used 60Hz stim on GPR (instead of 6Hz)
F149: 318.1 | G149: 326.69 | H149: =G149-F149 -> 8.59 | I149: =F150-G149 -> 5.23 | J149: =H149/N149 -> 0.6215629522 | K149: =I149/N149 -> 0.3784370478 | L149: =1/H149 -> 0.1164144354 | M149: =1/N149 -> 0.07235890014 | N149: =F150-F149 -> 13.82
B150: Stim start | C150: Stim stop | D150: Stim | F150: 331.92 | G150: 340.09 | H150: 8.17 | I150: 5.03 | J150: =H150/N150 -> 0.6189393939 | K150: =I150/N150 -> 0.3810606061 | L150: =1/H150 -> 0.1223990208 | M150: 0.07575757576 | N150: =F151-F150 -> 13.2
B151: 344.73 | C151: 350.18 | D151: =C151-B151 -> 5.45 | F151: 345.12 | G151: 349.04 | H151: 3.92 | I151: 6.91 | J151: 0.3619575254 | K151: 0.6380424746 | L151: 0.2551020408 | M151: 0.09233610342 | N151: 10.83
B152: 356.73 | C152: 361.89 | D152: =C152-B152 -> 5.16 | F152: 355.95 | G152: 361.69 | H152: 5.74 | I152: 6.59 | J152: 0.4655312247 | K152: 0.5344687753 | L152: 0.1742160279 | M152: 0.08110300081 | N152: 12.33
B153: 369.25 | C153: 374.34 | D153: 5.09 | F153: 368.28 | G153: 374.02 | H153: 5.74 | I153: 5.41 | J153: 0.5147982063 | K153: 0.4852017937 | L153: 0.1742160279 | M153: 0.08968609865 | N153: 11.15
B154: NO STIM | F154: 379.43 | G154: 388.55 | H154: 9.12 | I154: 4.39 | J154: 0.6750555144 | K154: 0.3249444856 | L154: 0.1096491228 | M154: 0.074019245 | N154: 13.51
A155: Adjusted Stim Parameters | B155: NO STIM | F155: 392.94 | G155: 403.94 | H155: 11 | J155: 0.1001547847 | K155: 0 | L155: 0.09090909091 | M155: 0.009104980424 | N155: 109.83
B156: NO STIM | F156: 502.77 | G156: 512.6 | H156: 9.83 | I156: 4.22 | J156: 0.6996441281 | K156: 0.3003558719 | L156: 0.1017293998 | M156: 0.07117437722 | N156: 14.05
B157: NO STIM | F157: 516.82 | G157: 525.25 | H157: 8.43 | I157: 3.9 | J157: 0.6836982968 | K157: 0.3163017032 | L157: 0.118623962 | M157: 0.08110300081 | N157: 12.33
B158: 529.79 | C158: 535.41 | D158: 5.62 | F158: 529.15 | G158: 535.44 | H158: 6.29 | I158: 5.74 | J158: 0.5228595179 | K158: 0.4771404821 | L158: 0.1589825119 | M158: 0.08312551953 | N158: 12.03
B159: 540.95 | C159: 545.4 | D159: 4.45 | F159: 541.18 | G159: 547.57 | H159: 6.39 | I159: 5.06 | J159: 0.5580786026 | K159: 0.4419213974 | L159: 0.1564945227 | M159: 0.08733624454 | N159: 11.45
B160: 554.15 | C160: 560.61 | D160: 6.46 | F160: 552.63 | G160: 559.44 | H160: 6.81 | I160: 5.52 | J160: 0.5523114355 | K160: 0.4476885645 | L160: 0.1468428781 | M160: 0.08110300081 | N160: 12.33
B161: 565.48 | C161: 572.42 | D161: 6.94 | F161: 564.96 | G161: 570.7 | H161: 5.74 | I161: 6.26 | J161: 0.4783333333 | K161: 0.5216666667 | L161: 0.1742160279 | M161: 0.08333333333 | N161: 12
B162: 577.7 | C162: 582.96 | D162: 5.26 | F162: 576.96 | G162: 583.77 | H162: 6.81 | I162: 5.19 | J162: 0.5675 | K162: 0.4325 | L162: 0.1468428781 | M162: 0.08333333333 | N162: 12
B163: 589.74 | C163: 595.87 | D163: 6.13 | F163: 588.96 | G163: 594.57 | H163: 5.61
G165: Pre-Stim | H165: =AVERAGE(H142:H146,H149:H150) -> 8.287142857 | I165: =AVERAGE(I142:I146,I149:I150) -> 4.39 | J165: 0.6537682609 | K165: 0.3462317391 | L165: 0.1213728627 | M165: 0.07917185182 | N165: 12.67714286
G166: Stim | H166: =AVERAGE(H151:H153,H158,H160:H161,H163) -> 5.692857143 | I166: =AVERAGE(I151:I153,I158,I160:I161,I163) -> 6.071666667 | J166: 0.4826318738 | K166: 0.5173681262 | L166: 0.1805959191 | M166: 0.08511450943 | N166: 11.77833333
G167: No-Stim | H167: =AVERAGE(H154:H157) -> 9.595 | I167: =AVERAGE(I154:I157) -> 4.17 | J167: 0.539638181 | K167: 0.2354005152 | L167: 0.1052278939 | M167: 0.05885040087 | N167: 37.43
H168: =_xlfn.STDEV.S(H142:H146,H149:H150) -> 0.6374876283
H169: =_xlfn.STDEV.S(H151:H153,H158,H160:H161,H163) -> 0.8907995339
F170: MCN1 GMR + CCAP + GPR
F171: LG start | G171: LG stop | H171: Prot | I171: Retr | J171: LG DC | K171: Int1 DC | L171: LG freq | M171: GMR freq | N171: Period | O171: s/b
F172: 329.96 | G172: 341.83 | H172: =G172-F172 -> 11.87 | I172: =F173-G172 -> 3.02 | J172: =H172/N172 -> 0.797179315 | K172: =I172/N172 -> 0.202820685 | L172: =1/H172 -> 0.08424599832 | M172: =1/N172 -> 0.06715916723 | N172: =F173-F172 -> 14.89 | R172: *No DG activity during MCN1 stim
F173: 344.85 | G173: 358.03 | H173: =G173-F173 -> 13.18 | I173: =F174-G173 -> 3.9 | J173: =H173/N173 -> 0.7716627635 | K173: =I173/N173 -> 0.2283372365 | L173: =1/H173 -> 0.07587253414 | M173: 0.05854800937 | N173: =F174-F173 -> 17.08
F174: 361.93 | G174: 375.74 | H174: =G174-F174 -> 13.81 | I174: =F175-G174 -> 3.04 | J174: 0.8195845697 | K174: 0.1804154303 | L174: 0.07241129616 | M174: 0.05934718101 | N174: 16.85
B175: Stim start | C175: Stim stop | D175: Stim | F175: 378.78 | G175: 392.52 | H175: 13.74 | I175: 3.62 | J175: 0.7914746544 | K175: 0.2085253456 | L175: 0.07278020378 | M175: 0.05760368664 | N175: 17.36
B176: 396.73 | C176: 405.7 | D176: =C176-B176 -> 8.97 | F176: 396.14 | G176: 402.87 | H176: 6.73 | I176: 4.88 | J176: 0.579672696 | K176: 0.420327304 | L176: 0.1485884101 | M176: 0.08613264427 | N176: 11.61
B177: 408.85 | C177: 413.57 | D177: =C177-B177 -> 4.72 | F177: 407.75 | G177: 415.85 | H177: 8.1 | I177: 3.66 | J177: 0.6887755102 | K177: 0.3112244898 | L177: 0.1234567901 | M177: 0.08503401361 | N177: 11.76
B178: 420.34 | C178: 427.96 | D178: 7.62 | F178: 419.51 | G178: 426.48 | H178: 6.97 | I178: 4.91 | J178: 0.5867003367 | K178: 0.4132996633 | L178: 0.143472023 | M178: 0.08417508418 | N178: 11.88
B179: 431.87 | C179: 437.62 | D179: 5.75 | F179: 431.39 | G179: 437.46 | H179: 6.07 | I179: 4.1 | J179: 0.5968534907 | K179: 0.4031465093 | L179: 0.1647446458 | M179: 0.09832841691 | N179: 10.17
B180: 441.58 | C180: 447.06 | D180: 5.48 | F180: 441.56 | G180: 448.8 | H180: 7.24 | I180: 4.04 | J180: 0.6418439716 | K180: 0.3581560284 | L180: 0.138121547 | M180: 0.08865248227 | N180: 11.28
B181: 453.34 | C181: 460.68 | D181: 7.34 | F181: 452.84 | G181: 459.26 | H181: =G181-F181 -> 6.42 | I181: =F182-G181 -> 5.05 | J181: 0.5597210113 | K181: 0.4402789887 | L181: 0.1557632399 | M181: 0.08718395815 | N181: 11.47
B182: 465.25 | C182: 473.21 | D182: 7.96 | F182: 464.31 | G182: 472.27 | H182: 7.96 | I182: 4.74 | J182: 0.6267716535 | K182: 0.3732283465 | L182: 0.1256281407 | M182: 0.07874015748 | N182: 12.7
B183: 478.11 | C183: 484.56 | D183: 6.45 | F183: 477.01 | G183: 482.46 | H183: 5.45 | I183: 5.89 | J183: 0.4805996473 | K183: 0.5194003527 | L183: 0.1834862385 | M183: 0.08818342152 | N183: 11.34
B184: 488.83 | C184: 495.46 | D184: 6.63 | F184: 488.35 | G184: 494.74 | H184: 6.39 | I184: 4.92 | J184: 0.5649867374 | K184: 0.4350132626 | L184: 0.1564945227 | M184: 0.0884173298 | N184: 11.31
B185: NO STIM | F185: 499.66 | G185: 518.94 | H185: 19.28 | I185: 2.99 | J185: 0.8657386619 | K185: 0.1342613381 | L185: 0.05186721992 | M185: 0.04490345757 | N185: 22.27
B186: NO STIM | F186: 521.93 | G186: 532.94 | H186: 11.01 | I186: 3.9 | J186: 0.7384305835 | K186: 0.2615694165 | L186: 0.09082652134 | M186: 0.06706908115 | N186: 14.91
B187: NO STIM | F187: 536.84 | G187: 550.85 | H187: 14.01 | I187: 3.72 | J187: 0.7901861252 | K187: 0.2098138748 | L187: 0.07137758744 | M187: 0.05640157924 | N187: 17.73
F188: 554.57
G190: Pre-Stim | H190: =AVERAGE(H172:H175) -> 13.15 | I190: =AVERAGE(I172:I175) -> 3.395 | J190: 0.7949753256 | K190: 0.2050246744 | L190: 0.0763275081 | M190: 0.06066451106 | N190: 16.545
G191: Stim | H191: =AVERAGE(H176,H178:H179,H181:H184) -> 6.57 | I191: =AVERAGE(I176,I178:I179,I181:I184) -> 4.927142857 | J191: 0.570757939 | K191: 0.429242061 | L191: 0.1540253172 | M191: 0.08730871604 | N191: 11.49714286
G192: No-Stim | H192: =AVERAGE(H185:H187) -> 14.76666667 | I192: =AVERAGE(I185:I187) -> 3.536666667 | J192: 0.7981184569 | K192: 0.2018815431 | L192: 0.07135710957 | M192: 0.05612470599 | N192: 18.30333333

Sheet 08042017
C1: *** Data file from Mikey's lab are labeled by the date of the exp (as per protocol in Mikey's lab) thus I'll label on each page at the top, the lab book number and page that each exp can be found in
C3: 901_022
F4: CabPK | R4: DG start | S4: DG stop | T4: Burst Lth | U4: IBI | W4: *DG bursts are made to align with the nearest LG burst
F5: LG start | G5: LG stop | H5: Prot | I5: Retr | J5: LG DC | K5: Int1 DC | L5: LG freq | M5: GMR freq | N5: Period | O5: s/b | P5: Spike Freq | R5: 6.33 | S5: 18.69 | T5: =S5-R5 -> 12.36 | U5: =R6-S5 -> 12.05
F6: 36.18 | G6: 44.51 | H6: =G6-F6 -> 8.33 | I6: =F7-G6 -> 3.38 | J6: =H6/N6 -> 0.7113578138 | K6: =I6/N6 -> 0.2886421862 | L6: =1/H6 -> 0.1200480192 | M6: =1/N6 -> 0.0853970965 | N6: =H6+I6 -> 11.71 | O6: 46 | P6: =O6/H6 -> 5.522208884 | R6: 30.74 | S6: 44.56 | T6: =S6-R6 -> 13.82 | U6: =R7-S6 -> 2.95
F7: 47.89 | G7: 54.76 | H7: =G7-F7 -> 6.87 | I7: =F8-G7 -> 3.02 | J7: =H7/N7 -> 0.6946410516 | K7: =I7/N7 -> 0.3053589484 | L7: =1/H7 -> 0.1455604076 | M7: =1/N7 -> 0.1011122346 | N7: =H7+I7 -> 9.89 | O7: 38 | P7: =O7/H7 -> 5.531295488 | R7: 47.51 | S7: 73.49 | T7: =S7-R7 -> 25.98 | U7: =R11-S7 -> 9.04
F8: 57.78 | G8: 64.05 | H8: 6.27 | I8: 3.69 | J8: 0.6295180723 | K8: 0.3704819277 | L8: 0.1594896332 | M8: 0.1004016064 | N8: 9.96 | O8: 29 | P8: 4.625199362
F9: 67.74 | G9: 72.9 | H9: 5.16 | I9: 2.8 | J9: 0.648241206 | K9: 0.351758794 | L9: 0.1937984496 | M9: 0.1256281407 | N9: 7.96 | O9: 61 | P9: 11.82170543
F10: 75.7 | G10: 80.01 | H10: 4.31 | I10: 5.52 | J10: 0.4384537131 | K10: 0.5615462869 | L10: 0.2320185615 | M10: 0.1017293998 | N10: 9.83 | O10: 42 | P10: 9.744779582
F11: 85.53 | G11: 92.32 | H11: 6.79 | I11: 5.01 | J11: 0.5754237288 | K11: 0.4245762712 | L11: 0.147275405 | M11: 0.08474576271 | N11: 11.8 | O11: 38 | P11: 5.59646539 | R11: 82.53 | S11: 103.58 | T11: =S11-R11 -> 21.05 | U11: =R13-S11 -> 3.76
F12: 97.33 | G12: 103.84 | H12: 6.51 | I12: 3.42 | J12: 0.6555891239 | K12: 0.3444108761 | L12: 0.153609831 | M12: 0.1007049345 | N12: 9.93 | O12: 27 | P12: 4.147465438
F13: 107.26 | G13: 112.34 | H13: 5.08 | I13: 5.64 | J13: 0.473880597 | K13: 0.526119403 | L13: 0.1968503937 | M13: 0.09328358209 | N13: 10.72 | O13: 33 | P13: 6.496062992 | R13: 107.34 | S13: 122.33 | T13: =S13-R13 -> 14.99 | U13: =R15-S13 -> 5.22
F14: 117.98 | G14: 124.13 | H14: 6.15 | I14: 3.64 | J14: 0.6281920327 | K14: 0.3718079673 | L14: 0.162601626 | M14: 0.102145046 | N14: 9.79 | O14: 38 | P14: 6.178861789
F15: 127.77 | G15: 134.13 | H15: 6.36 | I15: 3.26 | J15: 0.6611226611 | K15: 0.3388773389 | L15: 0.1572327044 | M15: 0.103950104 | N15: 9.62 | O15: 36 | P15: 5.660377358 | R15: 127.55 | S15: 140.81 | T15: =S15-R15 -> 13.26 | U15: =R17-S15 -> 6.12
F16: 137.39 | G16: 143.7 | H16: 6.31 | I16: 5.03 | J16: 0.5564373898 | K16: 0.4435626102 | L16: 0.1584786054 | M16: 0.08818342152 | N16: 11.34 | O16: 53 | P16: 8.399366086
F17: 148.73 | G17: 157.42 | H17: 8.69 | I17: 2.89 | J17: 0.7504317789 | K17: 0.2495682211 | L17: 0.1150747986 | M17: 0.08635578584 | N17: 11.58 | O17: 36 | P17: 4.14269275 | R17: 146.93 | S17: 155.53 | T17: =S17-R17 -> 8.6 | U17: =R19-S17 -> 12.26
F18: 160.31 | G18: 166.11 | H18: 5.8 | I18: 3.61 | J18: 0.6163655685 | K18: 0.3836344315 | L18: 0.1724137931 | M18: 0.1062699256 | N18: 9.41 | O18: 61 | P18: 10.51724138
F19: 169.72 | G19: 176.17 | H19: 6.45 | R19: 167.79 | S19: 176.3 | T19: =S19-R19 -> 8.51
G20: Mean | H20: =AVERAGE(H6:H18) -> 6.356153846 | I20: =AVERAGE(I6:I18) -> 3.916153846 | J20: 0.6184349798 | K20: 0.3815650202 | L20: 0.1626501714 | M20: 0.09845438771 | N20: 10.27230769 | O20: 41.38461538 | P20: 6.79874784 | T20: =AVERAGE(T5:T19) -> 14.82125 | U20: =AVERAGE(U5:U19) -> 7.342857143
G21: W/ DG | H21: =AVERAGE(H6:H7,H11,H13,H15,H17) -> 7.02 | I21: =AVERAGE(I6:I7,I11,I13,I15,I17) -> 3.866666667 | J21: 0.6444762719 | K21: 0.3555237281 | L21: 0.1470069548 | M21: 0.09247409428 | N21: 10.88666667 | O21: 37.83333333 | P21: 5.491517144
G22: W/O DG | H22: =AVERAGE(H8:H10,H12,H14,H16,H18) -> 5.787142857 | I22: =AVERAGE(I8:I10,I12,I14,I16,I18) -> 3.958571429 | J22: 0.5961138723 | K22: 0.4038861277 | L22: 0.1760586428 | M22: 0.1035803535 | N22: 9.745714286 | O22: 44.42857143 | P22: 7.919231295
C24: = Pro Stim
C25: = Ret Stim
F27: CabPK + GPR stims (6Hz)
B28: Stim start | C28: Stim stop | D28: Stim | F28: LG start | G28: LG stop | H28: Prot | I28: Retr | J28: LG DC | K28: Int1 DC | L28: LG freq | M28: GMR freq | N28: Period | O28: s/b | P28: Spike Freq | R28: DG start | S28: DG stop | T28: Burst Lth | U28: IBI | W28: Num Stims
F29: 1.05601 | G29: 6.82097 | H29: =G29-F29 -> 5.76496 | I29: =F30-G29 -> 4.53353 | J29: =H29/N29 -> 0.5597869202 | K29: =I29/N29 -> 0.4402130798 | L29: =1/H29 -> 0.1734617413 | M29: =1/N29 -> 0.09710161393 | N29: =H29+I29 -> 10.29849 | O29: 33 | P29: =O29/H29 -> 5.724237462 | R29: 0.72 | S29: 14.78 | T29: =S29-R29 -> 14.06 | U29: =R30-S29 -> 6.32 | W29: 0
F30: 11.3545 | G30: 16.9272 | H30: 5.5727 | I30: 4.48684 | J30: 0.5539716528 | K30: 0.4460283472 | L30: 0.1794462289 | M30: 0.09940812403 | N30: 10.05954 | O30: 37 | P30: =O30/H30 -> 6.639510471 | R30: 21.1 | S30: 63.16 | T30: =S30-R30 -> 42.06 | U30: =R35-S30 -> 9.22 | W30: 4 | X30: (27 - 30)
B31: 21.85579 | C31: 27.7819 | F31: 21.41404 | G31: 26.41736 | H31: 5.00332 | I31: 5.0802 | J31: 0.4961878392 | K31: 0.5038121608 | L31: 0.1998672881 | M31: 0.09917171781 | N31: 10.08352 | O31: 27 | P31: 5.396416779
B32: 32.1605 | C32: 35.88542 | F32: 31.49756 | G32: 35.50669 | H32: 4.00913 | I32: 5.95561 | J32: 0.4023316213 | K32: 0.5976683787 | L32: 0.2494306745 | M32: 0.1003538477 | N32: 9.96474 | O32: 29 | P32: 7.23348956
B33: 41.99964 | C33: 46.57126 | F33: 41.4623 | G33: 46.46964 | H33: 5.00734 | I33: 4.88744 | J33: 0.5060587502 | K33: 0.4939412498 | L33: 0.1997068304 | M33: 0.101063389 | N33: 9.89478 | O33: 32 | P33: 6.390618572
B34: 51.8628 | C34: 56.09571 | F34: 51.35708 | G34: 56.61548 | H34: 5.2584 | I34: 4.41988 | J34: 0.5433196808 | K34: 0.4566803192 | L34: 0.1901719154 | M34: 0.1033241444 | N34: 9.67828 | O34: 36 | P34: 6.846188955
F35: 61.03536 | G35: 69.00491 | H35: =G35-F35 -> 7.96955 | I35: =F36-G35 -> 3.09031 | J35: =H35/N35 -> 0.7205832624 | K35: =I35/N35 -> 0.2794167376 | L35: =1/H35 -> 0.1254775991 | M35: 0.09041705772 | N35: =H35+I35 -> 11.05986 | O35: 51 | P35: 6.399357555 | R35: 72.38 | S35: 96.66 | T35: =S35-R35 -> 24.28 | U35: =R38-S35 -> 8.23 | W35: 1 | X35: (33)
F36: 72.09522 | G36: 80.08797 | H36: 7.99275 | I36: 4.66435 | J36: 0.6314835152 | K36: 0.3685164848 | L36: 0.125113384 | M36: 0.07900703953 | N36: 12.6571 | O36: 41 | P36: 5.129648744
B37: 85.33327 | C37: 88.71954 | F37: 84.75232 | G37: 89.61433 | H37: 4.86201 | I37: 4.64578 | J37: 0.5113712019 | K37: 0.4886287981 | L37: 0.2056762532 | M37: 0.1051769128 | N37: 9.50779 | O37: 32 | P37: 6.581640104
F38: 94.26011 | G38: 101.86223 | H38: 7.60212 | I38: 4.85152 | J38: 0.610433576 | K38: 0.389566424 | L38: 0.131542254 | M38: 0.08029780851 | N38: 12.45364 | O38: 48 | P38: 6.314028192 | R38: 104.89 | S38: 116.63 | T38: =S38-R38 -> 11.74 | U38: =R70-S38 -> -116.63 | W38: 1 | X38: (35)
B39: 107.27309 | C39: 111.33663 | F39: 106.71375 | G39: 110.33977 | H39: 3.62602 | I39: 4.48965 | J39: 0.4467924398 | K39: 0.5532075602 | L39: 0.2757844689 | M39: 0.1232184157 | N39: 8.11567 | O39: 27 | P39: 7.446180661 | R39: 126.67 | S39: 135.89 | T39: =S39-R39 -> 9.22 | U39: =R20-S39 -> -135.89 | W39: 1
F40: 114.82942 | G40: 122.94077 | H40: 8.11135 | I40: 6.08489 | J40: 0.5713731242 | K40: 0.4286268758 | L40: 0.1232840403 | M40: 0.07044118724 | N40: 14.19624 | O40: 51 | P40: 6.287486053 | X40: (37)
F41: 129.02566 | G41: 137.40661 | H41: 8.38095 | I41: 5.81629 | J41: 0.5903224852 | K41: 0.4096775148 | L41: 0.1193182157 | M41: 0.07043622563 | N41: 14.19724 | O41: 54 | P41: 6.443183649
B42: 143.83685 | C42: 147.22309 | F42: 143.2229 | G42: 146.81831 | H42: 3.59541 | I42: 5.82856 | J42: 0.3815175558 | K42: 0.6184824442 | L42: 0.2781323966 | M42: 0.1061123921 | N42: 9.42397 | O42: 27 | P42: 7.509574708 | R42: 143.2 | S42: 154.73 | T42: =S42-R42 -> 11.53 | U42: =R43-S42 -> 9.77 | W42: 1 | X42: (39 - 41, 50)
F43: 152.64687 | G43: 160.76948 | H43: 8.12261 | I43: 5.77422 | J43: 0.5844937299 | K43: 0.4155062701 | L43: 0.1231131373 | M43: 0.0719588568 | N43: 13.89683 | O43: 54 | P43: 6.648109413 | R43: 164.5 | S43: 199.09 | T43: =S43-R43 -> 34.59 | U43: =R47-S43 -> 6.38 | W43: 4
B44: 167.13836 | C44: 171.03252 | F44: 166.5437 | G44: 171.44754 | H44: 4.90384 | I44: 4.4808 | J44: 0.5225389573 | K44: 0.4774610427 | L44: 0.2039218245 | M44: 0.1065570976 | N44: 9.38464 | O44: 31 | P44: 6.32157656
B45: 176.46569 | C45: 180.19055 | F45: 175.92834 | G45: 181.02588 | H45: 5.09754 | I45: 4.25817 | J45: 0.5448587013 | K45: 0.4551412987 | L45: 0.196173056 | M45: 0.1068865965 | N45: 9.35571 | O45: 32 | P45: 6.277537793 | X45: (42 - 43)
B46: 185.91398 | C46: 189.97757 | F46: 185.28405 | G46: 191.45033 | H46: 6.16628 | I46: 4.4808 | J46: 0.5791522183 | K46: 0.4208477817 | L46: 0.1621723308 | M46: 0.09392246513 | N46: 10.64708 | O46: 41 | P46: 6.649065563
B47: 203.4174 | C47: 211.37523 | F47: 195.93113 | G47: 203.53878 | H47: 7.60765 | I47: 6.27996 | J47: 0.5478012415 | K47: 0.4521987585 | L47: 0.131446636 | M47: 0.07200663037 | N47: 13.88761 | O47: 48 | P47: 6.309438526 | R47: 205.47 | S47: 214.22 | T47: =S47-R47 -> 8.75 | U47: =R49-S47 -> 9.3 | W47: 1
F48: 209.81874 | G48: 219.2739 | H48: 9.45516 | I48: 4.2235 | J48: 0.6912343753 | K48: 0.3087656247 | L48: 0.1057623562 | M48: 0.07310657623 | N48: 13.67866 | O48: 58 | P48: 6.134216661 | X48: (45)
B49: 224.89809 | C49: 228.11511 | F49: 223.4974 | G49: 227.06526 | H49: 3.56786 | I49: 7.14465 | J49: 0.3330554651 | K49: 0.6669445349 | L49: 0.2802800558 | M49: 0.09334880434 | N49: 10.71251 | O49: 29 | P49: 8.128121619 | R49: 223.52 | S49: 246.82 | T49: =S49-R49 -> 23.3 | U49: =R51-S49 -> 8.53 | W49: 2
B50: 234.81955 | C50: 238.54462 | F50: 234.20991 | G50: 237.7478 | H50: 3.53789 | I50: 6.90401 | J50: 0.3388166904 | K50: 0.6611833096 | L50: 0.2826543505 | M50: 0.09576801157 | N50: 10.4419 | O50: 32 | P50: 9.044939215
B51: 253.61866 | C51: 263.43864 | F51: 244.65181 | G51: 253.74996 | H51: 9.09815 | I51: 12.99614 | J51: 0.4117873894 | K51: 0.5882126106 | L51: 0.1099124547 | M51: 0.0452605628 | N51: 22.09429 | O51: 62 | P51: 6.814572193 | R51: 255.35 | S51: 270.59 | T51: =S51-R51 -> 15.24 | U51: =R52-S51 -> 8.88 | W51: 1
F52: 266.7461 | G52: 276.66968 | H52: 9.92358 | I52: 5.6275 | J52: 0.6381280271 | K52: 0.3618719729 | L52: 0.100770085 | M52: 0.06430421553 | N52: 15.55108 | O52: 67 | P52: 6.751595694 | R52: 279.47 | S52: 288.53 | T52: =S52-R52 -> 9.06 | W52: 0
F53: 282.29718 | G53: 291.17515 | H53: 8.87797 | I53: 4.05708 | J53: 0.6863498788 | K53: 0.3136501212 | L53: 0.1126383621 | M53: 0.07730932621 | N53: 12.93505 | O53: 59 | P53: 6.645663367
F54: 295.23223 | G54: 299.92725 | H54: 4.69502
E56: Pro stim | H56: Prot | I56: Retr | J56: LG DC | K56: Int1 DC | L56: LG freq | M56: GMR freq | N56: Period | O56: s/b | P56: SpikeFreq
G57: Mean | H57: =AVERAGE(H31:H34,H37,H39,H42,H44:H46,H49:H50) -> 4.55292 | I57: =AVERAGE(I31:I34,I37,I39,I42,I44:I46,I49:I50) -> 5.214629167 | J57: 0.4671667601 | K57: 0.5328332399 | L57: 0.2269976204 | M57: 0.1029086496 | N57: 9.767549167 | O57: 31.25 | P57: =AVERAGE(P31:P34,P37,P39,P42,P44:P46,P49:P50) -> 6.985445841
G58: SD | H58: =_xlfn.STDEV.S(H31:H34,H37,H39,H42,H44:H46,H49:H50) -> 0.8579885735 | I58: =_xlfn.STDEV.S(I31:I34,I37,I39,I42,I44:I46,I49:I50) -> 1.004657819 | J58: 0.08429657865 | K58: 0.08429657865 | L58: 0.04307645746 | M58: 0.008001312266 | N58: 0.7080453343 | O58: 4.092676386 | P58: =_xlfn.STDEV.S(P31:P34,P37,P39,P42,P44:P46,P49:P50) -> 0.9635175393
G59: SEM | H59: =H58/(SQRT(13)) -> 0.237963215 | I59: =I58/(SQRT(13)) -> 0.2786419447 | J59: 0.02337966436 | K59: 0.02337966436 | L59: 0.0119472597 | M59: 0.002219164742 | N59: 0.1963764429 | O59: 1.135104197 | P59: =P58/(SQRT(13)) -> 0.267231684
E61: Burst after Stim | H61: Prot | I61: Retr | J61: LG DC | K61: Int1 DC | L61: LG freq | M61: GMR freq | N61: Period | O61: s/b | P61: SpikeFreq
G62: Mean | H62: =AVERAGE(H35,H38,H40,H43) -> 7.9514075 | I62: =AVERAGE(I35,I38,I40,I43) -> 4.950235 | J62: 0.6217209231 | K62: 0.3782790769 | L62: 0.1258542577 | M62: 0.07827872757 | N62: 12.9016425 | O62: 51 | P62: =AVERAGE(P35,P38,P40,P43) -> 6.412245303
G63: SD | H63: =_xlfn.STDEV.S(H35,H38,H40,H43) -> 0.2430519885 | I63: =_xlfn.STDEV.S(I35,I38,I40,I43) -> 1.346038497 | J63: 0.06787717118 | K63: 0.06787717118 | L63: 0.003941866413 | M63: 0.009179389078 | N63: 1.44444336 | O63: 2.449489743 | P63: =_xlfn.STDEV.S(P35,P38,P40,P43) -> 0.1643263457
G64: SEM | H64: =H63/(SQRT(4)) -> 0.1215259942 | I64: =I63/(SQRT(4)) -> 0.6730192485 | J64: 0.03393858559 | K64: 0.03393858559 | L64: 0.001970933207 | M64: 0.004589694539 | N64: 0.7222216802 | O64: 1.224744871 | P64: =P63/(SQRT(4)) -> 0.08216317286
E66: Non-stim | H66: Prot | I66: Retr | J66: LG DC | K66: Int1 DC | L66: LG freq | M66: GMR freq | N66: Period | O66: s/b | P66: SpikeFreq
G67: Mean | H67: =AVERAGE(H29:H30,H35:H36,H38,H40:H41,H43,H48,H52:H53) -> 7.979427273 | I67: =AVERAGE(I29:I30,I35:I36,I38,I40:I41,I43,I48,I52:I53) -> 4.837275455 | J67: 0.6216509588 | K67: 0.3783490412 | L67: 0.1290843094 | M67: 0.07943527558 | N67: 12.81670273 | O67: 50.27272727 | P67: =AVERAGE(P29:P30,P35:P36,P38,P40:P41,P43,P48,P52:P53) -> 6.283367024
G68: SD | H68: =_xlfn.STDEV.S(H29:H30,H35:H36,H38,H40:H41,H43,H48,H52:H53) -> 1.334273534 | I68: =_xlfn.STDEV.S(I29:I30,I35:I36,I38,I40:I41,I43,I48,I52:I53) -> 0.9110333381 | J68: 0.05710258026 | K68: 0.05710258026 | L68: 0.02514209635 | M68: 0.0115058051 | N68: 1.743462137 | O68: 10.05078016 | P68: =_xlfn.STDEV.S(P29:P30,P35:P36,P38,P40:P41,P43,P48,P52:P53) -> 0.4812755645
G69: SEM | H69: =H68/(SQRT(11)) -> 0.4022986074 | I69: =I68/(SQRT(11)) -> 0.2746868867 | J69: 0.01721707575 | K69: 0.01721707575 | L69: 0.007580627276 | M69: 0.003469130768 | N69: 0.5256736133 | O69: 3.03042424 | P69: =P68/(SQRT(11)) -> 0.1451100426
E72: Ret stim | H72: Prot | I72: Retr | J72: LG DC | K72: Int1 DC | L72: LG freq | M72: GMR freq | N72: Period | O72: s/b | P72: SpikeFreq
G73: Mean | H73: =AVERAGE(H47,H51) -> 8.3529 | I73: =AVERAGE(I47,I51) -> 9.63805 | J73: 0.4797943155 | K73: 0.5202056845 | L73: 0.1206795453 | M73: 0.05863359658 | N73: 17.99095 | O73: 55 | P73: =AVERAGE(P47,P51) -> 6.562005359
G74: SD | H74: =_xlfn.STDEV.S(H47,H51) -> 1.053942657 | I74: =_xlfn.STDEV.S(I47,I51) -> 4.749056422 | J74: 0.09617631717 | K74: 0.09617631717 | L74: 0.01522696557 | M74: 0.01891232575 | N74: 5.802999079 | O74: 9.899494937 | P74: =_xlfn.STDEV.S(P47,P51) -> 0.3571834417
G75: SEM | H75: =H74/(SQRT(2)) -> 0.74525 | I75: =I74/(SQRT(2)) -> 3.35809 | J75: 0.06800692606 | K75: 0.06800692606 | L75: 0.01076709061 | M75: 0.01337303379 | N75: 4.10334 | O75: 7 | P75: =P74/(SQRT(2)) -> 0.2525668338
E77: Burst after Stim | H77: Prot | I77: Retr | J77: LG DC | K77: Int1 DC | L77: LG freq | M77: GMR freq | N77: Period | O77: s/b | P77: SpikeFreq
G78: Mean | H78: =AVERAGE(H48,H52) -> 9.68937 | I78: =AVERAGE(I48,I52) -> 4.9255 | J78: 0.6646812012 | K78: 0.3353187988 | L78: 0.1032662206 | M78: 0.06870539588 | N78: 14.61487 | O78: 62.5 | P78: =AVERAGE(P48,P52) -> 6.442906177
G79: SD | H79: =_xlfn.STDEV.S(H48,H52) -> 0.3312229584 | I79: =_xlfn.STDEV.S(I48,I52) -> 0.9927779208 | J79: 0.03755185892 | K79: 0.03755185892 | L79: 0.003530068838 | M79: 0.006224208943 | N79: 1.324000879 | O79: 6.363961031 | P79: =_xlfn.STDEV.S(P48,P52) -> 0.4365529013
G80: SEM | H80: =H79/(SQRT(2)) -> 0.23421 | I80: =I79/(SQRT(2)) -> 0.702 | J80: 0.02655317409 | K80: 0.02655317409 | L80: 0.002496135613 | M80: 0.004401180351 | N80: 0.93621 | O80: 4.5 | P80: =P79/(SQRT(2)) -> 0.3086895169
F89: CabPK Wash (first file; 138 sec)
F90: LG start | G90: LG stop | H90: Prot | I90: Retr | J90: LG DC | K90: Int1 DC | L90: LG freq | M90: GMR freq | N90: Period | O90: s/b | R90: DG start | S90: DG stop | T90: Burst Lth | U90: IBI
F91: 4.92 | G91: 14.53 | H91: =G91-F91 -> 9.61 | I91: =F92-G91 -> 5.64 | J91: =H91/N91 -> 0.6301639344 | K91: =I91/N91 -> 0.3698360656 | L91: =1/H91 -> 0.1040582726 | M91: =1/N91 -> 0.06557377049 | N91: =H91+I91 -> 15.25 | R91: 2.34 | S91: 11.08 | T91: =S91-R91 -> 8.74 | U91: =R92-S91 -> 8.5
F92: 20.17 | G92: 29.74 | H92: =G92-F92 -> 9.57 | I92: =F93-G92 -> 4.49 | J92: =H92/N92 -> 0.6806543385 | K92: =I92/N92 -> 0.3193456615 | L92: =1/H92 -> 0.1044932079 | M92: 0.07112375533 | N92: =H92+I92 -> 14.06 | R92: 19.58 | S92: 27.28 | T92: =S92-R92 -> 7.7 | U92: =R94-S92 -> 16.68
F93: 34.23 | G93: 40.9 | H93: 6.67 | I93: 6 | J93: 0.5264404104 | K93: 0.4735595896 | L93: 0.1499250375 | M93: 0.07892659826 | N93: 12.67
F94: 46.9 | G94: 55.24 | H94: 8.34 | I94: 5.91 | J94: 0.5852631579 | K94: 0.4147368421 | L94: 0.1199040767 | M94: 0.0701754386 | N94: 14.25 | R94: 43.96 | S94: 55.52 | T94: =S94-R94 -> 11.56 | U94: =R96-S94 -> 15.8
F95: 61.15 | G95: 69.22 | H95: 8.07 | I95: 4.68 | J95: 0.6329411765 | K95: 0.3670588235 | L95: 0.1239157373 | M95: 0.07843137255 | N95: 12.75
F96: 73.9 | G96: 82.56 | H96: 8.66 | I96: 5.92 | J96: 0.5939643347 | K96: 0.4060356653 | L96: 0.1154734411 | M96: 0.06858710562 | N96: 14.58 | R96: 71.32 | S96: 82.56 | T96: 11.24 | U96: =R98-S96 -> 15.72
F97: 88.48 | G97: 95.54 | H97: 7.06 | I97: 6 | J97: 0.5405819296 | K97: 0.4594180704 | L97: 0.1416430595 | M97: 0.07656967841 | N97: 13.06
F98: 101.54 | G98: 111.27 | H98: 9.73 | I98: 4.65 | J98: 0.6766342142 | K98: 0.3233657858 | L98: 0.1027749229 | M98: 0.06954102921 | N98: 14.38 | R98: 98.28 | S98: 108.53 | T98: 10.25 | U98: =R98-S96 -> 15.72
F99: 115.92 | G99: 124.37 | H99: 8.45 | I99: 4.33 | J99: 0.6611893584 | K99: 0.3388106416 | L99: 0.1183431953 | M99: 0.07824726135 | N99: 12.78 | R99: 116.99 | S99: 131.08 | T99: 14.09
F100: 128.7 | G100: 137.44 | H100: 8.74
G101: Mean | H101: =AVERAGE(H91:H99) -> 8.462222222 | I101: =AVERAGE(I91:I99) -> 5.291111111 | J101: 0.6142036505 | K101: 0.3857963495 | L101: 0.1200589945 | M101: 0.07301955665 | N101: 13.75333333
G102: w/ DG | H102: =AVERAGE(H91:H92,H94,H96,H98:H99) -> 9.06 | I102: =AVERAGE(I91:I92,I94,I96,I98:I99) -> 5.156666667 | J102: 0.637978223 | K102: 0.362021777 | L102: 0.1108411861 | M102: 0.07054139343 | N102: 14.21666667
G103: w/o DG | H103: =AVERAGE(H93,H95,H97) -> 7.266666667 | I103: =AVERAGE(I93,I95,I97) -> 5.56 | J103: 0.5666545055 | K103: 0.4333454945 | L103: 0.1384946114 | M103: 0.07797588307 | N103: 12.82666667
F111: CabPK + CCAP | H111: ***NOT SURE IF I CAN USE THIS DATA; LOOKS FUNKY
F112: LG start | G112: LG stop | H112: Prot | I112: Retr | J112: LG DC | K112: Int1 DC | L112: LG freq | M112: GMR freq | N112: Period | O112: s/b | R112: DG start | S112: DG stop | T112: Burst Lth | U112: IBI
F113: 1.67 | G113: 4.41 | H113: =G113-F113 -> 2.74 | I113: =F114-G113 -> 0.91 | J113: =H113/N113 -> 0.7506849315 | K113: =I113/N113 -> 0.2493150685 | L113: =1/H113 -> 0.3649635036 | M113: =1/N113 -> 0.2739726027 | N113: =H113+I113 -> 3.65 | R113: *DG burst almost continuously
F114: 5.32 | G114: 9.49 | H114: 4.17 | I114: =F115-G114 -> 1.47 | J114: =H114/N114 -> 0.7393617021 | K114: =I114/N114 -> 0.2606382979 | L114: =1/H114 -> 0.2398081535 | M114: 0.1773049645 | N114: =H114+I114 -> 5.64
F115: 10.96 | G115: 17.99 | H115: 7.03 | I115: 0.79 | J115: 0.8989769821 | K115: 0.1010230179 | L115: 0.1422475107 | M115: 0.1278772379 | N115: 7.82
F116: 18.78 | G116: 21.6 | H116: 2.82 | I116: 1.08 | J116: 0.7230769231 | K116: 0.2769230769 | L116: 0.3546099291 | M116: 0.2564102564 | N116: 3.9
F117: 22.68 | G117: 25.61 | H117: 2.93 | I117: 1.04 | J117: 0.7380352645 | K117: 0.2619647355 | L117: 0.3412969283 | M117: 0.2518891688 | N117: 3.97
F118: 26.65 | G118: 29.51 | H118: 2.86 | I118: 1.03 | J118: 0.735218509 | K118: 0.264781491 | L118: 0.3496503497 | M118: 0.2570694087 | N118: 3.89
F119: 30.54 | G119: 33.16 | H119: 2.62 | I119: 1.11 | J119: 0.7024128686 | K119: 0.2975871314 | L119: 0.3816793893 | M119: 0.2680965147 | N119: 3.73
F120: 34.27 | G120: 36.93 | H120: 2.66 | I120: 1.11 | J120: 0.7055702918 | K120: 0.2944297082 | L120: 0.3759398496 | M120: 0.2652519894 | N120: 3.77
F121: 38.04 | G121: 42.13 | H121: 4.09 | I121: 1.47 | J121: 0.7356115108 | K121: 0.2643884892 | L121: 0.2444987775 | M121: 0.1798561151 | N121: 5.56
F122: 43.6 | G122: 46.34 | H122: 2.74 | I122: 1.04 | J122: 0.7248677249 | K122: 0.2751322751 | L122: 0.3649635036 | M122: 0.2645502646 | N122: 3.78
F123: 47.38 | G123: 49.8 | H123: 2.42 | I123: 1.23 | J123: 0.6630136986 | K123: 0.3369863014 | L123: 0.4132231405 | M123: 0.2739726027 | N123: 3.65
F124: 51.03 | G124: 53.1 | H124: 2.07 | I124: 1.54 | J124: 0.5734072022 | K124: 0.4265927978 | L124: 0.4830917874 | M124: 0.2770083102 | N124: 3.61
F125: 54.64 | G125: 57.07 | H125: 2.43 | I125: 1.23 | J125: 0.6639344262 | K125: 0.3360655738 | L125: 0.4115226337 | M125: 0.2732240437 | N125: 3.66
F126: 58.3 | G126: 60.72 | H126: 2.42 | I126: 1.31 | J126: 0.6487935657 | K126: 0.3512064343 | L126: 0.4132231405 | M126: 0.2680965147 | N126: 3.73
F127: 62.03 | G127: 64.53 | H127: 2.5 | I127: 1.15 | J127: 0.6849315068 | K127: 0.3150684932 | L127: 0.4 | M127: 0.2739726027 | N127: 3.65
F128: 65.68 | G128: 68.42 | H128: 2.74 | I128: 0.88 | J128: 0.7569060773 | K128: 0.2430939227 | L128: 0.3649635036 | M128: 0.2762430939 | N128: 3.62
F129: 69.3 | G129: 71.4 | H129: 2.1 | I129: 1.51 | J129: 0.5817174515 | K129: 0.4182825485 | L129: 0.4761904762 | M129: 0.2770083102 | N129: 3.61
F130: 72.91 | G130: 75.25 | H130: 2.34 | I130: 1.2 | J130: 0.6610169492 | K130: 0.3389830508 | L130: 0.4273504274 | M130: 0.2824858757 | N130: 3.54
F131: 76.45 | G131: 80.74 | H131: 4.29 | I131: 1.27 | J131: 0.7715827338 | K131: 0.2284172662 | L131: 0.2331002331 | M131: 0.1798561151 | N131: 5.56
F132: 82.01 | G132: 84.51 | H132: 2.5 | I132: 1.11 | J132: 0.6925207756 | K132: 0.3074792244 | L132: 0.4 | M132: 0.2770083102 | N132: 3.61
F133: 85.62
F137: CabPK + CCAP + GPR during Protraction
B138: Stim start | C138: Stim stop | D138: Stim | F138: LG start | G138: LG stop | H138: Prot | I138: Retr | J138: LG DC | K138: Int1 DC | L138: LG freq | M138: GMR freq | N138: Period | O138: s/b | R138: DG start | S138: DG stop | T138: Burst Lth | U138: IBI
B139: 140.08 | C139: 143.1 | D139: =C139-B139 -> 3.02 | F139: 139.49 | G139: 141.55 | H139: =G139-F139 -> 2.06 | I139: =F140-G139 -> 6.08 | J139: =H139/N139 -> 0.2530712531 | K139: =I139/N139 -> 0.7469287469 | L139: =1/H139 -> 0.4854368932 | M139: =1/N139 -> 0.1228501229 | N139: =H139+I139 -> 8.14
B140: NO STIM | F140: 147.63 | G140: 152.95 | H140: =G140-F140 -> 5.32 | I140: =F141-G140 -> 1.23 | J140: 0.8122137405 | K140: 0.1877862595 | L140: 0.1879699248 | M140: 0.1526717557 | N140: 6.55
B141: NO STIM | F141: 154.18 | G141: 157.79 | H141: =G141-F141 -> 3.61 | I141: =F142-G165 -> 1.35 | J141: 0.7278225806 | K141: 0.2721774194 | L141: 0.2770083102 | M141: 0.2016129032 | N141: 4.96
B142: NO STIM | F142: 169.11 | G142: 174.82 | H142: 5.71 | I142: 4.29 | J142: 0.571 | K142: 0.429 | L142: 0.1751313485 | M142: 0.1 | N142: 10
B143: NO STIM | F143: 179.11 | G143: 184.87 | H143: 5.76 | I143: 4.37 | J143: 0.5686080948 | K143: 0.4313919052 | L143: 0.1736111111 | M143: 0.09871668312 | N143: 10.13
B144: NO STIM | F144: 189.24 | G144: 195.27 | H144: 6.03 | I144: 0.88 | J144: 0.8726483357 | K144: 0.1273516643 | L144: 0.1658374793 | M144: 0.1447178003 | N144: 6.91
B145: NO STIM | F145: 196.15 | G145: 202.26 | H145: 6.11 | I145: 2.7 | K145: *4 pylorically timed bursts
B146: NO STIM | F146: 204.96 | G146: 207.46 | H146: 2.5 | I146: 8.31 | J146: =H146/N146 -> 0.2312673451 | K146: =I146/N146 -> 0.7687326549 | L146: =1/H146 -> 0.4 | M146: 0.09250693802 | N146: =H146+I146 -> 10.81
B147: 216.4 | C147: 217.27 | D147: =C147-B147 -> 0.87 | F147: 215.77 | G147: 218.43 | H147: 2.66 | I147: 2.89 | J147: =H147/N147 -> 0.4792792793 | K147: =I147/N147 -> 0.5207207207 | L147: =1/H147 -> 0.3759398496 | M147: 0.1801801802 | N147: =H147+I147 -> 5.55
B148: 220.48 | C148: 221.35 | D148: =C148-B148 -> 0.87 | F148: 221.32 | G148: 221.82 | H148: 0.5 | I148: 1.37 | J148: 0.2673796791 | K148: 0.7326203209 | L148: 2 | M148: 0.5347593583 | N148: 1.87
B149: NO STIM | F149: 223.19 | G149: 227.45 | H149: 4.26 | I149: 4.55 | J149: 0.4835414302 | K149: 0.5164585698 | L149: 0.234741784 | M149: 0.113507378 | N149: 8.81
B150: NO STIM | F150: 232 | G150: 234.52 | H150: 2.52 | I150: 1.16 | J150: 0.6847826087 | K150: 0.3152173913 | L150: 0.3968253968 | M150: 0.2717391304 | N150: 3.68
B151: NO STIM | F151: 235.68 | G151: 238.23 | H151: 2.55 | I151: 1.24 | J151: 0.672823219 | K151: 0.327176781 | L151: 0.3921568627 | M151: 0.2638522427 | N151: 3.79
B152: NO STIM | F152: 239.47 | G152: 242.17 | H152: 2.7 | I152: 1.03 | J152: 0.7238605898 | K152: 0.2761394102 | L152: 0.3703703704 | M152: 0.2680965147 | N152: 3.73
B153: 243.86 | C153: 245.2 | D153: =C153-B153 -> 1.34 | F153: 243.2 | G153: 245.25 | H153: 2.05 | I153: 1.89 | J153: 0.5203045685 | K153: 0.4796954315 | L153: 0.487804878 | M153: 0.2538071066 | N153: 3.94
B154: NO STIM | F154: 247.14 | G154: 250.8 | H154: 3.66 | I154: 0.68 | J154: 0.8433179724 | K154: 0.1566820276 | L154: 0.2732240437 | M154: 0.2304147465 | N154: 4.34
B155: 252.19 | C155: 253.88 | D155: =C155-B155 -> 1.69 | F155: 251.48 | G155: 252.48 | H155: 1 | I155: 5.18 | J155: 0.1618122977 | K155: 0.8381877023 | L155: 1 | M155: 0.1618122977 | N155: 6.18
B156: 258.24 | C156: 261.11 | D156: 2.87 | F156: 257.66 | G156: 260.5 | H156: 2.84 | I156: 6 | J156: 0.3212669683 | K156: 0.6787330317 | L156: 0.3521126761 | M156: 0.1131221719 | N156: 8.84
B157: 267.08 | C157: 270.44 | D157: 3.36 | F157: 266.5 | G157: 270.68 | H157: 4.18 | I157: 5.84 | J157: 0.4171656687 | K157: 0.5828343313 | L157: 0.2392344498 | M157: 0.0998003992 | N157: 10.02 | W157: **There is a shift in GMR Cycle frequency and a decrease in the pyloric rhythm
B158: 277.12 | C158: 281.38 | D158: 4.26 | F158: 276.52 | G158: 280.6 | H158: 4.08 | I158: 8.7 | J158: 0.3192488263 | K158: 0.6807511737 | L158: 0.2450980392 | M158: 0.07824726135 | N158: 12.78
B159: 289.83 | C159: 293.77 | D159: 3.94 | F159: 289.3 | G159: 294.01 | H159: 4.71 | I159: 9.28 | J159: 0.3366690493 | K159: 0.6633309507 | L159: 0.2123142251 | M159: 0.07147962831 | N159: 13.99
B160: 303.87 | C160: 309.86 | D160: 5.99 | F160: 303.29 | G160: 309.02 | H160: 5.73 | I160: -309.02 | J160: -0.01889280886 | K160: 1.018892809 | L160: 0.1745200698 | M160: -0.003297174322 | N160: -303.29
F163: CabPK + CCAP + GPR during Retraction
B164: Stim start | C164: Stim stop | D164: Stim | F164: LG start | G164: LG stop | H164: Prot | I164: Retr | J164: LG DC | K164: Int1 DC | L164: LG freq | M164: GMR freq | N164: Period | O164: s/b
B165: 157.95 | C165: 164.58 | D165: =C165-B165 -> 6.63 | F165: 163.79 | G165: 167.76 | H165: =G165-F165 -> 3.97 | I165: =F165-G141 -> 6 | J165: =H165/N165 -> 0.3981945838 | K165: =I165/N165 -> 0.6018054162 | L165: =1/H165 -> 0.2518891688 | M165: =1/N165 -> 0.1003009027 | N165: =H165+I165 -> 9.97
B166: 211.3 | C166: 212.67 | D166: =C166-B166 -> 1.37 | F166: 212.35 | G166: 214.89 | H166: =G166-F166 -> 2.54 | I166: =F166-G146 -> 4.89 | J166: =H166/N166 -> 0.3418573351 | K166: =I166/N166 -> 0.6581426649 | L166: =1/H166 -> 0.3937007874 | M166: =1/N166 -> 0.134589502 | N166: =H166+I166 -> 7.43
F172: MCN1 GMR + GPR
F173: LG start | G173: LG stop | H173: Prot | I173: Retr | J173: LG DC | K173: Int1 DC | L173: LG freq | M173: GMR freq | N173: Period | O173: s/b | R173: DG start | S173: DG stop | T173: Burst Lth | U173: IBI
F174: 695.58 | G174: 708.88 | H174: =G174-F174 -> 13.3 | I174: =F175-G174 -> 11.64 | J174: =H174/N174 -> 0.5332798717 | K174: =I174/N174 -> 0.4667201283 | L174: =1/H174 -> 0.07518796992 | M174: =1/N174 -> 0.04009623095 | N174: =H174+I174 -> 24.94 | R174: 707.93 | S174: 729.13 | T174: =S174-R174 -> 21.2 | U174: =R175-S174 -> 7.27
F175: 720.52 | G175: 734.85 | H175: 14.33 | I175: 10.88 | J175: =H175/N175 -> 0.5684252281 | K175: =I175/N175 -> 0.4315747719 | L175: =1/H175 -> 0.06978367062 | M175: 0.03966679889 | N175: =H175+I175 -> 25.21 | R175: 736.4 | S175: 752.8 | T175: =S175-R175 -> 16.4 | U175: =R176-S175 -> 8.85
F176: 745.73 | G176: 760.98 | H176: 15.25 | I176: 11.63 | J176: 0.5673363095 | K176: 0.4326636905 | L176: 0.06557377049 | M176: 0.03720238095 | N176: 26.88 | R176: 761.65 | S176: 777.26 | T176: 15.61 | U176: 10.44
F177: 772.61 | G177: 786.19 | H177: 13.58 | I177: 12.79 | J177: 0.514979143 | K177: 0.485020857 | L177: 0.0736377025 | M177: 0.03792188093 | N177: 26.37 | R177: 787.7 | S177: 805.1 | T177: 17.4 | U177: 10.6
B178: Stim start | C178: Stim stop | D178: Stim | F178: 798.98 | G178: 814.27 | H178: 15.29 | I178: 13.66 | J178: 0.5281519862 | K178: 0.4718480138 | L178: 0.06540222368 | M178: 0.03454231434 | N178: 28.95 | R178: 815.7 | S178: 826.9 | T178: 11.2 | U178: 0.67
B179: 828.48 | C179: 835.16 | D179: =C179-B179 -> 6.68 | F179: 827.93 | G179: 842.74 | H179: 14.81 | I179: 16.6 | J179: 0.4715058898 | K179: 0.5284941102 | L179: 0.06752194463 | M179: 0.03183699459 | N179: 31.41 | R179: 827.57 | S179: 837.5 | T179: 9.93 | U179: 7.86
B180: NO STIM | F180: 859.34 | G180: 873.28 | H180: 13.94 | I180: 14.61 | J180: 0.4882661996 | K180: 0.5117338004 | L180: 0.07173601148 | M180: 0.0350262697 | N180: 28.55 | R180: 845.36 | S180: 860.01 | T180: 14.65 | U180: 14.5
B181: 888.52 | C181: 895.46 | D181: =C181-B181 -> 6.94 | F181: 887.89 | G181: 900.48 | H181: 12.59 | I181: 17.2 | J181: 0.422625042 | K181: 0.577374958 | L181: 0.07942811755 | M181: 0.03356831151 | N181: 29.79 | R181: 874.51 | S181: 889.28 | T181: 14.77 | U181: 11.5
B182: 918.92 | C182: 926.13 | D182: =C182-B182 -> 7.21 | F182: 917.68 | G182: 923 | H182: 5.32 | I182: 21.48 | J182: 0.1985074627 | K182: 0.8014925373 | L182: 0.1879699248 | M182: 0.03731343284 | N182: 26.8 | R182: 900.78 | S182: 918.22 | T182: 17.44 | U182: 1.32
B183: 945.37 | C183: 952.49 | D183: =C183-B183 -> 7.12 | F183: 944.48 | G183: 950.25 | H183: 5.77 | I183: 21.77 | J183: 0.209513435 | K183: 0.790486565 | L183: 0.1733102253 | M183: 0.03631082062 | N183: 27.54 | R183: 919.54 | S183: 972.38 | T183: 52.84 | U183: =R185-S183 -> 7.38
B184: 972.91 | C184: 979.5 | D184: =C184-B184 -> 6.59 | F184: 972.02 | G184: 978.49 | H184: 6.47 | I184: 27.51 | J184: 0.1904061212 | K184: 0.8095938788 | L184: 0.1545595054 | M184: 0.02942907593 | N184: 33.98
B185: 1006.77 | C185: 1015.05 | D185: =C185-B185 -> 8.28 | F185: 1006 | G185: 1012.83 | H185: 6.83 | I185: 24.26 | J185: 0.2196847861 | K185: 0.7803152139 | L185: 0.1464128843 | M185: 0.03216468318 | N185: 31.09 | R185: 979.76 | S185: 1006.33 | T185: 26.57 | U185: 8.48
B186: NO STIM | F186: 1037.09 | G186: 1052.39 | H186: 15.3 | I186: 19.48 | J186: 0.4399079931 | K186: 0.5600920069 | L186: 0.06535947712 | M186: 0.02875215641 | N186: 34.78 | R186: 1014.81 | S186: 1037.35 | T186: 22.54 | U186: 17.35
B187: NO STIM | F187: 1071.87 | G187: 1085.64 | H187: 13.77 | I187: 21.15 | J187: 0.3943298969 | K187: 0.6056701031 | L187: 0.07262164125 | M187: 0.02863688431 | N187: 34.92 | R187: 1054.7 | S187: 1071.98 | T187: 17.28 | U187: 15.81
F188: 1106.79 | R188: 1087.79 | S188: 1106.62 | T188: 18.83
F199: MCN1 GMR + CCAP + GPR
F200: LG start | G200: LG stop | H200: Prot | I200: Retr | J200: LG DC | K200: Int1 DC | L200: LG freq | M200: GMR freq | N200: Period | O200: s/b | R200: DG start | S200: DG stop | T200: Burst Lth | U200: IBI
F201: 358.35 | G201: 372.68 | H201: =G201-F201 -> 14.33 | I201: =F202-G201 -> 9.97 | J201: =H201/N201 -> 0.5897119342 | K201: =I201/N201 -> 0.4102880658 | L201: =1/H201 -> 0.06978367062 | M201: =1/N201 -> 0.04115226337 | N201: =H201+I201 -> 24.3 | R201: 372.64 | S201: 388.85 | T201: =S201-R201 -> 16.21 | U201: =R202-S201 -> 10.44
F202: 382.65 | G202: 398.42 | H202: =G202-F202 -> 15.77 | I202: =F203-G202 -> 14.02 | J202: 0.5293722726 | K202: 0.4706277274 | L202: 0.0634115409 | M202: 0.03356831151 | N202: 29.79 | R202: 399.29 | S202: 417.52 | T202: =S202-R202 -> 18.23 | U202: =R203-S202 -> 11.79
F203: 412.44 | G203: 428 | H203: 15.56 | I203: 12.55 | J203: 0.5535396656 | K203: 0.4464603344 | L203: 0.06426735219 | M203: 0.03557452864 | N203: 28.11 | R203: 429.31 | S203: 445.43 | T203: 16.12 | U203: 12
F204: 440.55 | G204: 455.92 | H204: 15.37 | I204: 15.37 | J204: 0.5 | K204: 0.5 | L204: 0.06506180872 | M204: 0.03253090436 | N204: 30.74 | R204: 457.43 | S204: 471.64 | T204: 14.21 | U204: 12.67
F205: 471.29 | G205: 485.66 | H205: 14.37 | I205: 11.48 | J205: 0.5558994197 | K205: 0.4441005803 | L205: 0.06958942241 | M205: 0.03868471954 | N205: 25.85 | R205: 484.31 | S205: 497.38 | T205: 13.07 | U205: 15.76
B206: Stim start | C206: Stim stop | D206: Stim | F206: 497.14 | G206: 512.23 | H206: 15.09 | I206: 15.64 | J206: 0.4910510901 | K206: 0.5089489099 | L206: 0.06626905235 | M206: 0.0325414904 | N206: 30.73 | R206: 513.14 | S206: 572.79 | T206: 59.65 | U206: =R209-S206 -> 12.31
B207: 528.55 | C207: 532.88 | D207: =C207-B207 -> 4.33 | F207: 527.87 | G207: 533.59 | H207: 5.72 | I207: 18.23 | J207: =H207/N207 -> 0.2388308977 | K207: =I207/N207 -> 0.7611691023 | L207: =1/H207 -> 0.1748251748 | M207: 0.04175365344 | N207: =H207+I207 -> 23.95
B208: 552.65 | C208: 557.46 | D208: =C208-B208 -> 4.81 | F208: 551.82 | G208: 556.23 | H208: 4.41 | I208: 28.71 | J208: 0.1331521739 | K208: 0.8668478261 | L208: 0.2267573696 | M208: 0.03019323671 | N208: 33.12
B209: 585.61 | C209: 592.6 | D209: 6.99 | F209: 584.94 | G209: 592.09 | H209: 7.15 | I209: 35.38 | J209: 0.1681166236 | K209: 0.8318833764 | L209: 0.1398601399 | M209: 0.02351281448 | N209: 42.53 | R209: 585.1 | S209: 605.91 | T209: 20.81 | U209: =R210-S209 -> 12.7
B210: 628.18 | C210: 638.15 | D210: 9.97 | F210: 627.47 | G210: 635.01 | H210: 7.54 | R210: 618.61 | S210: 650.82 | T210: 32.21
F211: New File
B212: NO STIM | F212: 3.61 | G212: 19.06 | H212: 15.45 | I212: 14.61 | J212: 0.5139720559 | K212: 0.4860279441 | L212: 0.06472491909 | M212: 0.03326679973 | N212: 30.06 | R212: 18.11 | S212: 36.1 | T212: 17.99 | U212: 11.59
B213: NO STIM | F213: 33.67 | G213: 50.99 | H213: 17.32 | I213: 14.62 | J213: 0.5422667502 | K213: 0.4577332498 | L213: 0.05773672055 | M213: 0.03130870382 | N213: 31.94 | R213: 47.69 | S213: 88.27 | T213: 40.58 | U213: 4.39
B214: 66.17 | C214: 73.72 | D214: 7.55 | F214: 65.61 | G214: 71.17 | H214: 5.56 | I214: 17.22 | J214: 0.2440737489 | K214: 0.7559262511 | L214: 0.1798561151 | M214: 0.04389815628 | N214: 22.78 | R214: 92.66 | S214: 116.39 | T214: 23.73 | U214: =R217-S214 -> 5.43
B215: 89.44 | C215: 96.86 | D215: 7.42 | F215: 88.39 | G215: 94.82 | H215: 6.43 | I215: 16.68 | J215: 0.2782345305 | K215: 0.7217654695 | L215: 0.1555209953 | M215: 0.04327131112 | N215: 23.11
B216: 112.36 | C216: 119.31 | D216: 6.95 | F216: 111.5 | G216: 117.4 | H216: 5.9 | I216: 20.96 | J216: 0.2196574832 | K216: 0.7803425168 | L216: 0.1694915254 | M216: 0.03723008191 | N216: 26.86
B217: NO STIM | F217: 138.36 | G217: 149.27 | H217: 10.91 | I217: 29.08 | J217: 0.2728182046 | K217: 0.7271817954 | L217: 0.09165902841 | M217: 0.02500625156 | N217: 39.99 | R217: 121.82 | S217: 138.81 | T217: 16.99 | U217: 14.57
B218: NO STIM | F218: 178.35 | G218: 189.82 | H218: 11.47 | I218: =F220-G218 -> 15.15 | J218: 0.4308790383 | K218: 0.5691209617 | L218: 0.08718395815 | M218: 0.03756574005 | N218: 26.62 | R218: 153.38 | S218: 166.55 | T218: 13.17 | U218: 10.69
R219: 177.24 | S219: 183.27 | T219: 6.03 | U219: 12.33
B220: NO STIM | F220: 204.97 | G220: 216.15 | H220: 11.18 | I220: 15.54 | J220: 0.4184131737 | K220: 0.5815868263 | L220: 0.08944543828 | M220: 0.0374251497 | N220: 26.72 | R220: 195.6 | S220: 208.52 | T220: 12.92 | U220: 9.76
B221: 232.35 | C221: 237.98 | D221: 5.63 | F221: 231.69 | G221: 238.06 | H221: 6.37 | I221: 12.87 | J221: 0.3310810811 | K221: 0.6689189189 | L221: 0.1569858713 | M221: 0.05197505198 | N221: 19.24 | R221: 218.28 | S221: 250.11 | T221: 31.83 | U221: 10.45
B222: 251.81 | C222: 256.6 | D222: 4.79 | F222: 250.93 | G222: 257.01 | H222: 6.08 | I222: 16.58 | J222: 0.2683142101 | K222: 0.7316857899 | L222: 0.1644736842 | M222: 0.04413062665 | N222: 22.66 | R222: 260.56 | S222: 272.87 | T222: 12.31 | U222: 9.86
B223: 274.39 | C223: 280.52 | D223: 6.13 | F223: 273.59 | G223: 279.79 | H223: 6.2 | I223: 14.58 | J223: 0.2983638114 | K223: 0.7016361886 | L223: 0.1612903226 | M223: 0.04812319538 | N223: 20.78 | R223: 282.73 | S223: 294.13 | T223: 11.4 | U223: 12.9
B224: NO STIM | F224: 294.37 | G224: 304.33 | H224: 9.96 | I224: 17.2 | J224: 0.3667157585 | K224: 0.6332842415 | L224: 0.1004016064 | M224: 0.03681885125 | N224: 27.16 | R224: 307.03 | S224: 321.58 | T224: 14.55 | U224: 12.12
B225: NO STIM | F225: 321.53 | G225: 330.79 | H225: 9.26 | R225: 333.7

Sheet 08062017
C1: *** Data file from Mikey's lab are labeled by the date of the exp (as per protocol in Mikey's lab) thus I'll label on each page at the top, the lab book number and page that each exp can be found in
C3: 901_026
F4: CabPK
F5: LG start | G5: LG stop | H5: Prot | I5: Retr | J5: LG DC | K5: Int1 DC | L5: LG freq | M5: GMR freq | N5: Period | O5: s/b | P5: Spike Freq | R5: DG start | S5: DG stop | T5: Burst Lth | U5: IBI
C6: = stim was shorter than LG burst | F6: 376.29 | G6: 389.31 | H6: =G6-F6 -> 13.02 | I6: =F7-G6 -> 19.74 | J6: =H6/N6 -> 0.3974358974 | K6: =I6/N6 -> 0.6025641026 | L6: =1/H6 -> 0.07680491551 | M6: =1/N6 -> 0.03052503053 | N6: =H6+I6 -> 32.76 | O6: 23 | P6: =O6/H6 -> 1.766513057 | R6: * DG burst continuously
C7: = No Stim | F7: 409.05 | G7: 423.49 | H7: =G7-F7 -> 14.44 | I7: =F8-G7 -> 18.1 | J7: =H7/N7 -> 0.4437615243 | K7: =I7/N7 -> 0.5562384757 | L7: =1/H7 -> 0.06925207756 | M7: =1/N7 -> 0.0307314075 | N7: =H7+I7 -> 32.54 | O7: 30 | P7: =O7/H7 -> 2.077562327
F8: 441.59 | G8: 454.81 | H8: 13.22 | I8: 19.93 | J8: 0.3987933635 | K8: 0.6012066365 | L8: 0.0756429652 | M8: 0.03016591252 | N8: 33.15 | O8: 30 | P8: 2.269288956
F9: 474.74 | G9: 488.93 | H9: 14.19 | I9: 17.8 | J9: 0.4435761175 | K9: 0.5564238825 | L9: 0.0704721635 | M9: 0.03125976868 | N9: 31.99 | O9: 32 | P9: 2.255109232
B10: Stim start | C10: Stim stop | D10: Stim | F10: 506.73 | G10: 519.28 | H10: 12.55 | I10: 19.26 | J10: 0.394530022 | K10: 0.605469978 | L10: 0.0796812749 | M10: 0.03143665514 | N10: 31.81 | O10: 25 | P10: 1.992031873
B11: 539.02 | C11: 545.54 | D11: =C11-B11 -> 6.52 | F11: 538.54 | G11: 552.49 | H11: 13.95 | I11: 19.68 | J11: 0.414808207 | K11: 0.585191793 | L11: 0.07168458781 | M11: 0.02973535534 | N11: 33.63 | O11: 27 | P11: 1.935483871
B12: 572.84 | C12: 583.2 | D12: =C12-B12 -> 10.36 | F12: 572.17 | G12: 586.31 | H12: 14.14 | I12: 19.25 | J12: 0.4234800839 | K12: 0.5765199161 | L12: 0.07072135785 | M12: 0.02994908655 | N12: 33.39 | O12: 26 | P12: 1.838755304
B13: 606.84 | C13: 614.58 | D13: 7.74 | F13: 605.56 | G13: 618.6 | H13: 13.04 | I13: 16.76 | J13: 0.4375838926 | K13: 0.5624161074 | L13: 0.07668711656 | M13: 0.03355704698 | N13: 29.8 | O13: 17 | P13: 1.303680982
B14: NO STIM | F14: 635.36 | G14: 648.4 | H14: 13.04 | I14: 18.53 | J14: 0.4130503643 | K14: 0.5869496357 | L14: 0.07668711656 | M14: 0.03167564143 | N14: 31.57 | O14: 29 | P14: 2.22392638
B15: 667.45 | C15: 675.46 | D15: 8.01 | E15: * | F15: 666.93 | G15: 667.45 | H15: 0.52 | I15: 26.11 | J15: 0.01952684942 | K15: 0.9804731506 | L15: 1.923076923 | M15: 0.0375516335 | N15: 26.63 | O15: 4 | P15: 7.692307692 | R15: *Change in GPR threshold
B16: 694.35 | C16: 701.79 | D16: 7.44 | F16: 693.56 | G16: 695.48 | H16: 1.92 | I16: 24.61 | J16: 0.07237090087 | K16: 0.9276290991 | L16: 0.5208333333 | M16: 0.03769317753 | N16: 26.53 | O16: 6 | P16: 3.125
B17: 720.91 | C17: 727.42 | D17: 6.51 | F17: 720.09 | G17: 720.91 | H17: 0.82 | I17: 26.99 | J17: 0.02948579648 | K17: 0.9705142035 | L17: 1.219512195 | M17: 0.03595828839 | N17: 27.81 | O17: 5 | P17: 6.097560976
B18: NO STIM | F18: 747.9 | G18: 761.48 | H18: 13.58 | I18: 15.53 | J18: 0.4665063552 | K18: 0.5334936448 | L18: 0.0736377025 | M18: 0.0343524562 | N18: 29.11 | O18: 37 | P18: 2.724594993
B19: 779.61 | C19: 784.52 | D19: 4.91 | F19: 777.01 | G19: 777.69 | H19: 0.68 | I19: 25.64 | J19: 0.02583586626 | K19: 0.9741641337 | L19: 1.470588235 | M19: 0.03799392097 | N19: 26.32 | O19: 5 | P19: 7.352941176
B20: NO STIM | F20: 803.33 | G20: 816.61 | H20: 13.28 | I20: 19.14 | J20: 0.4096236891 | K20: 0.5903763109 | L20: 0.07530120482 | M20: 0.03084515731 | N20: 32.42 | O20: 31 | P20: 2.334337349
B21: 836.51 | C21: 840.43 | D21: 3.92 | F21: 835.75 | G21: 836.35 | H21: 0.6 | I21: 28.96 | J21: 0.02029769959 | K21: 0.9797023004 | L21: 1.666666667 | M21: 0.03382949932 | N21: 29.56 | O21: 5 | P21: 8.333333333
B22: 866.42 | C22: 873.58 | D22: 7.16 | E22: * | F22: 865.31 | G22: 867.03 | H22: 1.72 | I22: 23.03 | J22: 0.06949494949 | K22: 0.9305050505 | L22: 0.5813953488 | M22: 0.0404040404 | N22: 24.75 | O22: 6 | P22: 3.488372093 | R22: *Change in GPR threshold
B23: NO STIM | F23: 890.06 | G23: 904.93 | H23: 14.87 | I23: 19.65 | J23: 0.430764774 | K23: 0.569235226 | L23: 0.06724949563 | M23: 0.02896871379 | N23: 34.52 | O23: 18 | P23: 1.210490921
B24: NO STIM | F24: 924.58 | G24: 938.99 | H24: 14.41 | I24: 20.23 | J24: 0.4159930716 | K24: 0.5840069284 | L24: 0.0693962526 | M24: 0.02886836028 | N24: 34.64 | O24: 47 | P24: 3.261623872
B25: 959.75 | C25: 966.38 | D25: 6.63 | F25: 959.22 | G25: 959.75 | H25: 0.53 | I25: 12.27 | J25: 0.04140625 | K25: 0.95859375 | L25: 1.886792453 | M25: 0.078125 | N25: 12.8 | O25: 1 | P25: 1.886792453
B26: NO STIM | F26: 972.02 | G26: 988.08 | H26: 16.06
G28: Pre-Stim | H28: =AVERAGE(H6:H10) -> 13.484 | I28: =AVERAGE(I6:I10) -> 18.966 | J28: 0.415619385 | K28: 0.584380615 | L28: 0.07437067934 | M28: 0.03082375487 | N28: 32.45 | O28: 28 | P28: 2.072101089
G29: Stim | H29: =AVERAGE(H15:H17,H19,H22,H25) -> 1.031666667 | I29: =AVERAGE(I15:I17,I19,I22,I25) -> 23.10833333 | J29: 0.04302010209 | K29: 0.9569798979 | L29: 1.267033081 | M29: 0.04462101013 | N29: 24.14 | O29: 4.5 | P29: 4.940495732
G30: No-Stim | H30: =AVERAGE(H14,H18,H20,H23:H24) -> 13.836 | I30: =AVERAGE(I14,I18,I20,I23:I24) -> 18.616 | J30: 0.4271876508 | K30: 0.5728123492 | L30: 0.07245435442 | M30: 0.0309420658 | N30: 32.452 | O30: 32.4 | P30: 2.350994703
G31: Burst after stim | H31: =AVERAGE(H14,H18,H20,H23) -> 13.6925 | I31: =AVERAGE(I14,I18,I20,I23) -> 18.2125 | J31: 0.4299862956 | K31: 0.5700137044 | L31: 0.07321887988 | M31: 0.03146049218 | N31: 31.905 | O31: 28.75 | P31: 2.123337411

Sheet 08082017
C1: *** Data file from Mikey's lab are labeled by the date of the exp (as per protocol in Mikey's lab) thus I'll label on each page at the top, the lab book number and page that each exp can be found in
C3: 901_029
F4: CabPK + GPR
F5: LG start | G5: LG stop | H5: Prot | I5: Retr | J5: LG DC | K5: Int1 DC | L5: LG freq | M5: GMR freq | N5: Period | O5: s/b | P5: Spike Freq | R5: DG start | S5: DG stop | T5: Burst Lth | U5: IBI
F6: 422.9053 | G6: 429.84136 | H6: =G6-F6 -> 6.93606 | I6: =F7-G6 -> 10.55994 | J6: =H6/N6 -> 0.3964368999 | K6: =I6/N6 -> 0.6035631001 | L6: =1/H6 -> 0.14417407 | M6: =1/N6 -> 0.05715592135 | N6: =H6+I6 -> 17.496 | O6: 14 | P6: =O6/H6 -> 2.01843698 | R6: * DG burst continuously
F7: 440.4013 | G7: 448.70185 | H7: =G7-F7 -> 8.30055 | I7: =F8-G7 -> 9.03869 | J7: =H7/N7 -> 0.4787147534 | K7: =I7/N7 -> 0.5212852466 | L7: =1/H7 -> 0.1204739445 | M7: =1/N7 -> 0.05767265463 | N7: =H7+I7 -> 17.33924 | O7: 15 | P7: =O7/H7 -> 1.807109167
F8: 457.74054 | G8: 464.77945 | H8: 7.03891 | I8: 10.41826 | J8: 0.4032102569 | K8: 0.5967897431 | L8: 0.1420674508 | M8: 0.05728305332 | N8: 17.45717 | O8: 18 | P8: 2.557214114
F9: 475.19771 | G9: 483.9019 | H9: 8.70419 | I9: 9.19322 | J9: 0.4863379673 | K9: 0.5136620327 | L9: 0.114887198 | M9: 0.05587400635 | N9: 17.89741 | O9: 21 | P9: 2.412631158
F10: 493.09512 | G10: 504.13183 | H10: 11.03671 | I10: 10.433 | J10: 0.5140595751 | K10: 0.4859404249 | L10: 0.0906067116 | M10: 0.04657724767 | N10: 21.46971 | O10: 25 | P10: 2.26516779
F11: 514.56483 | G11: 525.01121 | H11: 10.44638 | I11: 10.59273 | J11: 0.4965219536 | K11: 0.5034780464 | L11: 0.09572694082 | M11: 0.04753052767 | N11: 21.03911 | O11: 23 | P11: 2.201719639
F12: 535.60394 | G12: 544.01702 | H12: 8.41308 | I12: 9.13624 | J12: 0.4793963527 | K12: 0.5206036473 | L12: 0.1188625331 | M12: 0.05698226484 | N12: 17.54932 | O12: 19 | P12: 2.258388129
F13: 553.15326 | G13: 562.04206 | H13: 8.8888 | I13: 11.09205 | J13: 0.4448659592 | K13: 0.5551340408 | L13: 0.112501125 | M13: 0.05004792088 | N13: 19.98085 | O13: 21 | P13: 2.362523625
C14: = stim was shorter than LG burst | F14: 573.13411 | G14: 580.56528 | H14: 7.43117 | I14: 10.86459 | J14: 0.4061689703 | K14: 0.5938310297 | L14: 0.1345683116 | M14: 0.05465747255 | N14: 18.29576 | O14: 19 | P14: 2.55679792
C15: = No Stim | F15: 591.42987 | G15: 602.23333 | H15: 10.80346 | I15: 10.8492 | J15: 0.4989437787 | K15: 0.5010562213 | L15: 0.09256293817 | M15: 0.04618370214 | N15: 21.65266 | O15: 23 | P15: 2.128947578
F16: 613.08253 | G16: 621.92991 | H16: 8.84738 | I16: 10.68506 | J16: 0.4529582582 | K16: 0.5470417418 | L16: 0.1130278116 | M16: 0.05119688068 | N16: 19.53244 | O16: 22 | P16: 2.486611856
F17: 632.61497 | G17: 638.99883 | H17: 6.38386 | I17: 11.09279 | J17: 0.3652793871 | K17: 0.6347206129 | L17: 0.1566450392 | M17: 0.05721920391 | N17: 17.47665 | O17: 17 | P17: 2.662965667
B18: Stim start | C18: Stim stop | D18: Stim | F18: 650.09162 | G18: 656.24551 | H18: 6.15389 | I18: 11.25725 | J18: 0.3534455527 | K18: 0.6465544473 | L18: 0.1624988422 | M18: 0.05743449309 | N18: 17.41114 | O18: 16 | P18: 2.599981475
B19: 668.07 | C19: 671.17 | D19: =C19-B19 -> 3.1 | F19: 667.50276 | G19: 669.43749 | H19: 1.93473 | I19: 10.9178 | J19: 0.1505330079 | K19: 0.8494669921 | L19: 0.5168679867 | M19: 0.07780569273 | N19: 12.85253 | O19: 9 | P19: 4.651811881
B20: 680.86 | C20: 682.45 | D20: =C20-B20 -> 1.59 | F20: 680.35529 | G20: 688.19318 | H20: 7.83789 | I20: 15.51913 | J20: 0.335568921 | K20: 0.664431079 | L20: 0.1275853578 | M20: 0.04281368085 | N20: 23.35702 | O20: 19 | P20: 2.424121798
B21: 697.46 | C21: 700.24 | D21: 2.78 | F21: 703.71231 | G21: 711.95926 | H21: 8.24695 | I21: 11.96311 | J21: 0.4080616287 | K21: 0.5919383713 | L21: 0.1212569495 | M21: 0.04948030832 | N21: 20.21006 | O21: 22 | P21: 2.66765289
B22: 724.78 | C22: 727.76 | D22: 2.98 | F22: 723.92237 | G22: 726.54186 | H22: 2.61949 | I22: 9.78725 | J22: 0.2111344318 | K22: 0.7888655682 | L22: 0.3817537001 | M22: 0.08060135056 | N22: 12.40674 | O22: 10 | P22: 3.817537001
B23: 738.52 | C23: 742.65 | D23: 4.13 | F23: 736.32911 | G23: 741.49751 | H23: 5.1684 | I23: 8.88689 | J23: 0.3677192004 | K23: 0.6322807996 | L23: 0.1934834765 | M23: 0.07114758927 | N23: 14.05529 | O23: 13 | P23: 2.515285195
B24: 751.11 | C24: 755.12 | D24: 4.01 | F24: 750.3844 | G24: 753.77643 | H24: 3.39203 | I24: 10.50428 | J24: 0.2440957348 | K24: 0.7559042652 | L24: 0.2948087134 | M24: 0.0719615495 | N24: 13.89631 | O24: 12 | P24: 3.53770456
B25: 764.89 | C25: 767.67 | D25: 2.78 | F25: 764.28071 | G25: 767.96487 | H25: 3.68416 | I25: 8.74156 | J25: 0.29649469 | K25: 0.70350531 | L25: 0.2714322939 | M25: 0.08047823386 | N25: 12.42572 | O25: 13 | P25: 3.528619821
B26: 779.06 | C26: 782.99 | D26: 3.93 | F26: 776.70643 | G26: 782.08759 | H26: 5.38116 | I26: 8.42023 | J26: 0.3898998579 | K26: 0.6101001421 | L26: 0.1858335378 | M26: 0.07245646996 | N26: 13.80139 | O26: 14 | P26: 2.601669529
B27: NO STIM | F27: 790.50782 | G27: 802.29629 | H27: 11.78847 | I27: 13.95262 | J27: 0.4579631243 | K27: 0.5420368757 | L27: 0.08482865037 | M27: 0.03884839375 | N27: 25.74109 | O27: 25 | P27: 2.120716259
F28: 816.24891 | G28: 824.36142 | H28: 8.11251 | I28: 12.32476 | J28: 0.3969468525 | K28: 0.6030531475 | L28: 0.123266412 | M28: 0.04893021426 | N28: 20.43727 | O28: 19 | P28: 2.342061828
F29: 836.68618 | G29: 843.2037 | H29: 6.51752 | I29: 14.11062 | J29: 0.3159528683 | K29: 0.6840471317 | L29: 0.153432594 | M29: 0.04847746816 | N29: 20.62814 | O29: 17 | P29: 2.608354098
F30: 857.31432 | G30: 863.8678 | H30: 6.55348 | I30: 12.26819 | J30: 0.3481880194 | K30: 0.6518119806 | L30: 0.1525906846 | M30: 0.05313024827 | N30: 18.82167 | O30: 16 | P30: 2.441450954
F31: 876.13599 | G31: 882.15835 | H31: 6.02236
G33: Pre-Stim | H33: =AVERAGE(H6:H18) -> 8.414187692 | I33: =AVERAGE(I6:I18) -> 10.40100154 | J33: 0.4443338204 | K33: 0.5556661796 | L33: 0.1229694551 | M33: 0.05352425762 | N33: =AVERAGE(N6:N18) -> 18.81518923 | O33: 19.46153846 | P33: 2.332191931
G34: Stim | H34: =AVERAGE(H19,H22:H26) -> 3.696661667 | I34: =AVERAGE(I19,I22:I26) -> 9.543001667 | J34: 0.2766461538 | K34: 0.7233538462 | L34: 0.3073632847 | M34: 0.07574181431 | N34: 13.23966333 | O34: 11.83333333 | P34: 3.442104664
G35: No-Stim | H35: =AVERAGE(H27:H30) -> 8.242995 | I35: =AVERAGE(I27:I30) -> 13.1640475 | J35: 0.3797627161 | K35: 0.6202372839 | L35: 0.1285295853 | M35: 0.04734658111 | N35: 21.4070425 | O35: 19.25 | P35: 2.378145785
H36: =_xlfn.STDEV.S(H6:H18) -> 1.620178223
H37: =_xlfn.STDEV.S(H19,H22:H26) -> 1.368298732
F39: CabPK + CCAP + GPR
F40: LG start | G40: LG stop | H40: Prot | I40: Retr | J40: LG DC | K40: Int1 DC | L40: LG freq | M40: GMR freq | N40: Period | O40: s/b | P40: Spike Freq | R40: DG start | S40: DG stop | T40: Burst Lth | U40: IBI
F41: 187.63 | G41: 195.65 | H41: =G41-F41 -> 8.02 | I41: =F42-G41 -> 8.94 | J41: =H41/N41 -> 0.4728773585 | K41: =I41/N41 -> 0.5271226415 | L41: =1/H41 -> 0.1246882793 | M41: =1/N41 -> 0.05896226415 | N41: =H41+I41 -> 16.96 | O41: 22 | P41: =O41/H41 -> 2.743142145 | R41: *DG exhibits 3 long bursts across the 792sec file
F42: 204.59 | G42: 212.77 | H42: 8.18 | I42: 10.96 | J42: =H42/N42 -> 0.4273772205 | K42: =I42/N42 -> 0.5726227795 | L42: =1/H42 -> 0.1222493888 | M42: 0.05224660397 | N42: =H42+I42 -> 19.14 | O42: 23 | P42: =O42/H42 -> 2.811735941
F43: 223.73 | G43: 232.07 | H43: 8.34 | I43: 10.24 | J43: 0.4488697524 | K43: 0.5511302476 | L43: 0.1199040767 | M43: 0.05382131324 | N43: 18.58 | O43: 24 | P43: 2.877697842
F44: 242.31 | G44: 249.78 | H44: 7.47 | I44: 8.61 | J44: 0.4645522388 | K44: 0.5354477612 | L44: 0.1338688086 | M44: 0.06218905473 | N44: 16.08 | O44: 22 | P44: 2.945113788
F45: 258.39 | G45: 267.05 | H45: 8.66 | I45: 9.17 | J45: 0.4856982614 | K45: 0.5143017386 | L45: 0.1154734411 | M45: 0.05608524958 | N45: 17.83 | O45: 25 | P45: 2.886836028
F46: 276.22 | G46: 285.32 | H46: 9.1 | I46: 9.33 | J46: 0.4937601736 | K46: 0.5062398264 | L46: 0.1098901099 | M46: 0.05425935974 | N46: 18.43 | O46: 26 | P46: 2.857142857
F47: 294.65 | G47: 303.11 | H47: 8.46 | I47: 9.21 | J47: 0.4787775891 | K47: 0.5212224109 | L47: 0.1182033097 | M47: 0.05659309564 | N47: 17.67 | O47: 25 | P47: 2.955082742
F48: 312.32 | G48: 320.58 | H48: 8.26 | I48: 18.38 | J48: 0.3100600601 | K48: 0.6899399399 | L48: 0.1210653753 | M48: 0.03753753754 | N48: 26.64 | O48: 23 | P48: 2.784503632 | R48: *DG turns off here, leaving a long LG IBI
F49: 338.96 | G49: 346.79 | H49: 7.83 | I49: 9.89 | J49: 0.4418735892 | K49: 0.5581264108 | L49: 0.1277139208 | M49: 0.05643340858 | N49: 17.72 | O49: 17 | P49: 2.171136654
F50: 356.68 | G50: 361.68 | H50: 5 | I50: 12.71 | J50: 0.2823263693 | K50: 0.7176736307 | L50: 0.2 | M50: 0.05646527386 | N50: 17.71 | O50: 20 | P50: 4 | R50: *DG starts another long burst, short LG burst and long IBI results
B51: Stim start | C51: Stim stop | D51: Stim | F51: 374.39 | G51: 383.08 | H51: 8.69 | I51: 9.85 | J51: 0.4687162891 | K51: 0.5312837109 | L51: 0.1150747986 | M51: 0.05393743258 | N51: 18.54 | O51: 26 | P51: 2.991944764
B52: 394.08 | C52: 398.57 | D52: =C52-B52 -> 4.49 | F52: 392.93 | G52: 397.5 | H52: 4.57 | I52: 10.16 | J52: 0.3102511881 | K52: 0.6897488119 | L52: 0.2188183807 | M52: 0.06788866259 | N52: 14.73 | O52: 21 | P52: 4.595185996
B53: 408.38 | C53: 411.83 | D53: =C53-B53 -> 3.45 | F53: 407.66 | G53: 412.71 | H53: 5.05 | I53: 9.92 | J53: 0.3373413494 | K53: 0.6626586506 | L53: 0.198019802 | M53: 0.0668002672 | N53: 14.97 | O53: 22 | P53: 4.356435644
B54: 423.23 | C54: 428.75 | D54: =C54-B54 -> 5.52 | F54: 422.63 | G54: 427.64 | H54: 5.01 | I54: 10.6 | J54: 0.3209481102 | K54: 0.6790518898 | L54: 0.1996007984 | M54: 0.06406149904 | N54: 15.61 | O54: 26 | P54: 5.189620758
B55: NO STIM | F55: 438.24 | G55: 448.05 | H55: 9.81 | I55: 10.01 | J55: 0.4949545913 | K55: 0.5050454087 | L55: 0.1019367992 | M55: 0.05045408678 | N55: 19.82 | O55: 41 | P55: 4.179408767
B56: 458.65 | C56: 462.94 | D56: =C56-B56 -> 4.29 | F56: 458.06 | G56: 462.58 | H56: 4.52 | I56: 9.77 | J56: 0.3163051085 | K56: 0.6836948915 | L56: 0.2212389381 | M56: 0.0699790063 | N56: 14.29 | O56: 26 | P56: 5.752212389
B57: NO STIM | F57: 472.35 | G57: 482.08 | H57: 9.73 | I57: 10.21 | J57: 0.4879638917 | K57: 0.5120361083 | L57: 0.1027749229 | M57: 0.05015045135 | N57: 19.94 | O57: 40 | P57: 4.110996917
B58: 492.84 | C58: 497.45 | D58: =C58-B58 -> 4.61 | F58: 492.29 | G58: 496.53 | H58: 4.24 | I58: 9.85 | J58: 0.3009226402 | K58: 0.6990773598 | L58: 0.2358490566 | M58: 0.07097232079 | N58: 14.09 | O58: 23 | P58: 5.424528302
B59: NO STIM | F59: 506.38 | G59: 516.23 | H59: 9.85 | I59: 11.48 | J59: 0.4617909048 | K59: 0.5382090952 | L59: 0.1015228426 | M59: 0.04688232536 | N59: 21.33 | O59: 42 | P59: 4.263959391
F60: 527.71 | G60: 536.16 | H60: 8.45 | I60: 12.08 | J60: 0.411592791 | K60: 0.588407209 | L60: 0.1183431953 | M60: 0.04870920604 | N60: 20.53 | O60: 36 | P60: 4.26035503
F61: 548.24 | G61: 558.32 | H61: 10.08 | I61: 11.04 | J61: 0.4772727273 | K61: 0.5227272727 | L61: 0.09920634921 | M61: 0.04734848485 | N61: 21.12 | O61: 46 | P61: 4.563492063
F62: 569.36 | G62: 577.34 | H62: 7.98 | I62: 11.04 | J62: 0.4195583596 | K62: 0.5804416404 | L62: 0.1253132832 | M62: 0.05257623554 | N62: 19.02 | O62: 34 | P62: 4.260651629
F63: 588.38 | G63: 595.85 | H63: 7.47 | I63: 11.55 | J63: 0.3927444795 | K63: 0.6072555205 | L63: 0.1338688086 | M63: 0.05257623554 | N63: 19.02 | O63: 33 | P63: 4.417670683
F64: 607.4 | G64: 616.82 | H64: 9.42 | I64: 10.56 | J64: 0.4714714715 | K64: 0.5285285285 | L64: 0.1061571125 | M64: 0.05005005005 | N64: 19.98 | O64: 39 | P64: 4.140127389
F65: 627.38 | G65: 634.09 | H65: 6.71 | I65: 11.63 | J65: 0.3658669575 | K65: 0.6341330425 | L65: 0.1490312966 | M65: 0.05452562704 | N65: 18.34 | O65: 25 | P65: 3.725782414
F66: 645.72 | G66: 652.59 | H66: 6.87 | I66: 12.2 | J66: 0.3602517042 | K66: 0.6397482958 | L66: 0.1455604076 | M66: 0.0524383849 | N66: 19.07 | O66: 28 | P66: 4.075691412
B67: 665.38 | C67: 669.87 | D67: =C67-B67 -> 4.49 | F67: 664.79 | G67: 669.15 | H67: 4.36 | I67: 9.69 | J67: 0.3103202847 | K67: 0.6896797153 | L67: 0.2293577982 | M67: 0.07117437722 | N67: 14.05 | O67: 24 | P67: 5.504587156
B68: 679.64 | C68: 682.69 | D68: =C68-B68 -> 3.05 | F68: 678.84 | G68: 683.29 | H68: 4.45 | I68: 9.81 | J68: 0.3120617111 | K68: 0.6879382889 | L68: 0.2247191011 | M68: 0.07012622721 | N68: 14.26 | O68: 25 | P68: 5.617977528
B69: NO STIM | F69: 693.1 | G69: 702.27 | H69: 9.17 | I69: 10.56 | J69: 0.4647744551 | K69: 0.5352255449 | L69: 0.1090512541 | M69: 0.0506842372 | N69: 19.73 | O69: 41 | P69: 4.471101418
F70: 712.83 | G70: 721.33 | H70: 8.5 | I70: 11.16 | J70: 0.4323499491 | K70: 0.5676500509 | L70: 0.1176470588 | M70: 0.0508646999 | N70: 19.66 | O70: 37 | P70: 4.352941176
F71: 732.49 | G71: 742.66 | H71: 10.17 | I71: 9.85 | J71: 0.507992008 | K71: 0.492007992 | L71: 0.09832841691 | M71: 0.04995004995 | N71: 20.02 | O71: 40 | P71: 3.933136676
F72: 752.51 | G72: 761.32 | H72: 8.81 | I72: 12.95 | J72: 0.4048713235 | K72: 0.5951286765 | L72: 0.113507378 | M72: 0.04595588235 | N72: 21.76 | O72: 38 | P72: 4.313280363
F73: 774.27 | G73: 783.52 | H73: 9.25
G75: Pre-Stim | H75: =AVERAGE(H41:H47,H49,H51) -> 8.305555556 | I75: =AVERAGE(I41:I47,I49,I51) -> 9.577777778 | J75: 0.464722497 | K75: 0.535277503 | L75: 0.1207851259 | M75: 0.05605864247 | N75: 17.88333333 | O75: =AVERAGE(O41:O51) -> 23 | P75: =AVERAGE(P41:P51) -> 2.911303308
G76: Stim | H76: =AVERAGE(H52:H54,H56,H58,H67,H68) -> 4.6 | I76: =AVERAGE(I52:I54,I56,I58,I67,I68) -> 9.971428571 | J76: 0.315450056 | K76: 0.684549944 | L76: 0.218229125 | M76: 0.06871462291 | N76: 14.57142857 | O76: =AVERAGE(O52:O54,O56,O58,O67,O68) -> 23.85714286 | P76: =AVERAGE(P52:P54,P56,P58,P67,P68) -> 5.205792539
G77: No-Stim | H77: =AVERAGE(H55,H57,H59:H66,H69:H72) -> 8.787142857 | I77: =AVERAGE(I55,I57,I59:I66,I69:I72) -> 11.16571429 | J77: 0.4395325439 | K77: 0.5604674561 | L77: 0.1158749375 | M77: 0.05022613978 | N77: 19.95285714 | O77: =AVERAGE(O55,O57,O59:O66,O69:O72) -> 37.14285714 | P77: =AVERAGE(P55,P57,P59:P66,P69:P72) -> 4.219185381
F82: MCN1 + GPR
F83: LG start | G83: LG stop | H83: Prot | I83: Retr | J83: LG DC | K83: Int1 DC | L83: LG freq | M83: GMR freq | N83: Period | O83: s/b | R83: DG start | S83: DG stop | T83: Burst Lth | U83: IBI
F84: 165.88852 | G84: 179.16188 | H84: =G84-F84 -> 13.27336 | I84: =F85-G84 -> 9.71028 | J84: =H84/N84 -> 0.5775133965 | K84: =I84/N84 -> 0.4224866035 | L84: =1/H84 -> 0.07533887426 | M84: =1/N84 -> 0.04350920916 | N84: =H84+I84 -> 22.98364
F85: 188.87216 | G85: 201.77736 | H85: 12.9052 | I85: 9.66008 | J85: 0.5719051569 | K85: 0.4280948431 | L85: 0.07748814431 | M85: 0.04431586934 | N85: 22.56528
F86: 211.43744 | G86: 222.70014 | H86: 11.2627 | I86: 10.81158 | J86: 0.5102182268 | K86: 0.4897817732 | L86: 0.08878865636 | M86: 0.04530159081 | N86: 22.07428
F87: 233.51172 | G87: 244.62703 | H87: 11.11531 | I87: 8.54939 | J87: 0.5652417784 | K87: 0.4347582216 | L87: 0.08996600185 | M87: 0.05085254288 | N87: 19.6647
F88: 253.17642 | G88: 264.80084 | H88: 11.62442 | I88: 9.35881 | J88: 0.5539862071 | K88: 0.4460137929 | L88: 0.08602579742 | M88: 0.04765710522 | N88: 20.98323
F89: 274.15965 | G89: 286.58865 | H89: 12.429 | I89: 7.57422 | J89: 0.6213499627 | K89: 0.3786500373 | L89: 0.08045699574 | M89: 0.0499919513 | N89: 20.00322
F90: 294.16287 | G90: 306.26637 | H90: 12.1035 | I90: 7.31603 | J90: 0.6232643118 | K90: 0.3767356882 | L90: 0.08262072954 | M90: 0.05149455213 | N90: 19.41953
F91: 313.5824 | G91: 322.62301 | H91: 9.04061 | I91: 9.02753 | J91: 0.5003619631 | K91: 0.4996380369 | L91: 0.1106120052 | M91: 0.05534604005 | N91: 18.06814
F92: 331.65054 | G92: 351.03749 | H92: 19.38695 | I92: 7.39199 | J92: 0.7239625616 | K92: 0.2760374384 | L92: 0.05158108934 | M92: 0.03734277757 | N92: 26.77894
F93: 358.42948 | G93: 360.44811 | H93: 2.01863 | I93: 6.35488 | J93: 0.2410733372 | K93: 0.7589266628 | L93: 0.4953854842 | M93: 0.1194242319 | N93: 8.37351
F94: 366.80299 | G94: 377.16721 | H94: =G94-F94 -> 10.36422 | I94: =F95-G94 -> 8.75771 | J94: =H94/N94 -> 0.5420070045 | K94: =I94/N94 -> 0.4579929955 | L94: =1/H94 -> 0.0964857944 | M94: =1/N94 -> 0.0522959764 | N94: =H94+I94 -> 19.12193 | O94: 44 | R94: * DG burst continuously
F95: 385.92492 | G95: 395.92378 | H95: 9.99886 | I95: 8.05739 | J95: =H95/N95 -> 0.5537617169 | K95: =I95/N95 -> 0.4462382831 | L95: =1/H95 -> 0.1000114013 | M95: 0.05538248529 | N95: =H95+I95 -> 18.05625 | O95: 44
F96: 403.98117 | G96: 413.2249 | H96: 9.24373 | I96: 8.63235 | J96: 0.5171005053 | K96: 0.4828994947 | L96: 0.1081814376 | M96: 0.05594067603 | N96: 17.87608 | O96: 43
F97: 421.85725 | G97: 430.77561 | H97: 8.91836 | I97: 7.36358 | J97: 0.5477455389 | K97: 0.4522544611 | L97: 0.1121282388 | M97: 0.0614177426 | N97: 16.28194 | O97: 44
F98: 438.13919 | G98: 446.94625 | H98: 8.80706 | I98: 9.07544 | J98: 0.4924960157 | K98: 0.5075039843 | L98: 0.1135452694 | M98: 0.05592059276 | N98: 17.8825 | O98: 44
B99: Stim start | C99: Stim stop | D99: Stim | F99: 456.02169 | G99: 468.27199 | H99: 12.2503 | I99: 8.62035 | J99: 0.5869630318 | K99: 0.4130369682 | L99: 0.08163065394 | M99: 0.04791417613 | N99: 20.87065 | O99: 43
B100: 478.95 | C100: 484.71 | D100: =C100-B100 -> 5.76 | F100: 476.89234 | G100: 483.00633 | H100: 6.11399 | I100: 10.36932 | J100: 0.3709200397 | K100: 0.6290799603 | L100: 0.1635593123 | M100: 0.06066742663 | N100: 16.48331 | O100: 45
B101: 494.03 | C101: 497.85 | D101: 3.82 | F101: 493.37565 | G101: 497.8936 | H101: 4.51795 | I101: 10.65792 | J101: 0.2977061612 | K101: 0.7022938388 | L101: 0.2213393243 | M101: 0.06589408054 | N101: 15.17587 | O101: 41
B102: NO STIM | F102: 508.55152 | G102: 519.21428 | H102: 10.66276 | I102: 8.63689 | J102: 0.5524846306 | K102: 0.4475153694 | L102: 0.09378434852 | M102: 0.05181441114 | N102: 19.29965 | O102: 68
B103: 528.68 | C103: 535.97 | D103: 7.29 | F103: 527.85117 | G103: 535.77038 | H103: 7.91921 | I103: 8.2717 | J103: 0.4891145711 | K103: 0.5108854289 | L103: 0.1262752219 | M103: 0.061763051 | N103: 16.19091
B104: 546.27 | C104: 551.05 | D104: 4.78 | F104: 544.04208 | G104: 551.60964 | H104: 7.56756 | I104: 9.11455 | J104: 0.4536332634 | K104: 0.5463667366 | L104: 0.1321429893 | M104: 0.05994445547 | N104: 16.68211
B105: 562.75 | C105: 568.4 | D105: 5.65 | F105: 560.72419 | G105: 568.11026 | H105: 7.38607 | I105: 10.64804 | J105: 0.4095611039 | K105: 0.5904388961 | L105: 0.1353899977 | M105: 0.0554504769 | N105: 18.03411
B106: NO STIM | F106: 578.7583 | G106: 589.56239 | H106: 10.80409 | I106: 21.21576 | J106: 0.3374185076 | K106: 0.6625814924 | L106: 0.09255754071 | M106: 0.03123062725 | N106: 32.01985 | R106: *Stim was inbetween two LG bursts (retraction phase) and thus IBI is really long
B107: 591.55 | C107: 608.54 | D107: 16.99 | F107: 610.77815 | G107: 624.89149 | H107: 14.11334 | I107: 7.45771 | J107: 0.654272277 | K107: 0.345727723 | L107: 0.07085495 | M107: 0.04635842947 | N107: 21.57105
B108: NO STIM | F108: 632.3492 | G108: 643.57494 | H108: 11.22574 | I108: 11.21506 | J108: 0.5002379594 | K108: 0.4997620406 | L108: 0.08908098709 | M108: 0.04456169121 | N108: 22.4408
B109: 655.54 | C109: 661.22 | D109: 5.68 | F109: 654.79 | G109: 659.64134 | H109: 4.85134
G112: Pre-Stim | H112: =AVERAGE(H94:H99) -> 9.930421667 | I112: =AVERAGE(I94:I99) -> 8.417803333 | J112: 0.5400123022 | K112: 0.4599876978 | L112: 0.1019971326 | M112: 0.05481194153 | N112: 18.348225
G113: Stim | H113: =AVERAGE(H100:H101,H103,H105,H109) -> 6.157712 | I113: =AVERAGE(I100:I101,I103,I105,) -> 7.989396 | J113: 0.3134603752 | K113: 0.4865396248 | L113: 0.1293127712 | M113: 0.04875500701 | N113: 13.17684
G114: No-Stim | H114: =AVERAGE(H107:H108,H102) -> 12.00061333 | I114: =AVERAGE(I107:I108,I102) -> 9.10322 | J114: 0.568998289 | K114: 0.431001711 | L114: 0.08457342853 | M114: 0.04757817727 | N114: 21.10383333
H115: =_xlfn.STDEV.S(H94:H99) -> 1.290926487
H116: =_xlfn.STDEV.S(H100:H101,H103,H105,H109) -> 1.50075626
F119: MCN1 + CCAP + GPR
F120: LG start | G120: LG stop | H120: Prot | I120: Retr | J120: LG DC | K120: Int1 DC | L120: LG freq | M120: GMR freq | N120: Period | O120: s/b | R120: DG start | S120: DG stop | T120: Burst Lth | U120: IBI
F121: 185.71 | G121: 201.99 | H121: =G121-F121 -> 16.28 | I121: =F122-G121 -> 7.39 | J121: =H121/N121 -> 0.687790452 | K121: =I121/N121 -> 0.312209548 | L121: =1/H121 -> 0.06142506143 | M121: =1/N121 -> 0.04224757076 | N121: =H121+I121 -> 23.67 | R121: 177.29 | S121: 292.85 | T121: =S121-R121 -> 115.56 | U121: =R126-S121 -> 20.83
F122: 209.38 | G122: 224.39 | H122: 15.01 | I122: 9.09 | J122: =H122/N122 -> 0.6228215768 | K122: =I122/N122 -> 0.3771784232 | L122: =1/H122 -> 0.06662225183 | M122: 0.04149377593 | N122: =H122+I122 -> 24.1
F123: 233.48 | G123: 248.97 | H123: 15.49 | I123: 7.46 | J123: 0.6749455338 | K123: 0.3250544662 | L123: 0.06455777921 | M123: 0.04357298475 | N123: 22.95
F124: 256.43 | G124: 268.55 | H124: 12.12 | I124: 9.25 | J124: 0.5671502106 | K124: 0.4328497894 | L124: 0.08250825083 | M124: 0.04679457183 | N124: 21.37
F125: 277.8 | G125: 292.01 | H125: 14.21 | I125: 5.52 | J125: 0.7202230106 | K125: 0.2797769894 | L125: 0.07037297678 | M125: 0.0506842372 | N125: 19.73
F126: 297.53 | G126: 308.57 | H126: 11.04 | I126: 11.04 | J126: 0.5 | K126: 0.5 | L126: 0.09057971014 | M126: 0.04528985507 | N126: 22.08 | R126: 313.68 | S126: 443 | T126: =S126-R126 -> 129.32 | U126: =R134-S126 -> 23.42
F127: 319.61 | G127: 332.87 | H127: 13.26 | I127: 8.62 | J127: 0.6060329068 | K127: 0.3939670932 | L127: 0.0754147813 | M127: 0.04570383912 | N127: 21.88
B128: Stim start | C128: Stim stop | D128: Stim | F128: 341.49 | G128: 355.11 | H128: 13.62 | I128: 8.77 | J128: 0.60830728 | K128: 0.39169272 | L128: 0.07342143906 | M128: 0.04466279589 | N128: 22.39
B129: 364.72 | C129: 370.69 | D129: =C129-B129 -> 5.97 | F129: 363.88 | G129: 369.48 | H129: 5.6 | I129: 9.31 | J129: 0.3755868545 | K129: 0.6244131455 | L129: 0.1785714286 | M129: 0.06706908115 | N129: 14.91
B130: 379.71 | C130: 385.07 | D130: =C130-B130 -> 5.36 | F130: 378.79 | G130: 385.48 | H130: 6.69 | I130: 9.6 | J130: 0.4106813996 | K130: 0.5893186004 | L130: 0.1494768311 | M130: 0.06138735421 | N130: 16.29
B131: 395.79 | C131: 401.82 | D131: =C131-B131 -> 6.03 | F131: 395.08 | G131: 402.18 | H131: 7.1 | I131: 9.19 | J131: 0.4358502149 | K131: 0.5641497851 | L131: 0.1408450704 | M131: 0.06138735421 | N131: 16.29
B132: 412.03 | C132: 417.75 | D132: =C132-B132 -> 5.72 | F132: 411.37 | G132: 418.72 | H132: 7.35 | I132: 8.68 | J132: 0.4585152838 | K132: 0.5414847162 | L132: 0.1360544218 | M132: 0.06238303182 | N132: 16.03
B133: NO STIM | F133: 427.4 | G133: 443.39 | H133: 15.99 | I133: 7.09 | J133: 0.6928076256 | K133: 0.3071923744 | L133: 0.06253908693 | M133: 0.04332755633 | N133: 23.08
F134: 450.48 | G134: 461.97 | H134: 11.49 | I134: 12.36 | J134: 0.4817610063 | K134: 0.5182389937 | L134: 0.08703220191 | M134: 0.04192872117 | N134: 23.85 | R134: 466.42 | S134: 514.06 | T134: =S134-R134 -> 47.64 | U134: =R137-S134 -> 18.58
F135: 474.33 | G135: 488.63 | H135: 14.3 | I135: 10.21 | J135: 0.5834353325 | K135: 0.4165646675 | L135: 0.06993006993 | M135: 0.0407996736 | N135: 24.51
F136: 498.84 | G136: 512.73 | H136: 13.89 | I136: 7.3 | J136: 0.6554978764 | K136: 0.3445021236 | L136: 0.07199424046 | M136: 0.04719207173 | N136: 21.19
B137: 520.75 | C137: 528.15 | D137: =C137-B137 -> 7.4 | F137: 520.03 | G137: 528.71 | H137: 8.68 | I137: 12.77 | J137: 0.4046620047 | K137: 0.5953379953 | L137: 0.1152073733 | M137: 0.04662004662 | N137: 21.45 | R137: 532.64 | S137: 574.11 | T137: =S137-R137 -> 41.47 | U137: =R140-S137 -> 19.76
B138: 542.19 | C138: 547.71 | D138: 5.52 | F138: 541.48 | G138: 548.63 | H138: 7.15 | I138: 10.21 | J138: 0.4118663594 | K138: 0.5881336406 | L138: 0.1398601399 | M138: 0.05760368664 | N138: 17.36
B139: NO STIM | F139: 558.84 | G139: 572.68 | H139: 13.84 | I139: 7.2 | J139: 0.6577946768 | K139: 0.3422053232 | L139: 0.07225433526 | M139: 0.04752851711 | N139: 21.04
B140: 580.85 | C140: 583.91 | D140: 3.06 | F140: 579.88 | G140: 589.48 | H140: 9.6 | I140: 12.51 | J140: 0.434192673 | K140: 0.565807327 | L140: 0.1041666667 | M140: 0.04522840344 | N140: 22.11 | R140: 593.87 | S140: 695.69 | T140: =S140-R140 -> 101.82
B141: 602.91 | C141: 610.41 | D141: 7.5 | F141: 601.99 | G141: 609.65 | H141: 7.66 | I141: 11.13 | J141: 0.4076636509 | K141: 0.5923363491 | L141: 0.1305483029 | M141: 0.05321979776 | N141: 18.79
B142: 621.7 | C142: 628.75 | D142: 7.05 | F142: 620.78 | G142: 627.88 | H142: 7.1 | I142: 10.26 | J142: 0.4089861751 | K142: 0.5910138249 | L142: 0.1408450704 | M142: 0.05760368664 | N142: 17.36
B143: 638.98 | C143: 646.26 | D143: 7.28 | F143: 638.14 | G143: 646.77 | H143: 8.63 | I143: 10.47 | J143: 0.4518324607 | K143: 0.5481675393 | L143: 0.1158748552 | M143: 0.05235602094 | N143: 19.1
D144: 0 | F144: 657.24 | G144: 672 | H144: 14.76 | I144: 10.67 | J144: 0.5804168305 | K144: 0.4195831695 | L144: 0.06775067751 | M144: 0.0393236335 | N144: 25.43
F145: 682.67 | G145: 700.75 | H145: 18.08 | I145: 8.88 | J145: 0.6706231454 | K145: 0.3293768546 | L145: 0.05530973451 | M145: 0.03709198813 | N145: 26.96
F146: 709.63 | G146: 721.84 | H146: 12.21
G148: Pre-Stim | H148: =AVERAGE(H121:H128) -> 13.87875 | I148: =AVERAGE(I121:I128) -> 8.3925 | J148: 0.6234088713 | K148: 0.3765911287 | L148: 0.07311278132 | M148: 0.04505620382 | N148: 22.27125
G149: Stim | H149: =AVERAGE(H129:H132,H137:H138,H140:H143) -> 7.556 | I149: =AVERAGE(I129:I132,I137:I138,I140:I143) -> 10.413 | J149: 0.4199837077 | K149: 0.5800162923 | L149: 0.135145016 | M149: 0.05648584634 | N149: 17.969
G150: No-Stim | H150: =AVERAGE(H133:H136,H139,H144:H145) -> 14.62142857 | I150: =AVERAGE(I133:I136,I139,I144:I145) -> 9.101428571 | J150: 0.6174766419 | K150: 0.3825233581 | L150: 0.06954433522 | M150: 0.04245602308 | N150: 23.72285714

Sheet 08102017
C1: *** Data file from Mikey's lab are labeled by the date of the exp (as per protocol in Mikey's lab) thus I'll label on each page at the top, the lab book number and page that each exp can be found in
C3: 901_032
F4: CabPK + GPR
C5: = stim was shorter than LG burst | F5: LG start | G5: LG stop | H5: Prot | I5: Retr | J5: LG DC | K5: Int1 DC | L5: LG freq | M5: GMR freq | N5: Period | O5: s/b | Q5: DG start | R5: DG stop | S5: Burst Lth | T5: IBI
C6: = Stim | F6: 419.23 | G6: 436.33 | H6: =G6-F6 -> 17.1 | I6: =F7-G6 -> 53.5 | J6: =H6/N6 -> 0.2422096317 | K6: =I6/N6 -> 0.7577903683 | L6: =1/H6 -> 0.05847953216 | M6: =1/N6 -> 0.01416430595 | N6: =H6+I6 -> 70.6 | Q6: * DG burst continuously
F7: 489.83 | G7: 507.69 | H7: =G7-F7 -> 17.86 | I7: =F8-G7 -> 51.97 | J7: =H7/N7 -> 0.2557639983 | K7: =I7/N7 -> 0.7442360017 | L7: =1/H7 -> 0.05599104143 | M7: =1/N7 -> 0.01432049262 | N7: =H7+I7 -> 69.83
F8: 559.66 | G8: 577.09 | H8: 17.43 | I8: 57.42 | J8: 0.2328657315 | K8: 0.7671342685 | L8: 0.05737234653 | M8: 0.01336005344 | N8: 74.85
B9: Stim start | C9: Stim stop | D9: Stim | F9: 634.51 | G9: 651.07 | H9: 16.56 | I9: 45.21 | J9: 0.2680913065 | K9: 0.7319086935 | L9: 0.06038647343 | M9: 0.01618908855 | N9: 61.77
B10: 698.57 | C10: 709.03 | D10: =C10-B10 -> 10.46 | F10: 696.28 | G10: 714.59 | H10: 18.31 | I10: 39.98 | J10: 0.3141190599 | K10: 0.6858809401 | L10: 0.0546149645 | M10: 0.0171556013 | N10: 58.29 | Q10: *Change in GPR threshold
B11: 756.64 | C11: 765.46 | D11: =C11-B11 -> 8.82 | F11: 754.57 | G11: 770.69 | H11: 16.12 | I11: 38.24 | J11: 0.2965415747 | K11: 0.7034584253 | L11: 0.06203473945 | M11: 0.01839587932 | N11: 54.36
B12: 810.02 | C12: 814.82 | D12: =C12-B12 -> 4.8 | F12: 808.93 | G12: 827.56 | H12: 18.63 | I12: 40.31 | J12: 0.3160841534 | K12: 0.6839158466 | L12: 0.05367686527 | M12: 0.01696640652 | N12: 58.94
B13: 869.4 | C13: 878.33 | D13: =C13-B13 -> 8.93 | F13: 867.87 | G13: 873.21 | H13: 5.34 | I13: 43.25 | J13: 0.1098991562 | K13: 0.8901008438 | L13: 0.1872659176 | M13: 0.02058036633 | N13: 48.59
B14: 917.21 | C14: 924.23 | D14: =C14-B14 -> 7.02 | F14: 916.46 | G14: 922.02 | H14: 5.56 | I14: 33.96 | J14: 0.1406882591 | K14: 0.8593117409 | L14: 0.1798561151 | M14: 0.02530364372 | N14: 39.52
B15: NO STIM | F15: 955.98 | G15: 972.67 | H15: 16.69 | I15: 37.34 | J15: 0.3089024616 | K15: 0.6910975384 | L15: 0.05991611744 | M15: 0.01850823617 | N15: 54.03
F16: 1010.01 | G16: 1025.79 | H16: 15.78 | I16: 47.22 | J16: 0.2504761905 | K16: 0.7495238095 | L16: 0.06337135615 | M16: 0.01587301587 | N16: 63
F17: 1073.01 | G17: 1088.85 | H17: 15.84 | I17: 42.28 | J17: 0.2725395733 | K17: 0.7274604267 | L17: 0.06313131313 | M17: 0.01720578114 | N17: 58.12
F18: 1131.13 | G18: 1147.88 | H18: 16.75 | I18: 37.47 | J18: 0.3089265954 | K18: 0.6910734046 | L18: 0.05970149254 | M18: 0.01844337883 | N18: 54.22
F19: 1185.35 | G19: 1201.33 | H19: 15.98 | I19: 32.66 | J19: 0.3285361842 | K19: 0.6714638158 | L19: 0.06257822278 | M19: 0.02055921053 | N19: 48.64
F20: 1233.99 | G20: 1250.42 | H20: 16.43 | I20: 46.11 | J20: 0.2627118644 | K20: 0.7372881356 | L20: 0.06086427267 | M20: 0.01598976655 | N20: 62.54
B21: 1300.43 | C21: 1305.1 | D21: =C21-B21 -> 4.67 | F21: 1296.53 | G21: 1303.54 | H21: 7.01
G23: Pre-Stim | H23: =AVERAGE(H6:H9) -> 17.2375 | I23: 52.025 | J23: 0.249732667 | K23: 0.750267333 | L23: 0.05805734839 | M23: 0.01450848514 | N23: 69.2625
G24: Stim | H24: =AVERAGE(H13:H14) -> 5.45 | I24: 38.605 | J24: 0.1252937077 | K24: 0.8747062923 | L24: 0.1835610164 | M24: 0.02294200503 | N24: 44.055
G25: No-Stim | H25: =AVERAGE(H15:H20) -> 16.245 | I25: 40.51333333 | J25: 0.2886821449 | K25: 0.7113178551 | L25: 0.06159379578 | M25: 0.01776323151 | N25: 56.75833333
F29: CabPK + CCAP + GPR
F30: LG start | G30: LG stop | H30: Prot | I30: Retr | J30: LG DC | K30: Int1 DC | L30: LG freq | M30: GMR freq | N30: Period | O30: s/b | Q30: DG start | R30: DG stop | S30: Burst Lth | T30: IBI
F31: 353.06 | G31: 369.94 | H31: =G31-F31 -> 16.88 | I31: =F32-G31 -> 19.19 | J31: =H31/N31 -> 0.4679789299 | K31: =I31/N31 -> 0.5320210701 | L31: =1/H31 -> 0.05924170616 | M31: =1/N31 -> 0.02772387025 | N31: =H31+I31 -> 36.07 | Q31: * DG burst continuously
F32: 389.13 | G32: 410.38 | H32: 21.25 | I32: 27.06 | J32: =H32/N32 -> 0.4398675223 | K32: =I32/N32 -> 0.5601324777 | L32: =1/H32 -> 0.04705882353 | M32: =1/N32 -> 0.02069964811 | N32: =H32+I32 -> 48.31
F33: 437.44 | G33: 459.35 | H33: 21.91 | I33: 23.16 | J33: 0.4861326825 | K33: 0.5138673175 | L33: 0.0456412597 | M33: 0.02218770801 | N33: 45.07
F34: 482.51 | G34: 494.42 | H34: 11.91 | I34: 20.98 | J34: 0.3621161447 | K34: 0.6378838553 | L34: 0.08396305626 | M34: 0.03040437823 | N34: 32.89
F35: 515.4 | G35: 531.62 | H35: 16.22 | I35: 22.36 | J35: 0.4204250907 | K35: 0.5795749093 | L35: 0.06165228113 | M35: 0.02592016589 | N35: 38.58
B36: Stim start | C36: Stim stop | D36: Stim | F36: 553.98 | G36: 573.51 | H36: 19.53 | I36: 22.63 | J36: 0.4632352941 | K36: 0.5367647059 | L36: 0.05120327701 | M36: 0.02371916509 | N36: 42.16
B37: 598.26 | C37: 604.35 | D37: =C37-B37 -> 6.09 | F37: 596.14 | G37: 601.3 | H37: 5.16 | I37: 22.11 | J37: 0.1892189219 | K37: 0.8107810781 | L37: 0.1937984496 | M37: 0.0366703337 | N37: 27.27
B38: 624.66 | C38: 631.08 | D38: 6.42 | F38: 623.41 | G38: 629.63 | H38: 6.22 | I38: 18.72 | J38: 0.2493985565 | K38: 0.7506014435 | L38: 0.1607717042 | M38: 0.04009623095 | N38: 24.94
B39: 648.95 | C39: 655.63 | D39: 6.68 | F39: 648.35 | G39: 654.77 | H39: 6.42 | I39: 20.52 | J39: 0.2383073497 | K39: 0.7616926503 | L39: 0.1557632399 | M39: 0.03711952487 | N39: 26.94
B40: NO STIM | F40: 675.29 | G40: 694.08 | H40: 18.79 | I40: 26.81 | J40: 0.4120614035 | K40: 0.5879385965 | L40: 0.05321979776 | M40: 0.02192982456 | N40: 45.6
B41: 721.39 | C41: 727.33 | D41: 5.94 | F41: 720.89 | G41: 727.43 | H41: 6.54 | I41: 19.69 | J41: 0.249332825 | K41: 0.750667175 | L41: 0.1529051988 | M41: 0.03812428517 | N41: 26.23
B42: NO STIM | F42: 747.12 | G42: 765.1 | H42: 17.98 | I42: 21.77 | J42: 0.452327044 | K42: 0.547672956 | L42: 0.05561735261 | M42: 0.0251572327 | N42: 39.75
B43: 787.35 | C43: 793.29 | D43: 5.94 | F43: 786.87 | G43: 792.65 | H43: 5.78 | I43: 23.05 | J43: 0.2004856053 | K43: 0.7995143947 | L43: 0.1730103806 | M43: 0.03468609088 | N43: 28.83
B44: NO STIM | F44: 815.7 | G44: 829.99 | H44: 14.29 | I44: 20.65 | J44: 0.4089868346 | K44: 0.5910131654 | L44: 0.0699790063 | M44: 0.02862049227 | N44: 34.94
B45: 851.06 | C45: 856.47 | D45: 5.41 | F45: 850.64 | G45: 856.63 | H45: 5.99 | I45: 18.67 | J45: 0.2429034874 | K45: 0.7570965126 | L45: 0.1669449082 | M45: 0.04055150041 | N45: 24.66
B46: NO STIM | F46: 875.3 | G46: 888.56 | H46: 13.26 | I46: 24.02 | J46: 0.3556866953 | K46: 0.6443133047 | L46: 0.0754147813 | M46: 0.02682403433 | N46: 37.28
F47: 912.58 | G47: 925.15 | H47: 12.57 | I47: 21.3 | J47: 0.3711248893 | K47: 0.6288751107 | L47: 0.07955449483 | M47: 0.02952465309 | N47: 33.87
F48: 946.45 | G48: 959.34 | H48: 12.89 | I48: 19.42 | J48: 0.3989476942 | K48: 0.6010523058 | L48: 0.07757951901 | M48: 0.03095017023 | N48: 32.31
F49: 978.76 | G49: 992.29 | H49: 13.53
G51: Pre-Stim | H51: =AVERAGE(H31:H36) -> 17.95 | I51: =AVERAGE(I31:I36) -> 22.56333333 | J51: 0.4399592774 | K51: 0.5600407226 | L51: 0.05812673396 | M51: 0.02510915593 | N51: 40.51333333
G52: Stim | H52: =AVERAGE(H37:H39,H41,H43,H45) -> 6.018333333 | I52: =AVERAGE(I37:I39,I41,I43,I45) -> 20.46 | J52: 0.2282744576 | K52: 0.7717255424 | L52: 0.1671989802 | M52: 0.037874661 | N52: 26.47833333
G53: No-Stim | H53: =AVERAGE(H40,H42,H44,H46:H48) -> 14.96333333 | I53: =AVERAGE(I40,I42,I44,I46:I48) -> 22.32833333 | J53: 0.3998557601 | K53: 0.6001442399 | L53: 0.0685608253 | M53: 0.02716773453 | N53: 37.29166667
F56: MCN1 + GPR
F57: LG start | G57: LG stop | H57: Prot | I57: Retr | J57: LG DC | K57: Int1 DC | L57: LG freq | M57: GMR freq | N57: Period | O57: s/b | Q57: DG start | R57: DG stop | S57: Burst Lth | T57: IBI
F58: 276.56 | G58: 288.87 | H58: =G58-F58 -> 12.31 | I58: =F59-G58 -> 14.95 | J58: =H58/N58 -> 0.4515774028 | K58: =I58/N58 -> 0.5484225972 | L58: =1/H58 -> 0.08123476848 | M58: =1/N58 -> 0.03668378577 | N58: =H58+I58 -> 27.26 | Q58: * No DG activity
F59: 303.82 | G59: 317.26 | H59: 13.44 | I59: 14.89 | J59: =H59/N59 -> 0.474408754 | K59: =I59/N59 -> 0.525591246 | L59: =1/H59 -> 0.0744047619 | M59: 0.03529827038 | N59: =H59+I59 -> 28.33
F60: 332.15 | G60: 344.39 | H60: 12.24 | I60: 14.69 | J60: 0.454511697 | K60: 0.545488303 | L60: 0.08169934641 | M60: 0.03713330858 | N60: 26.93
F61: 359.08 | G61: 371.26 | H61: 12.18 | I61: 14.23 | J61: 0.4611889436 | K61: 0.5388110564 | L61: 0.08210180624 | M61: 0.03786444529 | N61: 26.41
F62: 385.49 | G62: 397.53 | H62: 12.04 | I62: 15.69 | J62: 0.4341868013 | K62: 0.5658131987 | L62: 0.08305647841 | M62: 0.03606202669 | N62: 27.73
F63: 413.22 | G63: 427.18 | H63: 13.96 | I63: 15.68 | J63: 0.4709851552 | K63: 0.5290148448 | L63: 0.07163323782 | M63: 0.03373819163 | N63: 29.64
B64: Stim start | C64: Stim stop | D64: Stim | F64: 442.86 | G64: 454.64 | H64: 11.78 | I64: 14.5 | J64: 0.4482496195 | K64: 0.5517503805 | L64: 0.08488964346 | M64: 0.03805175038 | N64: 26.28
B65: 469.64 | C65: 477.24 | D65: =C65-B65 -> 7.6 | F65: 469.14 | G65: 475.33 | H65: 6.19 | I65: 16.47 | J65: 0.273168579 | K65: 0.726831421 | L65: 0.1615508885 | M65: 0.04413062665 | N65: 22.66
B66: 492.66 | C66: 499.91 | D66: 7.25 | F66: 491.8 | G66: 498.53 | H66: 6.73 | I66: 16.19 | J66: 0.2936300175 | K66: 0.7063699825 | L66: 0.1485884101 | M66: 0.04363001745 | N66: 22.92
B67: NO STIM | F67: 514.72 | G67: 528.3 | H67: 13.58 | I67: 15.87 | J67: 0.4611205433 | K67: 0.5388794567 | L67: 0.0736377025 | M67: 0.03395585739 | N67: 29.45
B68: 545.01 | C68: 551.74 | D68: 6.73 | F68: 544.17 | G68: 551.83 | H68: 7.66 | I68: 13.84 | J68: 0.3562790698 | K68: 0.6437209302 | L68: 0.1305483029 | M68: 0.04651162791 | N68: 21.5
B69: NO STIM | F69: 565.67 | G69: 579.41 | H69: 13.74 | I69: 16.85 | J69: 0.4491663942 | K69: 0.5508336058 | L69: 0.07278020378 | M69: 0.03269042171 | N69: 30.59
B70: 597.05 | C70: 601.41 | D70: 4.36 | F70: 596.26 | G70: 602.99 | H70: 6.73 | I70: 15.96 | J70: 0.2966064346 | K70: 0.7033935654 | L70: 0.1485884101 | M70: 0.04407227854 | N70: 22.69
B71: 619.95 | C71: 625.24 | D71: 5.29 | F71: 618.95 | G71: 627.57 | H71: 8.62 | I71: =F72-G71 -> 14.28 | J71: 0.376419214 | K71: 0.623580786 | L71: 0.1160092807 | M71: 0.04366812227 | N71: 22.9
B72: 642.73 | C72: 651 | D72: 8.27 | F72: 641.85 | G72: 650.07 | H72: 8.22 | I72: 16.17 | J72: 0.3370233702 | K72: 0.6629766298 | L72: 0.1216545012 | M72: 0.04100041 | N72: 24.39
B73: 667.15 | C73: 675.74 | D73: 8.59 | F73: 666.24 | G73: 674.49 | H73: 8.25 | I73: 17.89 | J73: 0.3156082632 | K73: 0.6843917368 | L73: 0.1212121212 | M73: 0.03825554705 | N73: 26.14
B74: NO STIM | F74: 692.38 | G74: 706.47 | H74: 14.09 | I74: 15.52 | J74: 0.4758527524 | K74: 0.5241472476 | L74: 0.07097232079 | M74: 0.0337723742 | N74: 29.61
F75: 721.99 | G75: 734.22 | H75: 12.23 | I75: 18.17 | J75: 0.4023026316 | K75: 0.5976973684 | L75: 0.08176614881 | M75: 0.03289473684 | N75: 30.4
F76: 752.39 | G76: 765.53 | H76: 13.14 | I76: 18.33 | J76: 0.4175405148 | K76: 0.5824594852 | L76: 0.07610350076 | M76: 0.03177629488 | N76: 31.47
F77: 783.86 | G77: 797.11 | H77: 13.25 | I77: 16.54 | J77: 0.4447801276 | K77: 0.5552198724 | L77: 0.07547169811 | M77: 0.03356831151 | N77: 29.79
B78: 814.35 | C78: 819.43 | D78: 5.08 | F78: 813.65 | G78: 819.64 | H78: 5.99 | J78: 1 | K78: 0 | L78: 0.1669449082 | M78: 0.1669449082 | N78: 5.99
G80: Pre-Stim | H80: =AVERAGE(H58:H64) -> 12.56428571 | I80: =AVERAGE(I58:I64) -> 14.94714286 | J80: 0.4564440533 | K80: 0.5435559467 | L80: 0.0798600061 | M80: 0.03640453982 | N80: 27.51142857
G81: Stim | H81: =AVERAGE(H65:H66,H68,H70:H73) -> 7.485714286 | I81: =AVERAGE(I65:I66,I68,I70:I73) -> 15.82857143 | J81: 0.3212478497 | K81: 0.6787521503 | L81: 0.1354502735 | M81: 0.0430383757 | N81: 23.31428571
G82: No-Stim | H82: =AVERAGE(H67,H69,H74:H77) -> 13.33833333 | I82: =AVERAGE(I67,I69,I74:I77) -> 16.88 | J82: 0.4417938273 | K82: 0.5582061727 | L82: 0.07512192913 | M82: 0.03310966609 | N82: 30.21833333
F84: MCN1 + CCAP + GPR
F85: LG start | G85: LG stop | H85: Prot | I85: Retr | J85: LG DC | K85: Int1 DC | L85: LG freq | M85: GMR freq | N85: Period | O85: s/b
F86: 320.24 | G86: 335.92 | H86: =G86-F86 -> 15.68 | I86: =F87-G86 -> 10.2 | J86: =H86/N86 -> 0.6058732612 | K86: =I86/N86 -> 0.3941267388 | L86: =1/H86 -> 0.0637755102 | M86: =1/N86 -> 0.03863987635 | N86: =H86+I86 -> 25.88
F87: 346.12 | G87: 362.33 | H87: 16.21 | I87: 11.05 | J87: =H87/N87 -> 0.5946441673 | K87: =I87/N87 -> 0.4053558327 | L87: =1/H87 -> 0.06169031462 | M87: 0.03668378577 | N87: =H87+I87 -> 27.26
F88: 373.38 | G88: 388.67 | H88: 15.29 | I88: 10.39 | J88: 0.5954049844 | K88: 0.4045950156 | L88: 0.06540222368 | M88: 0.03894080997 | N88: 25.68
F89: 399.06 | G89: 414.48 | H89: 15.42 | I89: 11.18 | J89: 0.5796992481 | K89: 0.4203007519 | L89: 0.06485084306 | M89: 0.03759398496 | N89: 26.6
F90: 425.66 | G90: 440.09 | H90: 14.43 | I90: 10.79 | J90: 0.5721649485 | K90: 0.4278350515 | L90: 0.0693000693 | M90: 0.03965107058 | N90: 25.22
B91: Stim start | C91: Stim stop | D91: Stim | F91: 450.88 | G91: 464.97 | H91: 14.09 | I91: 10.91 | J91: 0.5636 | K91: 0.4364 | L91: 0.07097232079 | M91: 0.04 | N91: 25
B92: 476.64 | C92: 488.05 | D92: =C92-B92 -> 11.41 | F92: 475.88 | G92: 484.36 | H92: 8.48 | I92: 14.23 | J92: 0.3734037869 | K92: 0.6265962131 | L92: 0.1179245283 | M92: 0.04403346543 | N92: 22.71
B93: NO STIM | F93: 498.59 | G93: 514.35 | H93: 15.76 | I93: 12.88 | J93: 0.5502793296 | K93: 0.4497206704 | L93: 0.06345177665 | M93: 0.03491620112 | N93: 28.64
B94: 528.15 | C94: 536.36 | D94: 8.21 | F94: 527.23 | G94: 535.8 | H94: 8.57 | I94: 14.26 | J94: 0.3753832676 | K94: 0.6246167324 | L94: 0.1166861144 | M94: 0.04380201489 | N94: 22.83
B95: 550.94 | C95: 554.99 | D95: 4.05 | F95: 550.06 | G95: 558.07 | H95: 8.01 | I95: 14.14 | J95: 0.3616252822 | K95: 0.6383747178 | L95: 0.1248439451 | M95: 0.04514672686 | N95: 22.15
B96: NO STIM | F96: 572.21 | G96: 588.36 | H96: 16.15 | I96: 12.86 | J96: 0.5567045846 | K96: 0.4432954154 | L96: 0.06191950464 | M96: 0.03447087211 | N96: 29.01
B97: 601.98 | C97: 611.31 | D97: 9.33 | F97: 601.22 | G97: 610.15 | H97: 8.93 | I97: 16.14 | J97: 0.3562026326 | K97: 0.6437973674 | L97: 0.1119820829 | M97: 0.03988831272 | N97: 25.07
B98: NO STIM | F98: 626.29 | G98: 642.84 | H98: 16.55 | I98: 14.26 | J98: 0.5371632587 | K98: 0.4628367413 | L98: 0.06042296073 | M98: 0.03245699448 | N98: 30.81
B99: 657.74 | C99: 667.31 | D99: 9.57 | F99: 657.1 | G99: 666.83 | H99: 9.73 | I99: 15.46 | J99: 0.3862643906 | K99: 0.6137356094 | L99: 0.1027749229 | M99: 0.03969829297 | N99: 25.19
B100: 683.17 | C100: 688.3 | D100: 5.13 | F100: 682.29 | G100: 690.02 | H100: 7.73 | I100: 17.91 | J100: 0.3014820593 | K100: 0.6985179407 | L100: 0.1293661061 | M100: 0.03900156006 | N100: 25.64
B101: NO STIM | F101: 707.93 | G101: 721.55 | H101: 13.62 | I101: 17.46 | J101: 0.4382239382 | K101: 0.5617760618 | L101: 0.07342143906 | M101: 0.03217503218 | N101: 31.08
B102: 739.97 | C102: 749.27 | D102: 9.3 | F102: 739.01 | G102: 748.19 | H102: 9.18 | I102: 17.98 | J102: 0.3379970545 | K102: 0.6620029455 | L102: 0.1089324619 | M102: 0.03681885125 | N102: 27.16
B103: NO STIM | F103: 766.17 | G103: 780.27 | H103: 14.1 | I103: 18.99 | J103: 0.4261106074 | K103: 0.5738893926 | L103: 0.07092198582 | M103: 0.03022061046 | N103: 33.09
B104: 799.89 | C104: 810.35 | D104: 10.46 | F104: 799.26 | G104: 808.27 | H104: 9.01 | I104: 19.31 | J104: 0.3181497175 | K104: 0.6818502825 | L104: 0.1109877913 | M104: 0.03531073446 | N104: 28.32
B105: NO STIM | F105: 827.58 | G105: 840.04 | H105: 12.46 | I105: 17.58 | J105: 0.4147802929 | K105: 0.5852197071 | L105: 0.08025682183 | M105: 0.03328894807 | N105: 30.04
F106: 857.62 | G106: 869.44 | H106: 11.82 | I106: 22.55 | J106: 0.3439045679 | K106: 0.6560954321 | L106: 0.08460236887 | M106: 0.02909514111 | N106: 34.37
F107: 891.99 | G107: 905.33 | H107: 13.34 | I107: 22.31 | J107: 0.3741935484 | K107: 0.6258064516 | L107: 0.07496251874 | M107: 0.02805049088 | N107: 35.65
F108: 927.64 | G108: 941.34 | H108: 13.7 | I108: 16.22 | J108: 0.4578877005 | K108: 0.5421122995 | L108: 0.07299270073 | M108: 0.03342245989 | N108: 29.92
F109: 957.56 | G109: 971.14 | H109: 13.58 | I109: 20.87 | J109: 0.3941944848 | K109: 0.6058055152 | L109: 0.0736377025 | M109: 0.0290275762 | N109: 34.45
F110: 992.01 | G110: 1004.03 | H110: 12.02
G112: Pre-Stim | H112: =AVERAGE(H86:H91) -> 15.18666667 | I112: =AVERAGE(I86:I91) -> 10.75333333 | J112: 0.5852311016 | K112: 0.4147688984 | L112: 0.06599854694 | M112: 0.03858492127 | N112: 25.94
G113: Stim | H113: =AVERAGE(H92,H94,H97,H99,H102,H104,H95,H100) -> 8.705 | I113: =AVERAGE(I92,I94,I97,I99,I102,I104,I95,I100) -> 16.17875 | J113: 0.3513135239 | K113: 0.6486864761 | L113: 0.1154372441 | M113: 0.04046249483 | N113: 24.88375
G114: No-Stim | H114: =AVERAGE(H93,H96,H98,H101,H103,H105:H109) -> 14.108 | I114: =AVERAGE(I93,I96,I98,I101,I103,I105:I109) -> 17.598 | J114: 0.4493442313 | K114: 0.5506557687 | L114: 0.07165897796 | M114: 0.03171243265 | N114: 31.706

Sheet 08112017
C1: *** Data file from Mikey's lab are labeled by the date of the exp (as per protocol in Mikey's lab) thus I'll label on each page at the top, the lab book number and page that each exp can be found in
C3: 901_035
F4: CabPK + GPR
C5: = stim was shorter than LG burst | F5: LG start | G5: LG stop | H5: Prot | I5: Retr | J5: LG DC | K5: Int1 DC | L5: LG freq | M5: GMR freq | N5: Period | O5: s/b | P5: Spike Freq | R5: DG start | S5: DG stop | T5: Burst Lth | U5: IBI
C6: = Stim | F6: 280.12 | G6: 287.02 | H6: =G6-F6 -> 6.9 | I6: =F7-G6 -> 6.52 | J6: =H6/N6 -> 0.5141579732 | K6: =I6/N6 -> 0.4858420268 | L6: =1/H6 -> 0.1449275362 | M6: =1/N6 -> 0.07451564829 | N6: =H6+I6 -> 13.42 | O6: 29 | P6: =O6/H6 -> 4.202898551
F7: 293.54 | G7: 301.59 | H7: =G7-F7 -> 8.05 | I7: =F8-G7 -> 11.1 | J7: =H7/N7 -> 0.4203655352 | K7: =I7/N7 -> 0.5796344648 | L7: =1/H7 -> 0.1242236025 | M7: =1/N7 -> 0.05221932115 | N7: =H7+I7 -> 19.15 | O7: 37 | P7: =O7/H7 -> 4.596273292 | R7: 306.72 | S7: 316.96 | T7: =S7-R7 -> 10.24 | U7: =R10-S7 -> 34.16
F8: 312.69 | G8: 319.28 | H8: 6.59 | I8: 6.71 | J8: 0.4954887218 | K8: 0.5045112782 | L8: 0.1517450683 | M8: 0.07518796992 | N8: 13.3 | O8: 25 | P8: 3.793626707
F9: 325.99 | G9: 333.19 | H9: 7.2 | I9: 8.53 | J9: =H9/N9 -> 0.4577240941 | K9: 0.5422759059 | L9: 0.1388888889 | M9: 0.06357279085 | N9: 15.73 | O9: 36 | P9: 5
F10: 341.72 | G10: 347.88 | H10: 6.16 | I10: 15.19 | J10: 0.2885245902 | K10: 0.7114754098 | L10: 0.1623376623 | M10: 0.04683840749 | N10: 21.35 | O10: 28 | P10: 4.545454545 | R10: 351.12 | S10: 365.63 | T10: =S10-R10 -> 14.51 | U10: =R12-S10 -> 25.82
F11: 363.07 | G11: 370.51 | H11: 7.44 | I11: 9.82 | J11: 0.4310544612 | K11: 0.5689455388 | L11: 0.1344086022 | M11: 0.05793742758 | N11: 17.26 | O11: 34 | P11: 4.569892473
F12: 380.33 | G12: 386.37 | H12: 6.04 | I12: 16.64 | J12: 0.266313933 | K12: 0.733686067 | L12: 0.1655629139 | M12: 0.04409171076 | N12: 22.68 | O12: 27 | P12: 4.470198675 | R12: 391.45 | S12: 405.37 | T12: =S12-R12 -> 13.92 | U12: =R14-S12 -> 23.95
F13: 403.01 | G13: 409.59 | H13: 6.58 | I13: 8.26 | J13: 0.4433962264 | K13: 0.5566037736 | L13: 0.1519756839 | M13: 0.06738544474 | N13: 14.84 | O13: 29 | P13: 4.407294833
F14: 417.85 | G14: 425.36 | H14: 7.51 | I14: 16.53 | J14: 0.3123960067 | K14: 0.6876039933 | L14: 0.1331557923 | M14: 0.04159733777 | N14: 24.04 | O14: 29 | P14: 3.861517976 | R14: 429.32 | S14: 445.6 | T14: =S14-R14 -> 16.28 | U14: =R16-S14 -> 19.1
B15: Stim start | C15: Stim stop | D15: Stim | F15: 441.89 | G15: 447.79 | H15: 5.9 | I15: 10.89 | J15: 0.3513996426 | K15: 0.6486003574 | L15: 0.1694915254 | M15: 0.05955926147 | N15: 16.79 | O15: 21 | P15: 3.559322034
B16: 459.35 | C16: 464.92 | D16: =C16-B16 -> 5.57 | F16: 458.68 | G16: 463.06 | H16: 4.38 | I16: 15.1 | J16: 0.2248459959 | K16: 0.7751540041 | L16: 0.2283105023 | M16: 0.05133470226 | N16: 19.48 | O16: 21 | P16: 4.794520548 | R16: 464.7 | S16: 494.07 | T16: =S16-R16 -> 29.37 | U16: =R20-S16 -> 39.19
B17: 478.31 | C17: 480.94 | D17: =C17-B17 -> 2.63 | F17: 478.16 | G17: 480.94 | H17: 2.78 | I17: 11.52 | J17: 0.1944055944 | K17: 0.8055944056 | L17: 0.3597122302 | M17: 0.06993006993 | N17: 14.3 | O17: 12 | P17: 4.316546763
B18: NO STIM | F18: 492.46 | G18: 498.21 | H18: 5.75 | I18: 9.57 | J18: 0.3753263708 | K18: 0.6246736292 | L18: 0.1739130435 | M18: 0.06527415144 | N18: 15.32 | O18: 25 | P18: 4.347826087
F19: 507.78 | G19: 514.04 | H19: 6.26 | I19: 10.17 | J19: 0.3810103469 | K19: 0.6189896531 | L19: 0.1597444089 | M19: 0.06086427267 | N19: 16.43 | O19: 25 | P19: 3.993610224
F20: 524.21 | G20: 529.96 | H20: 5.75 | I20: 18.23 | J20: 0.2397831526 | K20: 0.7602168474 | L20: 0.1739130435 | M20: 0.04170141785 | N20: 23.98 | O20: 21 | P20: 3.652173913 | R20: 533.26 | S20: 551.85 | T20: =S20-R20 -> 18.59 | U20: =R23-S20 -> 29.47
F21: 548.19 | G21: 554.07 | H21: 5.88 | I21: 9.27 | J21: 0.3881188119 | K21: 0.6118811881 | L21: 0.1700680272 | M21: 0.06600660066 | N21: 15.15 | O21: 20 | P21: 3.401360544
B22: 563.95 | C22: 564.24 | D22: 0.29 | F22: 563.34 | G22: 569.19 | H22: 5.85 | I22: 9.27 | J22: 0.3869047619 | K22: 0.6130952381 | L22: 0.1709401709 | M22: 0.06613756614 | N22: 15.12 | O22: 17 | P22: 2.905982906
B23: 579.2 | C23: 582.35 | D23: 3.15 | F23: 578.46 | G23: 581.45 | H23: 2.99 | I23: 14.09 | J23: 0.175058548 | K23: 0.824941452 | L23: 0.3344481605 | M23: 0.05854800937 | N23: 17.08 | O23: 13 | P23: 4.347826087 | R23: 581.32 | S23: 594.64 | T23: =S23-R23 -> 13.32 | U23: =R25-S23 -> 21.58
B24: 596.34 | C24: 600.1 | D24: 3.76 | F24: 595.54 | G24: 599.28 | H24: 3.74 | I24: 12.95 | J24: 0.2240862792 | K24: 0.7759137208 | L24: 0.2673796791 | M24: 0.05991611744 | N24: 16.69 | O24: 19 | P24: 5.080213904
B25: 613.05 | C25: 616.94 | D25: 3.89 | F25: 612.23 | G25: 615.86 | H25: 3.63 | I25: 17.15 | J25: 0.1746871992 | K25: 0.8253128008 | L25: 0.2754820937 | M25: 0.04812319538 | N25: 20.78 | O25: 18 | P25: 4.958677686 | R25: 616.22 | S25: 647.5 | T25: =S25-R25 -> 31.28 | U25: =R29-S25 -> 38.81
A26: * Turned up Voltage on GPR?? | B26: 633.61 | C26: 636.53 | D26: 2.92 | F26: 633.01 | G26: 634.91 | H26: 1.9 | I26: 11.92 | J26: 0.1374819103 | K26: 0.8625180897 | L26: 0.5263157895 | M26: 0.07235890014 | N26: 13.82 | O26: 9 | P26: 4.736842105
B27: NO STIM | F27: 646.83 | G27: 651.74 | H27: 4.91 | I27: 11.58 | J27: 0.2977562159 | K27: 0.7022437841 | L27: 0.2036659878 | M27: 0.06064281383 | N27: 16.49 | O27: 21 | P27: 4.276985743
F28: 663.32 | G28: 667.83 | H28: 4.51 | I28: 10.56 | J28: 0.299270073 | K28: 0.700729927 | L28: 0.22172949 | M28: 0.06635700066 | N28: 15.07 | O28: 19 | P28: 4.21286031
F29: 678.39 | G29: 682.95 | H29: 4.56 | R29: 686.31
G30: Pre-Stim | H30: =AVERAGE(H6:H15) -> 6.837 | I30: =AVERAGE(I6:I15) -> 11.019 | J30: 0.3980821184 | K30: 0.6019178816 | L30: 0.1476717276 | M30: 0.058290532 | N30: =AVERAGE(N6:N15) -> 17.856 | O30: 29.5 | P30: 4.300647909
G31: Stim | H31: =AVERAGE(H16:H17,H23:H26) -> 3.236666667 | I31: 13.78833333 | J31: 0.1884275878 | K31: 0.8115724122 | L31: 0.3319414092 | M31: 0.06003516575 | N31: 17.025 | O31: 15.33333333 | P31: 4.705771182
D32: =_xlfn.STDEV.S(H6:H15) -> 0.7088496158 | G32: No-Stim | H32: =AVERAGE(H18:H21,H27:H28) -> 5.51 | I32: =AVERAGE(I18:I21,I27:I28) -> 11.56333333 | J32: 0.3302108285 | K32: 0.6697891715 | L32: 0.1838390002 | M32: 0.06014104285 | N32: 17.07333333 | O32: =AVERAGE(O18:O21,O27:O28) -> 21.83333333 | P32: =AVERAGE(P18:P21,P27:P28) -> 3.980802804
D33: =_xlfn.STDEV.S(H16:H17,H23:H26) -> 0.8684852714 | G33: Burst after stim | H33: =AVERAGE(H18,H27) -> 5.33 | I33: =AVERAGE(I18,I27) -> 10.575 | J33: 0.3365412933 | K33: 0.6634587067 | L33: 0.1887895156 | M33: 0.06295848263 | N33: 15.905 | O33: 23 | P33: =AVERAGE(P18,P27) -> 4.312405915
F35: W/ DG | G35: Pre-Stim | H35: =AVERAGE(H7,H10,H12,H14) -> 6.94 | I35: =AVERAGE(I7,I10,I12,I14) -> 14.865 | J35: 0.3219000163 | K35: 0.6780999837 | L35: 0.1463199928 | M35: 0.04618669429 | N35: 21.805 | O35: 30.25
G36: Stim | H36: =AVERAGE(H23,H25,H16) -> 3.666666667 | I36: =AVERAGE(I23,I25,I16) -> 15.44666667 | J36: 0.191530581 | K36: 0.808469419 | L36: 0.2794135855 | M36: 0.05266863567 | N36: 19.11333333 | O36: 17.33333333
F40: W/O DG | G40: Pre-Stim | H40: =AVERAGE(H6,H8,H9,H11,H13,H15) -> 6.768333333 | I40: =AVERAGE(I6,I8,I9,I11,I13,I15) -> 8.455 | J40: 0.4488701866 | K40: 0.5511298134 | L40: 0.1485728841 | M40: 0.06635975714 | N40: 15.22333333 | O40: 29
G41: Stim | H41: =AVERAGE(H17,H24,H26) -> 2.806666667 | I41: =AVERAGE(I17,I24,I26) -> 12.13 | J41: 0.1853245946 | K41: 0.8146754054 | L41: 0.3844692329 | M41: 0.06740169584 | N41: 14.93666667 | O41: 13.33333333
G42: No-Stim | H42: =AVERAGE(H18,H19,H21,H27,H28) -> 5.462 | I42: =AVERAGE(I18,I19,I21,I27,I28) -> 10.23 | J42: 0.3482963637 | K42: 0.6517036363 | L42: 0.1858241915 | M42: 0.06382896785 | N42: 15.692 | O42: 22
F45: CabPK + CCAP + GPR
F46: LG start | G46: LG stop | H46: Prot | I46: Retr | J46: LG DC | K46: Int1 DC | L46: LG freq | M46: GMR freq | N46: Period | O46: s/b | P46: Spike Freq | R46: DG start | S46: DG stop | T46: Burst Lth | U46: IBI
F47: 4.94 | G47: 8.62 | H47: =G47-F47 -> 3.68 | I47: =F48-G47 -> 7.07 | J47: =H47/N47 -> 0.3423255814 | K47: =I47/N47 -> 0.6576744186 | L47: =1/H47 -> 0.2717391304 | M47: =1/N47 -> 0.09302325581 | N47: =H47+I47 -> 10.75 | O47: 16 | P47: =O47/H47 -> 4.347826087
F48: 15.69 | G48: 20 | H48: =G48-F48 -> 4.31 | I48: =F49-G48 -> 12.92 | J48: =H48/N48 -> 0.2501450958 | K48: =I48/N48 -> 0.7498549042 | L48: =1/H48 -> 0.2320185615 | M48: 0.05803830528 | N48: =H48+I48 -> 17.23 | O48: 17 | P48: =O48/H48 -> 3.944315545 | R48: 23.9 | S48: 36.1 | T48: =S48-R48 -> 12.2 | U48: =R51-S48 -> 32.05
F49: 32.92 | G49: 37.64 | H49: 4.72 | I49: 8.26 | J49: 0.3636363636 | K49: 0.6363636364 | L49: 0.2118644068 | M49: 0.07704160247 | N49: 12.98 | O49: 17 | P49: 3.601694915
F50: 45.9 | G50: 50.05 | H50: 4.15 | I50: 7.64 | J50: 0.3519932146 | K50: 0.6480067854 | L50: 0.2409638554 | M50: 0.08481764207 | N50: 11.79 | O50: 15 | P50: 3.614457831
F51: 57.69 | G51: 62.1 | H51: 4.41 | I51: 15.18 | J51: 0.2251148545 | K51: 0.7748851455 | L51: 0.2267573696 | M51: 0.05104645227 | N51: 19.59 | O51: 17 | P51: 3.854875283 | R51: 68.15 | S51: 80.67 | T51: =S51-R51 -> 12.52 | U51: =R54-S51 -> 30.36
F52: 77.28 | G52: 81.9 | H52: 4.62 | I52: 7.95 | J52: 0.3675417661 | K52: 0.6324582339 | L52: 0.2164502165 | M52: 0.07955449483 | N52: 12.57 | O52: 18 | P52: 3.896103896
F53: 89.85 | G53: 92.67 | H53: 2.82 | I53: 8.51 | J53: 0.2488967343 | K53: 0.7511032657 | L53: 0.3546099291 | M53: 0.08826125331 | N53: 11.33 | O53: 13 | P53: 4.609929078
F54: 101.18 | G54: 104.97 | H54: 3.79 | I54: 15.8 | J54: 0.1934660541 | K54: 0.8065339459 | L54: 0.2638522427 | M54: 0.05104645227 | N54: 19.59 | O54: 15 | P54: 3.957783641 | R54: 111.03 | S54: 122.82 | T54: =S54-R54 -> 11.79 | U54: =R57-S54 -> 30.67
F55: 120.77 | G55: 125.08 | H55: 4.31 | I55: 8.2 | J55: 0.3445243805 | K55: 0.6554756195 | L55: 0.2320185615 | M55: 0.07993605116 | N55: 12.51 | O55: 19 | P55: 4.408352668
F56: 133.28 | G56: 137.28 | H56: 4 | I56: 7.33 | J56: 0.3530450132 | K56: 0.6469549868 | L56: 0.25 | M56: 0.08826125331 | N56: 11.33 | O56: 17 | P56: 4.25
F57: 144.61 | G57: 148.56 | H57: 3.95 | I57: 12.72 | J57: 0.2369526095 | K57: 0.7630473905 | L57: 0.253164557 | M57: 0.0599880024 | N57: 16.67 | O57: 19 | P57: 4.810126582 | R57: 153.49 | S57: 165.59 | T57: =S57-R57 -> 12.1 | U57: =R60-S57 -> 21.49
F58: 161.28 | G58: 165.23 | H58: 3.95 | I58: 5.9 | J58: 0.4010152284 | K58: 0.5989847716 | L58: 0.253164557 | M58: 0.1015228426 | N58: 9.85 | O58: 17 | P58: 4.303797468
B59: Stim start | C59: Stim stop | D59: Stim | F59: 171.13 | G59: 175.85 | H59: 4.72 | I59: 7.48 | J59: 0.3868852459 | K59: 0.6131147541 | L59: 0.2118644068 | M59: 0.08196721311 | N59: 12.2 | O59: 23 | P59: 4.872881356
B60: 183.95 | C60: 188.41 | D60: =C60-B60 -> 4.46 | F60: 183.33 | G60: 187.02 | H60: 3.69 | I60: 11.55 | J60: 0.2421259843 | K60: 0.7578740157 | L60: 0.27100271 | M60: 0.0656167979 | N60: 15.24 | O60: 18 | P60: 4.87804878 | R60: 187.08 | S60: 198.82 | T60: =S60-R60 -> 11.74 | U60: =R62-S60 -> 17.75
B61: 199.26 | C61: 203.71 | D61: =C61-B61 -> 4.45 | F61: 198.57 | G61: 202.27 | H61: 3.7 | I61: 11.22 | J61: 0.2479892761 | K61: 0.7520107239 | L61: 0.2702702703 | M61: 0.06702412869 | N61: 14.92 | O61: 16 | P61: 4.324324324
B62: 213.87 | C62: 217.02 | D62: 3.15 | F62: 213.49 | G62: 215.99 | H62: 2.5 | I62: 13.31 | J62: 0.1581277672 | K62: 0.8418722328 | L62: 0.4 | M62: 0.06325110689 | N62: 15.81 | O62: 14 | P62: 5.6 | R62: 216.57 | S62: 228.48 | T62: =S62-R62 -> 11.91 | U62: =R64-S62 -> 19.22
F63: 229.3 | G63: 233.49 | H63: 4.19 | I63: 10.62 | J63: 0.282916948 | K63: 0.717083052 | L63: 0.2386634845 | M63: 0.06752194463 | N63: 14.81 | O63: 22 | P63: 5.250596659
B64: 244.59 | C64: 247.99 | D64: 3.4 | F64: 244.11 | G64: 247.24 | H64: 3.13 | I64: 13.68 | J64: 0.1861986913 | K64: 0.8138013087 | L64: 0.3194888179 | M64: 0.05948839976 | N64: 16.81 | O64: 18 | P64: 5.750798722 | R64: 247.7 | S64: 261.23 | T64: =S64-R64 -> 13.53 | U64: =R66-S64 -> 18.33
F65: 260.92 | G65: 265.63 | H65: 4.71 | I65: 9.91 | J65: 0.3221614227 | K65: 0.6778385773 | L65: 0.2123142251 | M65: 0.0683994528 | N65: 14.62 | O65: 25 | P65: 5.307855626
B66: 275.97 | C66: 279.44 | D66: 3.47 | F66: 275.54 | G66: 278.45 | H66: 2.91 | I66: 13.68 | J66: 0.1754068716 | K66: 0.8245931284 | L66: 0.3436426117 | M66: 0.06027727547 | N66: 16.59 | O66: 17 | P66: 5.841924399 | R66: 279.56 | S66: 292.22 | T66: =S66-R66 -> 12.66 | U66: =R69-S66 -> 31.57
F67: 292.13 | G67: 296.66 | H67: 4.53 | I67: 9.84 | J67: 0.3152400835 | K67: 0.6847599165 | L67: 0.2207505519 | M67: 0.06958942241 | N67: 14.37 | O67: 26 | P67: 5.739514349
B68: 306.92 | C68: 307.38 | D68: 0.46 | F68: 306.5 | G68: 311.45 | H68: 4.95 | I68: 10.53 | J68: 0.3197674419 | K68: 0.6802325581 | L68: 0.202020202 | M68: 0.0645994832 | N68: 15.48 | O68: 18 | P68: 3.636363636
B69: 322.55 | C69: 325.38 | D69: 2.83 | F69: 321.98 | G69: 324.28 | H69: 2.3 | I69: 13.05 | J69: 0.1498371336 | K69: 0.8501628664 | L69: 0.4347826087 | M69: 0.0651465798 | N69: 15.35 | O69: 15 | P69: 6.52173913 | R69: 323.79 | S69: 350.07 | T69: =S69-R69 -> 26.28
B70: 337.81 | C70: 340.37 | D70: 2.56 | F70: 337.33 | G70: 339.04 | H70: 1.71 | I70: 11.08 | J70: 0.1336982017 | K70: 0.8663017983 | L70: 0.5847953216 | M70: 0.07818608288 | N70: 12.79 | O70: 11 | P70: 6.432748538
F71: 350.12 | G71: 355.15 | H71: 5.03
G72: Pre-Stim | H72: =AVERAGE(H47:H59) -> 4.11 | I72: =AVERAGE(I47:I59) -> 9.612307692 | J72: 0.3127340109 | K72: 0.6872659891 | L72: 0.2475744457 | M72: 0.07650037084 | N72: 13.72230769 | O72: 17.15384615 | P72: =AVERAGE(P47:P59) -> 4.19016495
G73: Stim | H73: =AVERAGE(H60:H62,H64,H66,H69,H70) -> 2.848571429 | I73: =AVERAGE(I60:I62,I64,I66,I69,I70) -> 12.51 | J73: 0.1847691323 | K73: 0.8152308677 | L73: 0.37485462 | M73: 0.06557005306 | N73: 15.35857143 | O73: 15.57142857 | P73: =AVERAGE(P60:P62,P64,P66,P69,P70) -> 5.621369128
G74: No-Stim | H74: =AVERAGE(H63,H65,H67) -> 4.476666667 | I74: =AVERAGE(I63,I65,I67) -> 10.12333333 | J74: 0.3067728181 | K74: 0.6932271819 | L74: 0.2239094205 | M74: 0.06850360661 | N74: 14.6 | O74: 24.33333333 | P74: =AVERAGE(P63,P65,P67) -> 5.432655545
F77: W/ DG | G77: Pre-Stim | H77: =AVERAGE(H48,H51,H54,H57) -> 4.115 | I77: =AVERAGE(I48,I51,I54,I57) -> 14.155 | J77: 0.2264196535 | K77: 0.7735803465 | L77: 0.2439481827 | M77: 0.05502980306 | N77: 18.27 | O77: 17
G78: Stim | H78: =AVERAGE(H60,H62,H64,H66,H69) -> 2.906 | I78: =AVERAGE(I60,I62,I64,I66,I69) -> 13.054 | J78: 0.1823392896 | K78: 0.8176607104 | L78: 0.3537833497 | M78: 0.06275603197 | N78: 15.96 | O78: 16.4
F80: W/O DG | G80: Pre-Stim | H80: =AVERAGE(H47,H49,H50,H52,H53,H55,H56,H58,H59) -> 4.107777778 | I80: =AVERAGE(I47,I49,I50,I52,I53,I55,I56,I58,I59) -> 7.593333333 | J80: 0.3510959476 | K80: 0.6489040524 | L80: 0.2491861182 | M80: 0.08604284541 | N80: 11.70111111 | O80: 17.22222222
G81: Stim | H81: =AVERAGE(H61,H69) -> 3 | I81: =AVERAGE(I61,I69) -> 12.135 | J81: 0.1989132048 | K81: 0.8010867952 | L81: 0.3525264395 | M81: 0.06608535425 | N81: 15.135 | O81: 15.5
F85: MCN1 + GPR
F86: LG start | G86: LG stop | H86: Prot | I86: Retr | J86: LG DC | K86: Int1 DC | L86: LG freq | M86: GMR freq | N86: Period | O86: s/b | R86: DG start | S86: DG stop | T86: Burst Lth | U86: IBI
F87: 486.91 | G87: 496.33 | H87: =G87-F87 -> 9.42 | I87: =F88-G87 -> 15.92 | J87: =H87/N87 -> 0.3717442778 | K87: =I87/N87 -> 0.6282557222 | L87: =1/H87 -> 0.1061571125 | M87: =1/N87 -> 0.03946329913 | N87: =H87+I87 -> 25.34 | R87: 498.55 | S87: 515.58 | T87: =S87-R87 -> 17.03 | U87: =R89-S87 -> 23.71
F88: 512.25 | G88: 521.96 | H88: 9.71 | I88: 7.09 | J88: =H88/N88 -> 0.5779761905 | K88: =I88/N88 -> 0.4220238095 | L88: =1/H88 -> 0.1029866117 | M88: 0.05952380952 | N88: =H88+I88 -> 16.8
F89: 529.05 | G89: 536.23 | H89: 7.18 | I89: 15.97 | J89: 0.3101511879 | K89: 0.6898488121 | L89: 0.139275766 | M89: 0.04319654428 | N89: 23.15 | R89: 539.29 | S89: 556.76 | T89: =S89-R89 -> 17.47 | U89: =R91-S89 -> 24.91
F90: 552.2 | G90: 563.59 | H90: 11.39 | I90: 7.23 | J90: 0.611707841 | K90: 0.388292159 | L90: 0.08779631255 | M90: 0.0537056928 | N90: 18.62
F91: 570.82 | G91: 578.84 | H91: 8.02 | I91: 16.39 | J91: 0.3285538714 | K91: 0.6714461286 | L91: 0.1246882793 | M91: 0.04096681688 | N91: 24.41 | R91: 581.67 | S91: 597.82 | T91: =S91-R91 -> 16.15 | U91: =R93-S91 -> 16.92
B92: Stim start | C92: Stim stop | D92: Stim | F92: 595.23 | G92: 604.08 | H92: 8.85 | I92: 8.54 | J92: 0.5089131685 | K92: 0.4910868315 | L92: 0.1129943503 | M92: 0.05750431282 | N92: 17.39
B93: 613.45 | C93: 619.36 | D93: =C93-B93 -> 5.91 | F93: 612.62 | G93: 614.87 | H93: 2.25 | I93: 13.26 | J93: 0.1450676983 | K93: 0.8549323017 | L93: 0.4444444444 | M93: 0.06447453256 | N93: 15.51 | R93: 614.74 | S93: 654.31 | T93: =S93-R93 -> 39.57 | U93: =R97-S93 -> 16.79
B94: 629.52 | C94: 633.01 | D94: =C94-B94 -> 3.49 | F94: 628.13 | G94: 630.06 | H94: 1.93 | I94: 11.03 | J94: 0.1489197531 | K94: 0.8510802469 | L94: 0.518134715 | M94: 0.07716049383 | N94: 12.96
B95: 641.66 | C95: 644.82 | D95: 3.16 | F95: 641.09 | G95: 643.61 | H95: 2.52 | I95: 9.34 | J95: 0.2124789207 | K95: 0.7875210793 | L95: 0.3968253968 | M95: 0.08431703204 | N95: 11.86
F96: 652.95 | G96: 660.7 | H96: 7.75 | I96: 7.81 | J96: 0.4980719794 | K96: 0.5019280206 | L96: 0.1290322581 | M96: 0.06426735219 | N96: 15.56
B97: 669.09 | C97: 672.54 | D97: 3.45 | F97: 668.51 | G97: 669.5 | H97: 0.99 | I97: 14.23 | J97: 0.06504599212 | K97: 0.9349540079 | L97: 1.01010101 | M97: 0.06570302234 | N97: 15.22 | R97: 671.1 | S97: 696.1 | T97: =S97-R97 -> 25 | U97: =R100-S97 -> 19.65
B98: 684.67 | C98: 687.81 | D98: 3.14 | F98: 683.73 | G98: 685.93 | H98: 2.2 | I98: 9.69 | J98: 0.1850294365 | K98: 0.8149705635 | L98: 0.4545454545 | M98: 0.08410428932 | N98: 11.89
F99: 695.62 | G99: 705.26 | H99: 9.64 | I99: 7.08 | J99: 0.5765550239 | K99: 0.4234449761 | L99: 0.1037344398 | M99: 0.05980861244 | N99: 16.72
B100: 713.01 | C100: 715.87 | D100: 2.86 | F100: 712.34 | G100: 715.54 | H100: 3.2 | I100: 12.05 | J100: 0.2098360656 | K100: 0.7901639344 | L100: 0.3125 | M100: 0.06557377049 | N100: 15.25 | R100: 715.75 | S100: 731.62 | T100: =S100-R100 -> 15.87 | U100: =R102-S100 -> 17.43
F101: 727.59 | G101: 737.21 | H101: 9.62 | I101: 7.96 | J101: 0.5472127418 | K101: 0.4527872582 | L101: 0.103950104 | M101: 0.05688282139 | N101: 17.58
B102: 745.93 | C102: 750.22 | D102: 4.29 | F102: 745.17 | G102: 748.91 | H102: 3.74 | I102: 12.17 | J102: 0.2350722816 | K102: 0.7649277184 | L102: 0.2673796791 | M102: 0.06285355123 | N102: 15.91 | R102: 749.05 | S102: 763.64 | T102: =S102-R102 -> 14.59 | U102: =R104-S102 -> 27.59
B103: 761.67 | C103: 762.1 | D103: 0.43 | F103: 761.08 | G103: 770.74 | H103: 9.66 | I103: 8.26 | J103: 0.5390625 | K103: 0.4609375 | L103: 0.1035196687 | M103: 0.05580357143 | N103: 17.92
F104: 779 | G104: 787.51 | H104: 8.51 | I104: 14.7 | J104: 0.366652305 | K104: 0.633347695 | L104: 0.1175088132 | M104: 0.04308487721 | N104: 23.21 | R104: 791.23 | S104: 807.67 | T104: =S104-R104 -> 16.44 | U104: =R106-S104 -> 17.41
F105: 802.21 | G105: 813.06 | H105: 10.85 | I105: 8.98 | J105: 0.5471507816 | K105: 0.4528492184 | L105: 0.09216589862 | M105: 0.05042864347 | N105: 19.83
B106: 822.7 | C106: 826.15 | D106: =C106-B106 -> 3.45 | F106: 822.04 | G106: 825.24 | H106: 3.2 | I106: 12.89 | J106: 0.1988812927 | K106: 0.8011187073 | L106: 0.3125 | M106: 0.06215040398 | N106: 16.09 | R106: 825.08 | S106: 841.67 | T106: =S106-R106 -> 16.59 | U106: =R108-S106 -> 17.8
F107: 838.13 | G107: 847.09 | H107: 8.96 | I107: 9.84 | J107: 0.4765957447 | K107: 0.5234042553 | L107: 0.1116071429 | M107: 0.05319148936 | N107: 18.8
B108: 857.54 | C108: 861.11 | D108: 3.57 | F108: 856.93 | G108: 859.63 | H108: 2.7 | I108: 11.49 | J108: 0.1902748414 | K108: 0.8097251586 | L108: 0.3703703704 | M108: 0.0704721635 | N108: 14.19 | R108: 859.47 | S108: 874.32 | T108: =S108-R108 -> 14.85 | U108: =R110-S108 -> 18.57
F109: 871.12 | G109: 881.46 | H109: 10.34 | I109: 7.3 | J109: 0.5861678005 | K109: 0.4138321995 | L109: 0.09671179884 | M109: 0.0566893424 | N109: 17.64
B110: 889.87 | C110: 893.84 | D110: 3.97 | F110: 888.76 | G110: 892.79 | H110: 4.03 | I110: 12.35 | J110: 0.246031746 | K110: 0.753968254 | L110: 0.2481389578 | M110: 0.06105006105 | N110: 16.38 | R110: 892.89 | S110: 908.25 | T110: =S110-R110 -> 15.36 | U110: =R112-S110 -> 16.91
F111: 905.14 | G111: 914.97 | H111: 9.83 | I111: 7.16 | J111: 0.5785756327 | K111: 0.4214243673 | L111: 0.1017293998 | M111: 0.05885815185 | N111: 16.99
B112: 922.92 | C112: 925.93 | D112: 3.01 | F112: 922.13 | G112: 925.3 | H112: 3.17 | I112: 11.88 | J112: 0.2106312292 | K112: 0.7893687708 | L112: 0.3154574132 | M112: 0.06644518272 | N112: 15.05 | R112: 925.16 | S112: 940.06 | T112: =S112-R112 -> 14.9 | U112: =R114-S112 -> 18.11
F113: 937.18 | G113: 947.68 | H113: 10.5 | I113: 7.24 | J113: 0.5918827508 | K113: 0.4081172492 | L113: 0.09523809524 | M113: 0.05636978579 | N113: 17.74
B114: 955.82 | C114: 959.25 | D114: 3.43 | F114: 954.92 | G114: 958.3 | H114: 3.38 | I114: 11.89 | J114: 0.2213490504 | K114: 0.7786509496 | L114: 0.2958579882 | M114: 0.06548788474 | N114: 15.27 | R114: 958.17 | S114: 973.76 | T114: =S114-R114 -> 15.59 | U114: =R116-S114 -> 17.9
F115: 970.19 | G115: 980.85 | H115: 10.66 | I115: 7.96 | J115: 0.5725026853 | K115: 0.4274973147 | L115: 0.09380863039 | M115: 0.0537056928 | N115: 18.62
B116: 989.7 | C116: 992.7 | D116: 3 | F116: 988.81 | G116: 991.51 | H116: 2.7 | R116: 991.66 | S116: 1004.41 | T116: =S116-R116 -> 12.75
G117: Pre-Stim | H117: =AVERAGE(H87:H92) -> 9.095 | I117: =AVERAGE(I87:I92) -> 11.85666667 | J117: 0.4515077562 | K117: 0.5484922438 | L117: 0.1123164054 | M117: 0.04906007924 | N117: 20.95166667
G118: Stim | H118: =AVERAGE(H93:H95,H97:H98,H100,H102,H106,H108,H110,H112,H114) -> 2.775833333 | I118: =AVERAGE(I93:I95,I97:I98,I100,I102,I106,I108,I110,I112,I114) -> 11.85583333 | J118: 0.1890515256 | K118: 0.8109484744 | L118: 0.4121879525 | M118: 0.06914936565 | N118: 14.63166667
D119: =_xlfn.STDEV.S(H87:H92) -> 1.458338095 | G119: No-Stim | H119: =AVERAGE(H96,H99,H101,H104,H105,H107,H109,H111,H113,H115) -> 9.666 | I119: =AVERAGE(I96,I99,I101,I104,I105,I107,I109,I111,I113,I115) -> 8.603 | J119: 0.5341367446 | K119: 0.4658632554 | L119: 0.1045486581 | M119: 0.05532867689 | N119: 18.269
D120: =_xlfn.STDEV.S(H93:H95,H97:H98,H100,H102,H106,H108,H110,H112,H114) -> 0.8510256735
F122: W/ DG | G122: Pre-Stim | H122: =AVERAGE(H87,H89,H91) -> 8.206666667 | I122: =AVERAGE(I87,I89,I91) -> 16.09333333 | J122: 0.3368164457 | K122: 0.6631835543 | L122: 0.1233737193 | M122: 0.04120888676 | N122: 24.3
G123: Stim | H123: =AVERAGE(H93,H97,H100,H102,H106,H108,H110,H112,H114) -> 2.962222222 | I123: =AVERAGE(I93,I97,I100,I102,I106,I108,I110,I112,I114) -> 12.46777778 | J123: 0.1913544664 | K123: 0.8086455336 | L123: 0.3974166515 | M123: 0.06491228584 | N123: 15.43
G124: No-Stim
F127: W/O DG | G127: Pre-Stim | H127: =AVERAGE(H88,H90,H92) -> 9.983333333 | I127: =AVERAGE(I88,I90,I92) -> 7.62 | J127: 0.5661990667 | K127: 0.4338009333 | L127: 0.1012590915 | M127: 0.05691127172 | N127: 17.60333333
G128: Stim | H128: =AVERAGE(H94:H95,H98) -> 2.216666667 | I128: =AVERAGE(I94:I95,I98) -> 10.02 | J128: 0.1821427034 | K128: 0.8178572966 | L128: 0.4565018555 | M128: 0.08186060506 | N128: 12.23666667
G129: No-Stim | H129: =AVERAGE(H96,H99,H101,H105,H107,H109,H111,H113,H115) -> 9.794444444 | I129: =AVERAGE(I96,I99,I101,I105,I107,I109,I111,I113,I115) -> 7.925555556 | J129: 0.5527461267 | K129: 0.4472538733 | L129: 0.1031086408 | M129: 0.05668909908 | N129: 17.72
F132: MCN1 + CCAP + GPR
F133: LG start | G133: LG stop | H133: Prot | I133: Retr | J133: LG DC | K133: Int1 DC | L133: LG freq | M133: GMR freq | N133: Period | O133: s/b | R133: DG start | S133: DG stop | T133: Burst Lth | U133: IBI
F134: 206.8 | G134: 218.67 | H134: =G134-F134 -> 11.87 | I134: =F135-G134 -> 8.98 | J134: =H134/N134 -> 0.5693045564 | K134: =I134/N134 -> 0.4306954436 | L134: =1/H134 -> 0.08424599832 | M134: =1/N134 -> 0.0479616307 | N134: =H134+I134 -> 20.85 | R134: 220.3 | S134: 238.49 | T134: =S134-R134 -> 18.19 | U134: =R136-S134 -> 23.98
F135: 227.65 | G135: 243.25 | H135: =G135-F135 -> 15.6 | I135: =F136-G135 -> 5.76 | J135: =H135/N135 -> 0.7303370787 | K135: =I135/N135 -> 0.2696629213 | L135: =1/H135 -> 0.0641025641 | M135: 0.0468164794 | N135: =H135+I135 -> 21.36
F136: 249.01 | G136: 260.37 | H136: 11.36 | I136: 9.8 | J136: 0.5368620038 | K136: 0.4631379962 | L136: 0.08802816901 | M136: 0.04725897921 | N136: 21.16 | R136: 262.47 | S136: 306.11 | T136: =S136-R136 -> 43.64 | U136: =R140-S136 -> 26.84
F137: 270.17 | G137: 279.46 | H137: 9.29 | I137: 6.79 | J137: 0.5777363184 | K137: 0.4222636816 | L137: 0.1076426265 | M137: 0.06218905473 | N137: 16.08
F138: 286.25 | G138: 296.26 | H138: 10.01 | I138: 5.72 | J138: 0.6363636364 | K138: 0.3636363636 | L138: 0.0999000999 | M138: 0.06357279085 | N138: 15.73
F139: 301.98 | G139: 314.01 | H139: 12.03 | I139: 5.44 | J139: 0.6886090441 | K139: 0.3113909559 | L139: 0.08312551953 | M139: 0.05724098454 | N139: 17.47
F140: 319.45 | G140: 330.33 | H140: 10.88 | I140: 8.93 | J140: 0.5492175669 | K140: 0.4507824331 | L140: 0.09191176471 | M140: 0.05047955578 | N140: 19.81 | R140: 332.95 | S140: 351.18 | T140: =S140-R140 -> 18.23 | U140: =R142-S140 -> 13.99
B141: Stim start | C141: Stim stop | D141: Stim | F141: 339.26 | G141: 351.1 | H141: 11.84 | I141: 5.2 | J141: 0.6948356808 | K141: 0.3051643192 | L141: 0.08445945946 | M141: 0.05868544601 | N141: 17.04
B142: 357.43 | C142: 363.48 | D142: =C142-B142 -> 6.05 | F142: 356.3 | G142: 362.25 | H142: 5.95 | I142: 12.22 | J142: 0.3274628509 | K142: 0.6725371491 | L142: 0.1680672269 | M142: 0.05503577325 | N142: 18.17 | R142: 365.17 | S142: 390.37 | T142: =S142-R142 -> 25.2 | U142: =R145-S142 -> 17.33
B143: 375.28 | C143: 379.61 | D143: =C143-B143 -> 4.33 | F143: 374.47 | G143: 378.34 | H143: 3.87 | I143: 7.87 | J143: 0.3296422487 | K143: 0.6703577513 | L143: 0.2583979328 | M143: 0.08517887564 | N143: 11.74
F144: 386.21 | G144: 396.99 | H144: 10.78 | I144: 6.22 | J144: 0.6341176471 | K144: 0.3658823529 | L144: 0.09276437848 | M144: 0.05882352941 | N144: 17
B145: 403.97 | C145: 408.98 | D145: =C145-B145 -> 5.01 | F145: 403.21 | G145: 407.48 | H145: 4.27 | I145: 10.87 | J145: 0.2820343461 | K145: 0.7179656539 | L145: 0.2341920375 | M145: 0.06605019815 | N145: 15.14 | R145: 407.7 | S145: 423.73 | T145: =S145-R145 -> 16.03 | U145: =R147-S145 -> 19.3
F146: 418.35 | G146: 429.03 | H146: 10.68 | I146: 5.03 | J146: 0.6798217696 | K146: 0.3201782304 | L146: 0.0936329588 | M146: 0.06365372374 | N146: 15.71
B147: 434.73 | C147: 441.03 | D147: =C147-B147 -> 6.3 | F147: 434.06 | G147: 440.85 | H147: 6.79 | I147: 12.5 | J147: 0.3519958528 | K147: 0.6480041472 | L147: 0.147275405 | M147: 0.05184033178 | N147: 19.29 | R147: 443.03 | S147: 467.78 | T147: =S147-R147 -> 24.75 | U147: =R150-S147 -> 20.51
B148: 454.16 | C148: 458.88 | D148: =C148-B148 -> 4.72 | F148: 453.35 | G148: 457.1 | H148: 3.75 | I148: 8.17 | J148: 0.3145973154 | K148: 0.6854026846 | L148: 0.2666666667 | M148: 0.08389261745 | N148: 11.92
F149: 465.27 | G149: 475.92 | H149: 10.65 | I149: 6.41 | J149: 0.6242672919 | K149: 0.3757327081 | L149: 0.09389671362 | M149: 0.05861664713 | N149: 17.06
B150: 483.21 | C150: 489.93 | D150: =C150-B150 -> 6.72 | F150: 482.33 | G150: 488.29 | H150: 5.96 | I150: 10.14 | J150: 0.3701863354 | K150: 0.6298136646 | L150: 0.1677852349 | M150: 0.06211180124 | N150: 16.1 | R150: 488.29 | S150: 506.52 | T150: =S150-R150 -> 18.23 | U150: =R152-S150 -> 18.97
F151: 498.43 | G151: 511.32 | H151: 12.89 | I151: 6.29 | J151: 0.6720542231 | K151: 0.3279457769 | L151: 0.07757951901 | M151: 0.05213764338 | N151: 19.18
B152: 518.65 | C152: 525.22 | D152: =C152-B152 -> 6.57 | F152: 517.61 | G152: 524.35 | H152: 6.74 | I152: 10.17 | J152: 0.3985807215 | K152: 0.6014192785 | L152: 0.1483679525 | M152: 0.05913660556 | N152: 16.91 | R152: 525.49 | S152: 542.65 | T152: =S152-R152 -> 17.16 | U152: =R154-S152 -> 18.2
F153: 534.52 | G153: 547.54 | H153: 13.02 | I153: 6.26 | J153: 0.6753112033 | K153: 0.3246887967 | L153: 0.07680491551 | M153: 0.05186721992 | N153: 19.28
B154: 554.36 | C154: 561.96 | D154: =C154-B154 -> 7.6 | F154: 553.8 | G154: 559.74 | H154: 5.94 | I154: 11.88 | J154: 0.3333333333 | K154: 0.6666666667 | L154: 0.1683501684 | M154: 0.05611672278 | N154: 17.82 | R154: 560.85 | S154: 578.25 | T154: =S154-R154 -> 17.4 | U154: =R156-S154 -> 24.45
F155: 571.62 | G155: 582.12 | H155: 10.5 | I155: 8.47 | J155: 0.5535055351 | K155: 0.4464944649 | L155: 0.09523809524 | M155: 0.05271481286 | N155: 18.97
F156: 590.59 | G156: 600.09 | H156: 9.5 | I156: 12.17 | J156: 0.4383940932 | K156: 0.5616059068 | L156: 0.1052631579 | M156: 0.04614674665 | N156: 21.67 | R156: 602.7 | S156: 636 | T156: =S156-R156 -> 33.3 | U156: =R159-S156 -> 22.89
F157: 612.26 | G157: 620.56 | H157: 8.3 | I157: 7.59 | J157: 0.522341095 | K157: 0.477658905 | L157: 0.1204819277 | M157: 0.06293266205 | N157: 15.89
F158: 628.15 | G158: 640.69 | H158: 12.54 | I158: 7.14 | J158: 0.637195122 | K158: 0.362804878 | L158: 0.07974481659 | M158: 0.05081300813 | N158: 19.68
F159: 647.83 | G159: 655.96 | H159: 8.13 | I159: 12.03 | J159: 0.4032738095 | K159: 0.5967261905 | L159: 0.12300123 | M159: 0.0496031746 | N159: 20.16 | R159: 658.89 | S159: 677.49 | T159: =S159-R159 -> 18.6 | U159: =R161-S159 -> 19.45
F160: 667.99 | G160: 678.34 | H160: 10.35 | I160: 6.2 | J160: 0.6253776435 | K160: 0.3746223565 | L160: 0.09661835749 | M160: 0.06042296073 | N160: 16.55
F161: 684.54 | G161: 693.72 | H161: 9.18 | I161: 11.15 | J161: 0.4515494343 | K161: 0.5484505657 | L161: 0.1089324619 | M161: 0.04918839154 | N161: 20.33 | R161: 696.94 | S161: 715.28 | T161: =S161-R161 -> 18.34 | U161: =R163-S161 -> 24.39
F162: 704.87 | G162: 720.99 | H162: 16.12 | I162: 5.92 | J162: 0.7313974592 | K162: 0.2686025408 | L162: 0.06203473945 | M162: 0.04537205082 | N162: 22.04
F163: 726.91 | G163: 737.2 | H163: 10.29 | I163: 11.23 | J163: 0.4781598513 | K163: 0.5218401487 | L163: 0.09718172983 | M163: 0.04646840149 | N163: 21.52 | R163: 739.67 | S163: 754.66 | T163: =S163-R163 -> 14.99 | U163: =R165-S163 -> 24.23
F164: 748.43 | G164: 760.74 | H164: 12.31 | I164: 6.2 | J164: 0.6650459211 | K164: 0.3349540789 | L164: 0.08123476848 | M164: 0.05402485143 | N164: 18.51
F165: 766.94 | G165: 777.21 | H165: 10.27 | I165: 9.98 | J165: 0.5071604938 | K165: 0.4928395062 | L165: 0.09737098345 | M165: 0.04938271605 | N165: 20.25 | R165: 778.89 | S165: 791.82 | T165: =S165-R165 -> 12.93 | U165: =R166-S165 -> 16.13
F166: 787.19 | G166: 802.94 | H166: 15.75 | I166: 9.36 | J166: 0.6272401434 | K166: 0.3727598566 | L166: 0.06349206349 | M166: 0.03982477101 | N166: 25.11 | R166: 807.95 | S166: 821.99 | T166: =S166-R166 -> 14.04 | U166: =R168-S166 -> 26.56
F167: 812.3 | G167: 829.53 | H167: 17.23 | I167: 6.14 | J167: 0.7372700043 | K167: 0.2627299957 | L167: 0.05803830528 | M167: 0.04278990158 | N167: 23.37
F168: 835.67 | G168: 847.16 | H168: 11.49 | I168: 8.67 | J168: 0.5699404762 | K168: 0.4300595238 | L168: 0.08703220191 | M168: 0.0496031746 | N168: 20.16 | R168: 848.55 | S168: 865.41 | T168: =S168-R168 -> 16.86 | U168: =R170-S168 -> 15.19
F169: 855.83 | G169: 870.53 | H169: 14.7 | I169: 7.25 | J169: 0.6697038724 | K169: 0.3302961276 | L169: 0.06802721088 | M169: 0.04555808656 | N169: 21.95
B170: 878.49 | C170: 882.24 | D170: =C170-B170 -> 3.75 | F170: 877.78 | G170: 881.03 | H170: 3.25 | I170: 8.98 | J170: 0.2657399836 | K170: 0.7342600164 | L170: 0.3076923077 | M170: 0.08176614881 | N170: 12.23 | R170: 880.6 | S170: 903.77 | T170: =S170-R170 -> 23.17 | U170: =R173-S170 -> 19.82
B171: 891.03 | C171: 895.04 | D171: =C171-B171 -> 4.01 | F171: 890.01 | G171: 893.58 | H171: 3.57 | I171: 8.8 | J171: 0.2886014551 | K171: 0.7113985449 | L171: 0.2801120448 | M171: 0.08084074373 | N171: 12.37
F172: 902.38 | G172: 915.58 | H172: 13.2 | I172: 6.26 | J172: 0.6783144913 | K172: 0.3216855087 | L172: 0.07575757576 | M172: 0.05138746146 | N172: 19.46
B173: 922.55 | C173: 926.39 | D173: =C173-B173 -> 3.84 | F173: 921.84 | G173: 924.04 | H173: 2.2 | R173: 923.59 | S173: 933.49 | T173: =S173-R173 -> 9.9
G174: Pre-Stim | H174: =AVERAGE(H134:H141) -> 11.61 | I174: =AVERAGE(I134:I141) -> 7.0775 | J174: 0.6229082357 | K174: 0.3770917643 | L174: 0.08792702519 | M174: 0.05427561515 | N174: 18.6875
G175: Stim | H175: =AVERAGE(H142:H143,H145,H147:H148,H150,H152,H154,H170,H171) -> 5.009 | I175: =AVERAGE(I142:I143,I145,I147:I148,I150,I152,I154,I170,I171) -> 10.16 | J175: 0.3262174443 | K175: 0.6737825557 | L175: 0.2146906977 | M175: 0.06819698184 | N175: 15.169
G176: No-Stim | H176: =AVERAGE(H144,H146,H149,H151,H153,H155:H169,H172) -> 11.80380952 | I176: =AVERAGE(I144,I146,I149,I151,I153,I155:I169,I172) -> 7.903333333 | J176: 0.5991162657 | K176: 0.4008837343 | L176: 0.0882918148 | M176: 0.05149199691 | N176: 19.70714286
F180: W/ DG | G180: Pre-Stim | H180: =AVERAGE(H134,H136,H140) -> 11.37 | I180: =AVERAGE(I134,I136,I140) -> 9.236666667 | J180: 0.551794709 | K180: 0.448205291 | L180: 0.08806197735 | M180: 0.04856672189 | N180: 20.60666667
G181: Stim | H181: =AVERAGE(H142,H145,H147,H150,H152,H154,H170) -> 5.557142857 | I181: =AVERAGE(I142,I145,I147,I150,I152,I154,I170) -> 10.96571429 | J181: 0.3327619177 | K181: 0.6672380823 | L181: 0.1916757618 | M181: 0.06172251165 | N181: 16.52285714
G182: No-Stim | H182: =AVERAGE(H156,H159,H161,H165,H166,H168) -> 10.72 | I182: =AVERAGE(I156,I159,I161,I165,I166,I168) -> 10.56 | J182: 0.4995930751 | K182: 0.5004069249 | L182: 0.09751534977 | M182: 0.04729149574 | N182: 21.28
F185: W/O DG | G185: Pre-Stim | H185: =AVERAGE(H135,H137,H138,H139,H141) -> 11.754 | I185: =AVERAGE(I135,I137,I138,I139,I141) -> 5.782 | J185: 0.6655763517 | K185: 0.3344236483 | L185: 0.0878460539 | M185: 0.05770095111 | N185: 17.536
G186: Stim | H186: =AVERAGE(H143,H148,H171) -> 3.73 | I186: =AVERAGE(I143,I148,I171) -> 8.28 | J186: 0.3109470064 | K186: 0.6890529936 | L186: 0.2683922148 | M186: 0.08330407894 | N186: 12.01
G187: No-Stim | H187: =AVERAGE(H144,H146,H149,H151,H153,H155,H157,H158,H160,H162,H164,H167,H169,H172) -> 12.37642857 | I187: =AVERAGE(I144,I146,I149,I151,I153,I155,I157,I158,I160,I162,I164,I167,I169,I172) -> 6.527142857 | J187: 0.6504088056 | K187: 0.3495911944 | L187: 0.08370387731 | M187: 0.05365103994 | N187: 18.90357143

Sheet 901_089
C4: 901_089
F5: CabPK
F6: LG start | G6: LG stop | H6: Prot | I6: Retr | J6: LG DC | K6: Int1 DC | L6: LG freq | M6: GMR freq | N6: Period | O6: s/b | P6: SpikeFreq | R6: File # : (Notebook#_Page#_ABFfile#)
F7: 13.82 | G7: 20.17 | H7: =G7-F7 -> 6.35 | I7: =F8-G7 -> 5.07 | J7: =H7/N7 -> 0.5560420315 | K7: =I7/N7 -> 0.4439579685 | L7: =1/H7 -> 0.157480315 | M7: =1/N7 -> 0.08756567426 | N7: =H7+I7 -> 11.42 | O7: 24 | P7: =O7/H7 -> 3.779527559 | R7: 901_089_0056
F8: 25.24 | G8: 29.65 | H8: =G8-F8 -> 4.41 | I8: =F9-G8 -> 5.47 | J8: =H8/N8 -> 0.4463562753 | K8: =I8/N8 -> 0.5536437247 | L8: =1/H8 -> 0.2267573696 | M8: =1/N8 -> 0.1012145749 | N8: =H8+I8 -> 9.88 | O8: 18 | P8: =O8/H8 -> 4.081632653
F9: 35.12 | G9: 42.14 | H9: 7.02 | I9: 4.74 | J9: 0.5969387755 | K9: 0.4030612245 | L9: 0.1424501425 | M9: 0.08503401361 | N9: 11.76 | O9: 26 | P9: 3.703703704
F10: 46.88 | G10: 54.25 | H10: 7.37 | I10: 5.12 | J10: 0.5900720576 | K10: 0.4099279424 | L10: 0.1356852103 | M10: 0.08006405124 | N10: 12.49 | O10: 33 | P10: 4.47761194
F11: 59.37 | G11: 67.42 | H11: 8.05 | I11: 5.7 | J11: 0.5854545455 | K11: 0.4145454545 | L11: 0.1242236025 | M11: 0.07272727273 | N11: 13.75 | O11: 35 | P11: 4.347826087
F12: 73.12 | G12: 80.63 | H12: 7.51 | I12: 6.09 | J12: 0.5522058824 | K12: 0.4477941176 | L12: 0.1331557923 | M12: 0.07352941176 | N12: 13.6 | O12: 35 | P12: 4.66045273
F13: 86.72 | G13: 91.02 | H13: 4.3 | I13: 5.39 | J13: 0.4437564499 | K13: 0.5562435501 | L13: 0.2325581395 | M13: 0.1031991744 | N13: 9.69 | O13: 24 | P13: 5.581395349
F14: 96.41 | G14: 103.98 | H14: 7.57 | I14: 4.78 | J14: 0.6129554656 | K14: 0.3870445344 | L14: 0.1321003963 | M14: 0.08097165992 | N14: 12.35 | O14: 36 | P14: 4.755614267
F15: 108.76 | G15: 114.86 | H15: 6.1 | O15: 32 | P15: =O15/H15 -> 5.245901639
H17: Prot | I17: Retr | J17: LG DC | K17: Int1 DC | L17: LG freq | M17: GMR freq | N17: Period | O17: s/b | P17: SpikeFreq
G18: Mean | H18: =AVERAGE(H7:H15) -> 6.52 | I18: 5.295 | J18: 0.5479726854 | K18: 0.4520273146 | L18: 0.160551371 | M18: 0.0855382291 | N18: 11.8675 | O18: 29.22222222 | P18: 4.51485177
G19: SD | H19: =_xlfn.STDEV.S(H7:H15) -> 1.368475429 | I19: =_xlfn.STDEV.S(I7:I14) -> 0.4613953991 | J19: 0.06662007367 | K19: 0.06662007367 | L19: 0.04375794334 | M19: 0.01147154273 | N19: 1.5151214 | O19: =_xlfn.STDEV.S(O7:O15) -> 6.379219736 | P19: =_xlfn.STDEV.S(P7:P15) -> 0.629160294
G20: SEM | H20: =H19/(SQRT(COUNT(H7:H15))) -> 0.4561584764 | I20: =I19/(SQRT(COUNT(I7:I14))) -> 0.1631279077 | J20: 0.02355375293 | K20: 0.02355375293 | L20: 0.01547076923 | M20: 0.004055802827 | N20: 0.5356763082 | O20: =O19/(SQRT(COUNT(O7:O15))) -> 2.126406579 | P20: =P19/(SQRT(COUNT(P7:P15))) -> 0.209720098
B25: = Stim duration shorter than burst duration
B26: = Stimulation during that burst
F28: CabPK + GPR during Protraction
B29: Stim start | C29: Stim stop | D29: Stim | F29: LG start | G29: LG stop | H29: Prot | I29: Retr | J29: LG DC | K29: Int1 DC | L29: LG freq | M29: GMR freq | N29: Period | O29: s/b | P29: SpikeFreq | R29: File #
F30: 9.15 | G30: 16.7 | H30: =G30-F30 -> 7.55 | I30: =F31-G30 -> 5.84 | J30: =H30/N30 -> 0.5638536221 | K30: =I30/N30 -> 0.4361463779 | L30: =1/H30 -> 0.1324503311 | M30: =1/N30 -> 0.07468259895 | N30: =H30+I30 -> 13.39 | O30: 43 | P30: =O30/H30 -> 5.695364238 | R30: 901_089_0057
B31: 23.43 | C31: 31.28 | D31: =C31-B31 -> 7.85 | F31: 22.54 | G31: 24.82 | H31: =G31-F31 -> 2.28 | I31: =F32-G31 -> 7.78 | J31: =H31/N31 -> 0.226640159 | K31: =I31/N31 -> 0.773359841 | L31: =1/H31 -> 0.4385964912 | M31: =1/N31 -> 0.09940357853 | N31: =H31+I31 -> 10.06 | O31: 12 | P31: =O31/H31 -> 5.263157895
F32: 32.6 | G32: 43.8 | H32: 11.2 | I32: 5.78 | J32: 0.6595995289 | K32: 0.3404004711 | L32: 0.08928571429 | M32: 0.05889281508 | N32: 16.98 | O32: 65 | P32: 5.803571429
F33: 49.58 | G33: 57.67 | H33: 8.09 | I33: 4.96 | J33: 0.6199233716 | K33: 0.3800766284 | L33: 0.1236093943 | M33: 0.07662835249 | N33: 13.05 | O33: 46 | P33: 5.686032138
F34: 62.63 | G34: 70.12 | H34: 7.49 | I34: 5.64 | J34: 0.5704493526 | K34: 0.4295506474 | L34: 0.1335113485 | M34: 0.0761614623 | N34: 13.13 | O34: 45 | P34: 6.008010681
B35: 76.42 | C35: 84.31 | D35: =C35-B35 -> 7.89 | F35: 75.76 | G35: 78.57 | H35: 2.81 | I35: 8.07 | J35: 0.2582720588 | K35: 0.7417279412 | L35: 0.3558718861 | M35: 0.09191176471 | N35: 10.88 | O35: 15 | P35: 5.338078292
F36: 86.64 | G36: 95.88 | H36: 9.24 | I36: 5.55 | J36: 0.6247464503 | K36: 0.3752535497 | L36: 0.1082251082 | M36: 0.0676132522 | N36: 14.79 | O36: 66 | P36: 7.142857143
F37: 101.43 | G37: 108.48 | H37: 7.05 | I37: 4.83 | J37: 0.5934343434 | K37: 0.4065656566 | L37: 0.1418439716 | M37: 0.08417508418 | N37: 11.88 | O37: 46 | P37: 6.524822695
F38: 113.31 | G38: 119.4 | H38: 6.09 | I38: 5.39 | J38: 0.5304878049 | K38: 0.4695121951 | L38: 0.1642036125 | M38: 0.08710801394 | N38: 11.48 | O38: 40 | P38: 6.568144499
B39: 7.1 | C39: 14.94 | D39: =C39-B39 -> 7.84 | F39: 124.79 | G39: 128.89 | H39: 4.1 | I39: 8.01 | J39: 0.3385631709 | K39: 0.6614368291 | L39: 0.243902439 | M39: 0.08257638315 | N39: 12.11 | O39: 25 | P39: 6.097560976 | R39: 901_089_0058
F40: =16.9+120 -> 136.9 | G40: =120+26.64 -> 146.64 | H40: 9.74 | I40: 5.12 | J40: 0.6554508748 | K40: 0.3445491252 | L40: 0.1026694045 | M40: 0.06729475101 | N40: 14.86 | O40: 71 | P40: 7.289527721
F41: =120+31.76 -> 151.76 | G41: =120+39.12 -> 159.12 | H41: 7.36 | I41: 5.55 | J41: 0.5701006971 | K41: 0.4298993029 | L41: 0.1358695652 | M41: 0.07745933385 | N41: 12.91 | O41: 52 | P41: 7.065217391
B42: 45.27 | C42: 53.14 | D42: =C42-B42 -> 7.87 | F42: =120+44.67 -> 164.67 | G42: =120+47.51 -> 167.51 | H42: 2.84 | I42: 7.95 | J42: 0.2632066728 | K42: 0.7367933272 | L42: 0.3521126761 | M42: 0.09267840593 | N42: 10.79 | O42: 21 | P42: 7.394366197
F43: =120+55.46 -> 175.46 | G43: =120+65.61 -> 185.61 | H43: 10.15 | I43: 5.51 | J43: 0.6481481481 | K43: 0.3518518519 | L43: 0.09852216749 | M43: 0.06385696041 | N43: 15.66 | O43: 77 | P43: 7.586206897
F44: =120+71.12 -> 191.12 | G44: =120+74.7 -> 194.7 | H44: 3.58 | I44: 4.46 | J44: 0.4452736318 | K44: 0.5547263682 | L44: 0.2793296089 | M44: 0.1243781095 | N44: 8.04 | O44: 29 | P44: 8.100558659
B45: 80.07 | C45: 87.93 | D45: =C45-B45 -> 7.86 | F45: =120+79.16 -> 199.16 | G45: =120+82.84 -> 202.84 | H45: 3.68 | I45: 8.2 | J45: 0.3097643098 | K45: 0.6902356902 | L45: 0.2717391304 | M45: 0.08417508418 | N45: 11.88 | O45: 30 | P45: 8.152173913
F46: =120+91.04 -> 211.04 | G46: =120+99.71 -> 219.71 | H46: =G46-F46 -> 8.67 | I46: =F47-G46 -> 5.94 | J46: =H46/N46 -> 0.5934291581 | K46: =I46/N46 -> 0.4065708419 | L46: =1/H46 -> 0.1153402537 | M46: 0.06844626968 | N46: =H46+I46 -> 14.61 | O46: 71 | P46: =O46/H46 -> 8.189158016
B47: 105.2 | C47: 112.07 | D47: =C47-B47 -> 6.87 | F47: =120+105.65 -> 225.65 | G47: =120+108.82 -> 228.82 | H47: 3.17 | I47: 6.34 | J47: 0.3333333333 | K47: 0.6666666667 | L47: 0.3154574132 | M47: 0.1051524711 | N47: 9.51 | O47: 21 | P47: 6.624605678
F48: =120+115.16 -> 235.16 | G48: =240+5.62 -> 245.62 | H48: 10.46 | I48: 5.43 | J48: 0.6582756451 | K48: 0.3417243549 | L48: 0.09560229446 | M48: 0.06293266205 | N48: 15.89 | O48: 83 | P48: 7.93499044 | R48: 901_089_0059
F49: =240+11.05 -> 251.05 | G49: =240+16.14 -> 256.14 | H49: 5.09 | I49: 5.22 | J49: 0.4936954413 | K49: 0.5063045587 | L49: 0.1964636542 | M49: 0.09699321048 | N49: 10.31 | O49: 41 | P49: 8.055009823
F50: =240+21.36 -> 261.36 | G50: =240+26.24 -> 266.24 | H50: 4.88 | I50: 4.76 | J50: 0.5062240664 | K50: 0.4937759336 | L50: 0.2049180328 | M50: 0.1037344398 | N50: 9.64 | O50: 40 | P50: 8.196721311
B51: 31.75 | C51: 38.61 | D51: =C51-B51 -> 6.86 | F51: =240+31 -> 271 | G51: =240+33.83 -> 273.83 | H51: 2.83 | I51: 7.97 | J51: 0.262037037 | K51: 0.737962963 | L51: 0.3533568905 | M51: 0.09259259259 | N51: 10.8 | O51: 22 | P51: 7.77385159
F52: =240+41.8 -> 281.8 | G52: =240+52.37 -> 292.37 | H52: 10.57 | I52: 5.58 | J52: 0.6544891641 | K52: 0.3455108359 | L52: 0.09460737938 | M52: 0.06191950464 | N52: 16.15 | O52: 87 | P52: 8.230842006
F53: =240+57.95 -> 297.95 | G53: =240+64.61 -> 304.61 | H53: =G53-F53 -> 6.66 | I53: =F54-G53 -> 6.07 | J53: =H53/N53 -> 0.5231736057 | K53: =I53/N53 -> 0.4768263943 | L53: =1/H53 -> 0.1501501502 | M53: 0.07855459544 | N53: =H53+I53 -> 12.73 | O53: 50 | P53: =O53/H53 -> 7.507507508
B54: 70.28 | C54: 75.12 | D54: =C54-B54 -> 4.84 | F54: =240+70.68 -> 310.68 | G54: =240+73.2 -> 313.2 | H54: 2.52 | I54: 5.92 | J54: 0.2985781991 | K54: 0.7014218009 | L54: 0.3968253968 | M54: 0.1184834123 | N54: 8.44 | O54: 21 | P54: 8.333333333
F55: =240+79.12 -> 319.12 | G55: =240+88.63 -> 328.63 | H55: 9.51 | I55: 5.84 | J55: 0.6195439739 | K55: 0.3804560261 | L55: 0.1051524711 | M55: 0.0651465798 | N55: 15.35 | O55: 77 | P55: 8.096740273
B56: 95.15 | C56: 100.07 | D56: =C56-B56 -> 4.92 | F56: =240+94.47 -> 334.47 | G56: =240+98.78 -> 338.78 | H56: 4.31 | I56: 6.43 | J56: 0.4013035382 | K56: 0.5986964618 | L56: 0.2320185615 | M56: 0.09310986965 | N56: 10.74 | O56: 31 | P56: 7.192575406
B57: 106.49 | C57: 111.34 | D57: =C57-B57 -> 4.85 | F57: =240+105.21 -> 345.21 | G57: =240+108.94 -> 348.94 | H57: 3.73 | I57: 6.47 | J57: 0.3656862745 | K57: 0.6343137255 | L57: 0.2680965147 | M57: 0.09803921569 | N57: 10.2 | O57: 33 | P57: 8.847184987
F58: =240+115.41 -> 355.41 | G58: =360+4.51 -> 364.51 | H58: 9.1 | I58: 7.06 | J58: 0.5631188119 | K58: 0.4368811881 | L58: 0.1098901099 | M58: 0.06188118812 | N58: 16.16 | O58: 78 | P58: 8.571428571 | R58: 901_089_0060
F59: =360+11.57 -> 371.57 | G59: =360+17.31 -> 377.31 | H59: =G59-F59 -> 5.74 | I59: =F60-G59 -> 5.88 | J59: =H59/N59 -> 0.4939759036 | K59: =I59/N59 -> 0.5060240964 | L59: =1/H59 -> 0.1742160279 | M59: 0.08605851979 | N59: =H59+I59 -> 11.62 | O59: 47 | P59: =O59/H59 -> 8.18815331
B60: 23.83 | C60: 28.72 | D60: =C60-B60 -> 4.89 | F60: =360+23.19 -> 383.19 | G60: =360+26.07 -> 386.07 | H60: 2.88 | I60: 6.66 | J60: 0.3018867925 | K60: 0.6981132075 | L60: 0.3472222222 | M60: 0.1048218029 | N60: 9.54 | O60: 30 | P60: 10.41666667
F61: =360+32.73 -> 392.73 | G61: =360+42.21 -> 402.21 | H61: 9.48 | I61: 5.76 | J61: 0.6220472441 | K61: 0.3779527559 | L61: 0.1054852321 | M61: 0.0656167979 | N61: 15.24 | O61: 84 | P61: 8.860759494
F62: =360+47.97 -> 407.97 | G62: =360+56.25 -> 416.25 | H62: 8.28 | I62: 4.96 | J62: 0.6253776435 | K62: 0.3746223565 | L62: 0.1207729469 | M62: 0.07552870091 | N62: 13.24 | O62: 61 | P62: 7.367149758
B63: 61.85 | C63: 66.69 | D63: =C63-B63 -> 4.84 | F63: =360+61.21 -> 421.21 | G63: =360+64.01 -> 424.01 | H63: 2.8 | I63: 6.71 | J63: 0.294426919 | K63: 0.705573081 | L63: 0.3571428571 | M63: 0.1051524711 | N63: 9.51 | O63: 25 | P63: 8.928571429
B64: 71.8 | C64: 76.63 | D64: =C64-B64 -> 4.83 | F64: =360+70.72 -> 430.72 | G64: =360+75.53 -> 435.53 | H64: 4.81 | I64: 6.28 | J64: 0.4337240757 | K64: 0.5662759243 | L64: 0.2079002079 | M64: 0.09017132552 | N64: 11.09 | O64: 44 | P64: 9.147609148
B65: 82.51 | C65: 87.33 | D65: =C65-B65 -> 4.82 | F65: =360+81.81 -> 441.81 | G65: =360+85.41 -> 445.41 | H65: 3.6 | I65: 6.5 | J65: 0.3564356436 | K65: 0.6435643564 | L65: 0.2777777778 | M65: 0.09900990099 | N65: 10.1 | O65: 39 | P65: 10.83333333
F66: =360+91.91 -> 451.91 | G66: =360+98.99 -> 458.99 | H66: 7.08 | I66: 5.67 | J66: 0.5552941176 | K66: 0.4447058824 | L66: 0.1412429379 | M66: 0.07843137255 | N66: 12.75 | O66: 68 | P66: 9.604519774
B67: 105.36 | C67: 110.23 | D67: =C67-B67 -> 4.87 | F67: =360+104.66 -> 464.66 | G67: =360+108.66 -> 468.66 | H67: 4 | I67: 6.87 | J67: 0.3679852806 | K67: 0.6320147194 | L67: 0.25 | M67: 0.09199632015 | N67: 10.87 | O67: 30 | P67: 7.5
F68: =360+115.53 -> 475.53 | G68: =480+4.84 -> 484.84 | H68: 9.31 | I68: 6.79 | J68: 0.5782608696 | K68: 0.4217391304 | L68: 0.1074113856 | M68: 0.06211180124 | N68: 16.1 | O68: 80 | P68: 8.592910849 | R68: 901_089_0061
F69: =480+11.63 -> 491.63 | G69: =480+16.61 -> 496.61 | H69: 4.98 | I69: 6.6 | J69: 0.4300518135 | K69: 0.5699481865 | L69: 0.2008032129 | M69: 0.08635578584 | N69: 11.58 | O69: 46 | P69: 9.236947791
F70: =480+23.21 -> 503.21 | G70: =480+33.62 -> 513.62 | H70: 10.41 | I70: 6.56 | J70: 0.6134354744 | K70: 0.3865645256 | L70: 0.09606147935 | M70: 0.05892751915 | N70: 16.97 | O70: 82 | P70: 7.877041306
F71: =480+40.18 -> 520.18 | G71: =480+48.57 -> 528.57 | H71: 8.39 | I71: 7.01 | J71: 0.5448051948 | K71: 0.4551948052 | L71: 0.1191895113 | M71: 0.06493506494 | N71: 15.4 | O71: 67 | P71: 7.985697259
F72: =480+55.58 -> 535.58 | G72: =480+61.23 -> 541.23 | H72: 5.65 | I72: 6.13 | J72: 0.4796264856 | K72: 0.5203735144 | L72: 0.1769911504 | M72: 0.08488964346 | N72: 11.78 | O72: 47 | P72: 8.318584071
F73: =480+67.36 -> 547.36 | G73: =480+73.29 -> 553.29 | H73: 5.93 | I73: 5.99 | J73: 0.4974832215 | K73: 0.5025167785 | L73: 0.1686340641 | M73: 0.08389261745 | N73: 11.92 | O73: 52 | P73: 8.768971332
F74: =480+79.28 -> 559.28 | G74: =480+84.98 -> 564.98 | H74: =G74-F74 -> 5.7 | I74: =F75-G74 -> 6.05 | J74: =H74/N74 -> 0.485106383 | K74: =I74/N74 -> 0.514893617 | L74: =1/H74 -> 0.1754385965 | M74: 0.08510638298 | N74: =H74+I74 -> 11.75 | O74: 50 | P74: =O74/H74 -> 8.771929825
F75: =480+91.03 -> 571.03 | G75: =480+98.24 -> 578.24 | H75: =G75-F75 -> 7.21 | I75: =F76-G75 -> 6.11 | J75: =H75/N75 -> 0.5412912913 | K75: =I75/N75 -> 0.4587087087 | L75: =1/H75 -> 0.1386962552 | M75: 0.07507507508 | N75: =H75+I75 -> 13.32 | O75: 63 | P75: =O75/H75 -> 8.737864078
F76: =480+104.35 -> 584.35 | G76: =480+110.22 -> 590.22 | H76: =G76-F76 -> 5.87 | I76: =F77-G76 -> 6.04 | J76: =H76/N76 -> 0.4928631402 | K76: =I76/N76 -> 0.5071368598 | L76: =1/H76 -> 0.1703577513 | M76: 0.08396305626 | N76: =H76+I76 -> 11.91 | O76: 53 | P76: =O76/H76 -> 9.028960818
F77: =480+116.26 -> 596.26
H79: Prot | I79: Retr | J79: LG DC | K79: Int1 DC | L79: LG freq | M79: GMR freq | N79: Period | O79: s/b | P79: SpikeFreq
E80: GPR Stim. | G80: Mean | H80: =AVERAGE(H31,H35,H39,H42,H45,H47,H51,H54,H56,H57,H60,H63,H64,H65,H67) -> 3.357333333 | I80: =AVERAGE(I31,I35,I39,I42,I45,I47,I51,I54,I56,I57,I60,I63,I64,I65,I67) -> 7.077333333 | J80: 0.3207895643 | K80: 0.6792104357 | L80: 0.3112013643 | M80: 0.09661830657 | N80: 10.43466667 | O80: 26.6 | P80: 7.85620459
G81: SD | H81: =_xlfn.STDEV.S(H31,H35,H39,H42,H45,H47,H51,H54,H56,H57,H60,H63,H64,H65,H67) -> 0.7350847052 | I81: =_xlfn.STDEV.S(I31,I35,I39,I42,I45,I47,I51,I54,I56,I57,I60,I63,I64,I65,I67) -> 0.8088745856 | J81: 0.05758915261 | K81: 0.05758915261 | L81: 0.06664497579 | M81: 0.009210499259 | N81: 0.958517208 | O81: 8.53396575 | P81: 1.647424968
G82: SEM | H82: =H81/(SQRT(15)) -> 0.1897980548 | I82: =I81/(SQRT(15)) -> 0.2088505199 | J82: 0.01486945526 | K82: 0.01486945526 | L82: 0.01720765876 | M82: 0.002378140683 | N82: 0.2474880789 | O82: 2.203460482 | P82: 0.4253632978
E85: Post Stim burst | G85: Mean | H85: =AVERAGE(H32,H36,H40,H43,H46,H48,H52,H55,H58,H61,H66,H68) -> 9.5425 | I85: =AVERAGE(I32,I36,I40,I43,I46,I48,I52,I55,I58,I61,I66,I68) -> 5.835833333 | J85: 0.6193669989 | K85: 0.3806330011 | L85: 0.1061195382 | M85: 0.06534532956 | N85: 15.37833333 | O85: 75.58333333 | P85: 7.991959384
G86: SD | H86: =_xlfn.STDEV.S(H32,H36,H40,H43,H46,H48,H52,H55,H58,H61,H66,H68) -> 1.054187537 | I86: =_xlfn.STDEV.S(I32,I36,I40,I43,I46,I48,I52,I55,I58,I61,I66,I68) -> 0.5548703097 | J86: 0.03833386587 | K86: 0.03833386587 | L86: 0.01326812714 | M86: 0.004988902889 | N86: 1.077326939 | O86: 7.316958302 | P86: 0.9690825243
G87: SEM | H87: =H86/(SQRT(12)) -> 0.3043177292 | I87: =I86/(SQRT(12)) -> 0.1601772613 | J87: 0.01106603389 | K87: 0.01106603389 | L87: 0.003830178388 | M87: 0.001440172213 | N87: 0.3109974991 | O87: 2.112223923 | P87: 0.2797500281
E89: All Other | G89: Mean | H89: =AVERAGE(H30,H33,H34,H37,H38,H41,H44,H49,H50,H53,H59,H62,H69:H76) -> 6.6 | I89: =AVERAGE(I30,I33,I34,I37,I38,I41,I44,I49,I50,I53,I59,I62,I69:I76) -> 5.7025 | J89: 0.5310316244 | K89: 0.4689683756 | L89: 0.1601755333 | M89: 0.08323037834 | N89: 12.3025 | O89: 50 | P89: 7.684434425
G90: SD | H90: =_xlfn.STDEV.S(H30,H33,H34,H37,H38,H41,H44,H49,H50,H53,H59,H62,H69:H76) -> 1.560876946 | I90: =_xlfn.STDEV.S(I30,I33,I34,I37,I38,I41,I44,I49,I50,I53,I59,I62,I69:I76) -> 0.6788370473 | J90: 0.05632130074 | K90: 0.05632130074 | L90: 0.04085906724 | M90: 0.01379716197 | N90: 1.89489029 | O90: 11.42941726 | P90: 1.098082098
G91: SEM | H91: =H90/(SQRT(20)) -> 0.3490226957 | I91: =I90/(SQRT(20)) -> 0.1517925783 | J91: 0.0125938257 | K91: 0.0125938257 | L91: 0.009136365184 | M91: 0.003085139207 | N91: 0.4237103498 | O91: 2.555695394 | P91: 0.2455386215
F95: CabPK + GPR during Retraction
B96: Stim start | C96: Stim stop | D96: Stim | F96: LG start | G96: LG stop | H96: Prot | I96: Retr | J96: LG DC | K96: Int1 DC | L96: LG freq | M96: GMR freq | N96: Period | O96: s/b | P96: SpikeFreq | R96: File #
F97: 9.31 | G97: 16.31 | H97: =G97-F97 -> 7 | I97: =F98-G97 -> 5.11 | J97: =H97/N97 -> 0.5780346821 | K97: =I97/N97 -> 0.4219653179 | L97: =1/H97 -> 0.1428571429 | M97: =1/N97 -> 0.08257638315 | N97: =H97+I97 -> 12.11 | O97: 51 | P97: =O97/H97 -> 7.285714286 | R97: 901_089_0062
F98: 21.42 | G98: 27.16 | H98: 5.74 | I98: 6.7 | J98: 0.461414791 | K98: 0.538585209 | L98: 0.1742160279 | M98: 0.08038585209 | N98: 12.44 | O98: 53 | P98: 9.233449477
F99: 33.86 | G99: 39.11 | H99: 5.25 | I99: 6.55 | J99: 0.4449152542 | K99: 0.5550847458 | L99: 0.1904761905 | M99: 0.08474576271 | N99: 11.8 | O99: 50 | P99: 9.523809524
B100: 51.58 | C100: 56.44 | D100: =C100-B100 -> 4.86 | F100: 45.66 | G100: 51.85 | H100: 6.19 | I100: 8.66 | J100: 0.4168350168 | K100: 0.5831649832 | L100: 0.1615508885 | M100: 0.06734006734 | N100: 14.85 | O100: 55 | P100: 8.885298869
B101: 72.05 | C101: 76.92 | D101: =C101-B101 -> 4.87 | F101: 60.51 | G101: 69.64 | H101: =G101-F101 -> 9.13 | I101: 9.7 | J101: 0.4848645778 | K101: 0.5151354222 | L101: 0.1095290252 | M101: 0.05310674456 | N101: 18.83 | O101: 79 | P101: 8.65279299
F102: 79.34 | G102: 88.06 | H102: 8.72 | I102: 6.01 | J102: 0.5919891378 | K102: 0.4080108622 | L102: 0.1146788991 | M102: 0.06788866259 | N102: 14.73 | O102: 75 | P102: 8.600917431
A103: Prot. Stim. | B103: 94.5 | C103: 99.36 | D103: =C103-B103 -> 4.86 | F103: 94.07 | G103: 98.14 | H103: 4.07 | I103: 6.91 | J103: 0.3706739526 | K103: 0.6293260474 | L103: 0.2457002457 | M103: 0.09107468124 | N103: 10.98 | O103: 32 | P103: 7.862407862
F104: 105.05 | G104: 111.64 | H104: 6.59 | I104: 7.31 | J104: 0.4741007194 | K104: 0.5258992806 | L104: 0.1517450683 | M104: 0.07194244604 | N104: 13.9 | O104: 62 | P104: 9.408194234
B105: 8.98 | C105: 13.83 | D105: =C105-B105 -> 4.85 | F105: 118.95 | G105: =120+7.26 -> 127.26 | H105: 8.31 | I105: 9.66 | J105: 0.4624373957 | K105: 0.5375626043 | L105: 0.1203369434 | M105: 0.05564830273 | N105: 17.97 | O105: 68 | P105: 8.182912154 | R105: 901_089_0063
B106: 28.95 | C106: 36.81 | D106: =C106-B106 -> 7.86 | F106: =120+16.92 -> 136.92 | G106: =120+25.65 -> 145.65 | H106: =G106-F106 -> 8.73 | I106: =F107-G106 -> 12.34 | J106: =H106/N106 -> 0.4143331751 | K106: =I106/N106 -> 0.5856668249 | L106: =1/H106 -> 0.1145475372 | M106: =1/N106 -> 0.0474608448 | N106: =H106+I106 -> 21.07 | O106: 76 | P106: 8.705612829
B107: 49.94 | C107: 57.79 | D107: =C107-B107 -> 7.85 | F107: =120+37.99 -> 157.99 | G107: =120+47.32 -> 167.32 | H107: 9.33 | I107: 12.24 | J107: 0.4325452017 | K107: 0.5674547983 | L107: 0.1071811361 | M107: 0.04636068614 | N107: 21.57 | O107: 78 | P107: 8.360128617
F108: =120+59.56 -> 179.56 | G108: =120+69.58 -> 189.58 | H108: 10.02 | I108: 6.89 | J108: 0.5925487877 | K108: 0.4074512123 | L108: 0.0998003992 | M108: 0.05913660556 | N108: 16.91 | O108: 87 | P108: =O108/H108 -> 8.682634731
F109: =120+76.47 -> 196.47 | G109: =120+81.75 -> 201.75 | H109: 5.28 | I109: 6.06 | J109: 0.4656084656 | K109: 0.5343915344 | L109: 0.1893939394 | M109: 0.08818342152 | N109: 11.34 | O109: 48 | P109: 9.090909091
F110: =120+87.81 -> 207.81 | G110: =120+97.25 -> 217.25 | H110: 9.44 | I110: 7.07 | J110: 0.571774682 | K110: 0.428225318 | L110: 0.1059322034 | M110: 0.06056935191 | N110: 16.51 | O110: 75 | P110: 7.944915254
B111: 115.04 | C111: =120+2.63 -> 122.63 | D111: =C111-B111 -> 7.59 | F111: =120+104.32 -> 224.32 | G111: =120+112.55 -> 232.55 | H111: 8.23 | I111: 12.17 | J111: 0.4034313725 | K111: 0.5965686275 | L111: 0.1215066829 | M111: 0.04901960784 | N111: 20.4 | O111: 63 | P111: 7.654921021
F112: =240+4.72 -> 244.72 | G112: =240+14.06 -> 254.06 | H112: 9.34 | I112: 6.21 | J112: 0.6006430868 | K112: 0.3993569132 | L112: 0.1070663812 | M112: 0.06430868167 | N112: 15.55 | O112: 78 | P112: 8.35117773 | R112: 901_089_0064
B113: 29.01 | C113: 36.86 | D113: =C113-B113 -> 7.85 | F113: =240+20.27 -> 260.27 | G113: =240+26.93 -> 266.93 | H113: 6.66 | I113: 11.38 | J113: 0.3691796009 | K113: 0.6308203991 | L113: 0.1501501502 | M113: 0.05543237251 | N113: 18.04 | O113: 58 | P113: 8.708708709
F114: =240+38.31 -> 278.31 | G114: =240+47.46 -> 287.46 | H114: 9.15 | I114: 6.22 | J114: 0.5953155498 | K114: 0.4046844502 | L114: 0.1092896175 | M114: 0.06506180872 | N114: 15.37 | O114: 75 | P114: 8.196721311
B115: 60.74 | C115: 68.6 | D115: =C115-B115 -> 7.86 | F115: =240+53.68 -> 293.68 | G115: =240+58.55 -> 298.55 | H115: 4.87 | I115: 11.8 | J115: 0.2921415717 | K115: 0.7078584283 | L115: 0.205338809 | M115: 0.0599880024 | N115: 16.67 | O115: 47 | P115: 9.650924025
F116: =240+70.35 -> 310.35 | G116: =240+79.68 -> 319.68 | H116: 9.33 | I116: 6.2 | J116: 0.600772698 | K116: 0.399227302 | L116: 0.1071811361 | M116: 0.06439150032 | N116: 15.53 | O116: 80 | P116: 8.57449089
F117: =240+85.88 -> 325.88 | G117: =240+92.76 -> 332.76 | H117: 6.88 | I117: 6.05 | J117: 0.532095901 | K117: 0.467904099 | L117: 0.1453488372 | M117: 0.07733952049 | N117: 12.93 | O117: 58 | P117: 8.430232558
F118: =240+98.81 -> 338.81 | G118: =240+103.44 -> 343.44 | H118: 4.63 | I118: 6.08 | J118: 0.4323062558 | K118: 0.5676937442 | L118: 0.2159827214 | M118: 0.09337068161 | N118: 10.71 | O118: 43 | P118: 9.287257019
B119: 116.92 | C119: =120+4.57 -> 124.57 | D119: =C119-B119 -> 7.65 | F119: =240+109.52 -> 349.52 | G119: =240+115.28 -> 355.28 | H119: 5.76 | I119: 10.69 | J119: 0.3501519757 | K119: 0.6498480243 | L119: 0.1736111111 | M119: 0.06079027356 | N119: 16.45 | O119: 54 | P119: 9.375
F120: =360+5.97 -> 365.97 | G120: =360+14.5 -> 374.5 | H120: 8.53 | I120: 6.17 | J120: 0.5802721088 | K120: 0.4197278912 | L120: 0.1172332943 | M120: 0.06802721088 | N120: 14.7 | O120: 73 | P120: 8.558030481 | R120: 901_089_0065
F121: =360+20.67 -> 380.67 | G121: =360+27.22 -> 387.22 | H121: 6.55 | I121: 6.13 | J121: 0.5165615142 | K121: 0.4834384858 | L121: 0.1526717557 | M121: 0.07886435331 | N121: 12.68 | O121: 52 | P121: 7.938931298
F122: =360+33.35 -> 393.35
H124: Prot | I124: Retr | J124: LG DC | K124: Int1 DC | L124: LG freq | M124: GMR freq | N124: Period | O124: s/b | P124: SpikeFreq
E125: GPR Stim. | G125: Mean | H125: =AVERAGE(H100,H101,H105,H106,H107,H111,H113,H115,H119) -> 7.467777778 | I125: =AVERAGE(I100,I101,I105,I106,I107,I111,I113,I115,I119) -> 10.96 | J125: 0.4028799875 | K125: 0.5971200125 | L125: 0.1404169204 | M125: 0.05501632243 | N125: 18.42777778 | O125: 64.22222222 | P125: 8.686255468
G126: SD | H126: =_xlfn.STDEV.S(H100,H101,H105,H106,H107,H111,H113,H115,H119) -> 1.622673548 | I126: =_xlfn.STDEV.S(I100,I101,I105,I106,I107,I111,I113,I115,I119) -> 1.347655371 | J126: 0.05879387856 | K126: 0.05879387856 | L126: 0.03418112283 | M126: 0.006911183455 | N126: 2.265727134 | O126: 11.65952162 | P126: 0.5989506741
G127: SEM | H127: =H126/(SQRT(9)) -> 0.5408911828 | I127: =I126/(SQRT(9)) -> 0.4492184571 | J127: 0.01959795952 | K127: 0.01959795952 | L127: 0.01139370761 | M127: 0.002303727818 | N127: 0.7552423779 | O127: 3.886507207 | P127: 0.1996502247
E130: Post Stim burst | G130: Mean | H130: =AVERAGE(H102,H108,H112,H114,H116,H120) -> 9.181666667 | I130: =AVERAGE(I102,I108,I112,I114,I116,I120) -> 6.283333333 | J130: 0.5935902282 | K130: 0.4064097718 | L130: 0.1092082879 | M130: 0.06480241162 | N130: 15.465 | O130: 78 | P130: 8.493995429
G131: SD | H131: =_xlfn.STDEV.S(H102,H108,H112,H114,H116,H120) -> 0.5270072738 | I131: =_xlfn.STDEV.S(I102,I108,I112,I114,I116,I120) -> 0.307224131 | J131: 0.007554175185 | K131: 0.007554175185 | L131: 0.006189352257 | M131: 0.003240541248 | N131: 0.8042325534 | O131: 5.059644256 | P131: 0.1824093768
G132: SEM | H132: =H131/(SQRT(6)) -> 0.2151498186 | I132: =I131/(SQRT(6)) -> 0.1254237263 | J132: 0.003083979105 | K132: 0.003083979105 | L132: 0.002526792478 | M132: 0.001322945425 | N132: 0.3283265651 | O132: 2.065591118 | P132: 0.07446831624
E134: All Other | G134: Mean | H134: =AVERAGE(H97:H99,H103,H104,H109,H110,H117,H118,H121) -> 6.143 | I134: =AVERAGE(I97:I99,I103,I104,I109,I110,I117,I118,I121) -> 6.397 | J134: 0.4847486218 | K134: 0.5152513782 | L134: 0.1714324132 | M134: 0.08090524541 | N134: 12.54 | O134: 52.4 | P134: 8.60058206
G135: SD | H135: =_xlfn.STDEV.S(H97:H99,H103,H104,H109,H110,H117,H118,H121) -> 1.520395051 | I135: =_xlfn.STDEV.S(I97:I99,I103,I104,I109,I110,I117,I118,I121) -> 0.6435155182 | J135: 0.0648963013 | K135: 0.0648963013 | L135: 0.04044227931 | M135: 0.009662921043 | N135: 1.691389961 | O135: 11.38419958 | P135: 0.801909436
G136: SEM | H136: =H135/(SQRT(10)) -> 0.4807911304 | I136: =I135/(SQRT(10)) -> 0.2034974747 | J136: 0.02052201238 | K136: 0.02052201238 | L136: 0.01278897164 | M136: 0.003055683935 | N136: 0.5348644688 | O136: 3.6 | P136: 0.2535860295

Sheet 901_092
C4: 901_092
F5: CabPK
F6: LG start | G6: LG stop | H6: Prot | I6: Retr | J6: LG DC | K6: Int1 DC | L6: LG freq | M6: GMR freq | N6: Period | O6: s/b | P6: SpikeFreq | R6: File # : (Notebook#_Page#_ABFfile#)
F7: 0.44 | G7: 8.2 | H7: =G7-F7 -> 7.76 | I7: =F8-G7 -> 20.22 | J7: =H7/N7 -> 0.2773409578 | K7: =I7/N7 -> 0.7226590422 | L7: =1/H7 -> 0.1288659794 | M7: =1/N7 -> 0.03573981415 | N7: =H7+I7 -> 27.98 | O7: 58 | P7: =O7/H7 -> 7.474226804 | R7: 901_092_0062
F8: 28.42 | G8: 36.97 | H8: =G8-F8 -> 8.55 | I8: =F9-G8 -> 19.25 | J8: =H8/N8 -> 0.3075539568 | K8: =I8/N8 -> 0.6924460432 | L8: =1/H8 -> 0.1169590643 | M8: =1/N8 -> 0.03597122302 | N8: =H8+I8 -> 27.8 | O8: 61 | P8: =O8/H8 -> 7.134502924
F9: 56.22 | G9: 64.99 | H9: 8.77 | I9: 19.18 | J9: 0.3137745975 | K9: 0.6862254025 | L9: 0.1140250855 | M9: 0.03577817531 | N9: 27.95 | O9: 67 | P9: 7.63968073
F10: 84.17 | G10: 93.21 | H10: 9.04 | I10: 19.84 | J10: 0.3130193906 | K10: 0.6869806094 | L10: 0.110619469 | M10: 0.03462603878 | N10: 28.88 | O10: 69 | P10: 7.632743363
F11: 113.05 | G11: =120+1.47 -> 121.47 | H11: 8.42 | I11: 19.22 | J11: 0.3046309696 | K11: 0.6953690304 | L11: 0.1187648456 | M11: 0.03617945007 | N11: 27.64 | O11: 67 | P11: 7.957244656 | R11: 901_092_0063
F12: =120+20.69 -> 140.69 | G12: =120+30.6 -> 150.6 | H12: 9.91 | I12: 16.16 | J12: 0.3801304181 | K12: 0.6198695819 | L12: 0.1009081736 | M12: 0.03835826621 | N12: 26.07 | O12: 76 | P12: 7.669021191
F13: =120+46.76 -> 166.76 | G13: =120+56.46 -> 176.46 | H13: 9.7 | I13: 17.14 | J13: 0.3614008942 | K13: 0.6385991058 | L13: 0.1030927835 | M13: 0.03725782414 | N13: 26.84 | O13: 77 | P13: 7.93814433
F14: =120+73.6 -> 193.6 | G14: =120+82.42 -> 202.42 | H14: 8.82 | I14: 18.17 | J14: 0.3267876991 | K14: 0.6732123009 | L14: 0.1133786848 | M14: 0.03705075954 | N14: 26.99 | O14: 70 | P14: 7.936507937
F15: =120+100.59 -> 220.59 | G15: =120+110.36 -> 230.36 | H15: =G15-F15 -> 9.77 | I15: =F16-G15 -> 17.19 | J15: =H15/N15 -> 0.362388724 | K15: =I15/N15 -> 0.637611276 | L15: =1/H15 -> 0.1023541453 | M15: =1/N15 -> 0.03709198813 | N15: =H15+I15 -> 26.96 | O15: 77 | P15: 7.881269191
F16: =240+7.55 -> 247.55
H17: Prot | I17: Retr | J17: LG DC | K17: Int1 DC | L17: LG freq | M17: GMR freq | N17: Period | O17: s/b | P17: SpikeFreq
G18: Mean | H18: =AVERAGE(H7:H15) -> 8.971111111 | I18: =AVERAGE(I7:I15) -> 18.48555556 | J18: 0.327447512 | K18: 0.672552488 | L18: 0.1121075812 | M18: 0.03645039326 | N18: 27.45666667 | O18: 69.11111111 | P18: 7.695926792
G19: SD | H19: =_xlfn.STDEV.S(H7:H15) -> 0.7129944678 | I19: =_xlfn.STDEV.S(I7:I15) -> 1.389497311 | J19: 0.0334883909 | K19: 0.0334883909 | L19: 0.009069383885 | M19: 0.001098413099 | N19: 0.8263020029 | O19: 6.808899405 | P19: 0.2718949187
G20: SEM | H20: =H19/(SQRT(9)) -> 0.2376648226 | I20: =I19/(SQRT(9)) -> 0.4631657704 | J20: 0.01116279697 | K20: 0.01116279697 | L20: 0.003023127962 | M20: 0.0003661376996 | N20: 0.275434001 | O20: 2.269633135 | P20: 0.09063163956
B21: = Stim duration shorter than burst duration
B22: = Stimulation during that burst
F24: CabPK + GPR during Protraction
B25: Stim start | C25: Stim stop | D25: Stim | F25: LG start | G25: LG stop | H25: Prot | I25: Retr | J25: LG DC | K25: Int1 DC | L25: LG freq | M25: GMR freq | N25: Period | O25: s/b | P25: SpikeFreq | R25: File #
F26: 7.55 | G26: 17.81 | H26: =G26-F26 -> 10.26 | I26: =F27-G26 -> 20.28 | J26: =H26/N26 -> 0.3359528487 | K26: =I26/N26 -> 0.6640471513 | L26: =1/H26 -> 0.09746588694 | M26: =1/N26 -> 0.03274394237 | N26: =H26+I26 -> 30.54 | O26: 79 | P26: =O26/H26 -> 7.699805068 | R26: 901_092_0064
F27: 38.09 | G27: 47.92 | H27: =G27-F27 -> 9.83 | I27: =F28-G27 -> 18.03 | J27: =H27/N27 -> 0.3528356066 | K27: =I27/N27 -> 0.6471643934 | L27: =1/H27 -> 0.1017293998 | M27: =1/N27 -> 0.03589375449 | N27: =H27+I27 -> 27.86 | O27: 75 | P27: =O27/H27 -> 7.629704985
B28: 66.66 | C28: 71.48 | D28: =C28-B28 -> 4.82 | F28: 65.95 | G28: 72.72 | H28: 6.77 | I28: 18.23 | J28: 0.2708 | K28: 0.7292 | L28: 0.1477104874 | M28: 0.04 | N28: 25 | O28: 54 | P28: 7.976366322
F29: 90.95 | G29: 99.97 | H29: 9.02 | I29: 15.98 | J29: 0.3608 | K29: 0.6392 | L29: 0.110864745 | M29: 0.04 | N29: 25 | O29: 72 | P29: 7.982261641
B30: 116.8 | C30: =120+1.46 -> 121.46 | D30: =C30-B30 -> 4.66 | F30: 115.95 | G30: =120+1.4 -> 121.4 | H30: 5.45 | I30: 18.21 | J30: 0.2303465765 | K30: 0.7696534235 | L30: 0.1834862385 | M30: 0.04226542688 | N30: 23.66 | O30: 47 | P30: 8.623853211 | R30: 901_092_0065
F31: =120+19.61 -> 139.61 | G31: =120+30.13 -> 150.13 | H31: 10.52 | I31: 22.24 | J31: 0.3211233211 | K31: 0.6788766789 | L31: 0.09505703422 | M31: 0.03052503053 | N31: 32.76 | O31: 77 | P31: 7.319391635
B32: 53.85 | C32: 58.73 | D32: =C32-B32 -> 4.88 | F32: =120+52.37 -> 172.37 | G32: =120+59.07 -> 179.07 | H32: 6.7 | I32: 22.76 | J32: 0.2274270197 | K32: 0.7725729803 | L32: 0.1492537313 | M32: 0.0339443313 | N32: 29.46 | O32: 54 | P32: 8.059701493
F33: =120+81.83 -> 201.83 | G33: =120+90.46 -> 210.46 | H33: 8.63 | I33: 18.96 | J33: 0.3127944908 | K33: 0.6872055092 | L33: 0.1158748552 | M33: 0.03624501631 | N33: 27.59 | O33: 70 | P33: 8.111239861
F34: =120+109.42 -> 229.42 | G34: =120+118.89 -> 238.89 | H34: 9.47 | I34: 18.68 | J34: 0.3364120782 | K34: 0.6635879218 | L34: 0.1055966209 | M34: 0.03552397869 | N34: 28.15 | O34: 77 | P34: 8.13093981
B35: 18.54 | C35: 23.44 | D35: =C35-B35 -> 4.9 | F35: =240+17.57 -> 257.57 | G35: =240+23.52 -> 263.52 | H35: 5.95 | I35: 18.5 | J35: 0.2433537832 | K35: 0.7566462168 | L35: 0.1680672269 | M35: 0.0408997955 | N35: 24.45 | O35: 48 | P35: 8.067226891 | R35: 901_092_0066
F36: =240+42.02 -> 282.02 | G36: =240+51.8 -> 291.8 | H36: 9.78 | I36: 23.6 | J36: 0.2929898143 | K36: 0.7070101857 | L36: 0.1022494888 | M36: 0.02995805872 | N36: 33.38 | O36: 80 | P36: 8.1799591
B37: 76.06 | C37: 80.97 | D37: =C37-B37 -> 4.91 | F37: =240+75.4 -> 315.4 | G37: =240+81.18 -> 321.18 | H37: 5.78 | I37: 21.75 | J37: 0.2099527788 | K37: 0.7900472212 | L37: 0.1730103806 | M37: 0.03632401017 | N37: 27.53 | O37: 49 | P37: 8.477508651
F38: =240+102.93 -> 342.93 | G38: =240+113.44 -> 353.44 | H38: 10.51 | I38: 18.73 | J38: 0.3594391245 | K38: 0.6405608755 | L38: 0.09514747859 | M38: 0.0341997264 | N38: 29.24 | O38: 80 | P38: 7.611798287
B39: 13.18 | C39: 18.08 | D39: =C39-B39 -> 4.9 | F39: =360+12.17 -> 372.17 | G39: =360+18.86 -> 378.86 | H39: 6.69 | I39: 19.82 | J39: 0.2523576009 | K39: 0.7476423991 | L39: 0.1494768311 | M39: 0.03772161449 | N39: 26.51 | O39: 57 | P39: 8.520179372 | R39: 901_092_0067
F40: =360+38.68 -> 398.68 | G40: =360+48.4 -> 408.4 | H40: 9.72 | I40: 19.85 | J40: 0.328711532 | K40: 0.671288468 | L40: 0.1028806584 | M40: 0.03381805884 | N40: 29.57 | O40: 75 | P40: 7.716049383
B41: 68.98 | C41: 75.88 | D41: =C41-B41 -> 6.9 | F41: =360+68.25 -> 428.25 | G41: =360+74.83 -> 434.83 | H41: 6.58 | I41: 21.92 | J41: 0.230877193 | K41: 0.769122807 | L41: 0.1519756839 | M41: 0.0350877193 | N41: 28.5 | O41: 52 | P41: 7.902735562
F42: =360+96.75 -> 456.75 | G42: =360+106.35 -> 466.35 | H42: 9.6 | I42: 19.66 | J42: 0.3280929597 | K42: 0.6719070403 | L42: 0.1041666667 | M42: 0.03417634997 | N42: 29.26 | O42: 75 | P42: 7.8125
F43: =480+6.01 -> 486.01 | G43: =480+16.47 -> 496.47 | H43: 10.46 | I43: 20.24 | J43: 0.3407166124 | K43: 0.6592833876 | L43: 0.09560229446 | M43: 0.0325732899 | N43: 30.7 | O43: 76 | P43: 7.265774379 | R43: 901_092_0068
F44: =480+36.71 -> 516.71 | G44: =480+46.45 -> 526.45 | H44: 9.74 | I44: 19.99 | J44: 0.3276152035 | K44: 0.6723847965 | L44: 0.1026694045 | M44: 0.03363605785 | N44: 29.73 | O44: 75 | P44: 7.700205339
F45: =480+66.44 -> 546.44 | G45: =480+75.97 -> 555.97 | H45: 9.53 | I45: 23.13 | J45: 0.2917942437 | K45: 0.7082057563 | L45: 0.1049317943 | M45: 0.03061849357 | N45: 32.66 | O45: 74 | P45: 7.764952781
F46: =480+99.1 -> 579.1 | G46: =480+108.53 -> 588.53 | H46: 9.43 | I46: 19.07 | J46: 0.330877193 | K46: 0.669122807 | L46: 0.1060445387 | M46: 0.0350877193 | N46: 28.5 | O46: 70 | P46: 7.423117709
F47: =600+7.6 -> 607.6
H49: Prot | I49: Retr | J49: LG DC | K49: Int1 DC | L49: LG freq | M49: GMR freq | N49: Period | O49: s/b | P49: SpikeFreq
E50: GPR Stim. | G50: Mean | H50: =AVERAGE(H28,H30,H32,H35,H37,H39,H41) -> 6.274285714 | I50: =AVERAGE(I28,I30,I32,I35,I37,I39,I41) -> 20.17 | J50: 0.2378735646 | K50: 0.7621264354 | L50: 0.1604257971 | M50: 0.03803469966 | N50: 26.44428571 | O50: 51.57142857 | P50: 8.232510214
G51: SD | H51: =_xlfn.STDEV.S(H28,H30,H32,H35,H37,H39,H41) -> 0.535750475 | I51: =_xlfn.STDEV.S(I28,I30,I32,I35,I37,I39,I41) -> 1.948657658 | J51: 0.01965653241 | K51: 0.01965653241 | L51: 0.01429641898 | M51: 0.003120110038 | N51: 2.172516645 | O51: 3.690399385 | P51: 0.2964988941
G52: SEM | H52: =H51/(SQRT(7)) -> 0.2024946459 | I52: =I51/(SQRT(7)) -> 0.7365233646 | J52: 0.007429470914 | K52: 0.007429470914 | L52: 0.005403538465 | M52: 0.001179290746 | N52: 0.8211341087 | O52: 1.394839859 | P52: 0.1120660483
E55: Burst After Stim. | G55: Mean | H55: =AVERAGE(H29,H31,H36,H38,H40,H42) -> 9.858333333 | I55: =AVERAGE(I29,I31,I36,I38,I40,I42) -> 20.01 | J55: 0.3318594586 | K55: 0.6681405414 | L55: 0.1017276786 | M55: 0.03377953741 | N55: 29.86833333 | O55: 76.5 | P55: 7.770326674
G56: SD | H56: =_xlfn.STDEV.S(H29,H31,H33,H36,H38,H40,H42) -> 0.7012539789 | I56: =_xlfn.STDEV.S(I29,I31,I33,I36,I38,I40,I42) -> 2.477680367 | J56: 0.02435826707 | K56: 0.02435826707 | L56: 0.007641810713 | M56: 0.003401847266 | N56: 2.878001125 | O56: 3.77964473 | P56: =_xlfn.STDEV.S(P29,P31,P33,P36,P38,P40,P42) -> 0.3015327826
G57: SEM | H57: =H56/(SQRT(7)) -> 0.2650490906 | I57: =I56/(SQRT(7)) -> 0.9364751541 | J57: 0.009206559575 | K57: 0.009206559575 | L57: 0.002888332959 | M57: 0.001285777409 | N57: 1.087782179 | O57: 1.428571429 | P57: 0.1139686793
E60: All Other | G60: Mean | H60: =AVERAGE(H26,H27,H34,H43,H44,H45,H46) -> 9.817142857 | I60: =AVERAGE(I26,I27,I34,I43,I44,I45,I46) -> 19.91714286 | J60: 0.3308862552 | K60: 0.6691137448 | L60: 0.1020057057 | M60: 0.03372531945 | N60: 29.73428571 | O60: 75.14285714 | P60: 7.659214296
G61: SD | H61: =_xlfn.STDEV.S(H26:H27,H34,H43:H46) -> 0.4017343353 | I61: =_xlfn.STDEV.S(I26:I27,I34,I43:I46) -> 1.651925284 | J61: 0.01903286745 | K61: 0.01903286745 | L61: 0.004080427057 | M61: 0.001903681811 | N61: 1.716972696 | O61: 2.794552524 | P61: 0.2733864268
G62: SEM | H62: =H61/(SQRT(7)) -> 0.1518413063 | I62: =I61/(SQRT(7)) -> 0.6243690693 | J62: 0.007193747717 | K62: 0.007193747717 | L62: 0.001542256462 | M62: 0.0007195240926 | N62: 0.6489546801 | O62: 1.056241572 | P62: 0.1033303567
F65: CabPK + GPR during Retraction
B66: Stim start | C66: Stim stop | D66: Stim | F66: LG start | G66: LG stop | H66: Prot | I66: Retr | J66: LG DC | K66: Int1 DC | L66: LG freq | M66: GMR freq | N66: Period | O66: s/b | P66: SpikeFreq | R66: File #
B67: 22.1 | C67: 41.9 | D67: =C67-B67 -> 19.8 | F67: 7.6 | G67: 16.4 | H67: =G67-F67 -> 8.8 | I67: =F68-G67 -> 34.76 | J67: =H67/N67 -> 0.202020202 | K67: =I67/N67 -> 0.797979798 | L67: =1/H67 -> 0.1136363636 | M67: =1/N67 -> 0.02295684114 | N67: =H67+I67 -> 43.56 | O67: 66 | P67: =O67/H67 -> 7.5 | R67: 901_092_0069
F68: 51.16 | G68: 60.44 | H68: 9.28 | I68: 23.37 | J68: 0.2842266462 | K68: 0.7157733538 | L68: 0.1077586207 | M68: 0.03062787136 | N68: 32.65 | O68: 65 | P68: =O68/H68 -> 7.004310345
B69: 95.13 | C69: 114.99 | D69: =C69-B69 -> 19.86 | F69: 83.81 | G69: 92.67 | H69: 8.86 | I69: 49.59 | J69: 0.1515825492 | K69: 0.8484174508 | L69: 0.1128668172 | M69: 0.01710863986 | N69: 58.45 | O69: 65 | P69: 7.336343115
B70: 35.48 | C70: 55.34 | D70: =C70-B70 -> 19.86 | F70: =120+22.26 -> 142.26 | G70: =120+31.04 -> 151.04 | H70: 8.78 | I70: 66.91 | J70: 0.1159994715 | K70: 0.8840005285 | L70: 0.1138952164 | M70: 0.01321178491 | N70: 75.69 | O70: 58 | P70: 6.605922551 | R70: 901_092_0070
F71: =120+97.95 -> 217.95 | G71: =120+106.17 -> 226.17 | H71: 8.22 | I71: 35.38 | J71: 0.1885321101 | K71: 0.8114678899 | L71: 0.1216545012 | M71: 0.02293577982 | N71: 43.6 | O71: 54 | P71: 6.569343066
F72: =240+21.55 -> 261.55 | G72: =240+30.82 -> 270.82 | H72: 9.27 | I72: 31.11 | J72: 0.2295690936 | K72: 0.7704309064 | L72: 0.1078748652 | M72: 0.02476473502 | N72: 40.38 | O72: 61 | P72: 6.580366775 | R72: 901_092_0071
F73: =240+61.93 -> 301.93 | G73: =240+71.5 -> 311.5 | H73: 9.57 | I73: 30.5 | J73: 0.2388320439 | K73: 0.7611679561 | L73: 0.1044932079 | M73: 0.02495632643 | N73: 40.07 | O73: 60 | P73: 6.269592476
F74: =240+102 -> 342 | G74: =240+111.66 -> 351.66 | H74: 9.66 | I74: 18.34 | J74: 0.345 | K74: 0.655 | L74: 0.1035196687 | M74: 0.03571428571 | N74: 28 | O74: 67 | P74: 6.935817805
B75: 21.48 | C75: 41.37 | D75: =C75-B75 -> 19.89 | F75: =360+10 -> 370 | G75: =360+18.73 -> 378.73 | H75: 8.73 | I75: 53.89 | J75: 0.1394123283 | K75: 0.8605876717 | L75: 0.1145475372 | M75: 0.01596933887 | N75: 62.62 | O75: 61 | P75: 6.987399771 | R75: 901_092_0072
F76: =360+72.62 -> 432.62 | G76: =360+81.34 -> 441.34 | H76: 8.72 | I76: 28.91 | J76: 0.2317300027 | K76: 0.7682699973 | L76: 0.1146788991 | M76: 0.02657454159 | N76: 37.63 | O76: 58 | P76: 6.651376147
B77: 3.59 | C77: 23.5 | D77: =C77-B77 -> 19.91 | F77: =360+110.25 -> 470.25 | G77: =360+119.73 -> 479.73 | H77: 9.48 | I77: 55.85 | J77: 0.1451094444 | K77: 0.8548905556 | L77: 0.1054852321 | M77: 0.01530690341 | N77: 65.33 | O77: 65 | P77: 6.856540084
F78: =480+55.58 -> 535.58 | G78: =480+64.99 -> 544.99 | H78: 9.41 | I78: 33.2 | J78: 0.2208401784 | K78: 0.7791598216 | L78: 0.1062699256 | M78: 0.02346866933 | N78: 42.61 | O78: 53 | P78: 5.632306057 | R78: 901_092_0073
F79: =480+98.19 -> 578.19 | G79: =480+106.83 -> 586.83 | H79: 8.64 | I79: 36.57 | J79: 0.1911081619 | K79: 0.8088918381 | L79: 0.1157407407 | M79: 0.02211900022 | N79: 45.21 | O79: 55 | P79: 6.365740741
F80: =600+23.4 -> 623.4 | G80: =600+32.81 -> 632.81 | H80: 9.41 | I80: 28.25 | J80: 0.2498672331 | K80: 0.7501327669 | L80: 0.1062699256 | M80: 0.02655337228 | N80: 37.66 | O80: 62 | P80: 6.588735388 | R80: 901_092_0074
F81: =600+61.06 -> 661.06 | G81: =600+70.27 -> 670.27 | H81: 9.21 | I81: 20.59 | J81: 0.3090604027 | K81: 0.6909395973 | L81: 0.108577633 | M81: 0.03355704698 | N81: 29.8 | O81: 62 | P81: 6.731813246
F82: =600+90.86 -> 690.86 | G82: =600+100.57 -> 700.57 | H82: 9.71 | I82: 19.93 | J82: 0.3275978408 | K82: 0.6724021592 | L82: 0.1029866117 | M82: 0.03373819163 | N82: 29.64 | O82: 64 | P82: 6.591143151
F83: =720+0.5 -> 720.5 | G83: =720+9.74 -> 729.74 | H83: 9.24 | I83: 25.59 | J83: 0.2652885444 | K83: 0.7347114556 | L83: 0.1082251082 | M83: 0.02871088142 | N83: 34.83 | O83: 60 | P83: 6.493506494 | R83: 901_092_0075
B84: 50.93 | C84: 70.82 | D84: =C84-B84 -> 19.89 | F84: =720+35.33 -> 755.33 | G84: =720+44.72 -> 764.72 | H84: 9.39 | I84: 53.73 | J84: 0.1487642586 | K84: 0.8512357414 | L84: 0.1064962726 | M84: 0.01584283904 | N84: 63.12 | O84: 65 | P84: 6.922257721
F85: =720+98.45 -> 818.45 | G85: =720+107.05 -> 827.05 | H85: 8.6 | I85: 30.8 | J85: 0.2182741117 | K85: 0.7817258883 | L85: 0.1162790698 | M85: 0.02538071066 | N85: 39.4 | O85: 55 | P85: 6.395348837
F86: =840+17.85 -> 857.85 | G86: =840+26.22 -> 866.22 | H86: 8.37 | I86: 27.39 | J86: 0.2340604027 | K86: 0.7659395973 | L86: 0.119474313 | M86: 0.02796420582 | N86: 35.76 | O86: 53 | P86: 6.33213859 | R86: 901_092_0076
F87: =840+53.61 -> 893.61 | G87: =840+62.74 -> 902.74 | H87: 9.13 | I87: 35.04 | J87: 0.206701381 | K87: 0.793298619 | L87: 0.1095290252 | M87: 0.02263980077 | N87: 44.17 | O87: 54 | P87: 5.91456736
F88: =840+97.78 -> 937.78 | G88: =840+106.94 -> 946.94 | H88: 9.16 | I88: 34.03 | J88: 0.212086131 | K88: 0.787913869 | L88: 0.1091703057 | M88: 0.02315350776 | N88: 43.19 | O88: 58 | P88: 6.331877729
F89: =960+20.97 -> 980.97 | G89: =960+30.31 -> 990.31 | H89: 9.34 | I89: 22.97 | J89: 0.2890745899 | K89: 0.7109254101 | L89: 0.1070663812 | M89: 0.03095017023 | N89: 32.31 | O89: 58 | P89: 6.209850107 | R89: 901_092_0077
F90: =960+53.28 -> 1013.28 | G90: =960+62.73 -> 1022.73 | H90: 9.45 | I90: 24.09 | J90: 0.2817531306 | K90: 0.7182468694 | L90: 0.1058201058 | M90: 0.02981514609 | N90: 33.54 | O90: 59 | P90: 6.243386243
F91: =960+86.82 -> 1046.82 | G91: =960+95.93 -> 1055.93 | H91: 9.11 | I91: 24.22 | J91: 0.2733273327 | K91: 0.7266726673 | L91: 0.1097694841 | M91: 0.0300030003 | N91: 33.33 | O91: 58 | P91: 6.366630077
F92: =1080+0.15 -> 1080.15 | G92: =1080+9.1 -> 1089.1 | H92: =G92-F92 -> 8.95 | I92: =F93-G92 -> 27.26 | J92: =H92/N92 -> 0.2471692903 | K92: =I92/N92 -> 0.7528307097 | L92: =1/H92 -> 0.1117318436 | M92: =1/N92 -> 0.02761668048 | N92: =H92+I92 -> 36.21 | O92: 59 | P92: =O92/H92 -> 6.592178771 | R92: 901_092_0078
F93: =1080+36.36 -> 1116.36 | G93: =1080+45.63 -> 1125.63 | H93: =G93-F93 -> 9.27 | I93: =F94-G93 -> 21.28 | J93: =H93/N93 -> 0.3034369885 | K93: =I93/N93 -> 0.6965630115 | L93: =1/H93 -> 0.1078748652 | M93: =1/N93 -> 0.03273322422 | N93: =H93+I93 -> 30.55 | O93: 60 | P93: =O93/H93 -> 6.472491909
F94: =1080+66.91 -> 1146.91 | G94: =1080+76.06 -> 1156.06 | H94: =G94-F94 -> 9.15 | I94: =F95-G94 -> 20.51 | J94: =H94/N94 -> 0.3084962913 | K94: =I94/N94 -> 0.6915037087 | L94: =1/H94 -> 0.1092896175 | M94: =1/N94 -> 0.03371544167 | N94: =H94+I94 -> 29.66 | O94: 59 | P94: =O94/H94 -> 6.448087432
F95: =1080+96.57 -> 1176.57 | G95: =1080+104.84 -> 1184.84 | H95: =G95-F95 -> 8.27 | I95: =F96-G95 -> 33.02 | J95: =H95/N95 -> 0.2002906273 | K95: =I95/N95 -> 0.7997093727 | L95: =1/H95 -> 0.1209189843 | M95: =1/N95 -> 0.02421893921 | N95: =H95+I95 -> 41.29 | O95: 54 | P95: =O95/H95 -> 6.529625151
F96: =1200+17.86 -> 1217.86 | H96: =G96-F96 -> -1217.86 | I96: =F97-G96 -> 0 | J96: =H96/N96 -> 1 | K96: =I96/N96 -> 0 | L96: =1/H96 -> -0.0008211124431 | M96: =1/N96 -> -0.0008211124431 | N96: =H96+I96 -> -1217.86 | P96: =O96/H96 -> 0 | R96: 901_092_0079
H98: Prot | I98: Retr | J98: LG DC | K98: Int1 DC | L98: LG freq | M98: GMR freq | N98: Period | O98: s/b | P98: SpikeFreq
E99: GPR Stim. | G99: Mean | H99: =AVERAGE(H67,H69:H70,H75,H77,H84) -> 9.006666667 | I99: =AVERAGE(I67,I69:I70,I75,I77,I84) -> 52.455 | J99: 0.1504813757 | K99: 0.8495186243 | L99: 0.1111545732 | M99: 0.01673272454 | N99: 61.46166667 | O99: 63.33333333 | P99: 7.034743874
G100: SD | H100: =_xlfn.STDEV.S(H67,H69,H70,H75,H77,H84) -> 0.335598967 | I100: =_xlfn.STDEV.S(I67,I69,I70,I75,I77,I84) -> 10.44489493 | J100: 0.02828708138 | K100: 0.02828708138 | L100: 0.004048594478 | M100: 0.003307130944 | N100: 10.49801013 | O100: 3.141125064 | P100: 0.3280135001
G101: SEM | H101: =H100/(SQRT(6)) -> 0.1370077046 | I101: =I100/(SQRT(6)) -> 4.264110497 | J101: 0.01154815261 | K101: 0.01154815261 | L101: 0.001652831775 | M101: 0.001350130554 | N101: 4.285794688 | O101: 1.282358937 | P101: 0.1339109507
E104: Burst After Stim. | G104: Mean | H104: =AVERAGE(H68,H71,H76,H78,H85) -> 8.846 | I104: =AVERAGE(I68,I71,I76,I78,I85) -> 30.332 | J104: 0.2287206098 | K104: 0.7712793902 | L104: 0.1133282033 | M104: 0.02579751455 | N104: 39.178 | O104: 57 | P104: 6.45053689
G105: SD | H105: =_xlfn.STDEV.S(H68,H71,H76,H85) -> 0.4385962456 | I105: =_xlfn.STDEV.S(I68,I71,I76,I85) -> 4.971133338 | J105: 0.03999456655 | K105: 0.03999456655 | L105: 0.005727845987 | M105: 0.003211618964 | N105: 4.533938685 | O105: 4.966554809 | P105: 0.2561162823
G106: SEM | H106: =H105/SQRT(4) -> 0.2192981228 | I106: =I105/SQRT(4) -> 2.485566669 | J106: 0.01999728327 | K106: 0.01999728327 | L106: 0.002863922993 | M106: 0.001605809482 | N106: 2.266969343 | O106: 2.483277404 | P106: 0.1280581412
E109: All Other | G109: Mean | H109: =AVERAGE(H72:H74,H79:H83,H86:H95) -> 9.161666667 | I109: =AVERAGE(I72:I74,I79:I83,I86:I95) -> 26.705 | J109: 0.2618177492 | K109: 0.7381822508 | L109: 0.1093518159 | M109: 0.02849577535 | N109: 35.86666667 | O109: 59.05555556 | P109: 6.444308303
G110: SD | H110: =_xlfn.STDEV.S(H72,H73,H74,H79:H83,H86:H95) -> 0.3960726315 | I110: =_xlfn.STDEV.S(I72,I73,I74,I79:I83,I86:I95) -> 5.670243537 | J110: 0.04580441538 | K110: 0.04580441538 | L110: 0.004938156104 | M110: 0.004294685398 | N110: 5.479872261 | O110: 3.588744205 | P110: 0.2251100122
G111: SEM | H111: =H110/(SQRT(18)) -> 0.09335521452 | I111: =I110/(SQRT(18)) -> 1.336489219 | J111: 0.01079620424 | K111: 0.01079620424 | L111: 0.001163934556 | M111: 0.001012267056 | N111: 1.291618279 | O111: 0.845875121 | P111: 0.05305893871

Sheet 901_116
C4: 901_116
F5: CabPK
F6: LG start | G6: LG stop | H6: Prot | I6: Retr | J6: LG DC | K6: Int1 DC | L6: LG freq | M6: GMR freq | N6: Period | O6: s/b | P6: SpikeFreq | R6: File # : (Notebook#_Page#_ABFfile#)
F7: 1.36 | G7: 8.06 | H7: =G7-F7 -> 6.7 | I7: =F8-G7 -> 7.17 | J7: =H7/N7 -> 0.4830569575 | K7: =I7/N7 -> 0.5169430425 | L7: =1/H7 -> 0.1492537313 | M7: =1/N7 -> 0.07209805335 | N7: =H7+I7 -> 13.87 | O7: 16 | P7: =O7/H7 -> 2.388059701 | R7: 901_116_0041
F8: 15.23 | G8: 22.66 | H8: =G8-F8 -> 7.43 | I8: =F9-G8 -> 7.14 | J8: =H8/N8 -> 0.5099519561 | K8: =I8/N8 -> 0.4900480439 | L8: =1/H8 -> 0.134589502 | M8: =1/N8 -> 0.06863417982 | N8: =H8+I8 -> 14.57 | O8: 17 | P8: =O8/H8 -> 2.288021534
F9: 29.8 | G9: 37.26 | H9: 7.46 | I9: 7.97 | J9: 0.4834737524 | K9: 0.5165262476 | L9: 0.1340482574 | M9: 0.064808814 | N9: 15.43 | O9: 19 | P9: 2.54691689
F10: 45.23 | G10: 51.97 | H10: 6.74 | I10: 7.79 | J10: 0.4638678596 | K10: 0.5361321404 | L10: 0.1483679525 | M10: 0.06882312457 | N10: 14.53 | O10: 19 | P10: 2.818991098
F11: 59.76 | G11: 66.48 | H11: 6.72 | I11: 6.4 | J11: 0.512195122 | K11: 0.487804878 | L11: 0.1488095238 | M11: 0.0762195122 | N11: 13.12 | O11: 18 | P11: 2.678571429
F12: 72.88 | G12: 78.75 | H12: 5.87 | I12: 7.12 | J12: 0.4518860662 | K12: 0.5481139338 | L12: 0.1703577513 | M12: 0.07698229407 | N12: 12.99 | O12: 16 | P12: 2.72572402
F13: 85.87 | G13: 92.71 | H13: 6.84 | I13: 7.82 | J13: 0.4665757162 | K13: 0.5334242838 | L13: 0.1461988304 | M13: 0.06821282401 | N13: 14.66 | O13: 19 | P13: 2.777777778
F14: 100.53 | G14: 107.16 | H14: 6.63 | I14: 8.95 | J14: 0.4255455712 | K14: 0.5744544288 | L14: 0.1508295626 | M14: 0.06418485237 | N14: 15.58 | O14: 19 | P14: 2.865761689
F15: 116.11 | H15: -116.11 | I15: =F21-G15 -> 0 | J15: 1 | K15: 0 | L15: -0.008612522608 | M15: -0.008612522608 | N15: -116.11 | P15: 0
H17: Prot | I17: Retr | J17: LG DC | K17: Int1 DC | L17: LG freq | M17: GMR freq | N17: Period | O17: s/b | P17: SpikeFreq
G18: Mean | H18: =AVERAGE(H7:H14) -> 6.79875 | I18: =AVERAGE(I7:I14) -> 7.545 | J18: 0.4745691252 | K18: 0.5254308748 | L18: 0.1478068889 | M18: 0.0699954568 | N18: 14.34375 | O18: 17.875 | P18: 2.636228017
G19: SD | H19: =_xlfn.STDEV.S(H7:H14) -> 0.4996981232 | I19: =_xlfn.STDEV.S(I7:I14) -> 0.7640680598 | J19: 0.02906946782 | K19: 0.02906946782 | L19: 0.01126103574 | M19: 0.004766629204 | N19: 0.9598204817 | O19: 1.356202682 | P19: 0.209331804
G20: SEM | H20: =H19/SQRT(8) -> 0.1766699657 | I20: =I19/SQRT(8) -> 0.2701388532 | J20: 0.01027760891 | K20: 0.01027760891 | L20: 0.003981377369 | M20: 0.001685257917 | N20: 0.3393477857 | O20: 0.4794900565 | P20: 0.07400996906
B23: = Stim duration shorter than burst duration
B24: = Stimulation during that burst
F26: CabPK + GPR during Protraction
B27: Stim start | C27: Stim stop | D27: Stim | F27: LG start | G27: LG stop | H27: Prot | I27: Retr | J27: LG DC | K27: Int1 DC | L27: LG freq | M27: GMR freq | N27: Period | O27: s/b | P27: SpikeFreq | R27: File #
F28: 9.84 | G28: 15.75 | H28: =G28-F28 -> 5.91 | I28: =F29-G28 -> 8.08 | J28: =H28/N28 -> 0.4224446033 | K28: =I28/N28 -> 0.5775553967 | L28: =1/H28 -> 0.1692047377 | M28: =1/N28 -> 0.07147962831 | N28: =H28+I28 -> 13.99 | O28: 17 | P28: =O28/H28 -> 2.876480541 | R28: 901_116_0042
A29: (RET. Stim) | B29: 30.87 | C29: 34.87 | D29: =C29-B29 -> 4 | F29: 23.83 | G29: 30.77 | H29: =G29-F29 -> 6.94 | I29: =F30-G29 -> 10.61 | J29: =H29/N29 -> 0.3954415954 | K29: =I29/N29 -> 0.6045584046 | L29: =1/H29 -> 0.144092219 | M29: =1/N29 -> 0.05698005698 | N29: =H29+I29 -> 17.55 | O29: 22 | P29: =O29/H29 -> 3.170028818
F30: 41.38 | G30: 47.09 | H30: 5.71 | I30: 8.87 | J30: 0.3916323731 | K30: 0.6083676269 | L30: 0.1751313485 | M30: 0.06858710562 | N30: 14.58 | O30: 18 | P30: 3.152364273
F31: 55.96 | G31: 62.85 | H31: 6.89 | I31: 8.9 | J31: 0.4363521216 | K31: 0.5636478784 | L31: 0.145137881 | M31: 0.06333122229 | N31: 15.79 | O31: 19 | P31: 2.757619739
F32: 71.75 | G32: 77.78 | H32: 6.03 | I32: 9.79 | J32: 0.3811630847 | K32: 0.6188369153 | L32: 0.1658374793 | M32: 0.06321112516 | N32: 15.82 | O32: 19 | P32: 3.150912106
B33: 89.44 | C33: 93.43 | D33: =C33-B33 -> 3.99 | F33: 87.57 | G33: 90.23 | H33: 2.66 | I33: 9.42 | J33: 0.2201986755 | K33: 0.7798013245 | L33: 0.3759398496 | M33: 0.08278145695 | N33: 12.08 | O33: 9 | P33: 3.383458647
F34: 99.65 | G34: 105.53 | H34: 5.88 | I34: 8.94 | J34: 0.3967611336 | K34: 0.6032388664 | L34: 0.1700680272 | M34: 0.06747638327 | N34: 14.82 | O34: 20 | P34: 3.401360544
B35: 116.18 | C35: 120 | D35: =C35-B35 -> 3.82 | F35: 114.47 | G35: 118.1 | H35: 3.63 | I35: 8.22 | J35: 0.3063291139 | K35: 0.6936708861 | L35: 0.2754820937 | M35: 0.08438818565 | N35: 11.85 | O35: 9 | P35: 2.479338843
F36: =120+6.32 -> 126.32 | G36: =120+13.07 -> 133.07 | H36: 6.75 | I36: 8.84 | J36: 0.4329698525 | K36: 0.5670301475 | L36: 0.1481481481 | M36: 0.06414368185 | N36: 15.59 | O36: 22 | P36: 3.259259259 | R36: 901_116_0043
B37: 23.87 | C37: 27.88 | D37: =C37-B37 -> 4.01 | F37: =120+21.91 -> 141.91 | G37: =120+25.57 -> 145.57 | H37: 3.66 | I37: 9.29 | J37: 0.2826254826 | K37: 0.7173745174 | L37: 0.2732240437 | M37: 0.07722007722 | N37: 12.95 | O37: 12 | P37: 3.278688525
F38: =34.86+120 -> 154.86 | G38: =120+40.73 -> 160.73 | H38: 5.87 | I38: 8.9 | J38: 0.3974272173 | K38: 0.6025727827 | L38: 0.1703577513 | M38: 0.06770480704 | N38: 14.77 | O38: 20 | P38: 3.407155026
B39: 51.2 | C39: 55.22 | D39: =C39-B39 -> 4.02 | F39: =120+49.63 -> 169.63 | G39: =120+53.26 -> 173.26 | H39: 3.63 | I39: 8.52 | J39: 0.2987654321 | K39: 0.7012345679 | L39: 0.2754820937 | M39: 0.08230452675 | N39: 12.15 | O39: 10 | P39: 2.754820937
F40: =120+61.78 -> 181.78 | G40: =120+67.57 -> 187.57 | H40: 5.79 | I40: 9.77 | J40: 0.3721079692 | K40: 0.6278920308 | L40: 0.1727115717 | M40: 0.06426735219 | N40: 15.56 | O40: 20 | P40: 3.454231434
A41: DG HYP. | F41: =120+77.34 -> 197.34 | G41: =120+83.2 -> 203.2 | H41: 5.86 | I41: 15.51 | J41: 0.2742161909 | K41: 0.7257838091 | L41: 0.1706484642 | M41: 0.04679457183 | N41: 21.37 | O41: 20 | P41: 3.412969283
F42: =120+98.71 -> 218.71 | G42: =120+102.77 -> 222.77 | H42: 4.06 | I42: 8.76 | J42: 0.3166926677 | K42: 0.6833073323 | L42: 0.2463054187 | M42: 0.07800312012 | N42: 12.82 | O42: 22 | P42: 5.418719212
B43: 113.16 | C43: 117.14 | D43: =C43-B43 -> 3.98 | F43: =120+111.53 -> 231.53 | G43: =120+115.38 -> 235.38 | H43: 3.85 | I43: 9.01 | J43: 0.299377916 | K43: 0.700622084 | L43: 0.2597402597 | M43: 0.07776049767 | N43: 12.86 | O43: 9 | P43: 2.337662338
F44: =240+4.39 -> 244.39 | G44: =240+11.08 -> 251.08 | H44: 6.69 | I44: 8.11 | J44: 0.452027027 | K44: 0.547972973 | L44: 0.1494768311 | M44: 0.06756756757 | N44: 14.8 | O44: 22 | P44: 3.288490284 | R44: 901_116_0044
B45: 19.89 | C45: 23.87 | D45: =C45-B45 -> 3.98 | F45: =240+19.19 -> 259.19 | G45: =240+20.01 -> 260.01 | H45: 0.82 | I45: 8.67 | J45: 0.08640674394 | K45: 0.9135932561 | L45: 1.219512195 | M45: 0.105374078 | N45: 9.49 | O45: 2 | P45: 2.43902439
F46: =240+28.68 -> 268.68 | G46: =240+35.39 -> 275.39 | H46: 6.71 | I46: 10.56 | J46: 0.3885350318 | K46: 0.6114649682 | L46: 0.1490312966 | M46: 0.05790387956 | N46: 17.27 | O46: 22 | P46: 3.278688525
F47: =240+45.95 -> 285.95 | G47: =51.31+240 -> 291.31 | H47: 5.36 | I47: 12.02 | J47: 0.3084004603 | K47: 0.6915995397 | L47: 0.1865671642 | M47: 0.05753739931 | N47: 17.38 | O47: 18 | P47: 3.358208955
B48: 64 | C48: 68.01 | D48: =C48-B48 -> 4.01 | F48: =240+63.33 -> 303.33 | G48: =240+64.2 -> 304.2 | H48: 0.87 | I48: 10.2 | J48: 0.07859078591 | K48: 0.9214092141 | L48: 1.149425287 | M48: 0.09033423668 | N48: 11.07 | O48: 2 | P48: 2.298850575
B49: 76.51 | C49: 80.57 | D49: =C49-B49 -> 4.06 | F49: =240+74.4 -> 314.4 | G49: =240+78.9 -> 318.9 | H49: =G49-F49 -> 4.5 | I49: =F50-G49 -> 12.99 | J49: =H49/N49 -> 0.2572898799 | K49: =I49/N49 -> 0.7427101201 | L49: =1/H49 -> 0.2222222222 | M49: =1/N49 -> 0.05717552887 | N49: =H49+I49 -> 17.49 | O49: 12 | P49: =O49/H49 -> 2.666666667
F50: =240+91.89 -> 331.89 | G50: =240+97.85 -> 337.85 | H50: =G50-F50 -> 5.96 | I50: =F81-G50 -> -337.85 | J50: =H50/N50 -> -0.01795775709 | K50: =I50/N50 -> 1.017957757 | L50: =1/H50 -> 0.1677852349 | M50: =1/N50 -> -0.003013046491 | N50: =H50+I50 -> -331.89 | O50: 18 | P50: =O50/H50 -> 3.020134228
F52: 13.36 | G52: 21.34 | H52: =G52-F52 -> 7.98 | I52: =F53-G52 -> 13.85 | J52: =H52/N52 -> 0.3655519927 | K52: =I52/N52 -> 0.6344480073 | L52: =1/H52 -> 0.1253132832 | M52: =1/N52 -> 0.04580852038 | N52: =H52+I52 -> 21.83 | O52: 29 | P52: =O52/H52 -> 3.634085213 | R52: 901_116_0051
F53: 35.19 | G53: 43.07 | H53: 7.88 | I53: =F54-G53 -> 18.8 | J53: =H53/N53 -> 0.2953523238 | K53: =I53/N53 -> 0.7046476762 | L53: =1/H53 -> 0.1269035533 | M53: =1/N53 -> 0.03748125937 | N53: =H53+I53 -> 26.68 | O53: 30 | P53: =O53/H53 -> 3.807106599
A54: DG HYP. | B54: 64.45 | C54: 71.58 | D54: =C54-B54 -> 7.13 | F54: 61.87 | G54: 66.2 | H54: 4.33 | I54: =F55-G54 -> 19.28 | J54: =H54/N54 -> 0.1833968657 | K54: =I54/N54 -> 0.8166031343 | L54: =1/H54 -> 0.2309468822 | M54: =1/N54 -> 0.04235493435 | N54: =H54+I54 -> 23.61 | O54: 15 | P54: =O54/H54 -> 3.464203233
F55: 85.48 | G55: 91.64 | H55: 6.16 | I55: =F56-G55 -> 16.53 | J55: =H55/N55 -> 0.2714852358 | K55: =I55/N55 -> 0.7285147642 | L55: =1/H55 -> 0.1623376623 | M55: =1/N55 -> 0.04407227854 | N55: =H55+I55 -> 22.69 | O55: 23 | P55: =O55/H55 -> 3.733766234
A56: DG HYP. | B56: 109.74 | C56: 116.75 | D56: =C56-B56 -> 7.01 | F56: 108.17 | G56: 111.95 | H56: 3.78 | I56: =F57-G56 -> 35.66 | J56: =H56/N56 -> 0.09584178499 | K56: =I56/N56 -> 0.904158215 | L56: =1/H56 -> 0.2645502646 | M56: =1/N56 -> 0.02535496957 | N56: =H56+I56 -> 39.44
F57: =120+27.61 -> 147.61 | G57: =120+34.64 -> 154.64 | H57: 7.03
H60: Prot | I60: Retr | J60: LG DC | K60: Int1 DC | L60: LG freq | M60: GMR freq | N60: Period | O60: s/b | P60: SpikeFreq
E61: GPR Stim. | G61: Mean | H61: =AVERAGE(H33,H35,H37,H39,H43,H45,H48,H49,H54,H56) -> 3.173 | I61: =AVERAGE(I33,I35,I37,I39,I43,I45,I48,I49,I54,I56) -> 13.126 | J61: 0.2108822681 | K61: 0.7891177319 | L61: 0.4546525192 | M61: 0.07250484917 | N61: 16.299 | O61: 8.888888889 | P61: 2.789190461
G62: SD | H62: =_xlfn.STDEV.S(H33,H35,H37,H39,H43,H45,H48,H49,H54,H56) -> 1.320135094 | I62: =_xlfn.STDEV.S(I33,I35,I37,I39,I43,I45,I48,I49,I54,I56) -> 8.594336895 | J62: 0.09371204937 | K62: 0.09371204937 | L62: 0.3871883396 | M62: 0.02393997374 | N62: 9.079465782 | O62: 4.371625683 | P62: 0.4646952994
G63: SEM | H63: =H62/SQRT(10) -> 0.4174633716 | I63: =I62/SQRT(10) -> 2.717767957 | J63: 0.02963435202 | K63: 0.02963435202 | L63: 0.1224397037 | M63: 0.007570484413 | N63: 2.871179181 | O63: 1.382429424 | P63: 0.1469495564
E66: Burst After Stim. | G66: Mean | H66: =AVERAGE(H34,H36,H38,H40,H44,H46,H55,H57) -> 6.36 | I66: =AVERAGE(I34,I36,I38,I40,I44,I46,I55,I57) -> 10.23571429 | J66: 0.3873304953 | K66: 0.6126695047 | L66: 0.1603044698 | M66: 0.06187656429 | N66: 16.5 | O66: 21.28571429 | P66: 3.403278758
G67: SD | H67: =_xlfn.STDEV.S(H34,H36,H38,H40,H44,H46,H55,H57) -> 0.4881159113 | I67: =_xlfn.STDEV.S(I34,I36,I38,I40,I44,I46,I55,I57) -> 2.88298952 | J67: 0.05789757225 | K67: 0.05789757225 | L67: 0.01115469947 | M67: 0.008576561164 | N67: 2.867228627 | O67: 1.253566341 | P67: 0.1639499862
G68: SEM | H68: =H67/SQRT(9) -> 0.1627053038 | I68: =I67/SQRT(9) -> 0.9609965066 | J68: 0.01929919075 | K68: 0.01929919075 | L68: 0.003718233156 | M68: 0.002858853721 | N68: 0.9557428757 | O68: 0.417855447 | P68: 0.05464999539
E71: All Other | G71: Mean | H71: =AVERAGE(H28:H32,H41:H42,H47,H52:H53) -> 6.262 | I71: =AVERAGE(I28:I32,I41:I42,I47,I52:I53) -> 11.519 | J71: 0.3587247414 | K71: 0.6412752586 | L71: 0.1655141549 | M71: 0.05892140094 | N71: 17.781 | O71: 21.4 | P71: 3.473849474
G72: SD | H72: =_xlfn.STDEV.S(H28:H32,H41:H42,H47,H52:H53) -> 1.189302316 | I72: =_xlfn.STDEV.S(I28:I32,I41:I42,I47,I52:I53) -> 3.523831406 | J72: 0.05629717583 | K72: 0.05629717583 | L72: 0.03509354881 | M72: 0.0126379796 | N72: 4.291087534 | O72: 4.575295983 | P72: 0.7532238985
G73: SEM | H73: =H72/SQRT(10) -> 0.3760904147 | I73: =I72/SQRT(10) -> 1.114333333 | J73: 0.01780273015 | K73: 0.01780273015 | L73: 0.01109755454 | M73: 0.003996480055 | N73: 1.356961025 | O73: 1.446835628 | P73: 0.2381903107
E75: DG Hyp. | G75: Mean | H75: =AVERAGE(H43,H45,H48,H49,H54,H56) -> 3.025 | I75: =AVERAGE(I43,I45,I48,I49,I54,I56) -> 15.96833333 | J75: 0.1668173294 | K75: 0.8331826706 | L75: 0.5577328519 | M75: 0.06639237419 | N75: 18.99333333 | O75: 8 | P75: 2.641281441
G76: SD | H76: =_xlfn.STDEV.S(H43,H45,H48,H49,H54,H56) -> 1.710868201 | I76: =_xlfn.STDEV.S(I43,I45,I48,I49,I54,I56) -> 10.41688133 | J76: 0.09520481677 | K76: 0.09520481677 | L76: 0.4862435407 | M76: 0.03022858769 | N76: 11.24588932 | O76: 5.873670062 | P76: 0.481714661
G77: SEM | H77: =H76/SQRT(6) -> 0.6984590181 | I77: =I76/SQRT(6) -> 4.252673995 | J77: 0.03886720369 | K77: 0.03886720369 | L77: 0.1985080942 | M77: 0.01234076925 | N77: 4.591115091 | O77: 2.397915762 | P77: 0.1966591868
E79: w/o DG Hyp. | G79: Mean | H79: =AVERAGE(H33,H35,H37,H39,) -> 2.716 | I79: 7.09 | J79: 0.2215837408 | K79: 0.5784162592 | L79: 0.2400256161 | M79: 0.06533884932 | N79: 9.806 | O79: 8 | P79: 2.37926139
G80: SD | H80: =_xlfn.STDEV.S(H33,H35,H37,H39) -> 0.4902040392 | I80: 0.5841446739 | J80: 0.03912358975 | K80: 0.03912358975 | L80: 0.05061641353 | M80: 0.003099906236 | N80: 0.4791224617 | O80: 1.414213562 | P80: 0.4294261981
G81: SEM | H81: =H80/SQRT(4) -> 0.2451020196 | I81: =I80/SQRT(4) -> 0.2920723369 | J81: 0.01956179488 | K81: 0.01956179488 | L81: 0.02530820677 | M81: 0.001549953118 | N81: 0.2395612309 | O81: 0.7071067812 | P81: 0.214713099
F84: CabPK + GPR during Retraction
B85: Stim start | C85: Stim stop | D85: Stim | F85: LG start | G85: LG stop | H85: Prot | I85: Retr | J85: LG DC | K85: Int1 DC | L85: LG freq | M85: GMR freq | N85: Period | O85: s/b | P85: SpikeFreq | R85: File #
F86: 21.09 | G86: 28.01 | H86: =G86-F86 -> 6.92 | I86: =F87-G86 -> 13.84 | J86: =H86/N86 -> 0.3333333333 | K86: =I86/N86 -> 0.6666666667 | L86: =1/H86 -> 0.1445086705 | M86: =1/N86 -> 0.04816955684 | N86: =H86+I86 -> 20.76 | O86: 23 | P86: =O86/H86 -> 3.323699422 | R86: 901_116_0045
F87: 41.85 | G87: 48.77 | H87: 6.92 | I87: =F88-G87 -> 12.9 | J87: 0.3491422805 | K87: 0.6508577195 | L87: 0.1445086705 | M87: 0.05045408678 | N87: 19.82 | O87: 23 | P87: 3.323699422
F88: 61.67 | G88: 68.6 | H88: 6.93 | I88: 12.9 | J88: 0.3494704992 | K88: 0.6505295008 | L88: 0.1443001443 | M88: 0.05042864347 | N88: 19.83 | O88: 24 | P88: 3.463203463
F89: 81.5 | G89: 88.46 | H89: 6.96 | I89: 13.01 | J89: 0.3485227842 | K89: 0.6514772158 | L89: 0.1436781609 | M89: 0.05007511267 | N89: 19.97 | O89: 23 | P89: 3.304597701
B90: 109.04 | C90: 116.1 | D90: =C90-B90 -> 7.06 | F90: 101.47 | G90: 107.56 | H90: 6.09 | I90: 15.57 | J90: 0.2811634349 | K90: 0.7188365651 | L90: 0.1642036125 | M90: 0.04616805171 | N90: 21.66 | O90: 21 | P90: 3.448275862
F91: =120+3.13 -> 123.13 | G91: =120+8.98 -> 128.98 | H91: 5.85 | I91: 14.05 | J91: 0.2939698492 | K91: 0.7060301508 | L91: 0.1709401709 | M91: 0.05025125628 | N91: 19.9 | O91: 18 | P91: 3.076923077 | R91: 901_116_0046
F92: =120+23.03 -> 143.03 | G92: =120+29.15 -> 149.15 | H92: 6.12 | I92: 14.87 | J92: 0.2915674131 | K92: 0.7084325869 | L92: 0.1633986928 | M92: 0.04764173416 | N92: 20.99 | O92: 20 | P92: 3.267973856
B93: 52.9 | C93: 59.88 | D93: =C93-B93 -> 6.98 | F93: =120+44.02 -> 164.02 | G93: =120+50.95 -> 170.95 | H93: 6.93 | I93: 32.61 | J93: 0.1752655539 | K93: 0.8247344461 | L93: 0.1443001443 | M93: 0.02529084471 | N93: 39.54 | O93: 22 | P93: 3.174603175
F94: =120+83.56 -> 203.56 | G94: =120+90.64 -> 210.64 | H94: 7.08 | I94: 15.67 | J94: 0.3112087912 | K94: 0.6887912088 | L94: 0.1412429379 | M94: 0.04395604396 | N94: 22.75 | O94: 24 | P94: 3.389830508
B95: 115.19 | C95: 121.97 | D95: =C95-B95 -> 6.78 | F95: =120+106.31 -> 226.31 | G95: =120+113.24 -> 233.24 | H95: 6.93 | I95: =F96-G95 -> 34.97 | J95: 0.1653937947 | K95: 0.8346062053 | L95: 0.1443001443 | M95: 0.02386634845 | N95: 41.9 | O95: 24 | P95: 3.463203463
F96: =240+28.21 -> 268.21 | G96: =240+34.4 -> 274.4 | H96: 6.19 | I96: 19.16 | J96: 0.2441814596 | K96: 0.7558185404 | L96: 0.1615508885 | M96: 0.03944773176 | N96: 25.35 | O96: 19 | P96: 3.069466882 | R96: 901_116_0047
B97: 63.73 | C97: 70.74 | D97: =C97-B97 -> 7.01 | F97: =240+53.56 -> 293.56 | G97: =240+61.23 -> 301.23 | H97: 7.67 | I97: 36.98 | J97: 0.1717805151 | K97: 0.8282194849 | L97: 0.1303780965 | M97: 0.02239641657 | N97: 44.65 | O97: 9 | P97: 1.173402868
F98: =240+98.21 -> 338.21 | G98: =240+104.47 -> 344.47 | H98: 6.26 | I98: 14.83 | J98: 0.2968231389 | K98: 0.7031768611 | L98: 0.1597444089 | M98: 0.04741583689 | N98: 21.09 | O98: 19 | P98: 3.03514377
F99: =240+119.3 -> 359.3 | G99: =240+125.24 -> 365.24 | H99: 5.94 | I99: 10.84 | J99: 0.3539928486 | K99: 0.6460071514 | L99: 0.1683501684 | M99: 0.05959475566 | N99: 16.78 | O99: 7 | P99: 1.178451178
A100: DG HYP. | F100: =360+16.08 -> 376.08 | G100: =360+22.36 -> 382.36 | H100: 6.28 | I100: 20.9 | J100: 0.2310522443 | K100: 0.7689477557 | L100: 0.1592356688 | M100: 0.03679175865 | N100: 27.18 | O100: 20 | P100: 3.184713376 | R100: 901_116_0048
B101: 52.73 | C101: 59.74 | D101: =C101-B101 -> 7.01 | F101: =360+43.26 -> 403.26 | G101: =360+49.31 -> 409.31 | H101: 6.05 | I101: 71.49 | J101: 0.07802424555 | K101: 0.9219757544 | L101: 0.1652892562 | M101: 0.01289656951 | N101: 77.54 | O101: 19 | P101: 3.140495868
F102: =480+0.8 -> 480.8 | G102: =480+6.95 -> 486.95 | H102: 6.15 | I102: 19.69 | J102: 0.238003096 | K102: 0.761996904 | L102: 0.162601626 | M102: 0.0386996904 | N102: 25.84 | O102: 19 | P102: 3.089430894 | R102: 901_116_0049
F103: =26.64+480 -> 506.64 | G103: =480+34.38 -> 514.38 | H103: 7.74 | I103: 17.36 | J103: 0.3083665339 | K103: 0.6916334661 | L103: 0.1291989664 | M103: 0.03984063745 | N103: 25.1 | O103: 19 | P103: 2.454780362
F104: =480+51.74 -> 531.74 | G104: =480+59.03 -> 539.03 | H104: 7.29 | I104: 28.14 | J104: 0.2057578323 | K104: 0.7942421677 | L104: 0.1371742112 | M104: 0.02822466836 | N104: 35.43 | O104: 24 | P104: 3.29218107
A105: DG HYP. | B105: 96.91 | C105: 103.99 | D105: =C105-B105 -> 7.08 | F105: =480+87.17 -> 567.17 | G105: =94.32+480 -> 574.32 | H105: 7.15 | I105: 40.97 | J105: 0.1485868662 | K105: 0.8514131338 | L105: 0.1398601399 | M105: 0.02078137988 | N105: 48.12 | O105: 22 | P105: 3.076923077
F106: =600+15.29 -> 615.29 | G106: 622.95 | H106: 7.66 | I106: 5.72 | J106: 0.5724962631 | K106: 0.4275037369 | L106: 0.1305483029 | M106: 0.07473841555 | N106: 13.38 | O106: 10 | P106: 1.305483029 | R106: 901_116_0050
F107: 628.67 | G107: 636.31 | H107: 7.64 | I107: 23.23 | J107: 0.247489472 | K107: 0.752510528 | L107: 0.1308900524 | M107: 0.03239390994 | N107: 30.87 | O107: 21 | P107: 2.748691099
F108: 659.54 | G108: 667.38 | H108: 7.84 | I108: 16.65 | J108: 0.3201306656 | K108: 0.6798693344 | L108: 0.1275510204 | M108: 0.04083299306 | N108: 24.49 | O108: 27 | P108: 3.443877551
F109: 684.03 | G109: 691.79 | H109: 7.76 | I109: 15.82 | J109: 0.3290924512 | K109: 0.6709075488 | L109: 0.1288659794 | M109: 0.04240882103 | N109: 23.58 | O109: 26 | P109: 3.350515464
F110: 707.61 | G110: 715.43 | H110: 7.82 | I110: 17.93 | J110: 0.3036893204 | K110: 0.6963106796 | L110: 0.1278772379 | M110: 0.03883495146 | N110: 25.75 | O110: 28 | P110: 3.58056266
F111: =720+13.36 -> 733.36 | R111: 901_116_0051
H113: Prot | I113: Retr | J113: LG DC | K113: Int1 DC | L113: LG freq | M113: GMR freq | N113: Period | O113: s/b | P113: SpikeFreq
E114: GPR Stim. | G114: Mean | H114: =AVERAGE(H90,H93,H95,H97,H101,H105,H28) -> 6.675714286 | I114: =AVERAGE(I90,I93,I95,I97,I101,I105,I28) -> 34.38142857 | J114: 0.2060941448 | K114: 0.7939058552 | L114: 0.1510765902 | M114: 0.03183989131 | N114: 41.05714286 | O114: 19.14285714 | P114: 2.907626408
